Workbook

Sheet Notas
A2: jccodina@gmail.com | J2: El Grinch Energético en Youtube
J3: - Enlace al vídeo tutorial
J4: - Tutorial para personalizar tarifas o crear nuevas
J5: - Canal en Telegram: GrinchEnergetico
J6: >>> Descarga la última versión de este fichero desde aquí <<<
J7: - Rellenar la pestaña de Datos y ver los resultados en la pestaña Facturas.
A8: Notas importantes | J8: - Abrir el fichero con el programa Excel o LibreOffice desde un ordenador.
A9: Los precios de potencias y energía en las tarifas son siempre sin impuestos | J9: - No funciona desde tablet o móvil
A10: Los precios de potencia en las tarifas se indican en Euros por kW y por año | J10: - Habilitar edición y macros
A11: Los precios de energía en las tarifas se indican en céntimos de euro por kWh
A12: No me hago responsable de cálculos o manipulaciones incorrectas.
A13: Esto es una herramienta gratuita para ayudar a tomar decisiones, pero en ningún momento se garantiza la precisión ni el perfecto funcionamiento
A14: Es responsabilidad de cada uno de vosotros revisar luego bien los datos a través del enlace que hay en la tarifa, revisar el contrato y revisar los cálculos
A15: Si hubiera algún error agradecería un correo electrónico indicando el problema detectado: jccodina@gmail.com
A16: Esta hoja de cálculo es totalemente libre de uso y disfrute mientras sea sin ánimo de lucro.
A17: Las tarifa relacionadas con PVPC/indexadas solo son orientativas, ya que no conocemos los precios de los meses futuros. Las tarifas que hay son para meses concretos
A19: Mejoras en la versión 88 (??/05/2023)
B20: Pequeño cambio en la batería virtual de Bassols para hacer la segunda compensación después de impuestos
B21: Añado las tres tarifas de Bassols con batería virtual y Balance Anual Infinito, donde la 'Batería Final Año' se expresa en kWh en vez de euros
B22: Añado también la tarifa de Esmiluz Energía con balance Neto Anual en las tarifas, donde la 'Batería Final Año' se expresa en kWh en vez de euros
B23: Implemento la Batería Virtual de Agri-Energia
B24: Ahora pongo los precios medios actuales de PVPC/indexadas del año en curso, los últimos 3 meses y el año anterior
B25: He reordenado las tarifas fijas por el nombre de la comercializadora en el primer bloque de tarifas con precios fijos
B26: Hago cambios en la tabla tarifas para indicar bien si la tarifa lleva el ajuste del gas incluido y cual es el precio del MAG para ese mes o en el último mes
B27: Corrijo el cálculo de la compensación de excedentes que estaba mal desde hace muchos meses en PVPC, ya que no se debe compensar el MAG
B28: Actualizo tarifas de Endesa y Naturgy, que bajan casi todas pero suben los precios de las potencias en la mayoría de casos
B29: Actualizo producción y precios de los paneles y minihidraulica del autoconsumo remoto de Comunidad Solar
B30: Bonpreu vuelve a bajar 1 céntimo el precio de los excedentes y a partir de mayo será de 9 céntimos el kWh inyectado
B31: Elimino las tarifas de Octopus con la OCU al no poderse contratar
B32: Solo dejo la tarifa de Gana Energía, como ganadora de nuestras primeras compras, como referencia durante el año
B33: Subida de precios en las cuotas de Próxima Energía
A35: Mejoras en la versión 87 (17/04/2023)
B36: Corrijo error en el precio de los excedentes en una de las tarifas de Bassols
B37: Cambio tarifa Flexi de Octopus, ya que han subido precios de potencias y han añadido un coste de gestión
B38: Añado AgriEnergía como ganadora de la compra colectiva Saturno, de Spock
B39: añado precios PVPC y tarifas indexadas con los precios medios que llevamos de Abril, aunque pueden cambiar mucho hasta final de mes
B40: Actualizo tarifas de ElectraCaldense
B41: Subida de precios de las potencias en las tarifas de Iberdrola
B42: Cambio algunas tarifas de Naturgy y Endesa
A44: Mejoras en la versión 86 (08/04/2023)
B45: Nueva batería virtual de Bassols Energia
B46: Añado oferta personalizada de TotalEnergies donde vosotros tenéis que introducir los valores que os ofrezcan
A48: Mejoras en la versión 85 (01/04/2023)
B49: Añado el nombre de los meses que se pongan en la pestaña Datos en la pestaña Facturas, combinando el número de mes con su descripción
B50: Correcciones internas en Comunidad Solar que no afectan a los cálculos
B51: Actualización de precios de Som Energia a partir de Mayo
B52: Pongo precios finales para tarifas indexadas y PVPC correspondientes al mes de marzo
B53: Bajo el precio de los excedentes a 10,1 c€/kWh para las tarifas de Bonpreu a partir del 1 de abril
A55: Mejoras en la versión 84 (28/03/2023)
B56: Nuevas tarifas de Octopus a través de la OCU, siendo socio
A58: Mejoras en la versión 83 (27/03/2023)
B59: Indico el código CN023 para la oferta de EnergiaNufri
B60: Añado Tarifa Solar Precio Fijo de Repsol
B61: Bonpreu cambia el nombre de su tarifa indexada por Plan Dinámico en vez de Plan Autoconsumo
B62: Revisión completa de las pestañas SolarPack y ComunidadSolar para evaluar las inversiones en paneles remotos
A64: Mejoras en la versión 82 (16/03/2023)
B65: Añado los datos definitivos de Febrero para las tarifas indexadas y PVPC, y los datos provisionales de marzo
B66: Añado la batería virtual de Som Energia que será retroactiva para todos sus clientes desde el 2022, aunque aún no está 100% definida
B67: Actualizo muchas tarifas y borro la tarifa especial de Octopus ya que no se puede contratrar a partir de marzo
B68: Dejo la tarifa ganadora de la compra colectiva como referencia, aunque no se pueda contratar
B69: Parece ser que no hay ofertas de EnergíaNufri y hay que pedir estudio personalizado, así que tendremos que eliminar esta comercializadora si no indica precios por la web
B70: Los precios de Energía Nufri son los anteriores que había y ahora con los excedentes a 12 céntimos. Hay que confirmar precios, ya que no se pueden ver en la web
A72: Mejoras en la versión 81 (24/02/2023)
B73: Añado la nueva tarifa conseguida con nuestra primera compra colectiva
B74: Cambios en las tarifas relacionadas con paneles remotos: SolarPack y ComunidadSolar. Queda pendiente un vídeo explicativo y revisión a fondo
A76: Mejoras en la versión 80 (22/02/2023)
B77: Reviso el cálculo del impuesto eléctrico, que no estaba bien calculado en algunos casos
B78: Arreglo un fallo de cálculo en Bonpreu y Factor Energía cuando quedaba muy poca cantidad en la batería virtual
A80: Mejoras en la versión 79 (21/02/2023)
B81: Añado de forma experimental la batería virtual de Iberdrola (Solar Cloud)
B82: Añado tarifa Octopus Flexi, que es indexada pero con los excedentes a 11 céntimos el kWh
B83: Corrijo algunos problemas importantes con el LibreOffice calculando acumulando batería virtual de un mes para otro y calculando la batería total a final de año
B84: Reimplemento toda la programación de las tarifas y baterías virtuales y cambio la forma de desglosar las facturas
A86: Mejoras en la versión 78 (13/02/2023)
B87: Arreglo un problema relacionado con LibreOffice y la tarifa de Lumio
B88: La aportación del bono Social pasa a ser 0,038455 €/día de factura (unos 14 €/año)
A90: Mejoras en la versión 77 (11/02/2023)
B91: Añado tarifa de Lumio con su batería virtual
B92: Añado batería virtual de Octopus
B93: Revisión completa de la pestaña 'Comunidad Solar' con la nueva versión de sus paneles remotos
B94: Baja el precio de los excedentes en Bonpreu a 12 céntimos el kWh inyectado, hasta nuevo aviso
A96: Mejoras en la versión 76 (06/02/2023)
B97: Corrijo precios de una de las tarifas de Gana
A99: Mejoras en la versión 75 (06/02/2023)
B100: Añado el término 'Aportaciones al bono social' en todas las facturas.
B101: Actualización de precios de Bonpreu brutal, y también comento que a partir de ahora cobrarán la aportación del bono social aparte
B102: Actualizo precios de Gana Energía con el MAG incluido. Buenos precios de la energía y malos precios de las potencias
B103: Añado los precios que llevamos en Febrero en PVPC y con tarifas indexadas
B104: También añado los precios para PVPC y tarifas indexadas con los precios medios de 2022, como referencia
A106: Mejoras en la versión 74 (31/01/2023)
B107: La tarifa Online con precio de compensación fijo compensa todos los términos. Lo corrijo en el primer bloque de tarifas
B108: Actualizo precios PVPC y tarifas indexadas para Enero 2023
A110: Mejoras en la versión 73 (24/01/2023)
B111: Añado nueva tarifa de Octopus Energy en colaboración con el Grinch
B112: Actualizo precios del ajuste del gas para el primer bloque de tarifas no indexadas, según los precios bajos del mes de enero
B113: Actualizo tarifas de Naturgy
B114: Actualizo tarifas de EnergiaNufri
B115: Actualizo tarifas de ElectraCaldense
B116: Actualización de precios de Endesa, que suben todos menos la tarifa Conecta, donde no deja claro si aún puede recibir retroactivamente un incremento por el IPC del año pasado
B117: Actualizo tarifas de Imagina Energía
B118: Actualizo tarifas de Estabanell, donde a partir de ahora el MAG se paga aparte
B119: Desaparece la tarifa Ahorro de BonArea y no pongo la tarifa Autoconsumo porque no indican el margen comercial
B120: Actualizo precios de los excedentes para las tarifas de Iberdrola a 10 céntimos y añado también la tarifa Online con ese precio fijo de los excedentes en el primer bloque de tarifas
A122: Mejoras en la versión 72 (14/01/2023)
B123: Añado la tarifa One Luz 3 Periodos de Endesa
B124: En lafila 24, justo después del precio mínimo de renovación que ofrece la OCU he puesto el precio máximo de la compra colectiva que estamos organizando
B125: Actualizo precios medios de enero para PVPC y las indexadas
A127: Mejoras en la versión 71 (07/01/2023)
B128: Actualizo precios de Energía Nufri, algo más caros
B129: Actualizo precios de Octopus Energy
B130: Añado nueva tarifa con los precios más bajos que ofrecen para la renovación de la oferta Repsol-OCU
A132: Mejoras en la versión 70 (03/01/2023)
B133: Actualizo nuevos peajes y cargos para 2023
B134: Actualizo precios PVPC y tarifas indexadas para diciembre 2022
B135: Añado tarifa de Repsol con mejores precios en potencia
B136: He actualizado precios según los nuevos cargos para Som Energia, Bonpreu, Endesa y las indexadas. El resto no han actualizado precios
B137: En las tarifas de Endesa indico que la subida del IPC sigue pendiente. No saben si se aplicará o no
A139: Mejoras en la versión 69 (24/12/2022)
B140: Ahora sí que funciona la pestaña de comunidad solar con LibreOffice
B141: Si haces doble click en alguna factura de Esmiluz, SolarPack o ComunidadSolar aparecerá el desglose de la factura con los datos bien alineados
B142: Si algún comentario de las facturas anteriores no aparece con los datos alineados solo hay que cambiar de pestaña, y al volver a la pestaña aparecerán bien alineados los datos
A144: Mejoras en la versión 68 (22/12/2022)
B145: Actualizo el precio de los excedentes de Octopus
B146: Arreglo un problema en las facturas de Helios, que no aparecían en la versión anterior
A148: Mejoras en la versión 67 (21/12/2022)
B149: Añado tarifa Plan Estable de Iberdrola para comunidades de vecinos
B150: Mejoro la pestaña SolarPack con datos históricos de 2021 y 2022 y para comparar ahorros le resto el retorno de la inversión en las nuevas filas
B151: añado nueva tarifa con paneles remotos en la pestaña ComunidadSolar
B152: Añado nuevas tarifas de Sweno (El Corte Inglés)
B153: Añado tarifas indexadas y PVPC con los precios medios de Diciembre, y el ajuste del gas que sigue subiendo respecto a Noviembre
B154: Borro la tarifa de Doméstica Energía por tener precios muy elevados
B155: Borro tarifa Solar Tempo de Endesa, ya que no está disponible en la web
B156: Actualizo precios de muchas tarifas, la mayoría a la alza
A158: Mejoras en la versión 66 (02/12/2022)
B159: Actualizo precios definitivos de Noviembre para tarifas indexadas y PVPC
B160: El ajuste del gas está actualizado a 1 céntimo, según datos de noviembre, pero en diciembre seguramente será de 10 a 20 céntimos por kWh
A162: Mejoras en la versión 65 (18/11/2022)
B163: Añado un campo para indicar el ajuste del gas en esmiluz, por si lo empieza a cobrar aparte, sin poderse compensar con los excedentes
B164: Añado tarifas con horas gratis al día o al mes, como las de Repsol y endesa
B165: Añado tarifas indexadas y PVPC con los precios medios de Noviembre, y el ajuste del gas a menos de 1 céntimo el kWh de media, de momento
B166: Pequeña subida en las tarifas de Endesa, y creo que la Tempo Solar ya no se puede contratar
A168: Mejoras en la versión 64 (05/11/2022)
B169: El desglose de las facturas se puede ver también haciendo un doble clic sobre el total de cada factura
B170: Se pueden comparar varias facturas abriendo el desglose de cada una en diferentes ventanas (con el doble clic)
B171: El desglose de la factura se puede ver también en el LibreOffice con el doble clic
A173: Mejoras en la versión 63 (03/11/2022)
B174: Actualizo precios PVPC y tarifas indexadas con la media final de octubre
B175: Nuevas tarifas de Octopus sin el ajuste del gas, que se paga aparte
A177: Mejoras en la versión 62 (30/10/2022)
B178: Nuevas cuotas de Lidera Energia a 6,95 €/mes
B179: Añado nueva carpeta 'Bono Social' para calcular la cantidad de kWh que vais a consumir con descuento en función de cuando contratéis o renovéis el bono social
B180: Bajan un poco los precios de Bonpreu para nuevos contratos
B181: Actualizo precios PVPC y tarifas indexadas con la media final de octubre
A183: Mejoras en la versión 61 (24/10/2022)
B184: Iberdrola ahora compensa los excedentes a 9 céntimos o a precios PVPC, y además también compensan el ajuste del gas, según parece.
B185: Nuevos precios de Electra Caldense con el ajuste del gas incluido, pero superiores a los publicados en la versión anterior
B186: Suben las tarifas de Iberdrola
B187: Añado la trampa del Asistente de Hogar de Endesa Conecta, que son 6 euros al mes y con permanencia de 1 año, según tengo entendido
B188: Precios PVPC y tarifas indexadas con la media actual de octubre, a falta de una semana para cerrar el mes
A190: Mejoras en la versión 60 (11/10/2022)
B191: Subo el precio de la compensación de excedentes del Plan Solar de Iberdrola a 9 céntimos
B192: Añado tarifa Endesa Solar Simply
B193: Añado tarifa Endesa conecta
B194: Actualizo tarifa de Domestica Energía
B195: Suben todas las tarifas de Gana Energía
B196: Cambio tarifas de Electra Caldense sin el tope del gas, ya que a priori está incluido en sus tarifas
B197: Actualizo tarifas de Total Energies y borro una de ellas que ya no es contratable
B198: Actualizo precio del ajuste del gas a 8.3 céntimos, que es el precio medio de octubre hasta la fecha, y 9.5 para los que tenemos paneles
B199: También pongo precios PVPC e indexados según lo que llevamos de Octubre, para el caso normal sin autoconsumo y también con autoconsumo
B200: Elimino muchas tarifas PVPC e indexada antiguas, de meses anteriores. Solo dejaré los últimos 6 meses de datos históricos
A202: Mejoras en la versión 59 (04/10/2022)
B203: En la tarifa de autoconsumo de Bonpreu, con batería virtual, pongo precios medios más altos que en PVPC, para agosto y septiembre, ya que los precios fuera de las horas de sol son más elevados. Faltaría junio y julio
B204: Actualizo a 11,4 céntimos el ajuste del gas para el mes de septiembre y 10,8 los excedentes
B205: Actualizo precios de Endesa One e Iberdrola Online
B206: Añado tarifa PVPC-Autoconsumo con los precios más altos del ajuste del gas y los precios de la energía para el autoconsumo
A208: Mejoras en la versión 58 (25/09/2022)
B209: Modifico la simulación de facturas con batería virtual de Lidera Energía, ya que en la primera compensación también compensan la potencia, y ahora hacen la segunda compensación después de impuestos
B210: Cambio las tarifas de Naturgy para indicar que no compensan el ajuste del gas con los excedentes
B211: Cambio las tarifas de TotalEnergies y Endesa para indicar que no compensan ni los peajes ni el ajuste del gas con los excedentes
B212: Hago algunas mejoras para desglosar la factura de Próxima Energía anotando los términos que entran en la primera compensación de excedentes
B213: En las tarifas indexadas con batería virtual pongo precios medios más altos que en PVPC, para agosto y septiembre, ya que los precios fuera de las horas de sol son más elevados. Faltaría junio y julio
B214: Actualizo muchos precios
A216: Mejoras en la versión 57 (14/09/2022)
B217: Solucionado un problema con LibreOffice que hacía petar la hoja de cálculo al pasar a la pestaña Facturas
A219: Mejoras en la versión 56 (13/09/2022)
B220: Cambio precios de domestica energía y ahora no incluyen el ajuste del gas
A222: Mejoras en la versión 55 (04/09/2022)
B223: Cambio el precio de los excedentes en Electra Caldense a 16 céntimos, ya que han actualizado precios y no han cambiado aún a 21 céntimos como me dijeron
B224: Corrijo error en el cálculo de la compensación de excedentes en PVPC, ya que no compensan el ajuste del gas y en las últimas vesiones sí que lo estaba haciendo por error
A226: Mejoras en la versión 54 (01/09/2022)
B227: Nueva tarifa de 3 tramos de Gana Energía exenta del ajuste del gas. No le afecta el ajuste del gas
B228: Actualizo precios finales de agosto para PVPC e indexadas (energía, excedentes y tope del gas)
B229: Nuevos precios de Electra Caldense para nuevas contrataciones con 20 céntimos fijos de ajuste del gas, hasta diciembre
B230: Vuelvo a poner la cuota de 4 euros para la batería virtual de Helios, para nuevas contrataciones
B231: Añado una nueva tarifa con el tope del gas de la comercializadora Doméstica Energía
A233: Mejoras en la versión 53 (30/08/2022)
B234: Nueva tarifa de Gana Energía exenta del ajuste del gas. No le afecta el ajuste del gas
A236: Mejoras en la versión 52 (30/08/2022)
B237: Añado la tarifa de Factor Energía con precio fijo de 25 centimos por la energía y excedentes a PVPC, y con batería virtual compensando solo energía
B238: Añado otra curva de compensación del gas en la pestaña 'Calc. PVPC' que se aplica solo en el caso de tarifas del mercado libre. En ese caso el ajuste del gas son dos componentes, y está documentado en la nota de la celda M6 (Compens. Gas)
... 277 more rows

Sheet Tarifas
A1: - Enlace al vídeo tutorial | C1: €/kW y año | E1: Céntimos de € | H1: Ajuste del Gas
A2: -Tutorial para personalizar tarifas o crear nuevas | C2: Potencia | E2: Energía | H2: MAG | J2: Excedentes | M2: Extras Gestión | Q2: €
A3: >>> Descarga la última versión de este fichero desde aquí <<< | C3: P1 | D3: P2 | E3: P1 | F3: P2 | G3: P3 | H3: S/N | I3: Cent. € | J3: Cent. € | L3: Franjas Horarias | M3: € | N3: € | O3: € | P3: € | Q3: Desc. Factura
A4: Comercializadora | B4: Tarifa | C4: Punta | D4: Valle | E4: Punta | F4: Llana | G4: Valle | H4: Incluido | I4: Precio | J4: Precio | K4: Método | M4: Men. | N4: kWp | O4: Cons. | P4: Exced. | R4: CIF | T4: Enlace
A5: AgriEnergía | B5: Compra Colectiva Abril 2023 | C5: =0.069543*365 -> 25.383195 | D5: =0.003679*365 -> 1.342835 | E5: 23.1165 | F5: 17.2545 | G5: 13.4818 | H5: N | I5: 0 | J5: 7 | K5: PVPC | L5: Normal | T5: https://www.youtube.com/watch?v=gQgGHW4OOjU
A6: AgriEnergía | B6: Compra Colectiva Abril 2023 + BV | C6: =0.069543*365 -> 25.383195 | D6: =0.003679*365 -> 1.342835 | E6: 23.1165 | F6: 17.2545 | G6: 13.4818 | H6: N | I6: 0 | J6: 7 | K6: BateríaAgri | L6: Normal | M6: 5 | T6: https://youtu.be/sWHkckuD8mA
A7: Bassols Energía | B7: Hogar Solar Plus + Bat. Virtual | C7: 32.428891 | D7: 7.92644 | E7: 26.4587 | F7: 21.0687 | G7: 16.9083 | H7: N | I7: 0 | J7: 13 | K7: BateríaBE | L7: Normal | T7: https://www.bassolsenergia.com/es/tarifas/hogar-solar-plus-con-bateria-virtual-10kw/
A8: Bassols Energía | B8: Hogar solar 24h + Bat. Virtual | C8: 32.428891 | D8: 7.92644 | E8: 20.6444 | F8: =E8 -> 20.6444 | G8: =E8 -> 20.6444 | H8: N | I8: 0 | J8: 13 | K8: BateríaBE | L8: Normal | T8: https://www.bassolsenergia.com/es/tarifas/hogar-solar-24h-con-bateria-virtual-10kw/
A9: Bassols Energía | B9: Hogar Solar Plus + Bal. Neto Anual | C9: 32.428891 | D9: 7.92644 | E9: 26.4587 | F9: 21.0687 | G9: 16.9083 | H9: N | I9: 0 | J9: 13 | K9: BNA_BE | L9: Normal | N9: 5
A10: Bassols Energía | B10: Hogar solar 24h + Bal. Neto Anual | C10: 32.428891 | D10: 7.92644 | E10: 20.6444 | F10: =E10 -> 20.6444 | G10: =E10 -> 20.6444 | H10: N | I10: 0 | J10: 13 | K10: BNA_BE | L10: Normal | N10: 5
A11: Bonpreu | B11: Plan Noche y Dia | C11: =0.069543*365 -> 25.383195 | D11: =0.003679*365 -> 1.342835 | E11: 20 | F11: 18 | G11: 13.4 | H11: N | I11: 0 | J11: 9 | K11: BateríaBP | L11: Normal | Q11: 5 | R11: Sí | T11: https://www.bonpreuesclat.cat/es/plans-energia
A12: Bonpreu | B12: Hagámoslo Fácil | C12: =0.069543*365 -> 25.383195 | D12: =0.003679*365 -> 1.342835 | E12: 16 | F12: =E12 -> 16 | G12: =E12 -> 16 | H12: N | I12: 0 | J12: 9 | K12: BateríaBP | L12: Normal | Q12: 5 | R12: Sí | T12: https://www.bonpreuesclat.cat/es/plans-energia
A13: Electra Caldense Energía | B13: plafix | C13: =365*0.08004 -> 29.2146 | D13: =365*0.004152 -> 1.51548 | E13: 22.5732 | F13: =E13 -> 22.5732 | G13: =E13 -> 22.5732 | H13: S | I13: 0 | J13: 13 | K13: Consumo | L13: Normal | R13: Sí | T13: https://electracaldenseenergia.com/es/tarifas/
A14: Electra Caldense Energía | B14: plaflexa2 | C14: =365*0.08004 -> 29.2146 | D14: =365*0.004152 -> 1.51548 | E14: 26.9037 | G14: 18.977 | H14: S | I14: 0 | J14: 13 | K14: Consumo | L14: Nocturna-14h | R14: Sí | T14: https://electracaldenseenergia.com/es/tarifas/
A15: Electra Caldense Energía | B15: plaflexa3 | C15: =365*0.08004 -> 29.2146 | D15: =365*0.004152 -> 1.51548 | E15: 29.0857 | F15: 22.9623 | G15: 18.8069 | H15: S | I15: 0 | J15: 13 | K15: Consumo | L15: Normal | R15: Sí | T15: https://electracaldenseenergia.com/es/tarifas/
A16: Endesa | B16: One Luz | C16: =35.383056 -> 35.383056 | D16: =11.342712 -> 11.342712 | E16: 13.6 | F16: =E16 -> 13.6 | G16: =E16 -> 13.6 | H16: N | I16: 0 | L16: Normal | R16: Sí | T16: https://www.endesa.com/es/luz-y-gas/luz/one/tarifa-one-luz
A17: Endesa | B17: One Luz 3 Periodos | C17: =35.383056 -> 35.383056 | D17: =11.342712 -> 11.342712 | E17: 18 | F17: 13.6 | G17: 10.64 | H17: N | I17: 0 | L17: Normal | R17: Sí | T17: https://www.endesa.com/es/luz-y-gas/luz/one/tarifa-one-luz-3periodos
A18: Endesa | B18: Conecta | C18: =33.080628 -> 33.080628 | D18: =8.196888 -> 8.196888 | E18: 13.9 | F18: =E18 -> 13.9 | G18: =E18 -> 13.9 | H18: N | I18: 0 | L18: Normal | R18: Sí | T18: https://www.endesa.com/es/conecta-de-endesa
A19: Endesa | B19: Solar Simply | C19: =35.383056 -> 35.383056 | D19: =11.342712 -> 11.342712 | E19: 14.31 | F19: =E19 -> 14.31 | G19: =E19 -> 14.31 | H19: N | I19: 0 | J19: 10 | K19: PVPC | L19: Normal | R19: Sí | T19: https://www.endesa.com/es/luz-y-gas/luz/tempo/tarifa-autoconsumo-con-excedentes-solar-simply
A20: Endesa | B20: Tempo Happy 50 horas (al mes) | C20: =35.383056 -> 35.383056 | D20: =11.342712 -> 11.342712 | E20: =24.648 -> 24.648 | G20: 0 | H20: N | I20: 0 | L20: 50hGratis | R20: Sí | T20: https://www.endesa.com/es/luz-y-gas/luz/tempo/tempo-happy-50-horas
A21: Endesa | B21: Tempo Happy 2 horas (al día) | C21: =35.383056 -> 35.383056 | D21: =11.342712 -> 11.342712 | E21: =24.648 -> 24.648 | G21: 0 | H21: N | I21: 0 | L21: 2hGratis | R21: Sí | T21: https://www.endesa.com/es/luz-y-gas/luz/tempo/tempo-happy-2-horas
A22: EnergiaNufri | B22: Trio | C22: =0.076118*365 -> 27.78307 | D22: =365*0.010254 -> 3.74271 | E22: 21.6637 | F22: 16.3822 | G22: 13.3459 | H22: N | I22: 0 | J22: 12 | K22: Consumo | L22: Normal | R22: Sí | T22: https://www.energianufri.com/luz-para-el-hogar?precios_con_codigo_promocional=CN023
A23: EnergiaNufri | B23: Versión 24h | C23: =0.07994*365 -> 29.1781 | D23: =365*0.03438 -> 12.5487 | E23: 16.801 | F23: =E23 -> 16.801 | G23: =E23 -> 16.801 | H23: N | I23: 0 | J23: 12 | K23: Consumo | L23: Normal | R23: Sí | T23: https://www.energianufri.com/luz-para-el-hogar?precios_con_codigo_promocional=CN023
A24: Estabanell Energía | B24: Plan Solar | C24: =0.086964*365 -> 31.74186 | D24: =0.003679*365 -> 1.342835 | E24: =26.4201 -> 26.4201 | G24: =13.9598 -> 13.9598 | H24: N | I24: 0 | J24: 15 | K24: Consumo | L24: Solar-16h | R24: Sí | T24: https://estabanell.com/particulars/es/energia/solar/
A25: Estabanell Energía | B25: Plan Estable | C25: =0.086964*365 -> 31.74186 | D25: =0.003679*365 -> 1.342835 | E25: =19.393 -> 19.393 | F25: =E25 -> 19.393 | G25: =E25 -> 19.393 | H25: N | I25: 0 | L25: Normal | R25: Sí | T25: https://estabanell.com/particulars/es/energia/estable/
A26: Estabanell Energía | B26: Plan Eficiencia | C26: =0.086964*365 -> 31.74186 | D26: =0.003679*365 -> 1.342835 | E26: =28.7981 -> 28.7981 | F26: =20.0094 -> 20.0094 | G26: =15.1541 -> 15.1541 | H26: N | I26: 0 | L26: Normal | R26: Sí | T26: https://estabanell.com/particulars/es/energia/eficiencia/
A27: Gana Energía | B27: 2.0TD Precio estable | C27: =0.123*365 -> 44.895 | D27: =365*0.05 -> 18.25 | E27: 19.6 | F27: 14.9 | G27: 12.5 | H27: S | I27: 0 | J27: 7 | K27: Consumo | L27: Normal | R27: Sí | T27: https://ganaenergia.com/tarifas-luz/discriminacion-horaria
A28: Gana Energía | B28: 2.0TD Online | C28: =0.123*365 -> 44.895 | D28: =365*0.05 -> 18.25 | E28: 15.9 | F28: =E28 -> 15.9 | G28: =E28 -> 15.9 | H28: S | I28: 0 | J28: 7 | K28: Consumo | L28: Normal | R28: Sí | T28: https://ganaenergia.com/tarifas-luz/precio-fijo
A29: Gana Energía | B29: Compra Colectiva Febrero 2023 | C29: =0.069543*365 -> 25.383195 | D29: =0.003679*365 -> 1.342835 | E29: 18.5898 | F29: 13.9 | G29: 11.9113 | H29: N | I29: 0 | J29: 7 | K29: Consumo | L29: Normal | T29: https://www.youtube.com/watch?v=gQgGHW4OOjU
A30: Iberdrola | B30: Plan VE | C30: 34.5 | D30: 6.38 | E30: 38.3776 | G30: 3 | H30: N | I30: 0 | J30: 10 | K30: BateríaIber | L30: VE-6h | M30: 1.2 | T30: https://www.iberdrola.es/smart-mobility/plan-vehiculo-electrico
A31: Iberdrola | B31: Online | C31: 32.92 | D31: 5.19 | E31: 15.9521 | F31: =E31 -> 15.9521 | G31: =E31 -> 15.9521 | H31: N | I31: 0 | J31: 10 | K31: BateríaIber | L31: Normal | M31: 1.2 | R31: Sí | T31: https://www.iberdrola.es/luz/plan-online
A32: Iberdrola | B32: Plan Solar | C32: 34.5 | D32: 6.38 | E32: 27.6298 | G32: 15.4142 | H32: N | I32: 0 | J32: 10 | K32: BateríaIber | L32: Solar-16h | M32: 1.2 | T32: https://www.iberdrola.es/smart-solar/plan-solar
A33: Iberdrola | B33: Plan Estable | C33: 32.92 | D33: 5.19 | E33: 18.6836 | F33: =E33 -> 18.6836 | G33: =E33 -> 18.6836 | H33: N | I33: 0 | J33: 10 | K33: BateríaIber | L33: Normal | M33: 1.2 | T33: https://www.iberdrola.es/luz/plan-estable
A34: Iberdrola | B34: Plan Com. Prop. | C34: 34.5 | D34: 6.38 | E34: =17.8012 -> 17.8012 | F34: =E34 -> 17.8012 | G34: =23.3458 -> 23.3458 | H34: N | I34: 0 | L34: Normal | R34: Sí | T34: https://www.iberdrola.es/comunidades/luz/plan-comunidad-de-propietarios
A35: Iberdrola | B35: Plan Estable Com. de Prop. | C35: =34.27-1.79 -> 32.48 | D35: =5.41-0.12 -> 5.29 | E35: 20.8536 | F35: =E35 -> 20.8536 | G35: =E35 -> 20.8536 | H35: N | I35: 0 | L35: Normal | R35: Sí | T35: https://www.iberdrola.es/comunidades/luz/plan-estable
A36: Imagina Energía | B36: Plan sin horas | C36: =0.107*365 -> 39.055 | D36: =0.05*365 -> 18.25 | E36: 15.9 | F36: =E36 -> 15.9 | G36: =E36 -> 15.9 | H36: N | I36: 0 | L36: Normal | R36: Sí | T36: https://imaginaenergia.com/hogares/plan-sin-horas
A37: Imagina Energía | B37: Noches y Findes | C37: =0.102*365 -> 37.23 | D37: =0.025*365 -> 9.125 | E37: 21.8 | F37: 16.5 | G37: 14 | H37: N | I37: 0 | L37: Normal | R37: Sí | T37: https://imaginaenergia.com/hogares/plan-noches-y-findes
A38: Naturgy | B38: Por Uso | C38: =2.530366 *12 -> 30.364392 | D38: =0.527003*12 -> 6.324036 | E38: 15.93 | F38: =E38 -> 15.93 | G38: =E38 -> 15.93 | H38: N | I38: 0 | L38: Normal | T38: https://www.naturgy.es/hogar/luz_y_gas/tarifa_por_uso
A39: Naturgy | B39: Noche | C39: =2.530366 *12 -> 30.364392 | D39: =0.527003*12 -> 6.324036 | E39: 22.158 | F39: 16.677 | G39: 11.934 | H39: N | I39: 0 | L39: Normal | T39: https://www.naturgy.es/hogar/luz/tarifa_noche
A40: Naturgy | B40: Solar | C40: =2.530366 *12 -> 30.364392 | D40: =0.527003*12 -> 6.324036 | E40: 22.158 | F40: 16.677 | G40: 11.934 | H40: N | I40: 0 | J40: 11 | K40: Energía-MAG | L40: Normal | T40: https://www.naturgy.es/hogar/solar/energia_solar/tarifas_y_mantenimiento#contratar
A41: Naturgy | B41: Plan Fijo Luz Comunidad | C41: =2.369422*12 -> 28.433064 | D41: =0.366059*12 -> 4.392708 | E41: 19.7199 | F41: =E41 -> 19.7199 | G41: =E41 -> 19.7199 | H41: N | I41: 0 | L41: Normal | R41: Sí | T41: https://www.naturgy.es/comunidad_propietarios/contratar/electricidad/plan_a_medida
A42: Naturgy | B42: Plan Fijo Luz Comun. Trihoraria | C42: =2.369422*12 -> 28.433064 | D42: =0.366059*12 -> 4.392708 | E42: 27.0678 | F42: 21.0364 | G42: 14.5076 | H42: N | I42: 0 | L42: Normal | R42: Sí | T42: https://www.naturgy.es/comunidad_propietarios/contratar/electricidad/plan_a_medida
A43: Octopus Energy | B43: Octopus 3 | C43: =0.091*365 -> 33.215 | D43: =0.023*365 -> 8.395 | E43: 21.3 | F43: 16.4 | G43: 13.4 | H43: N | I43: 0 | J43: 11 | K43: BateríaOE | L43: Normal | T43: https://octopusenergy.es/precios?utm_source=email&utm_medium=email&utm_campaign=5000+clientes
A44: Octopus Energy | B44: Relax | C44: =0.091*365 -> 33.215 | D44: =0.023*365 -> 8.395 | E44: 16.6 | F44: =E44 -> 16.6 | G44: =E44 -> 16.6 | H44: N | I44: 0 | J44: 11 | K44: BateríaOE | L44: Normal | T44: https://octopusenergy.es/precios?utm_source=email&utm_medium=email&utm_campaign=5000+clientes
A45: Repsol | B45: Tarifa Solar Precio Fijo | C45: =0.054521*365 -> 19.900165 | D45: =0.054521*365 -> 19.900165 | E45: 14.99 | F45: =E45 -> 14.99 | G45: =E45 -> 14.99 | H45: N | I45: 0 | J45: 10 | K45: Consumo | L45: Normal | M45: 4.99 | T45: https://www.repsol.es/particulares/hogar/energia-solar/tarifas/tarifa-solar-precio-fijo/
A46: Repsol | B46: Tarifa Precio Fijo Largo Plazo | C46: =0.081918*365 -> 29.90007 | D46: =0.081918*365 -> 29.90007 | E46: 17 | F46: =E46 -> 17 | G46: =E46 -> 17 | H46: N | I46: 0 | L46: Normal | M46: 3.51 | T46: https://www.repsol.es/particulares/hogar/luz-y-gas/tarifas/tarifa-precio-fijo-largo-plazo/
A47: Repsol | B47: Tarifa Ahorro Plus | C47: =0.054521*365 -> 19.900165 | D47: =0.054521*365 -> 19.900165 | E47: 16.99 | F47: =E47 -> 16.99 | G47: =E47 -> 16.99 | H47: N | I47: 0 | L47: Normal | M47: 3.51 | T47: https://www.repsol.es/particulares/hogar/luz-y-gas/tarifas/tarifa-ahorro-plus/
A48: Repsol | B48: Mis 3h Gratis (cada día) | C48: =0.081918*365 -> 29.90007 | D48: =0.081918*365 -> 29.90007 | E48: 29.9089 | G48: 0 | H48: N | I48: 0 | L48: 3hGratis | M48: 3.51 | T48: https://www.repsol.es/particulares/hogar/luz-y-gas/tarifas/tarifa-3-horas-gratis/
A49: Som Energia | B49: 2.0TD - a partir de mayo | C49: 26.881 | D49: 2.841 | E49: 29.5 | F49: 23.7 | G49: 19.9 | H49: N | I49: 0 | J49: 13 | K49: BateríaSom | L49: Normal | R49: Sí | T49: https://www.somenergia.coop/es/tarifas-de-electricidad/
A50: Sweno (El Corte Inglés) | B50: Tarifa Despreocúpate | C50: =0.0792*365 -> 28.908 | D50: =0.0792*365 -> 28.908 | E50: 17.99 | F50: =E50 -> 17.99 | G50: =E50 -> 17.99 | H50: N | I50: 0 | L50: Normal | Q50: 5 | T50: https://swenoenergiaofertas.es/
A51: Sweno (El Corte Inglés) | B51: Tarifa Benefíciate | C51: =0.0792*365 -> 28.908 | D51: =0.0792*365 -> 28.908 | E51: 23.18 | F51: 17.59 | G51: 15.26 | H51: N | I51: 0 | L51: Normal | Q51: 5 | T51: https://swenoenergiaofertas.es/
A52: TotalEnergies | B52: a Tu Aire luz Siempre | C52: =0.123014*365 -> 44.90011 | D52: 1e-06 | E52: =16.6364 -> 16.6364 | F52: =E52 -> 16.6364 | G52: =E52 -> 16.6364 | H52: N | I52: 0 | J52: 10 | K52: PVPC | L52: Normal | T52: https://www.totalenergies.es/es/hogares/tarifas-luz/a-tu-aire-siempre
A53: TotalEnergies | B53: Luz Programa tu Ahorro | C53: =0.061507*365 -> 22.450055 | D53: =0.061507*365 -> 22.450055 | E53: =21.503 -> 21.503 | F53: =16.0572 -> 16.0572 | G53: =14.1593 -> 14.1593 | H53: N | I53: 0 | J53: 10 | K53: PVPC | L53: Normal | T53: https://www.totalenergies.es/es/hogares/tarifas-luz/a-tu-aire-programa-tu-ahorro
A54: TotalEnergies | B54: Plan VE | C54: =0.061507*365 -> 22.450055 | D54: =0.061507*365 -> 22.450055 | E54: 32.3 | G54: 10 | H54: N | I54: 0 | J54: 10 | K54: PVPC | L54: VE-NyF | T54: https://www.totalenergies.es/es/hogares/luz/plan-vehiculo-electrico
A55: TotalEnergies | B55: Oferta personalizada | C55: =0.123014*365 -> 44.90011 | D55: 0 | E55: 14.3678 | F55: 14.3678 | G55: 14.3678 | H55: N | I55: 0 | J55: 10 | K55: PVPC | L55: Normal | T55: https://www.youtube.com/watch?v=X1Pv6QdcgbQ
A59: PVPC sin Autoconsumo | B59: Media de 2023 | C59: =C65+3.113 -> 28.496055 | D59: 1.342713 | E59: 21.3 | F59: 15.8 | G59: 12.3 | H59: S | I59: 0.1 | L59: Normal | R59: Sí | T59: https://www.esios.ree.es/es/pvpc
A60: PVPC con Autoconsumo | B60: Media de 2023 | C60: =C65+3.113 -> 28.496055 | D60: 1.342713 | E60: 24.3 | F60: 18.2 | G60: 13 | H60: S | I60: =$I$59 -> 0.1 | J60: 6.2 | K60: PVPC | L60: Normal | R60: Sí | T60: https://www.esios.ree.es/es/pvpc
A61: Bassols Energía | B61: Precio coste + BV media 2023 | C61: 25.383055 | D61: 1.342713 | E61: =E60 -> 24.3 | F61: =F60 -> 18.2 | G61: =G60 -> 13 | H61: S | I61: 0.1 | J61: =$J$60 -> 6.2 | K61: BateríaBE | L61: Normal | M61: 4.95 | T61: https://www.bassolsenergia.com/es/tarifas/luz-a-precio-de-coste-con-bateria-virtual-10kw/
A62: Bassols Energía | B62: Precio coste + BNA media 2023 | C62: 25.383055 | D62: 1.342713 | E62: =E60 -> 24.3 | F62: 18.2 | G62: 13 | H62: S | I62: 0.1 | J62: =$J$60 -> 6.2 | K62: BNA_BE | L62: Normal | M62: 4.95 | N62: 5
A63: Esmiluz Energía | B63: SIE (BNA) con media 2023 | C63: 25.383055 | D63: 1.342713 | E63: 24.3 | F63: 18.2 | G63: 13 | H63: S | I63: 0.1 | J63: =$J$60 -> 6.2 | K63: BNA_EE | L63: Normal | N63: 5 | O63: =1.5*1.2 -> 1.8 | T63: https://esmiluzenergia.com/sie/
A64: Factor Energía | B64: Tarifa Fija 0,25€ Media de 2023 | C64: 25.383055 | D64: 1.342713 | E64: 25 | F64: =E64 -> 25 | G64: =E64 -> 25 | H64: N | I64: 0.1 | J64: =$J$60 -> 6.2 | K64: BateríaFE | L64: Normal | T64: https://www.factorenergia.com/es/blog/autoconsumo/bateria-virtual-autoconsumo-compensa-todos-tus-excedentes/?gclid=CjwKCAjw0dKXBhBPEiwA2bmObdnZUyVuKGk2fxwyjfLCUaaqqiM5fviDpL3bUiXt23JHUEejxJxbqxoCGk4QAvD_BwE
A65: Bonpreu | B65: Plan Dinámico Media de 2023 | C65: 25.383055 | D65: 1.342713 | E65: =E60 -> 24.3 | F65: =F60 -> 18.2 | G65: =G60 -> 13 | H65: S | I65: 0.1 | J65: 9 | K65: BateríaBP | L65: Normal | O65: =0.9*1.2 -> 1.08 | R65: Sí | T65: https://www.bonpreuesclat.cat/es/plans-energia
A66: Iberdrola | B66: Plan VE Media de 2023 | C66: 34.5 | D66: 6.38 | E66: 38.3776 | G66: 3 | H66: N | I66: =$I$59 -> 0.1 | J66: =$J$60 -> 6.2 | K66: BateríaIber | L66: VE-6h | M66: 1.2 | T66: https://www.iberdrola.es/smart-mobility/plan-vehiculo-electrico
A67: Iberdrola | B67: Plan Solar Media de 2023 | C67: 34.5 | D67: 6.38 | E67: 27.6298 | G67: 15.4142 | H67: N | I67: 0.1 | J67: 6.2 | K67: BateríaIber | L67: Solar-16h | M67: 1.2 | T67: https://www.iberdrola.es/smart-solar/plan-solar
A68: Iberdrola | B68: Online Media de 2023 | C68: 32.92 | D68: 5.19 | E68: 15.9521 | F68: =E68 -> 15.9521 | G68: =E68 -> 15.9521 | H68: N | I68: 0.1 | J68: 6.2 | K68: BateríaIber | L68: Normal | M68: 1.2 | R68: Sí | T68: https://www.iberdrola.es/luz/plan-online
A69: Proxima Energia | B69: Indexada Media de 2023 | C69: 25.383055 | D69: 1.342713 | E69: =E60 -> 24.3 | F69: =F60 -> 18.2 | G69: =G60 -> 13 | H69: S | I69: 0.1 | J69: 6.2 | K69: Proxima | L69: Normal | M69: 4.9 | P69: 4.9 | R69: Sí | T69: https://www.proximaenergia.com/tarifas-luz/
A70: Proxima Energia | B70: Indexada + Batería Media de 2023 | C70: 25.383055 | D70: 1.342713 | E70: =E60 -> 24.3 | F70: =F60 -> 18.2 | G70: =G60 -> 13 | H70: S | I70: 0.1 | J70: 6.2 | K70: BateríaPE | L70: Normal | M70: =4.9+3.9 -> 8.8 | P70: 4.9 | R70: Sí | T70: https://www.proximaenergia.com/bateria-virtual/
A71: Lidera Energía | B71: Indexada + Batería Media de 2023 | C71: 25.383055 | D71: 1.342713 | E71: =E60 -> 24.3 | F71: =F60 -> 18.2 | G71: =G60 -> 13 | H71: S | I71: 0.1 | J71: 6.2 | K71: BateríaLE | L71: Normal | M71: 6.95 | R71: Sí | T71: https://www.lideraenergia.com/tarifas-particulares/
A72: Helios Energía | B72: Indexada + Batería Media de 2023 | C72: 25.383055 | D72: 1.342713 | E72: =E60 -> 24.3 | F72: =F60 -> 18.2 | G72: =G60 -> 13 | H72: S | I72: 0.1 | J72: 6.2 | K72: BateríaHE | L72: Normal | M72: 4 | O72: =0.7*1.2 -> 0.84 | R72: Sí | T72: https://heliosenergia.es/tarifas
A73: Lumio | B73: Batería Virtual Media de 2023 | C73: =0.071682*365 -> 26.16393 | D73: =0.003132*365 -> 1.14318 | E73: =E60 -> 24.3 | F73: =F60 -> 18.2 | G73: =G60 -> 13 | H73: S | I73: 0.1 | J73: 9 | K73: BateríaLumio | L73: Normal | O73: 1.5 | T73: https://lumio.solar/nuestra-bateria-virtual-se-llama-cuenta-sostenible/
A74: Octopus | B74: Flexi Media de 2023 | C74: =0.086*365 -> 31.39 | D74: =0.017*365 -> 6.205 | E74: =E60 -> 24.3 | F74: =F60 -> 18.2 | G74: =G60 -> 13 | H74: S | I74: 0.1 | J74: 11 | K74: BateríaOE | L74: Normal | O74: =0.5*1.2 -> 0.6 | T74: https://octopusenergy.es/precios
A76: PVPC sin Autoconsumo | B76: Abril 2023 | C76: =C82+3.113 -> 28.496055 | D76: 1.342713 | E76: 18.7 | F76: 13.8 | G76: 11.2 | H76: S | I76: 0 | L76: Normal | R76: Sí | T76: https://www.esios.ree.es/es/pvpc
A77: PVPC con Autoconsumo | B77: Abril 2023 | C77: =C82+3.113 -> 28.496055 | D77: 1.342713 | E77: 22.7 | F77: 18.2 | G77: 12.8 | H77: S | I77: =$I$76 -> 0 | J77: 3.3 | K77: PVPC | L77: Normal | R77: Sí | T77: https://www.esios.ree.es/es/pvpc
A78: Bassols Energía | B78: Precio coste + BV Abril 2023 | C78: 25.383055 | D78: 1.342713 | E78: =E77 -> 22.7 | F78: =F77 -> 18.2 | G78: =G77 -> 12.8 | H78: S | I78: =$I$76 -> 0 | J78: =$J$77 -> 3.3 | K78: BateríaBE | L78: Normal | M78: 4.95 | T78: https://www.bassolsenergia.com/es/tarifas/luz-a-precio-de-coste-con-bateria-virtual-10kw/
A79: Bassols Energía | B79: Precio coste + BNA Abril 2023 | C79: 25.383055 | D79: 1.342713 | E79: =E77 -> 22.7 | F79: =F77 -> 18.2 | G79: =G77 -> 12.8 | H79: S | I79: 0 | J79: =$J$77 -> 3.3 | K79: BNA_BE | L79: Normal | M79: 4.95 | N79: 5
A80: Esmiluz Energía | B80: SIE (BNA) Abril 2023 | C80: 25.383055 | D80: 1.342713 | E80: =E78 -> 22.7 | F80: 18.2 | G80: 12.8 | H80: S | I80: 0 | J80: =J77 -> 3.3 | K80: BNA_EE | L80: Normal | N80: 5 | O80: =1.5*1.2 -> 1.8 | T80: https://esmiluzenergia.com/sie/
A81: Factor Energía | B81: Tarifa Fija 0,25€ Abril 2023 | C81: 25.383055 | D81: 1.342713 | E81: 25 | F81: =E81 -> 25 | G81: =E81 -> 25 | H81: N | I81: 0 | J81: =$J$77 -> 3.3 | K81: BateríaFE | L81: Normal | T81: https://www.factorenergia.com/es/blog/autoconsumo/bateria-virtual-autoconsumo-compensa-todos-tus-excedentes/?gclid=CjwKCAjw0dKXBhBPEiwA2bmObdnZUyVuKGk2fxwyjfLCUaaqqiM5fviDpL3bUiXt23JHUEejxJxbqxoCGk4QAvD_BwE
A82: Bonpreu | B82: Plan Dinámico Abril 2023 | C82: 25.383055 | D82: 1.342713 | E82: =E77 -> 22.7 | F82: =F77 -> 18.2 | G82: =G77 -> 12.8 | H82: S | I82: 0 | J82: 10 | K82: BateríaBP | L82: Normal | O82: =0.9*1.2 -> 1.08 | R82: Sí | T82: https://www.bonpreuesclat.cat/es/plans-energia
A83: Iberdrola | B83: Plan VE Abril 2023 | C83: 34.5 | D83: 6.38 | E83: 38.3776 | G83: 3 | H83: N | I83: 0 | J83: =$J$77 -> 3.3 | K83: BateríaIber | L83: VE-6h | M83: 1.2 | T83: https://www.iberdrola.es/smart-mobility/plan-vehiculo-electrico
A84: Iberdrola | B84: Plan Solar Abril 2023 | C84: 34.5 | D84: 6.38 | E84: 27.6298 | G84: 15.4142 | H84: N | I84: 0 | J84: 3.3 | K84: BateríaIber | L84: Solar-16h | M84: 1.2 | T84: https://www.iberdrola.es/smart-solar/plan-solar
A85: Iberdrola | B85: Online Abril 2023 | C85: 32.92 | D85: 5.19 | E85: 15.9521 | F85: =E85 -> 15.9521 | G85: =E85 -> 15.9521 | H85: N | I85: 0 | J85: 3.3 | K85: BateríaIber | L85: Normal | M85: 1.2 | R85: Sí | T85: https://www.iberdrola.es/luz/plan-online
A86: Proxima Energia | B86: Indexada Abril 2023 | C86: 25.383055 | D86: 1.342713 | E86: =E77 -> 22.7 | F86: =F77 -> 18.2 | G86: =G77 -> 12.8 | H86: S | I86: 0 | J86: 3.3 | K86: Proxima | L86: Normal | M86: 4.9 | P86: 4.9 | R86: Sí | T86: https://www.proximaenergia.com/tarifas-luz/
A87: Proxima Energia | B87: Indexada + Batería Abril 2023 | C87: 25.383055 | D87: 1.342713 | E87: =E77 -> 22.7 | F87: =F77 -> 18.2 | G87: =G77 -> 12.8 | H87: S | I87: 0 | J87: 3.3 | K87: BateríaPE | L87: Normal | M87: =4.9+3.9 -> 8.8 | P87: 4.9 | R87: Sí | T87: https://www.proximaenergia.com/bateria-virtual/
A88: Lidera Energía | B88: Indexada + Batería Abril 2023 | C88: 25.383055 | D88: 1.342713 | E88: =E77 -> 22.7 | F88: =F77 -> 18.2 | G88: =G77 -> 12.8 | H88: S | I88: 0 | J88: 3.3 | K88: BateríaLE | L88: Normal | M88: 6.95 | R88: Sí | T88: https://www.lideraenergia.com/tarifas-particulares/
A89: Helios Energía | B89: Indexada + Batería Abril 2023 | C89: 25.383055 | D89: 1.342713 | E89: =E77 -> 22.7 | F89: =F77 -> 18.2 | G89: =G77 -> 12.8 | H89: S | I89: 0 | J89: 3.3 | K89: BateríaHE | L89: Normal | M89: 4 | O89: =0.7*1.2 -> 0.84 | R89: Sí | T89: https://heliosenergia.es/tarifas
A90: Lumio | B90: Batería Virtual Abril 2023 | C90: =0.071682*365 -> 26.16393 | D90: =0.003132*365 -> 1.14318 | E90: =E77 -> 22.7 | F90: =F77 -> 18.2 | G90: =G77 -> 12.8 | H90: S | I90: 0 | J90: 7.4 | K90: BateríaLumio | L90: Normal | O90: 1.5 | T90: https://lumio.solar/nuestra-bateria-virtual-se-llama-cuenta-sostenible/
A91: Octopus | B91: Flexi Abril 2023 | C91: =0.086*365 -> 31.39 | D91: =0.017*365 -> 6.205 | E91: =E77 -> 22.7 | F91: =F77 -> 18.2 | G91: =G77 -> 12.8 | H91: S | I91: 0 | J91: 11 | K91: BateríaOE | L91: Normal | O91: =0.5*1.2 -> 0.6 | T91: https://octopusenergy.es/precios
A93: PVPC sin Autoconsumo | B93: Marzo 2023 | C93: =C99+3.113 -> 28.496055 | D93: 1.342713 | E93: 20.3 | F93: 14.9 | G93: 13.2 | H93: S | I93: 0 | L93: Normal | R93: Sí | T93: https://www.esios.ree.es/es/pvpc
A94: PVPC con Autoconsumo | B94: Marzo 2023 | C94: =C99+3.113 -> 28.496055 | D94: 1.342713 | E94: 24.5 | F94: 17.7 | G94: 13.6 | H94: S | I94: =$I$93 -> 0 | J94: 5.9 | K94: PVPC | L94: Normal | R94: Sí | T94: https://www.esios.ree.es/es/pvpc
A95: Bassols Energía | B95: Precio coste + BV Marzo 2023 | C95: 25.383055 | D95: 1.342713 | E95: =E94 -> 24.5 | F95: =F94 -> 17.7 | G95: =G94 -> 13.6 | H95: S | I95: =$I$93 -> 0 | J95: =J94 -> 5.9 | K95: BateríaBE | L95: Normal | M95: 4.95 | T95: https://www.bassolsenergia.com/es/tarifas/luz-a-precio-de-coste-con-bateria-virtual-10kw/
A96: Bassols Energía | B96: Precio coste + BNA Marzo 2023 | C96: 25.383055 | D96: 1.342713 | E96: =E94 -> 24.5 | F96: =F94 -> 17.7 | G96: =G94 -> 13.6 | H96: S | I96: 0 | J96: =J94 -> 5.9 | K96: BNA_BE | L96: Normal | M96: 4.95 | N96: 5
A97: Esmiluz Energía | B97: SIE (BNA) Marzo 2023 | C97: 25.383055 | D97: 1.342713 | E97: =E95 -> 24.5 | F97: 17.7 | G97: 13.6 | H97: S | I97: 0 | J97: =J94 -> 5.9 | K97: BNA_EE | L97: Normal | N97: 5 | O97: =1.5*1.2 -> 1.8 | T97: https://esmiluzenergia.com/sie/
A98: Factor Energía | B98: Tarifa Fija 0,25€ Marzo 2023 | C98: 25.383055 | D98: 1.342713 | E98: 25 | F98: =E98 -> 25 | G98: =E98 -> 25 | H98: N | I98: 0 | J98: =J94 -> 5.9 | K98: BateríaFE | L98: Normal | T98: https://www.factorenergia.com/es/blog/autoconsumo/bateria-virtual-autoconsumo-compensa-todos-tus-excedentes/?gclid=CjwKCAjw0dKXBhBPEiwA2bmObdnZUyVuKGk2fxwyjfLCUaaqqiM5fviDpL3bUiXt23JHUEejxJxbqxoCGk4QAvD_BwE
A99: Bonpreu | B99: Plan Dinámico Marzo 2023 | C99: 25.383055 | D99: 1.342713 | E99: =E94 -> 24.5 | F99: =F94 -> 17.7 | G99: =G94 -> 13.6 | H99: S | I99: 0 | J99: 12 | K99: BateríaBP | L99: Normal | O99: =0.9*1.2 -> 1.08 | R99: Sí | T99: https://www.bonpreuesclat.cat/es/plans-energia
A100: Iberdrola | B100: Plan VE Marzo 2023 | C100: 30.57 | D100: 5.21 | E100: 39.2 | G100: 3 | H100: N | I100: 0 | J100: =J94 -> 5.9 | K100: BateríaIber | L100: VE-6h | M100: 1.2 | T100: https://www.iberdrola.es/smart-mobility/plan-vehiculo-electrico
A101: Iberdrola | B101: Plan Solar Marzo 2023 | C101: 30.57 | D101: 5.21 | E101: 27.6298 | G101: 15.949 | H101: N | I101: 0 | J101: =J94 -> 5.9 | K101: BateríaIber | L101: Solar-16h | M101: 1.2 | T101: https://www.iberdrola.es/smart-solar/plan-solar
A102: Iberdrola | B102: Online Marzo 2023 | C102: 30.67 | D102: 4.1 | E102: 16.5211 | F102: =E102 -> 16.5211 | G102: =E102 -> 16.5211 | H102: N | I102: 0 | J102: =J94 -> 5.9 | K102: BateríaIber | L102: Normal | M102: 1.2 | R102: Sí | T102: https://www.iberdrola.es/luz/plan-online
A103: Proxima Energia | B103: Indexada Marzo 2023 | C103: 25.383055 | D103: 1.342713 | E103: =E94 -> 24.5 | F103: =F94 -> 17.7 | G103: =G94 -> 13.6 | H103: S | I103: 0 | J103: =J94 -> 5.9 | K103: Proxima | L103: Normal | M103: 4.9 | P103: 4.9 | R103: Sí | T103: https://www.proximaenergia.com/tarifas-luz/
A104: Proxima Energia | B104: Indexada + Batería Marzo 2023 | C104: 25.383055 | D104: 1.342713 | E104: =E94 -> 24.5 | F104: =F94 -> 17.7 | G104: =G94 -> 13.6 | H104: S | I104: 0 | J104: =J94 -> 5.9 | K104: BateríaPE | L104: Normal | M104: =4.9+3.9 -> 8.8 | P104: 4.9 | R104: Sí | T104: https://www.proximaenergia.com/bateria-virtual/
A105: Lidera Energía | B105: Indexada + Batería Marzo 2023 | C105: 25.383055 | D105: 1.342713 | E105: =E94 -> 24.5 | F105: =F94 -> 17.7 | G105: =G94 -> 13.6 | H105: S | I105: 0 | J105: =J94 -> 5.9 | K105: BateríaLE | L105: Normal | M105: 6.95 | R105: Sí | T105: https://www.lideraenergia.com/tarifas-particulares/
A106: Helios Energía | B106: Indexada + Batería Marzo 2023 | C106: 25.383055 | D106: 1.342713 | E106: =E94 -> 24.5 | F106: =F94 -> 17.7 | G106: =G94 -> 13.6 | H106: S | I106: 0 | J106: =J94 -> 5.9 | K106: BateríaHE | L106: Normal | M106: 4 | O106: =0.7*1.2 -> 0.84 | R106: Sí | T106: https://heliosenergia.es/tarifas
A107: Lumio | B107: Batería Virtual Marzo 2023 | C107: =0.071682*365 -> 26.16393 | D107: =0.003132*365 -> 1.14318 | E107: =E94 -> 24.5 | F107: =F94 -> 17.7 | G107: =G94 -> 13.6 | H107: S | I107: 0 | J107: 8.9 | K107: BateríaLumio | L107: Normal | O107: 1.5 | T107: https://lumio.solar/nuestra-bateria-virtual-se-llama-cuenta-sostenible/
A108: Octopus | B108: Flexi Marzo 2023 | C108: =0.086*365 -> 31.39 | D108: =0.017*365 -> 6.205 | E108: =E94 -> 24.5 | F108: =F94 -> 17.7 | G108: =G94 -> 13.6 | H108: S | I108: 0 | J108: 11 | K108: BateríaOE | L108: Normal | T108: https://octopusenergy.es/precios
A110: PVPC sin Autoconsumo | B110: Febrero 2023 | C110: =C116+3.113 -> 28.496055 | D110: 1.342713 | E110: 26.2 | F110: 20.8 | G110: 16.9 | H110: S | I110: -0.1 | L110: Normal | R110: Sí | T110: https://www.esios.ree.es/es/pvpc
A111: PVPC con Autoconsumo | B111: Febrero2023 | C111: =C116+3.113 -> 28.496055 | D111: 1.342713 | E111: 28.1 | F111: 21.8 | G111: 17 | H111: S | I111: =$I$110 -> -0.1 | J111: 11.5 | K111: PVPC | L111: Normal | R111: Sí | T111: https://www.esios.ree.es/es/pvpc
A112: Bassols Energía | B112: Precio coste + BV Febrero 2023 | C112: 25.383055 | D112: 1.342713 | E112: =E111 -> 28.1 | F112: =F111 -> 21.8 | G112: =G111 -> 17 | H112: S | I112: =$I$110 -> -0.1 | J112: =J111 -> 11.5 | K112: BateríaBE | L112: Normal | M112: 4.95 | T112: https://www.bassolsenergia.com/es/tarifas/luz-a-precio-de-coste-con-bateria-virtual-10kw/
A113: Bassols Energía | B113: Precio coste + BNA Febrero 2023 | C113: 25.383055 | D113: 1.342713 | E113: =E111 -> 28.1 | F113: =F111 -> 21.8 | G113: =G111 -> 17 | H113: S | I113: -0.1 | J113: =J111 -> 11.5 | K113: BNA_BE | L113: Normal | M113: 4.95 | N113: 5
A114: Esmiluz Energía | B114: SIE (BNA) Febrero 2023 | C114: 25.383055 | D114: 1.342713 | E114: =E112 -> 28.1 | F114: 21.8 | G114: 17 | H114: S | I114: -0.1 | J114: =J111 -> 11.5 | K114: BNA_EE | L114: Normal | N114: 5 | O114: =1.5*1.2 -> 1.8 | T114: https://esmiluzenergia.com/sie/
A115: Factor Energía | B115: Tarifa Fija 0,25€ Febrero 2023 | C115: 25.383055 | D115: 1.342713 | E115: 25 | F115: =E115 -> 25 | G115: =E115 -> 25 | H115: N | I115: -0.1 | J115: =J111 -> 11.5 | K115: BateríaFE | L115: Normal | T115: https://www.factorenergia.com/es/blog/autoconsumo/bateria-virtual-autoconsumo-compensa-todos-tus-excedentes/?gclid=CjwKCAjw0dKXBhBPEiwA2bmObdnZUyVuKGk2fxwyjfLCUaaqqiM5fviDpL3bUiXt23JHUEejxJxbqxoCGk4QAvD_BwE
A116: Bonpreu | B116: Plan Dinámico Febrero 2023 | C116: 25.383055 | D116: 1.342713 | E116: =E111 -> 28.1 | F116: =F111 -> 21.8 | G116: =G111 -> 17 | H116: S | I116: -0.1 | J116: 12 | K116: BateríaBP | L116: Normal | O116: =0.9*1.2 -> 1.08 | R116: Sí | T116: https://www.bonpreuesclat.cat/es/plans-energia
A117: Iberdrola | B117: Plan VE Febrero 2023 | C117: 30.57 | D117: 5.21 | E117: 49.163 | G117: 3 | H117: N | I117: -0.1 | J117: =J111 -> 11.5 | K117: BateríaIber | L117: VE-6h | M117: 1.2 | T117: https://www.iberdrola.es/smart-mobility/plan-vehiculo-electrico
A118: Iberdrola | B118: Plan Solar Febrero 2023 | C118: 30.57 | D118: 5.21 | E118: 27.6298 | G118: 15.949 | H118: N | I118: -0.1 | J118: =J111 -> 11.5 | K118: BateríaIber | L118: Solar-16h | M118: 1.2 | T118: https://www.iberdrola.es/smart-solar/plan-solar
A119: Iberdrola | B119: Online Febrero 2023 | C119: 30.67 | D119: 4.1 | E119: 16.7797 | F119: =E119 -> 16.7797 | G119: =E119 -> 16.7797 | H119: N | I119: -0.1 | J119: =J111 -> 11.5 | K119: BateríaIber | L119: Normal | M119: 1.2 | R119: Sí | T119: https://www.iberdrola.es/luz/plan-online
A120: Proxima Energia | B120: Indexada Febrero 2023 | C120: 25.383055 | D120: 1.342713 | E120: =E111 -> 28.1 | F120: =F111 -> 21.8 | G120: =G111 -> 17 | H120: S | I120: -0.1 | J120: =J111 -> 11.5 | K120: Proxima | L120: Normal | M120: 4.9 | P120: 4.9 | R120: Sí | T120: https://www.proximaenergia.com/tarifas-luz/
A121: Proxima Energia | B121: Indexada + Batería Febrero 2023 | C121: 25.383055 | D121: 1.342713 | E121: =E111 -> 28.1 | F121: =F111 -> 21.8 | G121: =G111 -> 17 | H121: S | I121: -0.1 | J121: =J111 -> 11.5 | K121: BateríaPE | L121: Normal | M121: =4.9+3.9 -> 8.8 | P121: 4.9 | R121: Sí | T121: https://www.proximaenergia.com/bateria-virtual/
A122: Lidera Energía | B122: Indexada + Batería Febrero 2023 | C122: 25.383055 | D122: 1.342713 | E122: =E111 -> 28.1 | F122: =F111 -> 21.8 | G122: =G111 -> 17 | H122: S | I122: -0.1 | J122: =J111 -> 11.5 | K122: BateríaLE | L122: Normal | M122: 6.95 | R122: Sí | T122: https://www.lideraenergia.com/tarifas-particulares/
A123: Helios Energía | B123: Indexada + Batería Febrero 2023 | C123: 25.383055 | D123: 1.342713 | E123: =E111 -> 28.1 | F123: =F111 -> 21.8 | G123: =G111 -> 17 | H123: S | I123: -0.1 | J123: =J111 -> 11.5 | K123: BateríaHE | L123: Normal | M123: 4 | O123: =0.7*1.2 -> 0.84 | R123: Sí | T123: https://heliosenergia.es/tarifas
A124: Lumio | B124: Batería Virtual Febrero 2023 | C124: =0.071682*365 -> 26.16393 | D124: =0.003132*365 -> 1.14318 | E124: =E111 -> 28.1 | F124: =F111 -> 21.8 | G124: =G111 -> 17 | H124: S | I124: -0.1 | J124: 13.3 | K124: BateríaLumio | L124: Normal | O124: 1.5 | T124: https://lumio.solar/nuestra-bateria-virtual-se-llama-cuenta-sostenible/
A125: Octopus | B125: Flexi Febrero 2023 | C125: =0.086*365 -> 31.39 | D125: =0.017*365 -> 6.205 | E125: =E111 -> 28.1 | F125: =F111 -> 21.8 | G125: =G111 -> 17 | H125: S | I125: -0.1 | J125: 11 | K125: BateríaOE | L125: Normal | T125: https://octopusenergy.es/precios
A127: PVPC sin Autoconsumo | B127: Media de 2022 | C127: =C133+3.113 -> 28.496055 | D127: 1.342713 | E127: 34.5 | F127: 28.5 | G127: 26.3 | H127: S | I127: 10.1 | L127: Normal | R127: Sí | T127: https://www.esios.ree.es/es/pvpc
A128: PVPC con Autoconsumo | B128: Media de 2022 | C128: =C133+3.113 -> 28.496055 | D128: 1.342713 | E128: 34.6 | F128: 28.5 | G128: 26.1 | H128: S | I128: 10.1 | J128: 14.6 | K128: PVPC | L128: Normal | R128: Sí | T128: https://www.esios.ree.es/es/pvpc
A129: Bassols Energía | B129: Precio coste + BV media 2022 | C129: 25.383055 | D129: 1.342713 | E129: =E128 -> 34.6 | F129: =F128 -> 28.5 | G129: =G128 -> 26.1 | H129: S | I129: =$I$128 -> 10.1 | J129: =$J$128 -> 14.6 | K129: BateríaBE | L129: Normal | M129: 4.95 | T129: https://www.bassolsenergia.com/es/tarifas/luz-a-precio-de-coste-con-bateria-virtual-10kw/
A130: Bassols Energía | B130: Precio coste + BNA media 2022 | C130: 25.383055 | D130: 1.342713 | E130: =E128 -> 34.6 | F130: =F128 -> 28.5 | G130: =G128 -> 26.1 | H130: S | I130: =$I$128 -> 10.1 | J130: =$J$128 -> 14.6 | K130: BNA_BE | L130: Normal | M130: 4.95 | N130: 5
A131: Esmiluz Energía | B131: SIE (BNA) con media 2022 | C131: 25.383055 | D131: 1.342713 | E131: =E129 -> 34.6 | F131: 28.5 | G131: 26.1 | H131: S | I131: 10.1 | J131: =J128 -> 14.6 | K131: BNA_EE | L131: Normal | N131: 5 | O131: =1.5*1.2 -> 1.8 | T131: https://esmiluzenergia.com/sie/
A132: Factor Energía | B132: Tarifa Fija 0,25€ Media de 2022 | C132: 25.383055 | D132: 1.342713 | E132: 25 | F132: =E132 -> 25 | G132: =E132 -> 25 | H132: N | I132: 10.1 | J132: =$J$128 -> 14.6 | K132: BateríaFE | L132: Normal | T132: https://www.factorenergia.com/es/blog/autoconsumo/bateria-virtual-autoconsumo-compensa-todos-tus-excedentes/?gclid=CjwKCAjw0dKXBhBPEiwA2bmObdnZUyVuKGk2fxwyjfLCUaaqqiM5fviDpL3bUiXt23JHUEejxJxbqxoCGk4QAvD_BwE
A133: Bonpreu | B133: Plan Dinámico Media de 2022 | C133: 25.383055 | D133: 1.342713 | E133: =E128 -> 34.6 | F133: =F128 -> 28.5 | G133: =G128 -> 26.1 | H133: S | I133: 10.1 | J133: 15 | K133: BateríaBP | L133: Normal | O133: =0.9*1.2 -> 1.08 | R133: Sí | T133: https://www.bonpreuesclat.cat/es/plans-energia
A134: Iberdrola | B134: Plan VE Media de 2022 | C134: 34.5 | D134: 6.38 | E134: 38.3776 | G134: 3 | H134: N | I134: 10.1 | J134: =$J$128 -> 14.6 | K134: BateríaIber | L134: VE-6h | M134: 1.2 | T134: https://www.iberdrola.es/smart-mobility/plan-vehiculo-electrico
A135: Iberdrola | B135: Plan Solar Media de 2022 | C135: 34.5 | D135: 6.38 | E135: 27.6298 | G135: 15.4142 | H135: N | I135: 10.1 | J135: 14.6 | K135: BateríaIber | L135: Solar-16h | M135: 1.2 | T135: https://www.iberdrola.es/smart-solar/plan-solar
A136: Iberdrola | B136: Online Media de 2022 | C136: 32.92 | D136: 5.19 | E136: 15.9521 | F136: =E136 -> 15.9521 | G136: =E136 -> 15.9521 | H136: N | I136: 10.1 | J136: 14.6 | K136: BateríaIber | L136: Normal | M136: 1.2 | R136: Sí | T136: https://www.iberdrola.es/luz/plan-online
A137: Proxima Energia | B137: Indexada Media de 2022 | C137: 25.383055 | D137: 1.342713 | E137: =E128 -> 34.6 | F137: =F128 -> 28.5 | G137: =G128 -> 26.1 | H137: S | I137: 10.1 | J137: 14.6 | K137: Proxima | L137: Normal | M137: 4.9 | P137: 4.9 | R137: Sí | T137: https://www.proximaenergia.com/tarifas-luz/
A138: Proxima Energia | B138: Indexada + Batería Media de 2022 | C138: 25.383055 | D138: 1.342713 | E138: =E128 -> 34.6 | F138: =F128 -> 28.5 | G138: =G128 -> 26.1 | H138: S | I138: 10.1 | J138: 14.6 | K138: BateríaPE | L138: Normal | M138: =4.9+3.9 -> 8.8 | P138: 4.9 | R138: Sí | T138: https://www.proximaenergia.com/bateria-virtual/
A139: Lidera Energía | B139: Indexada + Batería Media de 2022 | C139: 25.383055 | D139: 1.342713 | E139: =E128 -> 34.6 | F139: =F128 -> 28.5 | G139: =G128 -> 26.1 | H139: S | I139: 10.1 | J139: 14.6 | K139: BateríaLE | L139: Normal | M139: 6.95 | R139: Sí | T139: https://www.lideraenergia.com/tarifas-particulares/
A140: Helios Energía | B140: Indexada + Batería Media de 2022 | C140: 25.383055 | D140: 1.342713 | E140: =E128 -> 34.6 | F140: =F128 -> 28.5 | G140: =G128 -> 26.1 | H140: S | I140: 10.1 | J140: 14.6 | K140: BateríaHE | L140: Normal | M140: 4 | O140: =0.7*1.2 -> 0.84 | R140: Sí | T140: https://heliosenergia.es/tarifas
A141: Lumio | B141: Batería Virtual Media de 2022 | C141: =0.071682*365 -> 26.16393 | D141: =0.003132*365 -> 1.14318 | E141: =E128 -> 34.6 | F141: =F128 -> 28.5 | G141: =G128 -> 26.1 | H141: S | I141: 10.1 | J141: 16.7 | K141: BateríaLumio | L141: Normal | O141: 1.5 | T141: https://lumio.solar/nuestra-bateria-virtual-se-llama-cuenta-sostenible/
A142: Octopus | B142: Flexi Media de 2022 | C142: =0.086*365 -> 31.39 | D142: =0.017*365 -> 6.205 | E142: =E128 -> 34.6 | F142: =F128 -> 28.5 | G142: =G128 -> 26.1 | H142: S | I142: 10.1 | J142: 11 | K142: BateríaOE | L142: Normal | O142: =0.5*1.2 -> 0.6 | T142: https://octopusenergy.es/precios

Sheet Datos
A1: Alquiler contador | B1: 0.02663 | C1: €/día | E1: >>> Descarga la última versión de este fichero desde aquí <<<
A2: Potencia Fotovoltaica | B2: 3.6 | C2: kWp
A3: Impuesto Eléctrico | B3: 0.5 | C3: %
A4: IVA | B4: 5 | C4: %
C6: Facturas | D6: 1 | E6: 2 | F6: 3 | G6: 4 | H6: 5 | I6: 6 | J6: 7 | K6: 8 | L6: 9 | M6: 10 | N6: 11 | O6: 12 | P6: SUMA
C7: Descripción | D7: Abr 22 | E7: May 22 | F7: Jun 22 | G7: Jul 22 | H7: Ago 22 | I7: Sep 22 | J7: Oct 22 | K7: Nov 22 | L7: Dic 22 | M7: Ene 23 | N7: Feb 23 | O7: Mar 23
C8: Días | D8: 30 | E8: 30 | F8: 30 | G8: 30 | H8: 30 | I8: 30 | J8: 30 | K8: 30 | L8: 30 | M8: 30 | N8: 30 | O8: 30 | P8: =SUM(D8:O8) -> 360
A9: Potencia (kW) | B9: P1 | C9: Punta | D9: 3 | E9: 4 | F9: 3 | G9: 4 | H9: 3 | I9: 4 | J9: 3 | K9: 4 | L9: 3 | M9: 4 | N9: 3 | O9: 4
B10: P2 | C10: Valle | D10: 5 | E10: 4 | F10: 5 | G10: 4 | H10: 5 | I10: 4 | J10: 5 | K10: 4 | L10: 5 | M10: 4 | N10: 5 | O10: 4
A11: Energía (kWh) | B11: P1 | C11: Punta | D11: 50 | E11: 20 | F11: 50 | G11: 20 | H11: 50 | I11: 20 | J11: 50 | K11: 20 | L11: 50 | M11: 20 | N11: 50 | O11: 20 | P11: =SUM(D11:O11) -> 420
B12: P2 | C12: Llana | D12: 70 | E12: 30 | F12: 70 | G12: 30 | H12: 70 | I12: 30 | J12: 70 | K12: 30 | L12: 70 | M12: 30 | N12: 70 | O12: 30 | P12: 600
B13: P3 | C13: Valle | D13: 120 | E13: 90 | F13: 120 | G13: 90 | H13: 120 | I13: 90 | J13: 120 | K13: 90 | L13: 120 | M13: 90 | N13: 120 | O13: 90 | P13: 1260
B14: Suma | C14: Total | D14: =IF(SUM(D11:D13)=0,"",SUM(D11:D13)) -> 240 | E14: 140 | F14: 240 | G14: 140 | H14: 240 | I14: 140 | J14: 240 | K14: 140 | L14: 240 | M14: 140 | N14: 240 | O14: 140 | P14: 2280
B15: Excedentes | C15: kWh | D15: 700 | F15: 600 | H15: 400 | J15: 300 | L15: 200 | N15: 100 | P15: 2300
A16: Tarifa Nocturna-14h (Repsol, Total Energies, Electra Caldense...) | B16: de 22 a 11:59 (14h) | C16: Promo | P16: 0
B17: de 12 a 21:59 (10h) | C17: No Promo | P17: 0
B18: Suma | C18: Total | D18: =IF(SUM(D16:D17)=0,"",SUM(D16:D17)) ->  | E18: =IF(SUM(E16:E17)=0,"",SUM(E16:E17)) ->  | P18: 0
A19: Tarifa VE-6h (de Iberdrola) | B19: de 1 a 6:59 (6h) | C19: Promo | P19: 0
B20: de 7 a 0:59 (18h) | C20: No Promo | P20: 0
B21: Suma | C21: Total | D21: =IF(SUM(D19:D20)=0,"",SUM(D19:D20)) ->  | E21: =IF(SUM(E19:E20)=0,"",SUM(E19:E20)) ->  | P21: 0
A22: Tarifa Solar-16h (de Iberdrola, Endesa, Estabanell, …) | B22: de 17 a 8:59 (16h) | C22: Promo | P22: 0
B23: de 9 a 16:59 (8h) | C23: No Promo | P23: 0
B24: Suma | C24: Total | D24: =IF(SUM(D22:D23)=0,"",SUM(D22:D23)) ->  | P24: 0
A25: Tarifa con 50 horas gratis al mes | B25: kWh en Horas gratuitas | C25: Promo | P25: =SUM(D25:O25) -> 0
B26: El resto de horas | C26: No Promo | D26: =IF(OR(D14<=D25,D25=""),"",D14-D25) ->  | E26: =IF(OR(E14<=E25,E25=""),"",E14-E25) ->  | P26: =SUM(D26:O26) -> 0
B27: Suma | C27: Total | D27: =IF(SUM(D25:D26)=0,"",SUM(D25:D26)) ->  | P27: =SUM(D27:O27) -> 0
A28: Tarifa con 2 horas gratis al día | B28: kWh en Horas gratuitas | C28: Promo | P28: =SUM(D28:O28) -> 0
B29: El resto de horas | C29: No Promo | D29: =IF(OR(D14<=D28,D28=""),"",D14-D28) ->  | E29: =IF(OR(E14<=E28,E28=""),"",E14-E28) ->  | P29: 0
B30: Suma | C30: Total | D30: =IF(SUM(D28:D29)=0,"",SUM(D28:D29)) ->  | P30: 0
A31: Tarifa con 3 horas gratis al día | B31: kWh en Horas gratuitas | C31: Promo | P31: 0
B32: El resto de horas | C32: No Promo | D32: =IF(OR(D14<=D31,D31=""),"",D14-D31) ->  | E32: =IF(OR(E14<=E31,E31=""),"",E14-E31) ->  | P32: 0
B33: Suma | C33: Total | D33: =IF(SUM(D31:D32)=0,"",SUM(D31:D32)) ->  | P33: 0

Sheet Facturas
A1: NO PROTEGER ESTA HOJA!!! | E1: Facturas
A2: =Tarifas!A4 -> Comercializadora | B2: =Tarifas!B4 -> Tarifa | C2: Total Facturas | D2: Batería Final Año | E2: =CONCATENATE(Datos!D6,CHAR(10),Datos!D7) -> 1 Abr 22 | F2: =CONCATENATE(Datos!E6,CHAR(10),Datos!E7) -> 2 May 22 | G2: =CONCATENATE(Datos!F6,CHAR(10),Datos!F7) -> 3 Jun 22 | H2: =CONCATENATE(Datos!G6,CHAR(10),Datos!G7) -> 4 Jul 22 | I2: =CONCATENATE(Datos!H6,CHAR(10),Datos!H7) -> 5 Ago 22 | J2: =CONCATENATE(Datos!I6,CHAR(10),Datos!I7) -> 6 Sep 22 | K2: =CONCATENATE(Datos!J6,CHAR(10),Datos!J7) -> 7 Oct 22 | L2: =CONCATENATE(Datos!K6,CHAR(10),Datos!K7) -> 8 Nov 22 | M2: =CONCATENATE(Datos!L6,CHAR(10),Datos!L7) -> 9 Dic 22 | N2: =CONCATENATE(Datos!M6,CHAR(10),Datos!M7) -> 10 Ene 23 | O2: =CONCATENATE(Datos!N6,CHAR(10),Datos!N7) -> 11 Feb 23 | P2: =CONCATENATE(Datos!O6,CHAR(10),Datos!O7) -> 12 Mar 23 | Q2: CIF
A3: =IF(Tarifas!A5="","",Tarifas!A5) -> AgriEnergía | B3: =IF(Tarifas!B5="","",Tarifas!B5) -> Compra Colectiva Abril 2023 | C3: =IF(E3&F3&G3&H3&I3&J3&K3&L3&M3&N3&O3&P3="","",SUM(E3:P3)) -> 369.9578681 | E3: =FACTURA(ROW(), COLUMN(),Datos!D$8,Datos!D$9,Tarifas!$C5,Datos!D$10,Tarifas!$D5,Datos!D$11,Tarifas!$E5,Datos!D$12,Tarifas!$F5,Datos!D$13,Tarifas!$G5,Tarifas!$L5,Datos!D$16,Datos!D$17,Datos!D$19,Datos!D$20,Datos!D$22,Datos!D$23,Datos!D$25,Datos!D$28,Datos!D$31,Tarifas!$H5,Tarifas!$I5,Tarifas!$J5,Datos!D$15,Tarifas!$K5,Datos!$B$3,Datos!$B$1,Datos!$B$4,Tarifas!$M5,Tarifas!$N5,Tarifas!$O5,Tarifas!$P5,Tarifas!$Q5,Datos!$B$2) -> 15.7912335 | F3: =FACTURA(ROW(), COLUMN(),Datos!E$8,Datos!E$9,Tarifas!$C5,Datos!E$10,Tarifas!$D5,Datos!E$11,Tarifas!$E5,Datos!E$12,Tarifas!$F5,Datos!E$13,Tarifas!$G5,Tarifas!$L5,Datos!E$16,Datos!E$17,Datos!E$19,Datos!E$20,Datos!E$22,Datos!E$23,Datos!E$25,Datos!E$28,Datos!E$31,Tarifas!$H5,Tarifas!$I5,Tarifas!$J5,Datos!E$15,Tarifas!$K5,Datos!$B$3,Datos!$B$1,Datos!$B$4,Tarifas!$M5,Tarifas!$N5,Tarifas!$O5,Tarifas!$P5,Tarifas!$Q5,Datos!$B$2) -> 34.47341919 | G3: =FACTURA(ROW(), COLUMN(),Datos!F$8,Datos!F$9,Tarifas!$C5,Datos!F$10,Tarifas!$D5,Datos!F$11,Tarifas!$E5,Datos!F$12,Tarifas!$F5,Datos!F$13,Tarifas!$G5,Tarifas!$L5,Datos!F$16,Datos!F$17,Datos!F$19,Datos!F$20,Datos!F$22,Datos!F$23,Datos!F$25,Datos!F$28,Datos!F$31,Tarifas!$H5,Tarifas!$I5,Tarifas!$J5,Datos!F$15,Tarifas!$K5,Datos!$B$3,Datos!$B$1,Datos!$B$4,Tarifas!$M5,Tarifas!$N5,Tarifas!$O5,Tarifas!$P5,Tarifas!$Q5,Datos!$B$2) -> 15.7912335 | H3: =FACTURA(ROW(), COLUMN(),Datos!G$8,Datos!G$9,Tarifas!$C5,Datos!G$10,Tarifas!$D5,Datos!G$11,Tarifas!$E5,Datos!G$12,Tarifas!$F5,Datos!G$13,Tarifas!$G5,Tarifas!$L5,Datos!G$16,Datos!G$17,Datos!G$19,Datos!G$20,Datos!G$22,Datos!G$23,Datos!G$25,Datos!G$28,Datos!G$31,Tarifas!$H5,Tarifas!$I5,Tarifas!$J5,Datos!G$15,Tarifas!$K5,Datos!$B$3,Datos!$B$1,Datos!$B$4,Tarifas!$M5,Tarifas!$N5,Tarifas!$O5,Tarifas!$P5,Tarifas!$Q5,Datos!$B$2) -> 34.47341919 | I3: =FACTURA(ROW(), COLUMN(),Datos!H$8,Datos!H$9,Tarifas!$C5,Datos!H$10,Tarifas!$D5,Datos!H$11,Tarifas!$E5,Datos!H$12,Tarifas!$F5,Datos!H$13,Tarifas!$G5,Tarifas!$L5,Datos!H$16,Datos!H$17,Datos!H$19,Datos!H$20,Datos!H$22,Datos!H$23,Datos!H$25,Datos!H$28,Datos!H$31,Tarifas!$H5,Tarifas!$I5,Tarifas!$J5,Datos!H$15,Tarifas!$K5,Datos!$B$3,Datos!$B$1,Datos!$B$4,Tarifas!$M5,Tarifas!$N5,Tarifas!$O5,Tarifas!$P5,Tarifas!$Q5,Datos!$B$2) -> 21.8587215 | J3: =FACTURA(ROW(), COLUMN(),Datos!I$8,Datos!I$9,Tarifas!$C5,Datos!I$10,Tarifas!$D5,Datos!I$11,Tarifas!$E5,Datos!I$12,Tarifas!$F5,Datos!I$13,Tarifas!$G5,Tarifas!$L5,Datos!I$16,Datos!I$17,Datos!I$19,Datos!I$20,Datos!I$22,Datos!I$23,Datos!I$25,Datos!I$28,Datos!I$31,Tarifas!$H5,Tarifas!$I5,Tarifas!$J5,Datos!I$15,Tarifas!$K5,Datos!$B$3,Datos!$B$1,Datos!$B$4,Tarifas!$M5,Tarifas!$N5,Tarifas!$O5,Tarifas!$P5,Tarifas!$Q5,Datos!$B$2) -> 34.47341919 | K3: =FACTURA(ROW(), COLUMN(),Datos!J$8,Datos!J$9,Tarifas!$C5,Datos!J$10,Tarifas!$D5,Datos!J$11,Tarifas!$E5,Datos!J$12,Tarifas!$F5,Datos!J$13,Tarifas!$G5,Tarifas!$L5,Datos!J$16,Datos!J$17,Datos!J$19,Datos!J$20,Datos!J$22,Datos!J$23,Datos!J$25,Datos!J$28,Datos!J$31,Tarifas!$H5,Tarifas!$I5,Tarifas!$J5,Datos!J$15,Tarifas!$K5,Datos!$B$3,Datos!$B$1,Datos!$B$4,Tarifas!$M5,Tarifas!$N5,Tarifas!$O5,Tarifas!$P5,Tarifas!$Q5,Datos!$B$2) -> 29.2087215 | L3: =FACTURA(ROW(), COLUMN(),Datos!K$8,Datos!K$9,Tarifas!$C5,Datos!K$10,Tarifas!$D5,Datos!K$11,Tarifas!$E5,Datos!K$12,Tarifas!$F5,Datos!K$13,Tarifas!$G5,Tarifas!$L5,Datos!K$16,Datos!K$17,Datos!K$19,Datos!K$20,Datos!K$22,Datos!K$23,Datos!K$25,Datos!K$28,Datos!K$31,Tarifas!$H5,Tarifas!$I5,Tarifas!$J5,Datos!K$15,Tarifas!$K5,Datos!$B$3,Datos!$B$1,Datos!$B$4,Tarifas!$M5,Tarifas!$N5,Tarifas!$O5,Tarifas!$P5,Tarifas!$Q5,Datos!$B$2) -> 34.47341919 | M3: =FACTURA(ROW(), COLUMN(),Datos!L$8,Datos!L$9,Tarifas!$C5,Datos!L$10,Tarifas!$D5,Datos!L$11,Tarifas!$E5,Datos!L$12,Tarifas!$F5,Datos!L$13,Tarifas!$G5,Tarifas!$L5,Datos!L$16,Datos!L$17,Datos!L$19,Datos!L$20,Datos!L$22,Datos!L$23,Datos!L$25,Datos!L$28,Datos!L$31,Tarifas!$H5,Tarifas!$I5,Tarifas!$J5,Datos!L$15,Tarifas!$K5,Datos!$B$3,Datos!$B$1,Datos!$B$4,Tarifas!$M5,Tarifas!$N5,Tarifas!$O5,Tarifas!$P5,Tarifas!$Q5,Datos!$B$2) -> 36.5587215 | N3: =FACTURA(ROW(), COLUMN(),Datos!M$8,Datos!M$9,Tarifas!$C5,Datos!M$10,Tarifas!$D5,Datos!M$11,Tarifas!$E5,Datos!M$12,Tarifas!$F5,Datos!M$13,Tarifas!$G5,Tarifas!$L5,Datos!M$16,Datos!M$17,Datos!M$19,Datos!M$20,Datos!M$22,Datos!M$23,Datos!M$25,Datos!M$28,Datos!M$31,Tarifas!$H5,Tarifas!$I5,Tarifas!$J5,Datos!M$15,Tarifas!$K5,Datos!$B$3,Datos!$B$1,Datos!$B$4,Tarifas!$M5,Tarifas!$N5,Tarifas!$O5,Tarifas!$P5,Tarifas!$Q5,Datos!$B$2) -> 34.47341919 | O3: =FACTURA(ROW(), COLUMN(),Datos!N$8,Datos!N$9,Tarifas!$C5,Datos!N$10,Tarifas!$D5,Datos!N$11,Tarifas!$E5,Datos!N$12,Tarifas!$F5,Datos!N$13,Tarifas!$G5,Tarifas!$L5,Datos!N$16,Datos!N$17,Datos!N$19,Datos!N$20,Datos!N$22,Datos!N$23,Datos!N$25,Datos!N$28,Datos!N$31,Tarifas!$H5,Tarifas!$I5,Tarifas!$J5,Datos!N$15,Tarifas!$K5,Datos!$B$3,Datos!$B$1,Datos!$B$4,Tarifas!$M5,Tarifas!$N5,Tarifas!$O5,Tarifas!$P5,Tarifas!$Q5,Datos!$B$2) -> 43.9087215 | P3: =FACTURA(ROW(), COLUMN(),Datos!O$8,Datos!O$9,Tarifas!$C5,Datos!O$10,Tarifas!$D5,Datos!O$11,Tarifas!$E5,Datos!O$12,Tarifas!$F5,Datos!O$13,Tarifas!$G5,Tarifas!$L5,Datos!O$16,Datos!O$17,Datos!O$19,Datos!O$20,Datos!O$22,Datos!O$23,Datos!O$25,Datos!O$28,Datos!O$31,Tarifas!$H5,Tarifas!$I5,Tarifas!$J5,Datos!O$15,Tarifas!$K5,Datos!$B$3,Datos!$B$1,Datos!$B$4,Tarifas!$M5,Tarifas!$N5,Tarifas!$O5,Tarifas!$P5,Tarifas!$Q5,Datos!$B$2) -> 34.47341919 | Q3: =IF(Tarifas!R5="Sí","Sí","") -> 
A4: =IF(Tarifas!A6="","",Tarifas!A6) -> AgriEnergía | B4: =IF(Tarifas!B6="","",Tarifas!B6) -> Compra Colectiva Abril 2023 + BV | C4: =IF(E4&F4&G4&H4&I4&J4&K4&L4&M4&N4&O4&P4="","",SUM(E4:P4)) -> 408.6519744 | E4: =FACTURA(ROW(), COLUMN(),Datos!D$8,Datos!D$9,Tarifas!$C6,Datos!D$10,Tarifas!$D6,Datos!D$11,Tarifas!$E6,Datos!D$12,Tarifas!$F6,Datos!D$13,Tarifas!$G6,Tarifas!$L6,Datos!D$16,Datos!D$17,Datos!D$19,Datos!D$20,Datos!D$22,Datos!D$23,Datos!D$25,Datos!D$28,Datos!D$31,Tarifas!$H6,Tarifas!$I6,Tarifas!$J6,Datos!D$15,Tarifas!$K6,Datos!$B$3,Datos!$B$1,Datos!$B$4,Tarifas!$M6,Tarifas!$N6,Tarifas!$O6,Tarifas!$P6,Tarifas!$Q6,Datos!$B$2) -> 5.747875692 | F4: =FACTURA(ROW(), COLUMN(),Datos!E$8,Datos!E$9,Tarifas!$C6,Datos!E$10,Tarifas!$D6,Datos!E$11,Tarifas!$E6,Datos!E$12,Tarifas!$F6,Datos!E$13,Tarifas!$G6,Tarifas!$L6,Datos!E$16,Datos!E$17,Datos!E$19,Datos!E$20,Datos!E$22,Datos!E$23,Datos!E$25,Datos!E$28,Datos!E$31,Tarifas!$H6,Tarifas!$I6,Tarifas!$J6,Datos!E$15,Tarifas!$K6,Datos!$B$3,Datos!$B$1,Datos!$B$4,Tarifas!$M6,Tarifas!$N6,Tarifas!$O6,Tarifas!$P6,Tarifas!$Q6,Datos!$B$2) -> 39.65150138 | G4: =FACTURA(ROW(), COLUMN(),Datos!F$8,Datos!F$9,Tarifas!$C6,Datos!F$10,Tarifas!$D6,Datos!F$11,Tarifas!$E6,Datos!F$12,Tarifas!$F6,Datos!F$13,Tarifas!$G6,Tarifas!$L6,Datos!F$16,Datos!F$17,Datos!F$19,Datos!F$20,Datos!F$22,Datos!F$23,Datos!F$25,Datos!F$28,Datos!F$31,Tarifas!$H6,Tarifas!$I6,Tarifas!$J6,Datos!F$15,Tarifas!$K6,Datos!$B$3,Datos!$B$1,Datos!$B$4,Tarifas!$M6,Tarifas!$N6,Tarifas!$O6,Tarifas!$P6,Tarifas!$Q6,Datos!$B$2) -> 12.74787569 | H4: =FACTURA(ROW(), COLUMN(),Datos!G$8,Datos!G$9,Tarifas!$C6,Datos!G$10,Tarifas!$D6,Datos!G$11,Tarifas!$E6,Datos!G$12,Tarifas!$F6,Datos!G$13,Tarifas!$G6,Tarifas!$L6,Datos!G$16,Datos!G$17,Datos!G$19,Datos!G$20,Datos!G$22,Datos!G$23,Datos!G$25,Datos!G$28,Datos!G$31,Tarifas!$H6,Tarifas!$I6,Tarifas!$J6,Datos!G$15,Tarifas!$K6,Datos!$B$3,Datos!$B$1,Datos!$B$4,Tarifas!$M6,Tarifas!$N6,Tarifas!$O6,Tarifas!$P6,Tarifas!$Q6,Datos!$B$2) -> 39.65150138 | I4: =FACTURA(ROW(), COLUMN(),Datos!H$8,Datos!H$9,Tarifas!$C6,Datos!H$10,Tarifas!$D6,Datos!H$11,Tarifas!$E6,Datos!H$12,Tarifas!$F6,Datos!H$13,Tarifas!$G6,Tarifas!$L6,Datos!H$16,Datos!H$17,Datos!H$19,Datos!H$20,Datos!H$22,Datos!H$23,Datos!H$25,Datos!H$28,Datos!H$31,Tarifas!$H6,Tarifas!$I6,Tarifas!$J6,Datos!H$15,Tarifas!$K6,Datos!$B$3,Datos!$B$1,Datos!$B$4,Tarifas!$M6,Tarifas!$N6,Tarifas!$O6,Tarifas!$P6,Tarifas!$Q6,Datos!$B$2) -> 27.03680369 | J4: =FACTURA(ROW(), COLUMN(),Datos!I$8,Datos!I$9,Tarifas!$C6,Datos!I$10,Tarifas!$D6,Datos!I$11,Tarifas!$E6,Datos!I$12,Tarifas!$F6,Datos!I$13,Tarifas!$G6,Tarifas!$L6,Datos!I$16,Datos!I$17,Datos!I$19,Datos!I$20,Datos!I$22,Datos!I$23,Datos!I$25,Datos!I$28,Datos!I$31,Tarifas!$H6,Tarifas!$I6,Tarifas!$J6,Datos!I$15,Tarifas!$K6,Datos!$B$3,Datos!$B$1,Datos!$B$4,Tarifas!$M6,Tarifas!$N6,Tarifas!$O6,Tarifas!$P6,Tarifas!$Q6,Datos!$B$2) -> 39.65150138 | K4: =FACTURA(ROW(), COLUMN(),Datos!J$8,Datos!J$9,Tarifas!$C6,Datos!J$10,Tarifas!$D6,Datos!J$11,Tarifas!$E6,Datos!J$12,Tarifas!$F6,Datos!J$13,Tarifas!$G6,Tarifas!$L6,Datos!J$16,Datos!J$17,Datos!J$19,Datos!J$20,Datos!J$22,Datos!J$23,Datos!J$25,Datos!J$28,Datos!J$31,Tarifas!$H6,Tarifas!$I6,Tarifas!$J6,Datos!J$15,Tarifas!$K6,Datos!$B$3,Datos!$B$1,Datos!$B$4,Tarifas!$M6,Tarifas!$N6,Tarifas!$O6,Tarifas!$P6,Tarifas!$Q6,Datos!$B$2) -> 34.38680369 | L4: =FACTURA(ROW(), COLUMN(),Datos!K$8,Datos!K$9,Tarifas!$C6,Datos!K$10,Tarifas!$D6,Datos!K$11,Tarifas!$E6,Datos!K$12,Tarifas!$F6,Datos!K$13,Tarifas!$G6,Tarifas!$L6,Datos!K$16,Datos!K$17,Datos!K$19,Datos!K$20,Datos!K$22,Datos!K$23,Datos!K$25,Datos!K$28,Datos!K$31,Tarifas!$H6,Tarifas!$I6,Tarifas!$J6,Datos!K$15,Tarifas!$K6,Datos!$B$3,Datos!$B$1,Datos!$B$4,Tarifas!$M6,Tarifas!$N6,Tarifas!$O6,Tarifas!$P6,Tarifas!$Q6,Datos!$B$2) -> 39.65150138 | M4: =FACTURA(ROW(), COLUMN(),Datos!L$8,Datos!L$9,Tarifas!$C6,Datos!L$10,Tarifas!$D6,Datos!L$11,Tarifas!$E6,Datos!L$12,Tarifas!$F6,Datos!L$13,Tarifas!$G6,Tarifas!$L6,Datos!L$16,Datos!L$17,Datos!L$19,Datos!L$20,Datos!L$22,Datos!L$23,Datos!L$25,Datos!L$28,Datos!L$31,Tarifas!$H6,Tarifas!$I6,Tarifas!$J6,Datos!L$15,Tarifas!$K6,Datos!$B$3,Datos!$B$1,Datos!$B$4,Tarifas!$M6,Tarifas!$N6,Tarifas!$O6,Tarifas!$P6,Tarifas!$Q6,Datos!$B$2) -> 41.73680369 | N4: =FACTURA(ROW(), COLUMN(),Datos!M$8,Datos!M$9,Tarifas!$C6,Datos!M$10,Tarifas!$D6,Datos!M$11,Tarifas!$E6,Datos!M$12,Tarifas!$F6,Datos!M$13,Tarifas!$G6,Tarifas!$L6,Datos!M$16,Datos!M$17,Datos!M$19,Datos!M$20,Datos!M$22,Datos!M$23,Datos!M$25,Datos!M$28,Datos!M$31,Tarifas!$H6,Tarifas!$I6,Tarifas!$J6,Datos!M$15,Tarifas!$K6,Datos!$B$3,Datos!$B$1,Datos!$B$4,Tarifas!$M6,Tarifas!$N6,Tarifas!$O6,Tarifas!$P6,Tarifas!$Q6,Datos!$B$2) -> 39.65150138 | O4: =FACTURA(ROW(), COLUMN(),Datos!N$8,Datos!N$9,Tarifas!$C6,Datos!N$10,Tarifas!$D6,Datos!N$11,Tarifas!$E6,Datos!N$12,Tarifas!$F6,Datos!N$13,Tarifas!$G6,Tarifas!$L6,Datos!N$16,Datos!N$17,Datos!N$19,Datos!N$20,Datos!N$22,Datos!N$23,Datos!N$25,Datos!N$28,Datos!N$31,Tarifas!$H6,Tarifas!$I6,Tarifas!$J6,Datos!N$15,Tarifas!$K6,Datos!$B$3,Datos!$B$1,Datos!$B$4,Tarifas!$M6,Tarifas!$N6,Tarifas!$O6,Tarifas!$P6,Tarifas!$Q6,Datos!$B$2) -> 49.08680369 | P4: =FACTURA(ROW(), COLUMN(),Datos!O$8,Datos!O$9,Tarifas!$C6,Datos!O$10,Tarifas!$D6,Datos!O$11,Tarifas!$E6,Datos!O$12,Tarifas!$F6,Datos!O$13,Tarifas!$G6,Tarifas!$L6,Datos!O$16,Datos!O$17,Datos!O$19,Datos!O$20,Datos!O$22,Datos!O$23,Datos!O$25,Datos!O$28,Datos!O$31,Tarifas!$H6,Tarifas!$I6,Tarifas!$J6,Datos!O$15,Tarifas!$K6,Datos!$B$3,Datos!$B$1,Datos!$B$4,Tarifas!$M6,Tarifas!$N6,Tarifas!$O6,Tarifas!$P6,Tarifas!$Q6,Datos!$B$2) -> 39.65150138 | Q4: =IF(Tarifas!R6="Sí","Sí","") -> 
A5: =IF(Tarifas!A7="","",Tarifas!A7) -> Bassols Energía | B5: =IF(Tarifas!B7="","",Tarifas!B7) -> Hogar Solar Plus + Bat. Virtual | C5: 345.7743179 | E5: =FACTURA(ROW(), COLUMN(),Datos!D$8,Datos!D$9,Tarifas!$C7,Datos!D$10,Tarifas!$D7,Datos!D$11,Tarifas!$E7,Datos!D$12,Tarifas!$F7,Datos!D$13,Tarifas!$G7,Tarifas!$L7,Datos!D$16,Datos!D$17,Datos!D$19,Datos!D$20,Datos!D$22,Datos!D$23,Datos!D$25,Datos!D$28,Datos!D$31,Tarifas!$H7,Tarifas!$I7,Tarifas!$J7,Datos!D$15,Tarifas!$K7,Datos!$B$3,Datos!$B$1,Datos!$B$4,Tarifas!$M7,Tarifas!$N7,Tarifas!$O7,Tarifas!$P7,Tarifas!$Q7,Datos!$B$2) -> 0 | F5: =FACTURA(ROW(), COLUMN(),Datos!E$8,Datos!E$9,Tarifas!$C7,Datos!E$10,Tarifas!$D7,Datos!E$11,Tarifas!$E7,Datos!E$12,Tarifas!$F7,Datos!E$13,Tarifas!$G7,Tarifas!$L7,Datos!E$16,Datos!E$17,Datos!E$19,Datos!E$20,Datos!E$22,Datos!E$23,Datos!E$25,Datos!E$28,Datos!E$31,Tarifas!$H7,Tarifas!$I7,Tarifas!$J7,Datos!E$15,Tarifas!$K7,Datos!$B$3,Datos!$B$1,Datos!$B$4,Tarifas!$M7,Tarifas!$N7,Tarifas!$O7,Tarifas!$P7,Tarifas!$Q7,Datos!$B$2) -> 16.05660131 | G5: =FACTURA(ROW(), COLUMN(),Datos!F$8,Datos!F$9,Tarifas!$C7,Datos!F$10,Tarifas!$D7,Datos!F$11,Tarifas!$E7,Datos!F$12,Tarifas!$F7,Datos!F$13,Tarifas!$G7,Tarifas!$L7,Datos!F$16,Datos!F$17,Datos!F$19,Datos!F$20,Datos!F$22,Datos!F$23,Datos!F$25,Datos!F$28,Datos!F$31,Tarifas!$H7,Tarifas!$I7,Tarifas!$J7,Datos!F$15,Tarifas!$K7,Datos!$B$3,Datos!$B$1,Datos!$B$4,Tarifas!$M7,Tarifas!$N7,Tarifas!$O7,Tarifas!$P7,Tarifas!$Q7,Datos!$B$2) -> 0 | H5: =FACTURA(ROW(), COLUMN(),Datos!G$8,Datos!G$9,Tarifas!$C7,Datos!G$10,Tarifas!$D7,Datos!G$11,Tarifas!$E7,Datos!G$12,Tarifas!$F7,Datos!G$13,Tarifas!$G7,Tarifas!$L7,Datos!G$16,Datos!G$17,Datos!G$19,Datos!G$20,Datos!G$22,Datos!G$23,Datos!G$25,Datos!G$28,Datos!G$31,Tarifas!$H7,Tarifas!$I7,Tarifas!$J7,Datos!G$15,Tarifas!$K7,Datos!$B$3,Datos!$B$1,Datos!$B$4,Tarifas!$M7,Tarifas!$N7,Tarifas!$O7,Tarifas!$P7,Tarifas!$Q7,Datos!$B$2) -> 29.05660131 | I5: =FACTURA(ROW(), COLUMN(),Datos!H$8,Datos!H$9,Tarifas!$C7,Datos!H$10,Tarifas!$D7,Datos!H$11,Tarifas!$E7,Datos!H$12,Tarifas!$F7,Datos!H$13,Tarifas!$G7,Tarifas!$L7,Datos!H$16,Datos!H$17,Datos!H$19,Datos!H$20,Datos!H$22,Datos!H$23,Datos!H$25,Datos!H$28,Datos!H$31,Tarifas!$H7,Tarifas!$I7,Tarifas!$J7,Datos!H$15,Tarifas!$K7,Datos!$B$3,Datos!$B$1,Datos!$B$4,Tarifas!$M7,Tarifas!$N7,Tarifas!$O7,Tarifas!$P7,Tarifas!$Q7,Datos!$B$2) -> 10.6876638 | J5: =FACTURA(ROW(), COLUMN(),Datos!I$8,Datos!I$9,Tarifas!$C7,Datos!I$10,Tarifas!$D7,Datos!I$11,Tarifas!$E7,Datos!I$12,Tarifas!$F7,Datos!I$13,Tarifas!$G7,Tarifas!$L7,Datos!I$16,Datos!I$17,Datos!I$19,Datos!I$20,Datos!I$22,Datos!I$23,Datos!I$25,Datos!I$28,Datos!I$31,Tarifas!$H7,Tarifas!$I7,Tarifas!$J7,Datos!I$15,Tarifas!$K7,Datos!$B$3,Datos!$B$1,Datos!$B$4,Tarifas!$M7,Tarifas!$N7,Tarifas!$O7,Tarifas!$P7,Tarifas!$Q7,Datos!$B$2) -> 44.36893751 | K5: =FACTURA(ROW(), COLUMN(),Datos!J$8,Datos!J$9,Tarifas!$C7,Datos!J$10,Tarifas!$D7,Datos!J$11,Tarifas!$E7,Datos!J$12,Tarifas!$F7,Datos!J$13,Tarifas!$G7,Tarifas!$L7,Datos!J$16,Datos!J$17,Datos!J$19,Datos!J$20,Datos!J$22,Datos!J$23,Datos!J$25,Datos!J$28,Datos!J$31,Tarifas!$H7,Tarifas!$I7,Tarifas!$J7,Datos!J$15,Tarifas!$K7,Datos!$B$3,Datos!$B$1,Datos!$B$4,Tarifas!$M7,Tarifas!$N7,Tarifas!$O7,Tarifas!$P7,Tarifas!$Q7,Datos!$B$2) -> 23.8492338 | L5: =FACTURA(ROW(), COLUMN(),Datos!K$8,Datos!K$9,Tarifas!$C7,Datos!K$10,Tarifas!$D7,Datos!K$11,Tarifas!$E7,Datos!K$12,Tarifas!$F7,Datos!K$13,Tarifas!$G7,Tarifas!$L7,Datos!K$16,Datos!K$17,Datos!K$19,Datos!K$20,Datos!K$22,Datos!K$23,Datos!K$25,Datos!K$28,Datos!K$31,Tarifas!$H7,Tarifas!$I7,Tarifas!$J7,Datos!K$15,Tarifas!$K7,Datos!$B$3,Datos!$B$1,Datos!$B$4,Tarifas!$M7,Tarifas!$N7,Tarifas!$O7,Tarifas!$P7,Tarifas!$Q7,Datos!$B$2) -> 44.36893751 | M5: =FACTURA(ROW(), COLUMN(),Datos!L$8,Datos!L$9,Tarifas!$C7,Datos!L$10,Tarifas!$D7,Datos!L$11,Tarifas!$E7,Datos!L$12,Tarifas!$F7,Datos!L$13,Tarifas!$G7,Tarifas!$L7,Datos!L$16,Datos!L$17,Datos!L$19,Datos!L$20,Datos!L$22,Datos!L$23,Datos!L$25,Datos!L$28,Datos!L$31,Tarifas!$H7,Tarifas!$I7,Tarifas!$J7,Datos!L$15,Tarifas!$K7,Datos!$B$3,Datos!$B$1,Datos!$B$4,Tarifas!$M7,Tarifas!$N7,Tarifas!$O7,Tarifas!$P7,Tarifas!$Q7,Datos!$B$2) -> 37.4992338 | N5: =FACTURA(ROW(), COLUMN(),Datos!M$8,Datos!M$9,Tarifas!$C7,Datos!M$10,Tarifas!$D7,Datos!M$11,Tarifas!$E7,Datos!M$12,Tarifas!$F7,Datos!M$13,Tarifas!$G7,Tarifas!$L7,Datos!M$16,Datos!M$17,Datos!M$19,Datos!M$20,Datos!M$22,Datos!M$23,Datos!M$25,Datos!M$28,Datos!M$31,Tarifas!$H7,Tarifas!$I7,Tarifas!$J7,Datos!M$15,Tarifas!$K7,Datos!$B$3,Datos!$B$1,Datos!$B$4,Tarifas!$M7,Tarifas!$N7,Tarifas!$O7,Tarifas!$P7,Tarifas!$Q7,Datos!$B$2) -> 44.36893751 | O5: =FACTURA(ROW(), COLUMN(),Datos!N$8,Datos!N$9,Tarifas!$C7,Datos!N$10,Tarifas!$D7,Datos!N$11,Tarifas!$E7,Datos!N$12,Tarifas!$F7,Datos!N$13,Tarifas!$G7,Tarifas!$L7,Datos!N$16,Datos!N$17,Datos!N$19,Datos!N$20,Datos!N$22,Datos!N$23,Datos!N$25,Datos!N$28,Datos!N$31,Tarifas!$H7,Tarifas!$I7,Tarifas!$J7,Datos!N$15,Tarifas!$K7,Datos!$B$3,Datos!$B$1,Datos!$B$4,Tarifas!$M7,Tarifas!$N7,Tarifas!$O7,Tarifas!$P7,Tarifas!$Q7,Datos!$B$2) -> 51.1492338 | P5: =FACTURA(ROW(), COLUMN(),Datos!O$8,Datos!O$9,Tarifas!$C7,Datos!O$10,Tarifas!$D7,Datos!O$11,Tarifas!$E7,Datos!O$12,Tarifas!$F7,Datos!O$13,Tarifas!$G7,Tarifas!$L7,Datos!O$16,Datos!O$17,Datos!O$19,Datos!O$20,Datos!O$22,Datos!O$23,Datos!O$25,Datos!O$28,Datos!O$31,Tarifas!$H7,Tarifas!$I7,Tarifas!$J7,Datos!O$15,Tarifas!$K7,Datos!$B$3,Datos!$B$1,Datos!$B$4,Tarifas!$M7,Tarifas!$N7,Tarifas!$O7,Tarifas!$P7,Tarifas!$Q7,Datos!$B$2) -> 44.36893751 | Q5: =IF(Tarifas!R7="Sí","Sí","") -> 
A6: =IF(Tarifas!A8="","",Tarifas!A8) -> Bassols Energía | B6: =IF(Tarifas!B8="","",Tarifas!B8) -> Hogar solar 24h + Bat. Virtual | C6: 366.7671801 | E6: =FACTURA(ROW(), COLUMN(),Datos!D$8,Datos!D$9,Tarifas!$C8,Datos!D$10,Tarifas!$D8,Datos!D$11,Tarifas!$E8,Datos!D$12,Tarifas!$F8,Datos!D$13,Tarifas!$G8,Tarifas!$L8,Datos!D$16,Datos!D$17,Datos!D$19,Datos!D$20,Datos!D$22,Datos!D$23,Datos!D$25,Datos!D$28,Datos!D$31,Tarifas!$H8,Tarifas!$I8,Tarifas!$J8,Datos!D$15,Tarifas!$K8,Datos!$B$3,Datos!$B$1,Datos!$B$4,Tarifas!$M8,Tarifas!$N8,Tarifas!$O8,Tarifas!$P8,Tarifas!$Q8,Datos!$B$2) -> 0 | F6: =FACTURA(ROW(), COLUMN(),Datos!E$8,Datos!E$9,Tarifas!$C8,Datos!E$10,Tarifas!$D8,Datos!E$11,Tarifas!$E8,Datos!E$12,Tarifas!$F8,Datos!E$13,Tarifas!$G8,Tarifas!$L8,Datos!E$16,Datos!E$17,Datos!E$19,Datos!E$20,Datos!E$22,Datos!E$23,Datos!E$25,Datos!E$28,Datos!E$31,Tarifas!$H8,Tarifas!$I8,Tarifas!$J8,Datos!E$15,Tarifas!$K8,Datos!$B$3,Datos!$B$1,Datos!$B$4,Tarifas!$M8,Tarifas!$N8,Tarifas!$O8,Tarifas!$P8,Tarifas!$Q8,Datos!$B$2) -> 19.5225981 | G6: =FACTURA(ROW(), COLUMN(),Datos!F$8,Datos!F$9,Tarifas!$C8,Datos!F$10,Tarifas!$D8,Datos!F$11,Tarifas!$E8,Datos!F$12,Tarifas!$F8,Datos!F$13,Tarifas!$G8,Tarifas!$L8,Datos!F$16,Datos!F$17,Datos!F$19,Datos!F$20,Datos!F$22,Datos!F$23,Datos!F$25,Datos!F$28,Datos!F$31,Tarifas!$H8,Tarifas!$I8,Tarifas!$J8,Datos!F$15,Tarifas!$K8,Datos!$B$3,Datos!$B$1,Datos!$B$4,Tarifas!$M8,Tarifas!$N8,Tarifas!$O8,Tarifas!$P8,Tarifas!$Q8,Datos!$B$2) -> 0 | H6: =FACTURA(ROW(), COLUMN(),Datos!G$8,Datos!G$9,Tarifas!$C8,Datos!G$10,Tarifas!$D8,Datos!G$11,Tarifas!$E8,Datos!G$12,Tarifas!$F8,Datos!G$13,Tarifas!$G8,Tarifas!$L8,Datos!G$16,Datos!G$17,Datos!G$19,Datos!G$20,Datos!G$22,Datos!G$23,Datos!G$25,Datos!G$28,Datos!G$31,Tarifas!$H8,Tarifas!$I8,Tarifas!$J8,Datos!G$15,Tarifas!$K8,Datos!$B$3,Datos!$B$1,Datos!$B$4,Tarifas!$M8,Tarifas!$N8,Tarifas!$O8,Tarifas!$P8,Tarifas!$Q8,Datos!$B$2) -> 32.5225981 | I6: =FACTURA(ROW(), COLUMN(),Datos!H$8,Datos!H$9,Tarifas!$C8,Datos!H$10,Tarifas!$D8,Datos!H$11,Tarifas!$E8,Datos!H$12,Tarifas!$F8,Datos!H$13,Tarifas!$G8,Tarifas!$L8,Datos!H$16,Datos!H$17,Datos!H$19,Datos!H$20,Datos!H$22,Datos!H$23,Datos!H$25,Datos!H$28,Datos!H$31,Tarifas!$H8,Tarifas!$I8,Tarifas!$J8,Datos!H$15,Tarifas!$K8,Datos!$B$3,Datos!$B$1,Datos!$B$4,Tarifas!$M8,Tarifas!$N8,Tarifas!$O8,Tarifas!$P8,Tarifas!$Q8,Datos!$B$2) -> 11.9668238 | J6: =FACTURA(ROW(), COLUMN(),Datos!I$8,Datos!I$9,Tarifas!$C8,Datos!I$10,Tarifas!$D8,Datos!I$11,Tarifas!$E8,Datos!I$12,Tarifas!$F8,Datos!I$13,Tarifas!$G8,Tarifas!$L8,Datos!I$16,Datos!I$17,Datos!I$19,Datos!I$20,Datos!I$22,Datos!I$23,Datos!I$25,Datos!I$28,Datos!I$31,Tarifas!$H8,Tarifas!$I8,Tarifas!$J8,Datos!I$15,Tarifas!$K8,Datos!$B$3,Datos!$B$1,Datos!$B$4,Tarifas!$M8,Tarifas!$N8,Tarifas!$O8,Tarifas!$P8,Tarifas!$Q8,Datos!$B$2) -> 46.5557743 | K6: =FACTURA(ROW(), COLUMN(),Datos!J$8,Datos!J$9,Tarifas!$C8,Datos!J$10,Tarifas!$D8,Datos!J$11,Tarifas!$E8,Datos!J$12,Tarifas!$F8,Datos!J$13,Tarifas!$G8,Tarifas!$L8,Datos!J$16,Datos!J$17,Datos!J$19,Datos!J$20,Datos!J$22,Datos!J$23,Datos!J$25,Datos!J$28,Datos!J$31,Tarifas!$H8,Tarifas!$I8,Tarifas!$J8,Datos!J$15,Tarifas!$K8,Datos!$B$3,Datos!$B$1,Datos!$B$4,Tarifas!$M8,Tarifas!$N8,Tarifas!$O8,Tarifas!$P8,Tarifas!$Q8,Datos!$B$2) -> 25.1923518 | L6: =FACTURA(ROW(), COLUMN(),Datos!K$8,Datos!K$9,Tarifas!$C8,Datos!K$10,Tarifas!$D8,Datos!K$11,Tarifas!$E8,Datos!K$12,Tarifas!$F8,Datos!K$13,Tarifas!$G8,Tarifas!$L8,Datos!K$16,Datos!K$17,Datos!K$19,Datos!K$20,Datos!K$22,Datos!K$23,Datos!K$25,Datos!K$28,Datos!K$31,Tarifas!$H8,Tarifas!$I8,Tarifas!$J8,Datos!K$15,Tarifas!$K8,Datos!$B$3,Datos!$B$1,Datos!$B$4,Tarifas!$M8,Tarifas!$N8,Tarifas!$O8,Tarifas!$P8,Tarifas!$Q8,Datos!$B$2) -> 46.5557743 | M6: =FACTURA(ROW(), COLUMN(),Datos!L$8,Datos!L$9,Tarifas!$C8,Datos!L$10,Tarifas!$D8,Datos!L$11,Tarifas!$E8,Datos!L$12,Tarifas!$F8,Datos!L$13,Tarifas!$G8,Tarifas!$L8,Datos!L$16,Datos!L$17,Datos!L$19,Datos!L$20,Datos!L$22,Datos!L$23,Datos!L$25,Datos!L$28,Datos!L$31,Tarifas!$H8,Tarifas!$I8,Tarifas!$J8,Datos!L$15,Tarifas!$K8,Datos!$B$3,Datos!$B$1,Datos!$B$4,Tarifas!$M8,Tarifas!$N8,Tarifas!$O8,Tarifas!$P8,Tarifas!$Q8,Datos!$B$2) -> 38.8423518 | N6: =FACTURA(ROW(), COLUMN(),Datos!M$8,Datos!M$9,Tarifas!$C8,Datos!M$10,Tarifas!$D8,Datos!M$11,Tarifas!$E8,Datos!M$12,Tarifas!$F8,Datos!M$13,Tarifas!$G8,Tarifas!$L8,Datos!M$16,Datos!M$17,Datos!M$19,Datos!M$20,Datos!M$22,Datos!M$23,Datos!M$25,Datos!M$28,Datos!M$31,Tarifas!$H8,Tarifas!$I8,Tarifas!$J8,Datos!M$15,Tarifas!$K8,Datos!$B$3,Datos!$B$1,Datos!$B$4,Tarifas!$M8,Tarifas!$N8,Tarifas!$O8,Tarifas!$P8,Tarifas!$Q8,Datos!$B$2) -> 46.5557743 | O6: =FACTURA(ROW(), COLUMN(),Datos!N$8,Datos!N$9,Tarifas!$C8,Datos!N$10,Tarifas!$D8,Datos!N$11,Tarifas!$E8,Datos!N$12,Tarifas!$F8,Datos!N$13,Tarifas!$G8,Tarifas!$L8,Datos!N$16,Datos!N$17,Datos!N$19,Datos!N$20,Datos!N$22,Datos!N$23,Datos!N$25,Datos!N$28,Datos!N$31,Tarifas!$H8,Tarifas!$I8,Tarifas!$J8,Datos!N$15,Tarifas!$K8,Datos!$B$3,Datos!$B$1,Datos!$B$4,Tarifas!$M8,Tarifas!$N8,Tarifas!$O8,Tarifas!$P8,Tarifas!$Q8,Datos!$B$2) -> 52.49735933 | P6: =FACTURA(ROW(), COLUMN(),Datos!O$8,Datos!O$9,Tarifas!$C8,Datos!O$10,Tarifas!$D8,Datos!O$11,Tarifas!$E8,Datos!O$12,Tarifas!$F8,Datos!O$13,Tarifas!$G8,Tarifas!$L8,Datos!O$16,Datos!O$17,Datos!O$19,Datos!O$20,Datos!O$22,Datos!O$23,Datos!O$25,Datos!O$28,Datos!O$31,Tarifas!$H8,Tarifas!$I8,Tarifas!$J8,Datos!O$15,Tarifas!$K8,Datos!$B$3,Datos!$B$1,Datos!$B$4,Tarifas!$M8,Tarifas!$N8,Tarifas!$O8,Tarifas!$P8,Tarifas!$Q8,Datos!$B$2) -> 46.5557743 | Q6: =IF(Tarifas!R8="Sí","Sí","") -> 
A7: =IF(Tarifas!A9="","",Tarifas!A9) -> Bassols Energía | B7: =IF(Tarifas!B9="","",Tarifas!B9) -> Hogar Solar Plus + Bal. Neto Anual | C7: 316.2722832 | D7: 20 | E7: =FACTURA(ROW(), COLUMN(),Datos!D$8,Datos!D$9,Tarifas!$C9,Datos!D$10,Tarifas!$D9,Datos!D$11,Tarifas!$E9,Datos!D$12,Tarifas!$F9,Datos!D$13,Tarifas!$G9,Tarifas!$L9,Datos!D$16,Datos!D$17,Datos!D$19,Datos!D$20,Datos!D$22,Datos!D$23,Datos!D$25,Datos!D$28,Datos!D$31,Tarifas!$H9,Tarifas!$I9,Tarifas!$J9,Datos!D$15,Tarifas!$K9,Datos!$B$3,Datos!$B$1,Datos!$B$4,Tarifas!$M9,Tarifas!$N9,Tarifas!$O9,Tarifas!$P9,Tarifas!$Q9,Datos!$B$2) -> 35.17292969 | F7: =FACTURA(ROW(), COLUMN(),Datos!E$8,Datos!E$9,Tarifas!$C9,Datos!E$10,Tarifas!$D9,Datos!E$11,Tarifas!$E9,Datos!E$12,Tarifas!$F9,Datos!E$13,Tarifas!$G9,Tarifas!$L9,Datos!E$16,Datos!E$17,Datos!E$19,Datos!E$20,Datos!E$22,Datos!E$23,Datos!E$25,Datos!E$28,Datos!E$31,Tarifas!$H9,Tarifas!$I9,Tarifas!$J9,Datos!E$15,Tarifas!$K9,Datos!$B$3,Datos!$B$1,Datos!$B$4,Tarifas!$M9,Tarifas!$N9,Tarifas!$O9,Tarifas!$P9,Tarifas!$Q9,Datos!$B$2) -> 17.53911751 | G7: =FACTURA(ROW(), COLUMN(),Datos!F$8,Datos!F$9,Tarifas!$C9,Datos!F$10,Tarifas!$D9,Datos!F$11,Tarifas!$E9,Datos!F$12,Tarifas!$F9,Datos!F$13,Tarifas!$G9,Tarifas!$L9,Datos!F$16,Datos!F$17,Datos!F$19,Datos!F$20,Datos!F$22,Datos!F$23,Datos!F$25,Datos!F$28,Datos!F$31,Tarifas!$H9,Tarifas!$I9,Tarifas!$J9,Datos!F$15,Tarifas!$K9,Datos!$B$3,Datos!$B$1,Datos!$B$4,Tarifas!$M9,Tarifas!$N9,Tarifas!$O9,Tarifas!$P9,Tarifas!$Q9,Datos!$B$2) -> 35.17292969 | H7: =FACTURA(ROW(), COLUMN(),Datos!G$8,Datos!G$9,Tarifas!$C9,Datos!G$10,Tarifas!$D9,Datos!G$11,Tarifas!$E9,Datos!G$12,Tarifas!$F9,Datos!G$13,Tarifas!$G9,Tarifas!$L9,Datos!G$16,Datos!G$17,Datos!G$19,Datos!G$20,Datos!G$22,Datos!G$23,Datos!G$25,Datos!G$28,Datos!G$31,Tarifas!$H9,Tarifas!$I9,Tarifas!$J9,Datos!G$15,Tarifas!$K9,Datos!$B$3,Datos!$B$1,Datos!$B$4,Tarifas!$M9,Tarifas!$N9,Tarifas!$O9,Tarifas!$P9,Tarifas!$Q9,Datos!$B$2) -> 17.53911751 | I7: =FACTURA(ROW(), COLUMN(),Datos!H$8,Datos!H$9,Tarifas!$C9,Datos!H$10,Tarifas!$D9,Datos!H$11,Tarifas!$E9,Datos!H$12,Tarifas!$F9,Datos!H$13,Tarifas!$G9,Tarifas!$L9,Datos!H$16,Datos!H$17,Datos!H$19,Datos!H$20,Datos!H$22,Datos!H$23,Datos!H$25,Datos!H$28,Datos!H$31,Tarifas!$H9,Tarifas!$I9,Tarifas!$J9,Datos!H$15,Tarifas!$K9,Datos!$B$3,Datos!$B$1,Datos!$B$4,Tarifas!$M9,Tarifas!$N9,Tarifas!$O9,Tarifas!$P9,Tarifas!$Q9,Datos!$B$2) -> 35.17292969 | J7: =FACTURA(ROW(), COLUMN(),Datos!I$8,Datos!I$9,Tarifas!$C9,Datos!I$10,Tarifas!$D9,Datos!I$11,Tarifas!$E9,Datos!I$12,Tarifas!$F9,Datos!I$13,Tarifas!$G9,Tarifas!$L9,Datos!I$16,Datos!I$17,Datos!I$19,Datos!I$20,Datos!I$22,Datos!I$23,Datos!I$25,Datos!I$28,Datos!I$31,Tarifas!$H9,Tarifas!$I9,Tarifas!$J9,Datos!I$15,Tarifas!$K9,Datos!$B$3,Datos!$B$1,Datos!$B$4,Tarifas!$M9,Tarifas!$N9,Tarifas!$O9,Tarifas!$P9,Tarifas!$Q9,Datos!$B$2) -> 17.53911751 | K7: =FACTURA(ROW(), COLUMN(),Datos!J$8,Datos!J$9,Tarifas!$C9,Datos!J$10,Tarifas!$D9,Datos!J$11,Tarifas!$E9,Datos!J$12,Tarifas!$F9,Datos!J$13,Tarifas!$G9,Tarifas!$L9,Datos!J$16,Datos!J$17,Datos!J$19,Datos!J$20,Datos!J$22,Datos!J$23,Datos!J$25,Datos!J$28,Datos!J$31,Tarifas!$H9,Tarifas!$I9,Tarifas!$J9,Datos!J$15,Tarifas!$K9,Datos!$B$3,Datos!$B$1,Datos!$B$4,Tarifas!$M9,Tarifas!$N9,Tarifas!$O9,Tarifas!$P9,Tarifas!$Q9,Datos!$B$2) -> 35.17292969 | L7: =FACTURA(ROW(), COLUMN(),Datos!K$8,Datos!K$9,Tarifas!$C9,Datos!K$10,Tarifas!$D9,Datos!K$11,Tarifas!$E9,Datos!K$12,Tarifas!$F9,Datos!K$13,Tarifas!$G9,Tarifas!$L9,Datos!K$16,Datos!K$17,Datos!K$19,Datos!K$20,Datos!K$22,Datos!K$23,Datos!K$25,Datos!K$28,Datos!K$31,Tarifas!$H9,Tarifas!$I9,Tarifas!$J9,Datos!K$15,Tarifas!$K9,Datos!$B$3,Datos!$B$1,Datos!$B$4,Tarifas!$M9,Tarifas!$N9,Tarifas!$O9,Tarifas!$P9,Tarifas!$Q9,Datos!$B$2) -> 17.53911751 | M7: =FACTURA(ROW(), COLUMN(),Datos!L$8,Datos!L$9,Tarifas!$C9,Datos!L$10,Tarifas!$D9,Datos!L$11,Tarifas!$E9,Datos!L$12,Tarifas!$F9,Datos!L$13,Tarifas!$G9,Tarifas!$L9,Datos!L$16,Datos!L$17,Datos!L$19,Datos!L$20,Datos!L$22,Datos!L$23,Datos!L$25,Datos!L$28,Datos!L$31,Tarifas!$H9,Tarifas!$I9,Tarifas!$J9,Datos!L$15,Tarifas!$K9,Datos!$B$3,Datos!$B$1,Datos!$B$4,Tarifas!$M9,Tarifas!$N9,Tarifas!$O9,Tarifas!$P9,Tarifas!$Q9,Datos!$B$2) -> 35.17292969 | N7: =FACTURA(ROW(), COLUMN(),Datos!M$8,Datos!M$9,Tarifas!$C9,Datos!M$10,Tarifas!$D9,Datos!M$11,Tarifas!$E9,Datos!M$12,Tarifas!$F9,Datos!M$13,Tarifas!$G9,Tarifas!$L9,Datos!M$16,Datos!M$17,Datos!M$19,Datos!M$20,Datos!M$22,Datos!M$23,Datos!M$25,Datos!M$28,Datos!M$31,Tarifas!$H9,Tarifas!$I9,Tarifas!$J9,Datos!M$15,Tarifas!$K9,Datos!$B$3,Datos!$B$1,Datos!$B$4,Tarifas!$M9,Tarifas!$N9,Tarifas!$O9,Tarifas!$P9,Tarifas!$Q9,Datos!$B$2) -> 17.53911751 | O7: =FACTURA(ROW(), COLUMN(),Datos!N$8,Datos!N$9,Tarifas!$C9,Datos!N$10,Tarifas!$D9,Datos!N$11,Tarifas!$E9,Datos!N$12,Tarifas!$F9,Datos!N$13,Tarifas!$G9,Tarifas!$L9,Datos!N$16,Datos!N$17,Datos!N$19,Datos!N$20,Datos!N$22,Datos!N$23,Datos!N$25,Datos!N$28,Datos!N$31,Tarifas!$H9,Tarifas!$I9,Tarifas!$J9,Datos!N$15,Tarifas!$K9,Datos!$B$3,Datos!$B$1,Datos!$B$4,Tarifas!$M9,Tarifas!$N9,Tarifas!$O9,Tarifas!$P9,Tarifas!$Q9,Datos!$B$2) -> 35.17292969 | P7: =FACTURA(ROW(), COLUMN(),Datos!O$8,Datos!O$9,Tarifas!$C9,Datos!O$10,Tarifas!$D9,Datos!O$11,Tarifas!$E9,Datos!O$12,Tarifas!$F9,Datos!O$13,Tarifas!$G9,Tarifas!$L9,Datos!O$16,Datos!O$17,Datos!O$19,Datos!O$20,Datos!O$22,Datos!O$23,Datos!O$25,Datos!O$28,Datos!O$31,Tarifas!$H9,Tarifas!$I9,Tarifas!$J9,Datos!O$15,Tarifas!$K9,Datos!$B$3,Datos!$B$1,Datos!$B$4,Tarifas!$M9,Tarifas!$N9,Tarifas!$O9,Tarifas!$P9,Tarifas!$Q9,Datos!$B$2) -> 17.53911751 | Q7: =IF(Tarifas!R9="Sí","Sí","") -> 
A8: =IF(Tarifas!A10="","",Tarifas!A10) -> Bassols Energía | B8: =IF(Tarifas!B10="","",Tarifas!B10) -> Hogar solar 24h + Bal. Neto Anual | C8: 317.3480195 | D8: 20 | E8: =FACTURA(ROW(), COLUMN(),Datos!D$8,Datos!D$9,Tarifas!$C10,Datos!D$10,Tarifas!$D10,Datos!D$11,Tarifas!$E10,Datos!D$12,Tarifas!$F10,Datos!D$13,Tarifas!$G10,Tarifas!$L10,Datos!D$16,Datos!D$17,Datos!D$19,Datos!D$20,Datos!D$22,Datos!D$23,Datos!D$25,Datos!D$28,Datos!D$31,Tarifas!$H10,Tarifas!$I10,Tarifas!$J10,Datos!D$15,Tarifas!$K10,Datos!$B$3,Datos!$B$1,Datos!$B$4,Tarifas!$M10,Tarifas!$N10,Tarifas!$O10,Tarifas!$P10,Tarifas!$Q10,Datos!$B$2) -> 35.23688769 | F8: =FACTURA(ROW(), COLUMN(),Datos!E$8,Datos!E$9,Tarifas!$C10,Datos!E$10,Tarifas!$D10,Datos!E$11,Tarifas!$E10,Datos!E$12,Tarifas!$F10,Datos!E$13,Tarifas!$G10,Tarifas!$L10,Datos!E$16,Datos!E$17,Datos!E$19,Datos!E$20,Datos!E$22,Datos!E$23,Datos!E$25,Datos!E$28,Datos!E$31,Tarifas!$H10,Tarifas!$I10,Tarifas!$J10,Datos!E$15,Tarifas!$K10,Datos!$B$3,Datos!$B$1,Datos!$B$4,Tarifas!$M10,Tarifas!$N10,Tarifas!$O10,Tarifas!$P10,Tarifas!$Q10,Datos!$B$2) -> 17.6536143 | G8: =FACTURA(ROW(), COLUMN(),Datos!F$8,Datos!F$9,Tarifas!$C10,Datos!F$10,Tarifas!$D10,Datos!F$11,Tarifas!$E10,Datos!F$12,Tarifas!$F10,Datos!F$13,Tarifas!$G10,Tarifas!$L10,Datos!F$16,Datos!F$17,Datos!F$19,Datos!F$20,Datos!F$22,Datos!F$23,Datos!F$25,Datos!F$28,Datos!F$31,Tarifas!$H10,Tarifas!$I10,Tarifas!$J10,Datos!F$15,Tarifas!$K10,Datos!$B$3,Datos!$B$1,Datos!$B$4,Tarifas!$M10,Tarifas!$N10,Tarifas!$O10,Tarifas!$P10,Tarifas!$Q10,Datos!$B$2) -> 35.23688769 | H8: =FACTURA(ROW(), COLUMN(),Datos!G$8,Datos!G$9,Tarifas!$C10,Datos!G$10,Tarifas!$D10,Datos!G$11,Tarifas!$E10,Datos!G$12,Tarifas!$F10,Datos!G$13,Tarifas!$G10,Tarifas!$L10,Datos!G$16,Datos!G$17,Datos!G$19,Datos!G$20,Datos!G$22,Datos!G$23,Datos!G$25,Datos!G$28,Datos!G$31,Tarifas!$H10,Tarifas!$I10,Tarifas!$J10,Datos!G$15,Tarifas!$K10,Datos!$B$3,Datos!$B$1,Datos!$B$4,Tarifas!$M10,Tarifas!$N10,Tarifas!$O10,Tarifas!$P10,Tarifas!$Q10,Datos!$B$2) -> 17.6536143 | I8: =FACTURA(ROW(), COLUMN(),Datos!H$8,Datos!H$9,Tarifas!$C10,Datos!H$10,Tarifas!$D10,Datos!H$11,Tarifas!$E10,Datos!H$12,Tarifas!$F10,Datos!H$13,Tarifas!$G10,Tarifas!$L10,Datos!H$16,Datos!H$17,Datos!H$19,Datos!H$20,Datos!H$22,Datos!H$23,Datos!H$25,Datos!H$28,Datos!H$31,Tarifas!$H10,Tarifas!$I10,Tarifas!$J10,Datos!H$15,Tarifas!$K10,Datos!$B$3,Datos!$B$1,Datos!$B$4,Tarifas!$M10,Tarifas!$N10,Tarifas!$O10,Tarifas!$P10,Tarifas!$Q10,Datos!$B$2) -> 35.23688769 | J8: =FACTURA(ROW(), COLUMN(),Datos!I$8,Datos!I$9,Tarifas!$C10,Datos!I$10,Tarifas!$D10,Datos!I$11,Tarifas!$E10,Datos!I$12,Tarifas!$F10,Datos!I$13,Tarifas!$G10,Tarifas!$L10,Datos!I$16,Datos!I$17,Datos!I$19,Datos!I$20,Datos!I$22,Datos!I$23,Datos!I$25,Datos!I$28,Datos!I$31,Tarifas!$H10,Tarifas!$I10,Tarifas!$J10,Datos!I$15,Tarifas!$K10,Datos!$B$3,Datos!$B$1,Datos!$B$4,Tarifas!$M10,Tarifas!$N10,Tarifas!$O10,Tarifas!$P10,Tarifas!$Q10,Datos!$B$2) -> 17.6536143 | K8: =FACTURA(ROW(), COLUMN(),Datos!J$8,Datos!J$9,Tarifas!$C10,Datos!J$10,Tarifas!$D10,Datos!J$11,Tarifas!$E10,Datos!J$12,Tarifas!$F10,Datos!J$13,Tarifas!$G10,Tarifas!$L10,Datos!J$16,Datos!J$17,Datos!J$19,Datos!J$20,Datos!J$22,Datos!J$23,Datos!J$25,Datos!J$28,Datos!J$31,Tarifas!$H10,Tarifas!$I10,Tarifas!$J10,Datos!J$15,Tarifas!$K10,Datos!$B$3,Datos!$B$1,Datos!$B$4,Tarifas!$M10,Tarifas!$N10,Tarifas!$O10,Tarifas!$P10,Tarifas!$Q10,Datos!$B$2) -> 35.23688769 | L8: =FACTURA(ROW(), COLUMN(),Datos!K$8,Datos!K$9,Tarifas!$C10,Datos!K$10,Tarifas!$D10,Datos!K$11,Tarifas!$E10,Datos!K$12,Tarifas!$F10,Datos!K$13,Tarifas!$G10,Tarifas!$L10,Datos!K$16,Datos!K$17,Datos!K$19,Datos!K$20,Datos!K$22,Datos!K$23,Datos!K$25,Datos!K$28,Datos!K$31,Tarifas!$H10,Tarifas!$I10,Tarifas!$J10,Datos!K$15,Tarifas!$K10,Datos!$B$3,Datos!$B$1,Datos!$B$4,Tarifas!$M10,Tarifas!$N10,Tarifas!$O10,Tarifas!$P10,Tarifas!$Q10,Datos!$B$2) -> 17.6536143 | M8: =FACTURA(ROW(), COLUMN(),Datos!L$8,Datos!L$9,Tarifas!$C10,Datos!L$10,Tarifas!$D10,Datos!L$11,Tarifas!$E10,Datos!L$12,Tarifas!$F10,Datos!L$13,Tarifas!$G10,Tarifas!$L10,Datos!L$16,Datos!L$17,Datos!L$19,Datos!L$20,Datos!L$22,Datos!L$23,Datos!L$25,Datos!L$28,Datos!L$31,Tarifas!$H10,Tarifas!$I10,Tarifas!$J10,Datos!L$15,Tarifas!$K10,Datos!$B$3,Datos!$B$1,Datos!$B$4,Tarifas!$M10,Tarifas!$N10,Tarifas!$O10,Tarifas!$P10,Tarifas!$Q10,Datos!$B$2) -> 35.23688769 | N8: =FACTURA(ROW(), COLUMN(),Datos!M$8,Datos!M$9,Tarifas!$C10,Datos!M$10,Tarifas!$D10,Datos!M$11,Tarifas!$E10,Datos!M$12,Tarifas!$F10,Datos!M$13,Tarifas!$G10,Tarifas!$L10,Datos!M$16,Datos!M$17,Datos!M$19,Datos!M$20,Datos!M$22,Datos!M$23,Datos!M$25,Datos!M$28,Datos!M$31,Tarifas!$H10,Tarifas!$I10,Tarifas!$J10,Datos!M$15,Tarifas!$K10,Datos!$B$3,Datos!$B$1,Datos!$B$4,Tarifas!$M10,Tarifas!$N10,Tarifas!$O10,Tarifas!$P10,Tarifas!$Q10,Datos!$B$2) -> 17.6536143 | O8: =FACTURA(ROW(), COLUMN(),Datos!N$8,Datos!N$9,Tarifas!$C10,Datos!N$10,Tarifas!$D10,Datos!N$11,Tarifas!$E10,Datos!N$12,Tarifas!$F10,Datos!N$13,Tarifas!$G10,Tarifas!$L10,Datos!N$16,Datos!N$17,Datos!N$19,Datos!N$20,Datos!N$22,Datos!N$23,Datos!N$25,Datos!N$28,Datos!N$31,Tarifas!$H10,Tarifas!$I10,Tarifas!$J10,Datos!N$15,Tarifas!$K10,Datos!$B$3,Datos!$B$1,Datos!$B$4,Tarifas!$M10,Tarifas!$N10,Tarifas!$O10,Tarifas!$P10,Tarifas!$Q10,Datos!$B$2) -> 35.24189522 | P8: =FACTURA(ROW(), COLUMN(),Datos!O$8,Datos!O$9,Tarifas!$C10,Datos!O$10,Tarifas!$D10,Datos!O$11,Tarifas!$E10,Datos!O$12,Tarifas!$F10,Datos!O$13,Tarifas!$G10,Tarifas!$L10,Datos!O$16,Datos!O$17,Datos!O$19,Datos!O$20,Datos!O$22,Datos!O$23,Datos!O$25,Datos!O$28,Datos!O$31,Tarifas!$H10,Tarifas!$I10,Tarifas!$J10,Datos!O$15,Tarifas!$K10,Datos!$B$3,Datos!$B$1,Datos!$B$4,Tarifas!$M10,Tarifas!$N10,Tarifas!$O10,Tarifas!$P10,Tarifas!$Q10,Datos!$B$2) -> 17.6536143 | Q8: =IF(Tarifas!R10="Sí","Sí","") -> 
A9: =IF(Tarifas!A11="","",Tarifas!A11) -> Bonpreu | B9: =IF(Tarifas!B11="","",Tarifas!B11) -> Plan Noche y Dia | C9: 286.8986071 | E9: =FACTURA(ROW(), COLUMN(),Datos!D$8,Datos!D$9,Tarifas!$C11,Datos!D$10,Tarifas!$D11,Datos!D$11,Tarifas!$E11,Datos!D$12,Tarifas!$F11,Datos!D$13,Tarifas!$G11,Tarifas!$L11,Datos!D$16,Datos!D$17,Datos!D$19,Datos!D$20,Datos!D$22,Datos!D$23,Datos!D$25,Datos!D$28,Datos!D$31,Tarifas!$H11,Tarifas!$I11,Tarifas!$J11,Datos!D$15,Tarifas!$K11,Datos!$B$3,Datos!$B$1,Datos!$B$4,Tarifas!$M11,Tarifas!$N11,Tarifas!$O11,Tarifas!$P11,Tarifas!$Q11,Datos!$B$2) -> 9.4534335 | F9: =FACTURA(ROW(), COLUMN(),Datos!E$8,Datos!E$9,Tarifas!$C11,Datos!E$10,Tarifas!$D11,Datos!E$11,Tarifas!$E11,Datos!E$12,Tarifas!$F11,Datos!E$13,Tarifas!$G11,Tarifas!$L11,Datos!E$16,Datos!E$17,Datos!E$19,Datos!E$20,Datos!E$22,Datos!E$23,Datos!E$25,Datos!E$28,Datos!E$31,Tarifas!$H11,Tarifas!$I11,Tarifas!$J11,Datos!E$15,Tarifas!$K11,Datos!$B$3,Datos!$B$1,Datos!$B$4,Tarifas!$M11,Tarifas!$N11,Tarifas!$O11,Tarifas!$P11,Tarifas!$Q11,Datos!$B$2) -> 11.44100102 | G9: =FACTURA(ROW(), COLUMN(),Datos!F$8,Datos!F$9,Tarifas!$C11,Datos!F$10,Tarifas!$D11,Datos!F$11,Tarifas!$E11,Datos!F$12,Tarifas!$F11,Datos!F$13,Tarifas!$G11,Tarifas!$L11,Datos!F$16,Datos!F$17,Datos!F$19,Datos!F$20,Datos!F$22,Datos!F$23,Datos!F$25,Datos!F$28,Datos!F$31,Tarifas!$H11,Tarifas!$I11,Tarifas!$J11,Datos!F$15,Tarifas!$K11,Datos!$B$3,Datos!$B$1,Datos!$B$4,Tarifas!$M11,Tarifas!$N11,Tarifas!$O11,Tarifas!$P11,Tarifas!$Q11,Datos!$B$2) -> 9.4534335 | H9: =FACTURA(ROW(), COLUMN(),Datos!G$8,Datos!G$9,Tarifas!$C11,Datos!G$10,Tarifas!$D11,Datos!G$11,Tarifas!$E11,Datos!G$12,Tarifas!$F11,Datos!G$13,Tarifas!$G11,Tarifas!$L11,Datos!G$16,Datos!G$17,Datos!G$19,Datos!G$20,Datos!G$22,Datos!G$23,Datos!G$25,Datos!G$28,Datos!G$31,Tarifas!$H11,Tarifas!$I11,Tarifas!$J11,Datos!G$15,Tarifas!$K11,Datos!$B$3,Datos!$B$1,Datos!$B$4,Tarifas!$M11,Tarifas!$N11,Tarifas!$O11,Tarifas!$P11,Tarifas!$Q11,Datos!$B$2) -> 14.88500102 | I9: =FACTURA(ROW(), COLUMN(),Datos!H$8,Datos!H$9,Tarifas!$C11,Datos!H$10,Tarifas!$D11,Datos!H$11,Tarifas!$E11,Datos!H$12,Tarifas!$F11,Datos!H$13,Tarifas!$G11,Tarifas!$L11,Datos!H$16,Datos!H$17,Datos!H$19,Datos!H$20,Datos!H$22,Datos!H$23,Datos!H$25,Datos!H$28,Datos!H$31,Tarifas!$H11,Tarifas!$I11,Tarifas!$J11,Datos!H$15,Tarifas!$K11,Datos!$B$3,Datos!$B$1,Datos!$B$4,Tarifas!$M11,Tarifas!$N11,Tarifas!$O11,Tarifas!$P11,Tarifas!$Q11,Datos!$B$2) -> 12.2674335 | J9: =FACTURA(ROW(), COLUMN(),Datos!I$8,Datos!I$9,Tarifas!$C11,Datos!I$10,Tarifas!$D11,Datos!I$11,Tarifas!$E11,Datos!I$12,Tarifas!$F11,Datos!I$13,Tarifas!$G11,Tarifas!$L11,Datos!I$16,Datos!I$17,Datos!I$19,Datos!I$20,Datos!I$22,Datos!I$23,Datos!I$25,Datos!I$28,Datos!I$31,Tarifas!$H11,Tarifas!$I11,Tarifas!$J11,Datos!I$15,Tarifas!$K11,Datos!$B$3,Datos!$B$1,Datos!$B$4,Tarifas!$M11,Tarifas!$N11,Tarifas!$O11,Tarifas!$P11,Tarifas!$Q11,Datos!$B$2) -> 33.97400102 | K9: =FACTURA(ROW(), COLUMN(),Datos!J$8,Datos!J$9,Tarifas!$C11,Datos!J$10,Tarifas!$D11,Datos!J$11,Tarifas!$E11,Datos!J$12,Tarifas!$F11,Datos!J$13,Tarifas!$G11,Tarifas!$L11,Datos!J$16,Datos!J$17,Datos!J$19,Datos!J$20,Datos!J$22,Datos!J$23,Datos!J$25,Datos!J$28,Datos!J$31,Tarifas!$H11,Tarifas!$I11,Tarifas!$J11,Datos!J$15,Tarifas!$K11,Datos!$B$3,Datos!$B$1,Datos!$B$4,Tarifas!$M11,Tarifas!$N11,Tarifas!$O11,Tarifas!$P11,Tarifas!$Q11,Datos!$B$2) -> 21.7174335 | L9: =FACTURA(ROW(), COLUMN(),Datos!K$8,Datos!K$9,Tarifas!$C11,Datos!K$10,Tarifas!$D11,Datos!K$11,Tarifas!$E11,Datos!K$12,Tarifas!$F11,Datos!K$13,Tarifas!$G11,Tarifas!$L11,Datos!K$16,Datos!K$17,Datos!K$19,Datos!K$20,Datos!K$22,Datos!K$23,Datos!K$25,Datos!K$28,Datos!K$31,Tarifas!$H11,Tarifas!$I11,Tarifas!$J11,Datos!K$15,Tarifas!$K11,Datos!$B$3,Datos!$B$1,Datos!$B$4,Tarifas!$M11,Tarifas!$N11,Tarifas!$O11,Tarifas!$P11,Tarifas!$Q11,Datos!$B$2) -> 33.97400102 | M9: =FACTURA(ROW(), COLUMN(),Datos!L$8,Datos!L$9,Tarifas!$C11,Datos!L$10,Tarifas!$D11,Datos!L$11,Tarifas!$E11,Datos!L$12,Tarifas!$F11,Datos!L$13,Tarifas!$G11,Tarifas!$L11,Datos!L$16,Datos!L$17,Datos!L$19,Datos!L$20,Datos!L$22,Datos!L$23,Datos!L$25,Datos!L$28,Datos!L$31,Tarifas!$H11,Tarifas!$I11,Tarifas!$J11,Datos!L$15,Tarifas!$K11,Datos!$B$3,Datos!$B$1,Datos!$B$4,Tarifas!$M11,Tarifas!$N11,Tarifas!$O11,Tarifas!$P11,Tarifas!$Q11,Datos!$B$2) -> 31.1674335 | N9: =FACTURA(ROW(), COLUMN(),Datos!M$8,Datos!M$9,Tarifas!$C11,Datos!M$10,Tarifas!$D11,Datos!M$11,Tarifas!$E11,Datos!M$12,Tarifas!$F11,Datos!M$13,Tarifas!$G11,Tarifas!$L11,Datos!M$16,Datos!M$17,Datos!M$19,Datos!M$20,Datos!M$22,Datos!M$23,Datos!M$25,Datos!M$28,Datos!M$31,Tarifas!$H11,Tarifas!$I11,Tarifas!$J11,Datos!M$15,Tarifas!$K11,Datos!$B$3,Datos!$B$1,Datos!$B$4,Tarifas!$M11,Tarifas!$N11,Tarifas!$O11,Tarifas!$P11,Tarifas!$Q11,Datos!$B$2) -> 33.97400102 | O9: =FACTURA(ROW(), COLUMN(),Datos!N$8,Datos!N$9,Tarifas!$C11,Datos!N$10,Tarifas!$D11,Datos!N$11,Tarifas!$E11,Datos!N$12,Tarifas!$F11,Datos!N$13,Tarifas!$G11,Tarifas!$L11,Datos!N$16,Datos!N$17,Datos!N$19,Datos!N$20,Datos!N$22,Datos!N$23,Datos!N$25,Datos!N$28,Datos!N$31,Tarifas!$H11,Tarifas!$I11,Tarifas!$J11,Datos!N$15,Tarifas!$K11,Datos!$B$3,Datos!$B$1,Datos!$B$4,Tarifas!$M11,Tarifas!$N11,Tarifas!$O11,Tarifas!$P11,Tarifas!$Q11,Datos!$B$2) -> 40.6174335 | P9: =FACTURA(ROW(), COLUMN(),Datos!O$8,Datos!O$9,Tarifas!$C11,Datos!O$10,Tarifas!$D11,Datos!O$11,Tarifas!$E11,Datos!O$12,Tarifas!$F11,Datos!O$13,Tarifas!$G11,Tarifas!$L11,Datos!O$16,Datos!O$17,Datos!O$19,Datos!O$20,Datos!O$22,Datos!O$23,Datos!O$25,Datos!O$28,Datos!O$31,Tarifas!$H11,Tarifas!$I11,Tarifas!$J11,Datos!O$15,Tarifas!$K11,Datos!$B$3,Datos!$B$1,Datos!$B$4,Tarifas!$M11,Tarifas!$N11,Tarifas!$O11,Tarifas!$P11,Tarifas!$Q11,Datos!$B$2) -> 33.97400102 | Q9: =IF(Tarifas!R11="Sí","Sí","") -> Sí
A10: =IF(Tarifas!A12="","",Tarifas!A12) -> Bonpreu | B10: =IF(Tarifas!B12="","",Tarifas!B12) -> Hagámoslo Fácil | C10: 291.0862171 | E10: =FACTURA(ROW(), COLUMN(),Datos!D$8,Datos!D$9,Tarifas!$C12,Datos!D$10,Tarifas!$D12,Datos!D$11,Tarifas!$E12,Datos!D$12,Tarifas!$F12,Datos!D$13,Tarifas!$G12,Tarifas!$L12,Datos!D$16,Datos!D$17,Datos!D$19,Datos!D$20,Datos!D$22,Datos!D$23,Datos!D$25,Datos!D$28,Datos!D$31,Tarifas!$H12,Tarifas!$I12,Tarifas!$J12,Datos!D$15,Tarifas!$K12,Datos!$B$3,Datos!$B$1,Datos!$B$4,Tarifas!$M12,Tarifas!$N12,Tarifas!$O12,Tarifas!$P12,Tarifas!$Q12,Datos!$B$2) -> 9.4534335 | F10: =FACTURA(ROW(), COLUMN(),Datos!E$8,Datos!E$9,Tarifas!$C12,Datos!E$10,Tarifas!$D12,Datos!E$11,Tarifas!$E12,Datos!E$12,Tarifas!$F12,Datos!E$13,Tarifas!$G12,Tarifas!$L12,Datos!E$16,Datos!E$17,Datos!E$19,Datos!E$20,Datos!E$22,Datos!E$23,Datos!E$25,Datos!E$28,Datos!E$31,Tarifas!$H12,Tarifas!$I12,Tarifas!$J12,Datos!E$15,Tarifas!$K12,Datos!$B$3,Datos!$B$1,Datos!$B$4,Tarifas!$M12,Tarifas!$N12,Tarifas!$O12,Tarifas!$P12,Tarifas!$Q12,Datos!$B$2) -> 11.44593602 | G10: =FACTURA(ROW(), COLUMN(),Datos!F$8,Datos!F$9,Tarifas!$C12,Datos!F$10,Tarifas!$D12,Datos!F$11,Tarifas!$E12,Datos!F$12,Tarifas!$F12,Datos!F$13,Tarifas!$G12,Tarifas!$L12,Datos!F$16,Datos!F$17,Datos!F$19,Datos!F$20,Datos!F$22,Datos!F$23,Datos!F$25,Datos!F$28,Datos!F$31,Tarifas!$H12,Tarifas!$I12,Tarifas!$J12,Datos!F$15,Tarifas!$K12,Datos!$B$3,Datos!$B$1,Datos!$B$4,Tarifas!$M12,Tarifas!$N12,Tarifas!$O12,Tarifas!$P12,Tarifas!$Q12,Datos!$B$2) -> 9.4534335 | H10: =FACTURA(ROW(), COLUMN(),Datos!G$8,Datos!G$9,Tarifas!$C12,Datos!G$10,Tarifas!$D12,Datos!G$11,Tarifas!$E12,Datos!G$12,Tarifas!$F12,Datos!G$13,Tarifas!$G12,Tarifas!$L12,Datos!G$16,Datos!G$17,Datos!G$19,Datos!G$20,Datos!G$22,Datos!G$23,Datos!G$25,Datos!G$28,Datos!G$31,Tarifas!$H12,Tarifas!$I12,Tarifas!$J12,Datos!G$15,Tarifas!$K12,Datos!$B$3,Datos!$B$1,Datos!$B$4,Tarifas!$M12,Tarifas!$N12,Tarifas!$O12,Tarifas!$P12,Tarifas!$Q12,Datos!$B$2) -> 16.27593602 | I10: =FACTURA(ROW(), COLUMN(),Datos!H$8,Datos!H$9,Tarifas!$C12,Datos!H$10,Tarifas!$D12,Datos!H$11,Tarifas!$E12,Datos!H$12,Tarifas!$F12,Datos!H$13,Tarifas!$G12,Tarifas!$L12,Datos!H$16,Datos!H$17,Datos!H$19,Datos!H$20,Datos!H$22,Datos!H$23,Datos!H$25,Datos!H$28,Datos!H$31,Tarifas!$H12,Tarifas!$I12,Tarifas!$J12,Datos!H$15,Tarifas!$K12,Datos!$B$3,Datos!$B$1,Datos!$B$4,Tarifas!$M12,Tarifas!$N12,Tarifas!$O12,Tarifas!$P12,Tarifas!$Q12,Datos!$B$2) -> 11.9734335 | J10: =FACTURA(ROW(), COLUMN(),Datos!I$8,Datos!I$9,Tarifas!$C12,Datos!I$10,Tarifas!$D12,Datos!I$11,Tarifas!$E12,Datos!I$12,Tarifas!$F12,Datos!I$13,Tarifas!$G12,Tarifas!$L12,Datos!I$16,Datos!I$17,Datos!I$19,Datos!I$20,Datos!I$22,Datos!I$23,Datos!I$25,Datos!I$28,Datos!I$31,Tarifas!$H12,Tarifas!$I12,Tarifas!$J12,Datos!I$15,Tarifas!$K12,Datos!$B$3,Datos!$B$1,Datos!$B$4,Tarifas!$M12,Tarifas!$N12,Tarifas!$O12,Tarifas!$P12,Tarifas!$Q12,Datos!$B$2) -> 34.96593602 | K10: =FACTURA(ROW(), COLUMN(),Datos!J$8,Datos!J$9,Tarifas!$C12,Datos!J$10,Tarifas!$D12,Datos!J$11,Tarifas!$E12,Datos!J$12,Tarifas!$F12,Datos!J$13,Tarifas!$G12,Tarifas!$L12,Datos!J$16,Datos!J$17,Datos!J$19,Datos!J$20,Datos!J$22,Datos!J$23,Datos!J$25,Datos!J$28,Datos!J$31,Tarifas!$H12,Tarifas!$I12,Tarifas!$J12,Datos!J$15,Tarifas!$K12,Datos!$B$3,Datos!$B$1,Datos!$B$4,Tarifas!$M12,Tarifas!$N12,Tarifas!$O12,Tarifas!$P12,Tarifas!$Q12,Datos!$B$2) -> 21.4234335 | L10: =FACTURA(ROW(), COLUMN(),Datos!K$8,Datos!K$9,Tarifas!$C12,Datos!K$10,Tarifas!$D12,Datos!K$11,Tarifas!$E12,Datos!K$12,Tarifas!$F12,Datos!K$13,Tarifas!$G12,Tarifas!$L12,Datos!K$16,Datos!K$17,Datos!K$19,Datos!K$20,Datos!K$22,Datos!K$23,Datos!K$25,Datos!K$28,Datos!K$31,Tarifas!$H12,Tarifas!$I12,Tarifas!$J12,Datos!K$15,Tarifas!$K12,Datos!$B$3,Datos!$B$1,Datos!$B$4,Tarifas!$M12,Tarifas!$N12,Tarifas!$O12,Tarifas!$P12,Tarifas!$Q12,Datos!$B$2) -> 34.96593602 | M10: =FACTURA(ROW(), COLUMN(),Datos!L$8,Datos!L$9,Tarifas!$C12,Datos!L$10,Tarifas!$D12,Datos!L$11,Tarifas!$E12,Datos!L$12,Tarifas!$F12,Datos!L$13,Tarifas!$G12,Tarifas!$L12,Datos!L$16,Datos!L$17,Datos!L$19,Datos!L$20,Datos!L$22,Datos!L$23,Datos!L$25,Datos!L$28,Datos!L$31,Tarifas!$H12,Tarifas!$I12,Tarifas!$J12,Datos!L$15,Tarifas!$K12,Datos!$B$3,Datos!$B$1,Datos!$B$4,Tarifas!$M12,Tarifas!$N12,Tarifas!$O12,Tarifas!$P12,Tarifas!$Q12,Datos!$B$2) -> 30.8734335 | N10: =FACTURA(ROW(), COLUMN(),Datos!M$8,Datos!M$9,Tarifas!$C12,Datos!M$10,Tarifas!$D12,Datos!M$11,Tarifas!$E12,Datos!M$12,Tarifas!$F12,Datos!M$13,Tarifas!$G12,Tarifas!$L12,Datos!M$16,Datos!M$17,Datos!M$19,Datos!M$20,Datos!M$22,Datos!M$23,Datos!M$25,Datos!M$28,Datos!M$31,Tarifas!$H12,Tarifas!$I12,Tarifas!$J12,Datos!M$15,Tarifas!$K12,Datos!$B$3,Datos!$B$1,Datos!$B$4,Tarifas!$M12,Tarifas!$N12,Tarifas!$O12,Tarifas!$P12,Tarifas!$Q12,Datos!$B$2) -> 34.96593602 | O10: =FACTURA(ROW(), COLUMN(),Datos!N$8,Datos!N$9,Tarifas!$C12,Datos!N$10,Tarifas!$D12,Datos!N$11,Tarifas!$E12,Datos!N$12,Tarifas!$F12,Datos!N$13,Tarifas!$G12,Tarifas!$L12,Datos!N$16,Datos!N$17,Datos!N$19,Datos!N$20,Datos!N$22,Datos!N$23,Datos!N$25,Datos!N$28,Datos!N$31,Tarifas!$H12,Tarifas!$I12,Tarifas!$J12,Datos!N$15,Tarifas!$K12,Datos!$B$3,Datos!$B$1,Datos!$B$4,Tarifas!$M12,Tarifas!$N12,Tarifas!$O12,Tarifas!$P12,Tarifas!$Q12,Datos!$B$2) -> 40.3234335 | P10: =FACTURA(ROW(), COLUMN(),Datos!O$8,Datos!O$9,Tarifas!$C12,Datos!O$10,Tarifas!$D12,Datos!O$11,Tarifas!$E12,Datos!O$12,Tarifas!$F12,Datos!O$13,Tarifas!$G12,Tarifas!$L12,Datos!O$16,Datos!O$17,Datos!O$19,Datos!O$20,Datos!O$22,Datos!O$23,Datos!O$25,Datos!O$28,Datos!O$31,Tarifas!$H12,Tarifas!$I12,Tarifas!$J12,Datos!O$15,Tarifas!$K12,Datos!$B$3,Datos!$B$1,Datos!$B$4,Tarifas!$M12,Tarifas!$N12,Tarifas!$O12,Tarifas!$P12,Tarifas!$Q12,Datos!$B$2) -> 34.96593602 | Q10: =IF(Tarifas!R12="Sí","Sí","") -> Sí
A11: =IF(Tarifas!A13="","",Tarifas!A13) -> Electra Caldense Energía | B11: =IF(Tarifas!B13="","",Tarifas!B13) -> plafix | C11: 430.5644634 | E11: =FACTURA(ROW(), COLUMN(),Datos!D$8,Datos!D$9,Tarifas!$C13,Datos!D$10,Tarifas!$D13,Datos!D$11,Tarifas!$E13,Datos!D$12,Tarifas!$F13,Datos!D$13,Tarifas!$G13,Tarifas!$L13,Datos!D$16,Datos!D$17,Datos!D$19,Datos!D$20,Datos!D$22,Datos!D$23,Datos!D$25,Datos!D$28,Datos!D$31,Tarifas!$H13,Tarifas!$I13,Tarifas!$J13,Datos!D$15,Tarifas!$K13,Datos!$B$3,Datos!$B$1,Datos!$B$4,Tarifas!$M13,Tarifas!$N13,Tarifas!$O13,Tarifas!$P13,Tarifas!$Q13,Datos!$B$2) -> 10.5198975 | F11: =FACTURA(ROW(), COLUMN(),Datos!E$8,Datos!E$9,Tarifas!$C13,Datos!E$10,Tarifas!$D13,Datos!E$11,Tarifas!$E13,Datos!E$12,Tarifas!$F13,Datos!E$13,Tarifas!$G13,Tarifas!$L13,Datos!E$16,Datos!E$17,Datos!E$19,Datos!E$20,Datos!E$22,Datos!E$23,Datos!E$25,Datos!E$28,Datos!E$31,Tarifas!$H13,Tarifas!$I13,Tarifas!$J13,Datos!E$15,Tarifas!$K13,Datos!$B$3,Datos!$B$1,Datos!$B$4,Tarifas!$M13,Tarifas!$N13,Tarifas!$O13,Tarifas!$P13,Tarifas!$Q13,Datos!$B$2) -> 46.06598414 | G11: =FACTURA(ROW(), COLUMN(),Datos!F$8,Datos!F$9,Tarifas!$C13,Datos!F$10,Tarifas!$D13,Datos!F$11,Tarifas!$E13,Datos!F$12,Tarifas!$F13,Datos!F$13,Tarifas!$G13,Tarifas!$L13,Datos!F$16,Datos!F$17,Datos!F$19,Datos!F$20,Datos!F$22,Datos!F$23,Datos!F$25,Datos!F$28,Datos!F$31,Tarifas!$H13,Tarifas!$I13,Tarifas!$J13,Datos!F$15,Tarifas!$K13,Datos!$B$3,Datos!$B$1,Datos!$B$4,Tarifas!$M13,Tarifas!$N13,Tarifas!$O13,Tarifas!$P13,Tarifas!$Q13,Datos!$B$2) -> 10.5198975 | H11: =FACTURA(ROW(), COLUMN(),Datos!G$8,Datos!G$9,Tarifas!$C13,Datos!G$10,Tarifas!$D13,Datos!G$11,Tarifas!$E13,Datos!G$12,Tarifas!$F13,Datos!G$13,Tarifas!$G13,Tarifas!$L13,Datos!G$16,Datos!G$17,Datos!G$19,Datos!G$20,Datos!G$22,Datos!G$23,Datos!G$25,Datos!G$28,Datos!G$31,Tarifas!$H13,Tarifas!$I13,Tarifas!$J13,Datos!G$15,Tarifas!$K13,Datos!$B$3,Datos!$B$1,Datos!$B$4,Tarifas!$M13,Tarifas!$N13,Tarifas!$O13,Tarifas!$P13,Tarifas!$Q13,Datos!$B$2) -> 46.06598414 | I11: =FACTURA(ROW(), COLUMN(),Datos!H$8,Datos!H$9,Tarifas!$C13,Datos!H$10,Tarifas!$D13,Datos!H$11,Tarifas!$E13,Datos!H$12,Tarifas!$F13,Datos!H$13,Tarifas!$G13,Tarifas!$L13,Datos!H$16,Datos!H$17,Datos!H$19,Datos!H$20,Datos!H$22,Datos!H$23,Datos!H$25,Datos!H$28,Datos!H$31,Tarifas!$H13,Tarifas!$I13,Tarifas!$J13,Datos!H$15,Tarifas!$K13,Datos!$B$3,Datos!$B$1,Datos!$B$4,Tarifas!$M13,Tarifas!$N13,Tarifas!$O13,Tarifas!$P13,Tarifas!$Q13,Datos!$B$2) -> 12.8043615 | J11: =FACTURA(ROW(), COLUMN(),Datos!I$8,Datos!I$9,Tarifas!$C13,Datos!I$10,Tarifas!$D13,Datos!I$11,Tarifas!$E13,Datos!I$12,Tarifas!$F13,Datos!I$13,Tarifas!$G13,Tarifas!$L13,Datos!I$16,Datos!I$17,Datos!I$19,Datos!I$20,Datos!I$22,Datos!I$23,Datos!I$25,Datos!I$28,Datos!I$31,Tarifas!$H13,Tarifas!$I13,Tarifas!$J13,Datos!I$15,Tarifas!$K13,Datos!$B$3,Datos!$B$1,Datos!$B$4,Tarifas!$M13,Tarifas!$N13,Tarifas!$O13,Tarifas!$P13,Tarifas!$Q13,Datos!$B$2) -> 46.06598414 | K11: =FACTURA(ROW(), COLUMN(),Datos!J$8,Datos!J$9,Tarifas!$C13,Datos!J$10,Tarifas!$D13,Datos!J$11,Tarifas!$E13,Datos!J$12,Tarifas!$F13,Datos!J$13,Tarifas!$G13,Tarifas!$L13,Datos!J$16,Datos!J$17,Datos!J$19,Datos!J$20,Datos!J$22,Datos!J$23,Datos!J$25,Datos!J$28,Datos!J$31,Tarifas!$H13,Tarifas!$I13,Tarifas!$J13,Datos!J$15,Tarifas!$K13,Datos!$B$3,Datos!$B$1,Datos!$B$4,Tarifas!$M13,Tarifas!$N13,Tarifas!$O13,Tarifas!$P13,Tarifas!$Q13,Datos!$B$2) -> 26.4543615 | L11: =FACTURA(ROW(), COLUMN(),Datos!K$8,Datos!K$9,Tarifas!$C13,Datos!K$10,Tarifas!$D13,Datos!K$11,Tarifas!$E13,Datos!K$12,Tarifas!$F13,Datos!K$13,Tarifas!$G13,Tarifas!$L13,Datos!K$16,Datos!K$17,Datos!K$19,Datos!K$20,Datos!K$22,Datos!K$23,Datos!K$25,Datos!K$28,Datos!K$31,Tarifas!$H13,Tarifas!$I13,Tarifas!$J13,Datos!K$15,Tarifas!$K13,Datos!$B$3,Datos!$B$1,Datos!$B$4,Tarifas!$M13,Tarifas!$N13,Tarifas!$O13,Tarifas!$P13,Tarifas!$Q13,Datos!$B$2) -> 46.06598414 | M11: =FACTURA(ROW(), COLUMN(),Datos!L$8,Datos!L$9,Tarifas!$C13,Datos!L$10,Tarifas!$D13,Datos!L$11,Tarifas!$E13,Datos!L$12,Tarifas!$F13,Datos!L$13,Tarifas!$G13,Tarifas!$L13,Datos!L$16,Datos!L$17,Datos!L$19,Datos!L$20,Datos!L$22,Datos!L$23,Datos!L$25,Datos!L$28,Datos!L$31,Tarifas!$H13,Tarifas!$I13,Tarifas!$J13,Datos!L$15,Tarifas!$K13,Datos!$B$3,Datos!$B$1,Datos!$B$4,Tarifas!$M13,Tarifas!$N13,Tarifas!$O13,Tarifas!$P13,Tarifas!$Q13,Datos!$B$2) -> 40.1043615 | N11: =FACTURA(ROW(), COLUMN(),Datos!M$8,Datos!M$9,Tarifas!$C13,Datos!M$10,Tarifas!$D13,Datos!M$11,Tarifas!$E13,Datos!M$12,Tarifas!$F13,Datos!M$13,Tarifas!$G13,Tarifas!$L13,Datos!M$16,Datos!M$17,Datos!M$19,Datos!M$20,Datos!M$22,Datos!M$23,Datos!M$25,Datos!M$28,Datos!M$31,Tarifas!$H13,Tarifas!$I13,Tarifas!$J13,Datos!M$15,Tarifas!$K13,Datos!$B$3,Datos!$B$1,Datos!$B$4,Tarifas!$M13,Tarifas!$N13,Tarifas!$O13,Tarifas!$P13,Tarifas!$Q13,Datos!$B$2) -> 46.06598414 | O11: =FACTURA(ROW(), COLUMN(),Datos!N$8,Datos!N$9,Tarifas!$C13,Datos!N$10,Tarifas!$D13,Datos!N$11,Tarifas!$E13,Datos!N$12,Tarifas!$F13,Datos!N$13,Tarifas!$G13,Tarifas!$L13,Datos!N$16,Datos!N$17,Datos!N$19,Datos!N$20,Datos!N$22,Datos!N$23,Datos!N$25,Datos!N$28,Datos!N$31,Tarifas!$H13,Tarifas!$I13,Tarifas!$J13,Datos!N$15,Tarifas!$K13,Datos!$B$3,Datos!$B$1,Datos!$B$4,Tarifas!$M13,Tarifas!$N13,Tarifas!$O13,Tarifas!$P13,Tarifas!$Q13,Datos!$B$2) -> 53.76567908 | P11: =FACTURA(ROW(), COLUMN(),Datos!O$8,Datos!O$9,Tarifas!$C13,Datos!O$10,Tarifas!$D13,Datos!O$11,Tarifas!$E13,Datos!O$12,Tarifas!$F13,Datos!O$13,Tarifas!$G13,Tarifas!$L13,Datos!O$16,Datos!O$17,Datos!O$19,Datos!O$20,Datos!O$22,Datos!O$23,Datos!O$25,Datos!O$28,Datos!O$31,Tarifas!$H13,Tarifas!$I13,Tarifas!$J13,Datos!O$15,Tarifas!$K13,Datos!$B$3,Datos!$B$1,Datos!$B$4,Tarifas!$M13,Tarifas!$N13,Tarifas!$O13,Tarifas!$P13,Tarifas!$Q13,Datos!$B$2) -> 46.06598414 | Q11: =IF(Tarifas!R13="Sí","Sí","") -> Sí
A12: =IF(Tarifas!A14="","",Tarifas!A14) -> Electra Caldense Energía | B12: =IF(Tarifas!B14="","",Tarifas!B14) -> plaflexa2 | E12: =FACTURA(ROW(), COLUMN(),Datos!D$8,Datos!D$9,Tarifas!$C14,Datos!D$10,Tarifas!$D14,Datos!D$11,Tarifas!$E14,Datos!D$12,Tarifas!$F14,Datos!D$13,Tarifas!$G14,Tarifas!$L14,Datos!D$16,Datos!D$17,Datos!D$19,Datos!D$20,Datos!D$22,Datos!D$23,Datos!D$25,Datos!D$28,Datos!D$31,Tarifas!$H14,Tarifas!$I14,Tarifas!$J14,Datos!D$15,Tarifas!$K14,Datos!$B$3,Datos!$B$1,Datos!$B$4,Tarifas!$M14,Tarifas!$N14,Tarifas!$O14,Tarifas!$P14,Tarifas!$Q14,Datos!$B$2) ->  | F12: =FACTURA(ROW(), COLUMN(),Datos!E$8,Datos!E$9,Tarifas!$C14,Datos!E$10,Tarifas!$D14,Datos!E$11,Tarifas!$E14,Datos!E$12,Tarifas!$F14,Datos!E$13,Tarifas!$G14,Tarifas!$L14,Datos!E$16,Datos!E$17,Datos!E$19,Datos!E$20,Datos!E$22,Datos!E$23,Datos!E$25,Datos!E$28,Datos!E$31,Tarifas!$H14,Tarifas!$I14,Tarifas!$J14,Datos!E$15,Tarifas!$K14,Datos!$B$3,Datos!$B$1,Datos!$B$4,Tarifas!$M14,Tarifas!$N14,Tarifas!$O14,Tarifas!$P14,Tarifas!$Q14,Datos!$B$2) ->  | G12: =FACTURA(ROW(), COLUMN(),Datos!F$8,Datos!F$9,Tarifas!$C14,Datos!F$10,Tarifas!$D14,Datos!F$11,Tarifas!$E14,Datos!F$12,Tarifas!$F14,Datos!F$13,Tarifas!$G14,Tarifas!$L14,Datos!F$16,Datos!F$17,Datos!F$19,Datos!F$20,Datos!F$22,Datos!F$23,Datos!F$25,Datos!F$28,Datos!F$31,Tarifas!$H14,Tarifas!$I14,Tarifas!$J14,Datos!F$15,Tarifas!$K14,Datos!$B$3,Datos!$B$1,Datos!$B$4,Tarifas!$M14,Tarifas!$N14,Tarifas!$O14,Tarifas!$P14,Tarifas!$Q14,Datos!$B$2) ->  | H12: =FACTURA(ROW(), COLUMN(),Datos!G$8,Datos!G$9,Tarifas!$C14,Datos!G$10,Tarifas!$D14,Datos!G$11,Tarifas!$E14,Datos!G$12,Tarifas!$F14,Datos!G$13,Tarifas!$G14,Tarifas!$L14,Datos!G$16,Datos!G$17,Datos!G$19,Datos!G$20,Datos!G$22,Datos!G$23,Datos!G$25,Datos!G$28,Datos!G$31,Tarifas!$H14,Tarifas!$I14,Tarifas!$J14,Datos!G$15,Tarifas!$K14,Datos!$B$3,Datos!$B$1,Datos!$B$4,Tarifas!$M14,Tarifas!$N14,Tarifas!$O14,Tarifas!$P14,Tarifas!$Q14,Datos!$B$2) ->  | I12: =FACTURA(ROW(), COLUMN(),Datos!H$8,Datos!H$9,Tarifas!$C14,Datos!H$10,Tarifas!$D14,Datos!H$11,Tarifas!$E14,Datos!H$12,Tarifas!$F14,Datos!H$13,Tarifas!$G14,Tarifas!$L14,Datos!H$16,Datos!H$17,Datos!H$19,Datos!H$20,Datos!H$22,Datos!H$23,Datos!H$25,Datos!H$28,Datos!H$31,Tarifas!$H14,Tarifas!$I14,Tarifas!$J14,Datos!H$15,Tarifas!$K14,Datos!$B$3,Datos!$B$1,Datos!$B$4,Tarifas!$M14,Tarifas!$N14,Tarifas!$O14,Tarifas!$P14,Tarifas!$Q14,Datos!$B$2) ->  | J12: =FACTURA(ROW(), COLUMN(),Datos!I$8,Datos!I$9,Tarifas!$C14,Datos!I$10,Tarifas!$D14,Datos!I$11,Tarifas!$E14,Datos!I$12,Tarifas!$F14,Datos!I$13,Tarifas!$G14,Tarifas!$L14,Datos!I$16,Datos!I$17,Datos!I$19,Datos!I$20,Datos!I$22,Datos!I$23,Datos!I$25,Datos!I$28,Datos!I$31,Tarifas!$H14,Tarifas!$I14,Tarifas!$J14,Datos!I$15,Tarifas!$K14,Datos!$B$3,Datos!$B$1,Datos!$B$4,Tarifas!$M14,Tarifas!$N14,Tarifas!$O14,Tarifas!$P14,Tarifas!$Q14,Datos!$B$2) ->  | K12: =FACTURA(ROW(), COLUMN(),Datos!J$8,Datos!J$9,Tarifas!$C14,Datos!J$10,Tarifas!$D14,Datos!J$11,Tarifas!$E14,Datos!J$12,Tarifas!$F14,Datos!J$13,Tarifas!$G14,Tarifas!$L14,Datos!J$16,Datos!J$17,Datos!J$19,Datos!J$20,Datos!J$22,Datos!J$23,Datos!J$25,Datos!J$28,Datos!J$31,Tarifas!$H14,Tarifas!$I14,Tarifas!$J14,Datos!J$15,Tarifas!$K14,Datos!$B$3,Datos!$B$1,Datos!$B$4,Tarifas!$M14,Tarifas!$N14,Tarifas!$O14,Tarifas!$P14,Tarifas!$Q14,Datos!$B$2) ->  | L12: =FACTURA(ROW(), COLUMN(),Datos!K$8,Datos!K$9,Tarifas!$C14,Datos!K$10,Tarifas!$D14,Datos!K$11,Tarifas!$E14,Datos!K$12,Tarifas!$F14,Datos!K$13,Tarifas!$G14,Tarifas!$L14,Datos!K$16,Datos!K$17,Datos!K$19,Datos!K$20,Datos!K$22,Datos!K$23,Datos!K$25,Datos!K$28,Datos!K$31,Tarifas!$H14,Tarifas!$I14,Tarifas!$J14,Datos!K$15,Tarifas!$K14,Datos!$B$3,Datos!$B$1,Datos!$B$4,Tarifas!$M14,Tarifas!$N14,Tarifas!$O14,Tarifas!$P14,Tarifas!$Q14,Datos!$B$2) ->  | M12: =FACTURA(ROW(), COLUMN(),Datos!L$8,Datos!L$9,Tarifas!$C14,Datos!L$10,Tarifas!$D14,Datos!L$11,Tarifas!$E14,Datos!L$12,Tarifas!$F14,Datos!L$13,Tarifas!$G14,Tarifas!$L14,Datos!L$16,Datos!L$17,Datos!L$19,Datos!L$20,Datos!L$22,Datos!L$23,Datos!L$25,Datos!L$28,Datos!L$31,Tarifas!$H14,Tarifas!$I14,Tarifas!$J14,Datos!L$15,Tarifas!$K14,Datos!$B$3,Datos!$B$1,Datos!$B$4,Tarifas!$M14,Tarifas!$N14,Tarifas!$O14,Tarifas!$P14,Tarifas!$Q14,Datos!$B$2) ->  | N12: =FACTURA(ROW(), COLUMN(),Datos!M$8,Datos!M$9,Tarifas!$C14,Datos!M$10,Tarifas!$D14,Datos!M$11,Tarifas!$E14,Datos!M$12,Tarifas!$F14,Datos!M$13,Tarifas!$G14,Tarifas!$L14,Datos!M$16,Datos!M$17,Datos!M$19,Datos!M$20,Datos!M$22,Datos!M$23,Datos!M$25,Datos!M$28,Datos!M$31,Tarifas!$H14,Tarifas!$I14,Tarifas!$J14,Datos!M$15,Tarifas!$K14,Datos!$B$3,Datos!$B$1,Datos!$B$4,Tarifas!$M14,Tarifas!$N14,Tarifas!$O14,Tarifas!$P14,Tarifas!$Q14,Datos!$B$2) ->  | O12: =FACTURA(ROW(), COLUMN(),Datos!N$8,Datos!N$9,Tarifas!$C14,Datos!N$10,Tarifas!$D14,Datos!N$11,Tarifas!$E14,Datos!N$12,Tarifas!$F14,Datos!N$13,Tarifas!$G14,Tarifas!$L14,Datos!N$16,Datos!N$17,Datos!N$19,Datos!N$20,Datos!N$22,Datos!N$23,Datos!N$25,Datos!N$28,Datos!N$31,Tarifas!$H14,Tarifas!$I14,Tarifas!$J14,Datos!N$15,Tarifas!$K14,Datos!$B$3,Datos!$B$1,Datos!$B$4,Tarifas!$M14,Tarifas!$N14,Tarifas!$O14,Tarifas!$P14,Tarifas!$Q14,Datos!$B$2) ->  | P12: =FACTURA(ROW(), COLUMN(),Datos!O$8,Datos!O$9,Tarifas!$C14,Datos!O$10,Tarifas!$D14,Datos!O$11,Tarifas!$E14,Datos!O$12,Tarifas!$F14,Datos!O$13,Tarifas!$G14,Tarifas!$L14,Datos!O$16,Datos!O$17,Datos!O$19,Datos!O$20,Datos!O$22,Datos!O$23,Datos!O$25,Datos!O$28,Datos!O$31,Tarifas!$H14,Tarifas!$I14,Tarifas!$J14,Datos!O$15,Tarifas!$K14,Datos!$B$3,Datos!$B$1,Datos!$B$4,Tarifas!$M14,Tarifas!$N14,Tarifas!$O14,Tarifas!$P14,Tarifas!$Q14,Datos!$B$2) ->  | Q12: =IF(Tarifas!R14="Sí","Sí","") -> Sí
A13: =IF(Tarifas!A15="","",Tarifas!A15) -> Electra Caldense Energía | B13: =IF(Tarifas!B15="","",Tarifas!B15) -> plaflexa3 | C13: 413.9214721 | E13: =FACTURA(ROW(), COLUMN(),Datos!D$8,Datos!D$9,Tarifas!$C15,Datos!D$10,Tarifas!$D15,Datos!D$11,Tarifas!$E15,Datos!D$12,Tarifas!$F15,Datos!D$13,Tarifas!$G15,Tarifas!$L15,Datos!D$16,Datos!D$17,Datos!D$19,Datos!D$20,Datos!D$22,Datos!D$23,Datos!D$25,Datos!D$28,Datos!D$31,Tarifas!$H15,Tarifas!$I15,Tarifas!$J15,Datos!D$15,Tarifas!$K15,Datos!$B$3,Datos!$B$1,Datos!$B$4,Tarifas!$M15,Tarifas!$N15,Tarifas!$O15,Tarifas!$P15,Tarifas!$Q15,Datos!$B$2) -> 10.5198975 | F13: =FACTURA(ROW(), COLUMN(),Datos!E$8,Datos!E$9,Tarifas!$C15,Datos!E$10,Tarifas!$D15,Datos!E$11,Tarifas!$E15,Datos!E$12,Tarifas!$F15,Datos!E$13,Tarifas!$G15,Tarifas!$L15,Datos!E$16,Datos!E$17,Datos!E$19,Datos!E$20,Datos!E$22,Datos!E$23,Datos!E$25,Datos!E$28,Datos!E$31,Tarifas!$H15,Tarifas!$I15,Tarifas!$J15,Datos!E$15,Tarifas!$K15,Datos!$B$3,Datos!$B$1,Datos!$B$4,Tarifas!$M15,Tarifas!$N15,Tarifas!$O15,Tarifas!$P15,Tarifas!$Q15,Datos!$B$2) -> 43.98667733 | G13: =FACTURA(ROW(), COLUMN(),Datos!F$8,Datos!F$9,Tarifas!$C15,Datos!F$10,Tarifas!$D15,Datos!F$11,Tarifas!$E15,Datos!F$12,Tarifas!$F15,Datos!F$13,Tarifas!$G15,Tarifas!$L15,Datos!F$16,Datos!F$17,Datos!F$19,Datos!F$20,Datos!F$22,Datos!F$23,Datos!F$25,Datos!F$28,Datos!F$31,Tarifas!$H15,Tarifas!$I15,Tarifas!$J15,Datos!F$15,Tarifas!$K15,Datos!$B$3,Datos!$B$1,Datos!$B$4,Tarifas!$M15,Tarifas!$N15,Tarifas!$O15,Tarifas!$P15,Tarifas!$Q15,Datos!$B$2) -> 10.5198975 | H13: =FACTURA(ROW(), COLUMN(),Datos!G$8,Datos!G$9,Tarifas!$C15,Datos!G$10,Tarifas!$D15,Datos!G$11,Tarifas!$E15,Datos!G$12,Tarifas!$F15,Datos!G$13,Tarifas!$G15,Tarifas!$L15,Datos!G$16,Datos!G$17,Datos!G$19,Datos!G$20,Datos!G$22,Datos!G$23,Datos!G$25,Datos!G$28,Datos!G$31,Tarifas!$H15,Tarifas!$I15,Tarifas!$J15,Datos!G$15,Tarifas!$K15,Datos!$B$3,Datos!$B$1,Datos!$B$4,Tarifas!$M15,Tarifas!$N15,Tarifas!$O15,Tarifas!$P15,Tarifas!$Q15,Datos!$B$2) -> 43.98667733 | I13: =FACTURA(ROW(), COLUMN(),Datos!H$8,Datos!H$9,Tarifas!$C15,Datos!H$10,Tarifas!$D15,Datos!H$11,Tarifas!$E15,Datos!H$12,Tarifas!$F15,Datos!H$13,Tarifas!$G15,Tarifas!$L15,Datos!H$16,Datos!H$17,Datos!H$19,Datos!H$20,Datos!H$22,Datos!H$23,Datos!H$25,Datos!H$28,Datos!H$31,Tarifas!$H15,Tarifas!$I15,Tarifas!$J15,Datos!H$15,Tarifas!$K15,Datos!$B$3,Datos!$B$1,Datos!$B$4,Tarifas!$M15,Tarifas!$N15,Tarifas!$O15,Tarifas!$P15,Tarifas!$Q15,Datos!$B$2) -> 11.7638745 | J13: =FACTURA(ROW(), COLUMN(),Datos!I$8,Datos!I$9,Tarifas!$C15,Datos!I$10,Tarifas!$D15,Datos!I$11,Tarifas!$E15,Datos!I$12,Tarifas!$F15,Datos!I$13,Tarifas!$G15,Tarifas!$L15,Datos!I$16,Datos!I$17,Datos!I$19,Datos!I$20,Datos!I$22,Datos!I$23,Datos!I$25,Datos!I$28,Datos!I$31,Tarifas!$H15,Tarifas!$I15,Tarifas!$J15,Datos!I$15,Tarifas!$K15,Datos!$B$3,Datos!$B$1,Datos!$B$4,Tarifas!$M15,Tarifas!$N15,Tarifas!$O15,Tarifas!$P15,Tarifas!$Q15,Datos!$B$2) -> 43.98667733 | K13: =FACTURA(ROW(), COLUMN(),Datos!J$8,Datos!J$9,Tarifas!$C15,Datos!J$10,Tarifas!$D15,Datos!J$11,Tarifas!$E15,Datos!J$12,Tarifas!$F15,Datos!J$13,Tarifas!$G15,Tarifas!$L15,Datos!J$16,Datos!J$17,Datos!J$19,Datos!J$20,Datos!J$22,Datos!J$23,Datos!J$25,Datos!J$28,Datos!J$31,Tarifas!$H15,Tarifas!$I15,Tarifas!$J15,Datos!J$15,Tarifas!$K15,Datos!$B$3,Datos!$B$1,Datos!$B$4,Tarifas!$M15,Tarifas!$N15,Tarifas!$O15,Tarifas!$P15,Tarifas!$Q15,Datos!$B$2) -> 25.4138745 | L13: =FACTURA(ROW(), COLUMN(),Datos!K$8,Datos!K$9,Tarifas!$C15,Datos!K$10,Tarifas!$D15,Datos!K$11,Tarifas!$E15,Datos!K$12,Tarifas!$F15,Datos!K$13,Tarifas!$G15,Tarifas!$L15,Datos!K$16,Datos!K$17,Datos!K$19,Datos!K$20,Datos!K$22,Datos!K$23,Datos!K$25,Datos!K$28,Datos!K$31,Tarifas!$H15,Tarifas!$I15,Tarifas!$J15,Datos!K$15,Tarifas!$K15,Datos!$B$3,Datos!$B$1,Datos!$B$4,Tarifas!$M15,Tarifas!$N15,Tarifas!$O15,Tarifas!$P15,Tarifas!$Q15,Datos!$B$2) -> 43.98667733 | M13: =FACTURA(ROW(), COLUMN(),Datos!L$8,Datos!L$9,Tarifas!$C15,Datos!L$10,Tarifas!$D15,Datos!L$11,Tarifas!$E15,Datos!L$12,Tarifas!$F15,Datos!L$13,Tarifas!$G15,Tarifas!$L15,Datos!L$16,Datos!L$17,Datos!L$19,Datos!L$20,Datos!L$22,Datos!L$23,Datos!L$25,Datos!L$28,Datos!L$31,Tarifas!$H15,Tarifas!$I15,Tarifas!$J15,Datos!L$15,Tarifas!$K15,Datos!$B$3,Datos!$B$1,Datos!$B$4,Tarifas!$M15,Tarifas!$N15,Tarifas!$O15,Tarifas!$P15,Tarifas!$Q15,Datos!$B$2) -> 39.0638745 | N13: =FACTURA(ROW(), COLUMN(),Datos!M$8,Datos!M$9,Tarifas!$C15,Datos!M$10,Tarifas!$D15,Datos!M$11,Tarifas!$E15,Datos!M$12,Tarifas!$F15,Datos!M$13,Tarifas!$G15,Tarifas!$L15,Datos!M$16,Datos!M$17,Datos!M$19,Datos!M$20,Datos!M$22,Datos!M$23,Datos!M$25,Datos!M$28,Datos!M$31,Tarifas!$H15,Tarifas!$I15,Tarifas!$J15,Datos!M$15,Tarifas!$K15,Datos!$B$3,Datos!$B$1,Datos!$B$4,Tarifas!$M15,Tarifas!$N15,Tarifas!$O15,Tarifas!$P15,Tarifas!$Q15,Datos!$B$2) -> 43.98667733 | O13: =FACTURA(ROW(), COLUMN(),Datos!N$8,Datos!N$9,Tarifas!$C15,Datos!N$10,Tarifas!$D15,Datos!N$11,Tarifas!$E15,Datos!N$12,Tarifas!$F15,Datos!N$13,Tarifas!$G15,Tarifas!$L15,Datos!N$16,Datos!N$17,Datos!N$19,Datos!N$20,Datos!N$22,Datos!N$23,Datos!N$25,Datos!N$28,Datos!N$31,Tarifas!$H15,Tarifas!$I15,Tarifas!$J15,Datos!N$15,Tarifas!$K15,Datos!$B$3,Datos!$B$1,Datos!$B$4,Tarifas!$M15,Tarifas!$N15,Tarifas!$O15,Tarifas!$P15,Tarifas!$Q15,Datos!$B$2) -> 52.71998965 | P13: =FACTURA(ROW(), COLUMN(),Datos!O$8,Datos!O$9,Tarifas!$C15,Datos!O$10,Tarifas!$D15,Datos!O$11,Tarifas!$E15,Datos!O$12,Tarifas!$F15,Datos!O$13,Tarifas!$G15,Tarifas!$L15,Datos!O$16,Datos!O$17,Datos!O$19,Datos!O$20,Datos!O$22,Datos!O$23,Datos!O$25,Datos!O$28,Datos!O$31,Tarifas!$H15,Tarifas!$I15,Tarifas!$J15,Datos!O$15,Tarifas!$K15,Datos!$B$3,Datos!$B$1,Datos!$B$4,Tarifas!$M15,Tarifas!$N15,Tarifas!$O15,Tarifas!$P15,Tarifas!$Q15,Datos!$B$2) -> 43.98667733 | Q13: =IF(Tarifas!R15="Sí","Sí","") -> Sí
A14: =IF(Tarifas!A16="","",Tarifas!A16) -> Endesa | B14: =IF(Tarifas!B16="","",Tarifas!B16) -> One Luz | C14: 533.9297357 | E14: =FACTURA(ROW(), COLUMN(),Datos!D$8,Datos!D$9,Tarifas!$C16,Datos!D$10,Tarifas!$D16,Datos!D$11,Tarifas!$E16,Datos!D$12,Tarifas!$F16,Datos!D$13,Tarifas!$G16,Tarifas!$L16,Datos!D$16,Datos!D$17,Datos!D$19,Datos!D$20,Datos!D$22,Datos!D$23,Datos!D$25,Datos!D$28,Datos!D$31,Tarifas!$H16,Tarifas!$I16,Tarifas!$J16,Datos!D$15,Tarifas!$K16,Datos!$B$3,Datos!$B$1,Datos!$B$4,Tarifas!$M16,Tarifas!$N16,Tarifas!$O16,Tarifas!$P16,Tarifas!$Q16,Datos!$B$2) -> 50.62945403 | F14: =FACTURA(ROW(), COLUMN(),Datos!E$8,Datos!E$9,Tarifas!$C16,Datos!E$10,Tarifas!$D16,Datos!E$11,Tarifas!$E16,Datos!E$12,Tarifas!$F16,Datos!E$13,Tarifas!$G16,Tarifas!$L16,Datos!E$16,Datos!E$17,Datos!E$19,Datos!E$20,Datos!E$22,Datos!E$23,Datos!E$25,Datos!E$28,Datos!E$31,Tarifas!$H16,Tarifas!$I16,Tarifas!$J16,Datos!E$15,Tarifas!$K16,Datos!$B$3,Datos!$B$1,Datos!$B$4,Tarifas!$M16,Tarifas!$N16,Tarifas!$O16,Tarifas!$P16,Tarifas!$Q16,Datos!$B$2) -> 38.35883526 | G14: =FACTURA(ROW(), COLUMN(),Datos!F$8,Datos!F$9,Tarifas!$C16,Datos!F$10,Tarifas!$D16,Datos!F$11,Tarifas!$E16,Datos!F$12,Tarifas!$F16,Datos!F$13,Tarifas!$G16,Tarifas!$L16,Datos!F$16,Datos!F$17,Datos!F$19,Datos!F$20,Datos!F$22,Datos!F$23,Datos!F$25,Datos!F$28,Datos!F$31,Tarifas!$H16,Tarifas!$I16,Tarifas!$J16,Datos!F$15,Tarifas!$K16,Datos!$B$3,Datos!$B$1,Datos!$B$4,Tarifas!$M16,Tarifas!$N16,Tarifas!$O16,Tarifas!$P16,Tarifas!$Q16,Datos!$B$2) -> 50.62945403 | H14: =FACTURA(ROW(), COLUMN(),Datos!G$8,Datos!G$9,Tarifas!$C16,Datos!G$10,Tarifas!$D16,Datos!G$11,Tarifas!$E16,Datos!G$12,Tarifas!$F16,Datos!G$13,Tarifas!$G16,Tarifas!$L16,Datos!G$16,Datos!G$17,Datos!G$19,Datos!G$20,Datos!G$22,Datos!G$23,Datos!G$25,Datos!G$28,Datos!G$31,Tarifas!$H16,Tarifas!$I16,Tarifas!$J16,Datos!G$15,Tarifas!$K16,Datos!$B$3,Datos!$B$1,Datos!$B$4,Tarifas!$M16,Tarifas!$N16,Tarifas!$O16,Tarifas!$P16,Tarifas!$Q16,Datos!$B$2) -> 38.35883526 | I14: =FACTURA(ROW(), COLUMN(),Datos!H$8,Datos!H$9,Tarifas!$C16,Datos!H$10,Tarifas!$D16,Datos!H$11,Tarifas!$E16,Datos!H$12,Tarifas!$F16,Datos!H$13,Tarifas!$G16,Tarifas!$L16,Datos!H$16,Datos!H$17,Datos!H$19,Datos!H$20,Datos!H$22,Datos!H$23,Datos!H$25,Datos!H$28,Datos!H$31,Tarifas!$H16,Tarifas!$I16,Tarifas!$J16,Datos!H$15,Tarifas!$K16,Datos!$B$3,Datos!$B$1,Datos!$B$4,Tarifas!$M16,Tarifas!$N16,Tarifas!$O16,Tarifas!$P16,Tarifas!$Q16,Datos!$B$2) -> 50.62945403 | J14: =FACTURA(ROW(), COLUMN(),Datos!I$8,Datos!I$9,Tarifas!$C16,Datos!I$10,Tarifas!$D16,Datos!I$11,Tarifas!$E16,Datos!I$12,Tarifas!$F16,Datos!I$13,Tarifas!$G16,Tarifas!$L16,Datos!I$16,Datos!I$17,Datos!I$19,Datos!I$20,Datos!I$22,Datos!I$23,Datos!I$25,Datos!I$28,Datos!I$31,Tarifas!$H16,Tarifas!$I16,Tarifas!$J16,Datos!I$15,Tarifas!$K16,Datos!$B$3,Datos!$B$1,Datos!$B$4,Tarifas!$M16,Tarifas!$N16,Tarifas!$O16,Tarifas!$P16,Tarifas!$Q16,Datos!$B$2) -> 38.35883526 | K14: =FACTURA(ROW(), COLUMN(),Datos!J$8,Datos!J$9,Tarifas!$C16,Datos!J$10,Tarifas!$D16,Datos!J$11,Tarifas!$E16,Datos!J$12,Tarifas!$F16,Datos!J$13,Tarifas!$G16,Tarifas!$L16,Datos!J$16,Datos!J$17,Datos!J$19,Datos!J$20,Datos!J$22,Datos!J$23,Datos!J$25,Datos!J$28,Datos!J$31,Tarifas!$H16,Tarifas!$I16,Tarifas!$J16,Datos!J$15,Tarifas!$K16,Datos!$B$3,Datos!$B$1,Datos!$B$4,Tarifas!$M16,Tarifas!$N16,Tarifas!$O16,Tarifas!$P16,Tarifas!$Q16,Datos!$B$2) -> 50.62945403 | L14: =FACTURA(ROW(), COLUMN(),Datos!K$8,Datos!K$9,Tarifas!$C16,Datos!K$10,Tarifas!$D16,Datos!K$11,Tarifas!$E16,Datos!K$12,Tarifas!$F16,Datos!K$13,Tarifas!$G16,Tarifas!$L16,Datos!K$16,Datos!K$17,Datos!K$19,Datos!K$20,Datos!K$22,Datos!K$23,Datos!K$25,Datos!K$28,Datos!K$31,Tarifas!$H16,Tarifas!$I16,Tarifas!$J16,Datos!K$15,Tarifas!$K16,Datos!$B$3,Datos!$B$1,Datos!$B$4,Tarifas!$M16,Tarifas!$N16,Tarifas!$O16,Tarifas!$P16,Tarifas!$Q16,Datos!$B$2) -> 38.35883526 | M14: =FACTURA(ROW(), COLUMN(),Datos!L$8,Datos!L$9,Tarifas!$C16,Datos!L$10,Tarifas!$D16,Datos!L$11,Tarifas!$E16,Datos!L$12,Tarifas!$F16,Datos!L$13,Tarifas!$G16,Tarifas!$L16,Datos!L$16,Datos!L$17,Datos!L$19,Datos!L$20,Datos!L$22,Datos!L$23,Datos!L$25,Datos!L$28,Datos!L$31,Tarifas!$H16,Tarifas!$I16,Tarifas!$J16,Datos!L$15,Tarifas!$K16,Datos!$B$3,Datos!$B$1,Datos!$B$4,Tarifas!$M16,Tarifas!$N16,Tarifas!$O16,Tarifas!$P16,Tarifas!$Q16,Datos!$B$2) -> 50.62945403 | N14: =FACTURA(ROW(), COLUMN(),Datos!M$8,Datos!M$9,Tarifas!$C16,Datos!M$10,Tarifas!$D16,Datos!M$11,Tarifas!$E16,Datos!M$12,Tarifas!$F16,Datos!M$13,Tarifas!$G16,Tarifas!$L16,Datos!M$16,Datos!M$17,Datos!M$19,Datos!M$20,Datos!M$22,Datos!M$23,Datos!M$25,Datos!M$28,Datos!M$31,Tarifas!$H16,Tarifas!$I16,Tarifas!$J16,Datos!M$15,Tarifas!$K16,Datos!$B$3,Datos!$B$1,Datos!$B$4,Tarifas!$M16,Tarifas!$N16,Tarifas!$O16,Tarifas!$P16,Tarifas!$Q16,Datos!$B$2) -> 38.35883526 | O14: =FACTURA(ROW(), COLUMN(),Datos!N$8,Datos!N$9,Tarifas!$C16,Datos!N$10,Tarifas!$D16,Datos!N$11,Tarifas!$E16,Datos!N$12,Tarifas!$F16,Datos!N$13,Tarifas!$G16,Tarifas!$L16,Datos!N$16,Datos!N$17,Datos!N$19,Datos!N$20,Datos!N$22,Datos!N$23,Datos!N$25,Datos!N$28,Datos!N$31,Tarifas!$H16,Tarifas!$I16,Tarifas!$J16,Datos!N$15,Tarifas!$K16,Datos!$B$3,Datos!$B$1,Datos!$B$4,Tarifas!$M16,Tarifas!$N16,Tarifas!$O16,Tarifas!$P16,Tarifas!$Q16,Datos!$B$2) -> 50.62945403 | P14: =FACTURA(ROW(), COLUMN(),Datos!O$8,Datos!O$9,Tarifas!$C16,Datos!O$10,Tarifas!$D16,Datos!O$11,Tarifas!$E16,Datos!O$12,Tarifas!$F16,Datos!O$13,Tarifas!$G16,Tarifas!$L16,Datos!O$16,Datos!O$17,Datos!O$19,Datos!O$20,Datos!O$22,Datos!O$23,Datos!O$25,Datos!O$28,Datos!O$31,Tarifas!$H16,Tarifas!$I16,Tarifas!$J16,Datos!O$15,Tarifas!$K16,Datos!$B$3,Datos!$B$1,Datos!$B$4,Tarifas!$M16,Tarifas!$N16,Tarifas!$O16,Tarifas!$P16,Tarifas!$Q16,Datos!$B$2) -> 38.35883526 | Q14: =IF(Tarifas!R16="Sí","Sí","") -> Sí
A15: =IF(Tarifas!A17="","",Tarifas!A17) -> Endesa | B15: =IF(Tarifas!B17="","",Tarifas!B17) -> One Luz 3 Periodos | C15: 514.1167397 | E15: =FACTURA(ROW(), COLUMN(),Datos!D$8,Datos!D$9,Tarifas!$C17,Datos!D$10,Tarifas!$D17,Datos!D$11,Tarifas!$E17,Datos!D$12,Tarifas!$F17,Datos!D$13,Tarifas!$G17,Tarifas!$L17,Datos!D$16,Datos!D$17,Datos!D$19,Datos!D$20,Datos!D$22,Datos!D$23,Datos!D$25,Datos!D$28,Datos!D$31,Tarifas!$H17,Tarifas!$I17,Tarifas!$J17,Datos!D$15,Tarifas!$K17,Datos!$B$3,Datos!$B$1,Datos!$B$4,Tarifas!$M17,Tarifas!$N17,Tarifas!$O17,Tarifas!$P17,Tarifas!$Q17,Datos!$B$2) -> 49.20985403 | F15: =FACTURA(ROW(), COLUMN(),Datos!E$8,Datos!E$9,Tarifas!$C17,Datos!E$10,Tarifas!$D17,Datos!E$11,Tarifas!$E17,Datos!E$12,Tarifas!$F17,Datos!E$13,Tarifas!$G17,Tarifas!$L17,Datos!E$16,Datos!E$17,Datos!E$19,Datos!E$20,Datos!E$22,Datos!E$23,Datos!E$25,Datos!E$28,Datos!E$31,Tarifas!$H17,Tarifas!$I17,Tarifas!$J17,Datos!E$15,Tarifas!$K17,Datos!$B$3,Datos!$B$1,Datos!$B$4,Tarifas!$M17,Tarifas!$N17,Tarifas!$O17,Tarifas!$P17,Tarifas!$Q17,Datos!$B$2) -> 36.47626926 | G15: =FACTURA(ROW(), COLUMN(),Datos!F$8,Datos!F$9,Tarifas!$C17,Datos!F$10,Tarifas!$D17,Datos!F$11,Tarifas!$E17,Datos!F$12,Tarifas!$F17,Datos!F$13,Tarifas!$G17,Tarifas!$L17,Datos!F$16,Datos!F$17,Datos!F$19,Datos!F$20,Datos!F$22,Datos!F$23,Datos!F$25,Datos!F$28,Datos!F$31,Tarifas!$H17,Tarifas!$I17,Tarifas!$J17,Datos!F$15,Tarifas!$K17,Datos!$B$3,Datos!$B$1,Datos!$B$4,Tarifas!$M17,Tarifas!$N17,Tarifas!$O17,Tarifas!$P17,Tarifas!$Q17,Datos!$B$2) -> 49.20985403 | H15: =FACTURA(ROW(), COLUMN(),Datos!G$8,Datos!G$9,Tarifas!$C17,Datos!G$10,Tarifas!$D17,Datos!G$11,Tarifas!$E17,Datos!G$12,Tarifas!$F17,Datos!G$13,Tarifas!$G17,Tarifas!$L17,Datos!G$16,Datos!G$17,Datos!G$19,Datos!G$20,Datos!G$22,Datos!G$23,Datos!G$25,Datos!G$28,Datos!G$31,Tarifas!$H17,Tarifas!$I17,Tarifas!$J17,Datos!G$15,Tarifas!$K17,Datos!$B$3,Datos!$B$1,Datos!$B$4,Tarifas!$M17,Tarifas!$N17,Tarifas!$O17,Tarifas!$P17,Tarifas!$Q17,Datos!$B$2) -> 36.47626926 | I15: =FACTURA(ROW(), COLUMN(),Datos!H$8,Datos!H$9,Tarifas!$C17,Datos!H$10,Tarifas!$D17,Datos!H$11,Tarifas!$E17,Datos!H$12,Tarifas!$F17,Datos!H$13,Tarifas!$G17,Tarifas!$L17,Datos!H$16,Datos!H$17,Datos!H$19,Datos!H$20,Datos!H$22,Datos!H$23,Datos!H$25,Datos!H$28,Datos!H$31,Tarifas!$H17,Tarifas!$I17,Tarifas!$J17,Datos!H$15,Tarifas!$K17,Datos!$B$3,Datos!$B$1,Datos!$B$4,Tarifas!$M17,Tarifas!$N17,Tarifas!$O17,Tarifas!$P17,Tarifas!$Q17,Datos!$B$2) -> 49.20985403 | J15: =FACTURA(ROW(), COLUMN(),Datos!I$8,Datos!I$9,Tarifas!$C17,Datos!I$10,Tarifas!$D17,Datos!I$11,Tarifas!$E17,Datos!I$12,Tarifas!$F17,Datos!I$13,Tarifas!$G17,Tarifas!$L17,Datos!I$16,Datos!I$17,Datos!I$19,Datos!I$20,Datos!I$22,Datos!I$23,Datos!I$25,Datos!I$28,Datos!I$31,Tarifas!$H17,Tarifas!$I17,Tarifas!$J17,Datos!I$15,Tarifas!$K17,Datos!$B$3,Datos!$B$1,Datos!$B$4,Tarifas!$M17,Tarifas!$N17,Tarifas!$O17,Tarifas!$P17,Tarifas!$Q17,Datos!$B$2) -> 36.47626926 | K15: =FACTURA(ROW(), COLUMN(),Datos!J$8,Datos!J$9,Tarifas!$C17,Datos!J$10,Tarifas!$D17,Datos!J$11,Tarifas!$E17,Datos!J$12,Tarifas!$F17,Datos!J$13,Tarifas!$G17,Tarifas!$L17,Datos!J$16,Datos!J$17,Datos!J$19,Datos!J$20,Datos!J$22,Datos!J$23,Datos!J$25,Datos!J$28,Datos!J$31,Tarifas!$H17,Tarifas!$I17,Tarifas!$J17,Datos!J$15,Tarifas!$K17,Datos!$B$3,Datos!$B$1,Datos!$B$4,Tarifas!$M17,Tarifas!$N17,Tarifas!$O17,Tarifas!$P17,Tarifas!$Q17,Datos!$B$2) -> 49.20985403 | L15: =FACTURA(ROW(), COLUMN(),Datos!K$8,Datos!K$9,Tarifas!$C17,Datos!K$10,Tarifas!$D17,Datos!K$11,Tarifas!$E17,Datos!K$12,Tarifas!$F17,Datos!K$13,Tarifas!$G17,Tarifas!$L17,Datos!K$16,Datos!K$17,Datos!K$19,Datos!K$20,Datos!K$22,Datos!K$23,Datos!K$25,Datos!K$28,Datos!K$31,Tarifas!$H17,Tarifas!$I17,Tarifas!$J17,Datos!K$15,Tarifas!$K17,Datos!$B$3,Datos!$B$1,Datos!$B$4,Tarifas!$M17,Tarifas!$N17,Tarifas!$O17,Tarifas!$P17,Tarifas!$Q17,Datos!$B$2) -> 36.47626926 | M15: =FACTURA(ROW(), COLUMN(),Datos!L$8,Datos!L$9,Tarifas!$C17,Datos!L$10,Tarifas!$D17,Datos!L$11,Tarifas!$E17,Datos!L$12,Tarifas!$F17,Datos!L$13,Tarifas!$G17,Tarifas!$L17,Datos!L$16,Datos!L$17,Datos!L$19,Datos!L$20,Datos!L$22,Datos!L$23,Datos!L$25,Datos!L$28,Datos!L$31,Tarifas!$H17,Tarifas!$I17,Tarifas!$J17,Datos!L$15,Tarifas!$K17,Datos!$B$3,Datos!$B$1,Datos!$B$4,Tarifas!$M17,Tarifas!$N17,Tarifas!$O17,Tarifas!$P17,Tarifas!$Q17,Datos!$B$2) -> 49.20985403 | N15: =FACTURA(ROW(), COLUMN(),Datos!M$8,Datos!M$9,Tarifas!$C17,Datos!M$10,Tarifas!$D17,Datos!M$11,Tarifas!$E17,Datos!M$12,Tarifas!$F17,Datos!M$13,Tarifas!$G17,Tarifas!$L17,Datos!M$16,Datos!M$17,Datos!M$19,Datos!M$20,Datos!M$22,Datos!M$23,Datos!M$25,Datos!M$28,Datos!M$31,Tarifas!$H17,Tarifas!$I17,Tarifas!$J17,Datos!M$15,Tarifas!$K17,Datos!$B$3,Datos!$B$1,Datos!$B$4,Tarifas!$M17,Tarifas!$N17,Tarifas!$O17,Tarifas!$P17,Tarifas!$Q17,Datos!$B$2) -> 36.47626926 | O15: =FACTURA(ROW(), COLUMN(),Datos!N$8,Datos!N$9,Tarifas!$C17,Datos!N$10,Tarifas!$D17,Datos!N$11,Tarifas!$E17,Datos!N$12,Tarifas!$F17,Datos!N$13,Tarifas!$G17,Tarifas!$L17,Datos!N$16,Datos!N$17,Datos!N$19,Datos!N$20,Datos!N$22,Datos!N$23,Datos!N$25,Datos!N$28,Datos!N$31,Tarifas!$H17,Tarifas!$I17,Tarifas!$J17,Datos!N$15,Tarifas!$K17,Datos!$B$3,Datos!$B$1,Datos!$B$4,Tarifas!$M17,Tarifas!$N17,Tarifas!$O17,Tarifas!$P17,Tarifas!$Q17,Datos!$B$2) -> 49.20985403 | P15: =FACTURA(ROW(), COLUMN(),Datos!O$8,Datos!O$9,Tarifas!$C17,Datos!O$10,Tarifas!$D17,Datos!O$11,Tarifas!$E17,Datos!O$12,Tarifas!$F17,Datos!O$13,Tarifas!$G17,Tarifas!$L17,Datos!O$16,Datos!O$17,Datos!O$19,Datos!O$20,Datos!O$22,Datos!O$23,Datos!O$25,Datos!O$28,Datos!O$31,Tarifas!$H17,Tarifas!$I17,Tarifas!$J17,Datos!O$15,Tarifas!$K17,Datos!$B$3,Datos!$B$1,Datos!$B$4,Tarifas!$M17,Tarifas!$N17,Tarifas!$O17,Tarifas!$P17,Tarifas!$Q17,Datos!$B$2) -> 36.47626926 | Q15: =IF(Tarifas!R17="Sí","Sí","") -> Sí
A16: =IF(Tarifas!A18="","",Tarifas!A18) -> Endesa | B16: =IF(Tarifas!B18="","",Tarifas!B18) -> Conecta | C16: 518.062628 | E16: =FACTURA(ROW(), COLUMN(),Datos!D$8,Datos!D$9,Tarifas!$C18,Datos!D$10,Tarifas!$D18,Datos!D$11,Tarifas!$E18,Datos!D$12,Tarifas!$F18,Datos!D$13,Tarifas!$G18,Tarifas!$L18,Datos!D$16,Datos!D$17,Datos!D$19,Datos!D$20,Datos!D$22,Datos!D$23,Datos!D$25,Datos!D$28,Datos!D$31,Tarifas!$H18,Tarifas!$I18,Tarifas!$J18,Datos!D$15,Tarifas!$K18,Datos!$B$3,Datos!$B$1,Datos!$B$4,Tarifas!$M18,Tarifas!$N18,Tarifas!$O18,Tarifas!$P18,Tarifas!$Q18,Datos!$B$2) -> 49.43190135 | F16: =FACTURA(ROW(), COLUMN(),Datos!E$8,Datos!E$9,Tarifas!$C18,Datos!E$10,Tarifas!$D18,Datos!E$11,Tarifas!$E18,Datos!E$12,Tarifas!$F18,Datos!E$13,Tarifas!$G18,Tarifas!$L18,Datos!E$16,Datos!E$17,Datos!E$19,Datos!E$20,Datos!E$22,Datos!E$23,Datos!E$25,Datos!E$28,Datos!E$31,Tarifas!$H18,Tarifas!$I18,Tarifas!$J18,Datos!E$15,Tarifas!$K18,Datos!$B$3,Datos!$B$1,Datos!$B$4,Tarifas!$M18,Tarifas!$N18,Tarifas!$O18,Tarifas!$P18,Tarifas!$Q18,Datos!$B$2) -> 36.91186999 | G16: =FACTURA(ROW(), COLUMN(),Datos!F$8,Datos!F$9,Tarifas!$C18,Datos!F$10,Tarifas!$D18,Datos!F$11,Tarifas!$E18,Datos!F$12,Tarifas!$F18,Datos!F$13,Tarifas!$G18,Tarifas!$L18,Datos!F$16,Datos!F$17,Datos!F$19,Datos!F$20,Datos!F$22,Datos!F$23,Datos!F$25,Datos!F$28,Datos!F$31,Tarifas!$H18,Tarifas!$I18,Tarifas!$J18,Datos!F$15,Tarifas!$K18,Datos!$B$3,Datos!$B$1,Datos!$B$4,Tarifas!$M18,Tarifas!$N18,Tarifas!$O18,Tarifas!$P18,Tarifas!$Q18,Datos!$B$2) -> 49.43190135 | H16: =FACTURA(ROW(), COLUMN(),Datos!G$8,Datos!G$9,Tarifas!$C18,Datos!G$10,Tarifas!$D18,Datos!G$11,Tarifas!$E18,Datos!G$12,Tarifas!$F18,Datos!G$13,Tarifas!$G18,Tarifas!$L18,Datos!G$16,Datos!G$17,Datos!G$19,Datos!G$20,Datos!G$22,Datos!G$23,Datos!G$25,Datos!G$28,Datos!G$31,Tarifas!$H18,Tarifas!$I18,Tarifas!$J18,Datos!G$15,Tarifas!$K18,Datos!$B$3,Datos!$B$1,Datos!$B$4,Tarifas!$M18,Tarifas!$N18,Tarifas!$O18,Tarifas!$P18,Tarifas!$Q18,Datos!$B$2) -> 36.91186999 | I16: =FACTURA(ROW(), COLUMN(),Datos!H$8,Datos!H$9,Tarifas!$C18,Datos!H$10,Tarifas!$D18,Datos!H$11,Tarifas!$E18,Datos!H$12,Tarifas!$F18,Datos!H$13,Tarifas!$G18,Tarifas!$L18,Datos!H$16,Datos!H$17,Datos!H$19,Datos!H$20,Datos!H$22,Datos!H$23,Datos!H$25,Datos!H$28,Datos!H$31,Tarifas!$H18,Tarifas!$I18,Tarifas!$J18,Datos!H$15,Tarifas!$K18,Datos!$B$3,Datos!$B$1,Datos!$B$4,Tarifas!$M18,Tarifas!$N18,Tarifas!$O18,Tarifas!$P18,Tarifas!$Q18,Datos!$B$2) -> 49.43190135 | J16: =FACTURA(ROW(), COLUMN(),Datos!I$8,Datos!I$9,Tarifas!$C18,Datos!I$10,Tarifas!$D18,Datos!I$11,Tarifas!$E18,Datos!I$12,Tarifas!$F18,Datos!I$13,Tarifas!$G18,Tarifas!$L18,Datos!I$16,Datos!I$17,Datos!I$19,Datos!I$20,Datos!I$22,Datos!I$23,Datos!I$25,Datos!I$28,Datos!I$31,Tarifas!$H18,Tarifas!$I18,Tarifas!$J18,Datos!I$15,Tarifas!$K18,Datos!$B$3,Datos!$B$1,Datos!$B$4,Tarifas!$M18,Tarifas!$N18,Tarifas!$O18,Tarifas!$P18,Tarifas!$Q18,Datos!$B$2) -> 36.91186999 | K16: =FACTURA(ROW(), COLUMN(),Datos!J$8,Datos!J$9,Tarifas!$C18,Datos!J$10,Tarifas!$D18,Datos!J$11,Tarifas!$E18,Datos!J$12,Tarifas!$F18,Datos!J$13,Tarifas!$G18,Tarifas!$L18,Datos!J$16,Datos!J$17,Datos!J$19,Datos!J$20,Datos!J$22,Datos!J$23,Datos!J$25,Datos!J$28,Datos!J$31,Tarifas!$H18,Tarifas!$I18,Tarifas!$J18,Datos!J$15,Tarifas!$K18,Datos!$B$3,Datos!$B$1,Datos!$B$4,Tarifas!$M18,Tarifas!$N18,Tarifas!$O18,Tarifas!$P18,Tarifas!$Q18,Datos!$B$2) -> 49.43190135 | L16: =FACTURA(ROW(), COLUMN(),Datos!K$8,Datos!K$9,Tarifas!$C18,Datos!K$10,Tarifas!$D18,Datos!K$11,Tarifas!$E18,Datos!K$12,Tarifas!$F18,Datos!K$13,Tarifas!$G18,Tarifas!$L18,Datos!K$16,Datos!K$17,Datos!K$19,Datos!K$20,Datos!K$22,Datos!K$23,Datos!K$25,Datos!K$28,Datos!K$31,Tarifas!$H18,Tarifas!$I18,Tarifas!$J18,Datos!K$15,Tarifas!$K18,Datos!$B$3,Datos!$B$1,Datos!$B$4,Tarifas!$M18,Tarifas!$N18,Tarifas!$O18,Tarifas!$P18,Tarifas!$Q18,Datos!$B$2) -> 36.91186999 | M16: =FACTURA(ROW(), COLUMN(),Datos!L$8,Datos!L$9,Tarifas!$C18,Datos!L$10,Tarifas!$D18,Datos!L$11,Tarifas!$E18,Datos!L$12,Tarifas!$F18,Datos!L$13,Tarifas!$G18,Tarifas!$L18,Datos!L$16,Datos!L$17,Datos!L$19,Datos!L$20,Datos!L$22,Datos!L$23,Datos!L$25,Datos!L$28,Datos!L$31,Tarifas!$H18,Tarifas!$I18,Tarifas!$J18,Datos!L$15,Tarifas!$K18,Datos!$B$3,Datos!$B$1,Datos!$B$4,Tarifas!$M18,Tarifas!$N18,Tarifas!$O18,Tarifas!$P18,Tarifas!$Q18,Datos!$B$2) -> 49.43190135 | N16: =FACTURA(ROW(), COLUMN(),Datos!M$8,Datos!M$9,Tarifas!$C18,Datos!M$10,Tarifas!$D18,Datos!M$11,Tarifas!$E18,Datos!M$12,Tarifas!$F18,Datos!M$13,Tarifas!$G18,Tarifas!$L18,Datos!M$16,Datos!M$17,Datos!M$19,Datos!M$20,Datos!M$22,Datos!M$23,Datos!M$25,Datos!M$28,Datos!M$31,Tarifas!$H18,Tarifas!$I18,Tarifas!$J18,Datos!M$15,Tarifas!$K18,Datos!$B$3,Datos!$B$1,Datos!$B$4,Tarifas!$M18,Tarifas!$N18,Tarifas!$O18,Tarifas!$P18,Tarifas!$Q18,Datos!$B$2) -> 36.91186999 | O16: =FACTURA(ROW(), COLUMN(),Datos!N$8,Datos!N$9,Tarifas!$C18,Datos!N$10,Tarifas!$D18,Datos!N$11,Tarifas!$E18,Datos!N$12,Tarifas!$F18,Datos!N$13,Tarifas!$G18,Tarifas!$L18,Datos!N$16,Datos!N$17,Datos!N$19,Datos!N$20,Datos!N$22,Datos!N$23,Datos!N$25,Datos!N$28,Datos!N$31,Tarifas!$H18,Tarifas!$I18,Tarifas!$J18,Datos!N$15,Tarifas!$K18,Datos!$B$3,Datos!$B$1,Datos!$B$4,Tarifas!$M18,Tarifas!$N18,Tarifas!$O18,Tarifas!$P18,Tarifas!$Q18,Datos!$B$2) -> 49.43190135 | P16: =FACTURA(ROW(), COLUMN(),Datos!O$8,Datos!O$9,Tarifas!$C18,Datos!O$10,Tarifas!$D18,Datos!O$11,Tarifas!$E18,Datos!O$12,Tarifas!$F18,Datos!O$13,Tarifas!$G18,Tarifas!$L18,Datos!O$16,Datos!O$17,Datos!O$19,Datos!O$20,Datos!O$22,Datos!O$23,Datos!O$25,Datos!O$28,Datos!O$31,Tarifas!$H18,Tarifas!$I18,Tarifas!$J18,Datos!O$15,Tarifas!$K18,Datos!$B$3,Datos!$B$1,Datos!$B$4,Tarifas!$M18,Tarifas!$N18,Tarifas!$O18,Tarifas!$P18,Tarifas!$Q18,Datos!$B$2) -> 36.91186999 | Q16: =IF(Tarifas!R18="Sí","Sí","") -> Sí
A17: =IF(Tarifas!A19="","",Tarifas!A19) -> Endesa | B17: =IF(Tarifas!B19="","",Tarifas!B19) -> Solar Simply | C17: 400.5648467 | E17: =FACTURA(ROW(), COLUMN(),Datos!D$8,Datos!D$9,Tarifas!$C19,Datos!D$10,Tarifas!$D19,Datos!D$11,Tarifas!$E19,Datos!D$12,Tarifas!$F19,Datos!D$13,Tarifas!$G19,Tarifas!$L19,Datos!D$16,Datos!D$17,Datos!D$19,Datos!D$20,Datos!D$22,Datos!D$23,Datos!D$25,Datos!D$28,Datos!D$31,Tarifas!$H19,Tarifas!$I19,Tarifas!$J19,Datos!D$15,Tarifas!$K19,Datos!$B$3,Datos!$B$1,Datos!$B$4,Tarifas!$M19,Tarifas!$N19,Tarifas!$O19,Tarifas!$P19,Tarifas!$Q19,Datos!$B$2) -> 22.69525403 | F17: =FACTURA(ROW(), COLUMN(),Datos!E$8,Datos!E$9,Tarifas!$C19,Datos!E$10,Tarifas!$D19,Datos!E$11,Tarifas!$E19,Datos!E$12,Tarifas!$F19,Datos!E$13,Tarifas!$G19,Tarifas!$L19,Datos!E$16,Datos!E$17,Datos!E$19,Datos!E$20,Datos!E$22,Datos!E$23,Datos!E$25,Datos!E$28,Datos!E$31,Tarifas!$H19,Tarifas!$I19,Tarifas!$J19,Datos!E$15,Tarifas!$K19,Datos!$B$3,Datos!$B$1,Datos!$B$4,Tarifas!$M19,Tarifas!$N19,Tarifas!$O19,Tarifas!$P19,Tarifas!$Q19,Datos!$B$2) -> 39.40775376 | G17: =FACTURA(ROW(), COLUMN(),Datos!F$8,Datos!F$9,Tarifas!$C19,Datos!F$10,Tarifas!$D19,Datos!F$11,Tarifas!$E19,Datos!F$12,Tarifas!$F19,Datos!F$13,Tarifas!$G19,Tarifas!$L19,Datos!F$16,Datos!F$17,Datos!F$19,Datos!F$20,Datos!F$22,Datos!F$23,Datos!F$25,Datos!F$28,Datos!F$31,Tarifas!$H19,Tarifas!$I19,Tarifas!$J19,Datos!F$15,Tarifas!$K19,Datos!$B$3,Datos!$B$1,Datos!$B$4,Tarifas!$M19,Tarifas!$N19,Tarifas!$O19,Tarifas!$P19,Tarifas!$Q19,Datos!$B$2) -> 22.69525403 | H17: =FACTURA(ROW(), COLUMN(),Datos!G$8,Datos!G$9,Tarifas!$C19,Datos!G$10,Tarifas!$D19,Datos!G$11,Tarifas!$E19,Datos!G$12,Tarifas!$F19,Datos!G$13,Tarifas!$G19,Tarifas!$L19,Datos!G$16,Datos!G$17,Datos!G$19,Datos!G$20,Datos!G$22,Datos!G$23,Datos!G$25,Datos!G$28,Datos!G$31,Tarifas!$H19,Tarifas!$I19,Tarifas!$J19,Datos!G$15,Tarifas!$K19,Datos!$B$3,Datos!$B$1,Datos!$B$4,Tarifas!$M19,Tarifas!$N19,Tarifas!$O19,Tarifas!$P19,Tarifas!$Q19,Datos!$B$2) -> 39.40775376 | I17: =FACTURA(ROW(), COLUMN(),Datos!H$8,Datos!H$9,Tarifas!$C19,Datos!H$10,Tarifas!$D19,Datos!H$11,Tarifas!$E19,Datos!H$12,Tarifas!$F19,Datos!H$13,Tarifas!$G19,Tarifas!$L19,Datos!H$16,Datos!H$17,Datos!H$19,Datos!H$20,Datos!H$22,Datos!H$23,Datos!H$25,Datos!H$28,Datos!H$31,Tarifas!$H19,Tarifas!$I19,Tarifas!$J19,Datos!H$15,Tarifas!$K19,Datos!$B$3,Datos!$B$1,Datos!$B$4,Tarifas!$M19,Tarifas!$N19,Tarifas!$O19,Tarifas!$P19,Tarifas!$Q19,Datos!$B$2) -> 22.69525403 | J17: =FACTURA(ROW(), COLUMN(),Datos!I$8,Datos!I$9,Tarifas!$C19,Datos!I$10,Tarifas!$D19,Datos!I$11,Tarifas!$E19,Datos!I$12,Tarifas!$F19,Datos!I$13,Tarifas!$G19,Tarifas!$L19,Datos!I$16,Datos!I$17,Datos!I$19,Datos!I$20,Datos!I$22,Datos!I$23,Datos!I$25,Datos!I$28,Datos!I$31,Tarifas!$H19,Tarifas!$I19,Tarifas!$J19,Datos!I$15,Tarifas!$K19,Datos!$B$3,Datos!$B$1,Datos!$B$4,Tarifas!$M19,Tarifas!$N19,Tarifas!$O19,Tarifas!$P19,Tarifas!$Q19,Datos!$B$2) -> 39.40775376 | K17: =FACTURA(ROW(), COLUMN(),Datos!J$8,Datos!J$9,Tarifas!$C19,Datos!J$10,Tarifas!$D19,Datos!J$11,Tarifas!$E19,Datos!J$12,Tarifas!$F19,Datos!J$13,Tarifas!$G19,Tarifas!$L19,Datos!J$16,Datos!J$17,Datos!J$19,Datos!J$20,Datos!J$22,Datos!J$23,Datos!J$25,Datos!J$28,Datos!J$31,Tarifas!$H19,Tarifas!$I19,Tarifas!$J19,Datos!J$15,Tarifas!$K19,Datos!$B$3,Datos!$B$1,Datos!$B$4,Tarifas!$M19,Tarifas!$N19,Tarifas!$O19,Tarifas!$P19,Tarifas!$Q19,Datos!$B$2) -> 22.69525403 | L17: =FACTURA(ROW(), COLUMN(),Datos!K$8,Datos!K$9,Tarifas!$C19,Datos!K$10,Tarifas!$D19,Datos!K$11,Tarifas!$E19,Datos!K$12,Tarifas!$F19,Datos!K$13,Tarifas!$G19,Tarifas!$L19,Datos!K$16,Datos!K$17,Datos!K$19,Datos!K$20,Datos!K$22,Datos!K$23,Datos!K$25,Datos!K$28,Datos!K$31,Tarifas!$H19,Tarifas!$I19,Tarifas!$J19,Datos!K$15,Tarifas!$K19,Datos!$B$3,Datos!$B$1,Datos!$B$4,Tarifas!$M19,Tarifas!$N19,Tarifas!$O19,Tarifas!$P19,Tarifas!$Q19,Datos!$B$2) -> 39.40775376 | M17: =FACTURA(ROW(), COLUMN(),Datos!L$8,Datos!L$9,Tarifas!$C19,Datos!L$10,Tarifas!$D19,Datos!L$11,Tarifas!$E19,Datos!L$12,Tarifas!$F19,Datos!L$13,Tarifas!$G19,Tarifas!$L19,Datos!L$16,Datos!L$17,Datos!L$19,Datos!L$20,Datos!L$22,Datos!L$23,Datos!L$25,Datos!L$28,Datos!L$31,Tarifas!$H19,Tarifas!$I19,Tarifas!$J19,Datos!L$15,Tarifas!$K19,Datos!$B$3,Datos!$B$1,Datos!$B$4,Tarifas!$M19,Tarifas!$N19,Tarifas!$O19,Tarifas!$P19,Tarifas!$Q19,Datos!$B$2) -> 31.41865403 | N17: =FACTURA(ROW(), COLUMN(),Datos!M$8,Datos!M$9,Tarifas!$C19,Datos!M$10,Tarifas!$D19,Datos!M$11,Tarifas!$E19,Datos!M$12,Tarifas!$F19,Datos!M$13,Tarifas!$G19,Tarifas!$L19,Datos!M$16,Datos!M$17,Datos!M$19,Datos!M$20,Datos!M$22,Datos!M$23,Datos!M$25,Datos!M$28,Datos!M$31,Tarifas!$H19,Tarifas!$I19,Tarifas!$J19,Datos!M$15,Tarifas!$K19,Datos!$B$3,Datos!$B$1,Datos!$B$4,Tarifas!$M19,Tarifas!$N19,Tarifas!$O19,Tarifas!$P19,Tarifas!$Q19,Datos!$B$2) -> 39.40775376 | O17: =FACTURA(ROW(), COLUMN(),Datos!N$8,Datos!N$9,Tarifas!$C19,Datos!N$10,Tarifas!$D19,Datos!N$11,Tarifas!$E19,Datos!N$12,Tarifas!$F19,Datos!N$13,Tarifas!$G19,Tarifas!$L19,Datos!N$16,Datos!N$17,Datos!N$19,Datos!N$20,Datos!N$22,Datos!N$23,Datos!N$25,Datos!N$28,Datos!N$31,Tarifas!$H19,Tarifas!$I19,Tarifas!$J19,Datos!N$15,Tarifas!$K19,Datos!$B$3,Datos!$B$1,Datos!$B$4,Tarifas!$M19,Tarifas!$N19,Tarifas!$O19,Tarifas!$P19,Tarifas!$Q19,Datos!$B$2) -> 41.91865403 | P17: =FACTURA(ROW(), COLUMN(),Datos!O$8,Datos!O$9,Tarifas!$C19,Datos!O$10,Tarifas!$D19,Datos!O$11,Tarifas!$E19,Datos!O$12,Tarifas!$F19,Datos!O$13,Tarifas!$G19,Tarifas!$L19,Datos!O$16,Datos!O$17,Datos!O$19,Datos!O$20,Datos!O$22,Datos!O$23,Datos!O$25,Datos!O$28,Datos!O$31,Tarifas!$H19,Tarifas!$I19,Tarifas!$J19,Datos!O$15,Tarifas!$K19,Datos!$B$3,Datos!$B$1,Datos!$B$4,Tarifas!$M19,Tarifas!$N19,Tarifas!$O19,Tarifas!$P19,Tarifas!$Q19,Datos!$B$2) -> 39.40775376 | Q17: =IF(Tarifas!R19="Sí","Sí","") -> Sí
A18: =IF(Tarifas!A20="","",Tarifas!A20) -> Endesa | B18: =IF(Tarifas!B20="","",Tarifas!B20) -> Tempo Happy 50 horas (al mes) | E18: =FACTURA(ROW(), COLUMN(),Datos!D$8,Datos!D$9,Tarifas!$C20,Datos!D$10,Tarifas!$D20,Datos!D$11,Tarifas!$E20,Datos!D$12,Tarifas!$F20,Datos!D$13,Tarifas!$G20,Tarifas!$L20,Datos!D$16,Datos!D$17,Datos!D$19,Datos!D$20,Datos!D$22,Datos!D$23,Datos!D$25,Datos!D$28,Datos!D$31,Tarifas!$H20,Tarifas!$I20,Tarifas!$J20,Datos!D$15,Tarifas!$K20,Datos!$B$3,Datos!$B$1,Datos!$B$4,Tarifas!$M20,Tarifas!$N20,Tarifas!$O20,Tarifas!$P20,Tarifas!$Q20,Datos!$B$2) ->  | F18: =FACTURA(ROW(), COLUMN(),Datos!E$8,Datos!E$9,Tarifas!$C20,Datos!E$10,Tarifas!$D20,Datos!E$11,Tarifas!$E20,Datos!E$12,Tarifas!$F20,Datos!E$13,Tarifas!$G20,Tarifas!$L20,Datos!E$16,Datos!E$17,Datos!E$19,Datos!E$20,Datos!E$22,Datos!E$23,Datos!E$25,Datos!E$28,Datos!E$31,Tarifas!$H20,Tarifas!$I20,Tarifas!$J20,Datos!E$15,Tarifas!$K20,Datos!$B$3,Datos!$B$1,Datos!$B$4,Tarifas!$M20,Tarifas!$N20,Tarifas!$O20,Tarifas!$P20,Tarifas!$Q20,Datos!$B$2) ->  | G18: =FACTURA(ROW(), COLUMN(),Datos!F$8,Datos!F$9,Tarifas!$C20,Datos!F$10,Tarifas!$D20,Datos!F$11,Tarifas!$E20,Datos!F$12,Tarifas!$F20,Datos!F$13,Tarifas!$G20,Tarifas!$L20,Datos!F$16,Datos!F$17,Datos!F$19,Datos!F$20,Datos!F$22,Datos!F$23,Datos!F$25,Datos!F$28,Datos!F$31,Tarifas!$H20,Tarifas!$I20,Tarifas!$J20,Datos!F$15,Tarifas!$K20,Datos!$B$3,Datos!$B$1,Datos!$B$4,Tarifas!$M20,Tarifas!$N20,Tarifas!$O20,Tarifas!$P20,Tarifas!$Q20,Datos!$B$2) ->  | H18: =FACTURA(ROW(), COLUMN(),Datos!G$8,Datos!G$9,Tarifas!$C20,Datos!G$10,Tarifas!$D20,Datos!G$11,Tarifas!$E20,Datos!G$12,Tarifas!$F20,Datos!G$13,Tarifas!$G20,Tarifas!$L20,Datos!G$16,Datos!G$17,Datos!G$19,Datos!G$20,Datos!G$22,Datos!G$23,Datos!G$25,Datos!G$28,Datos!G$31,Tarifas!$H20,Tarifas!$I20,Tarifas!$J20,Datos!G$15,Tarifas!$K20,Datos!$B$3,Datos!$B$1,Datos!$B$4,Tarifas!$M20,Tarifas!$N20,Tarifas!$O20,Tarifas!$P20,Tarifas!$Q20,Datos!$B$2) ->  | I18: =FACTURA(ROW(), COLUMN(),Datos!H$8,Datos!H$9,Tarifas!$C20,Datos!H$10,Tarifas!$D20,Datos!H$11,Tarifas!$E20,Datos!H$12,Tarifas!$F20,Datos!H$13,Tarifas!$G20,Tarifas!$L20,Datos!H$16,Datos!H$17,Datos!H$19,Datos!H$20,Datos!H$22,Datos!H$23,Datos!H$25,Datos!H$28,Datos!H$31,Tarifas!$H20,Tarifas!$I20,Tarifas!$J20,Datos!H$15,Tarifas!$K20,Datos!$B$3,Datos!$B$1,Datos!$B$4,Tarifas!$M20,Tarifas!$N20,Tarifas!$O20,Tarifas!$P20,Tarifas!$Q20,Datos!$B$2) ->  | J18: =FACTURA(ROW(), COLUMN(),Datos!I$8,Datos!I$9,Tarifas!$C20,Datos!I$10,Tarifas!$D20,Datos!I$11,Tarifas!$E20,Datos!I$12,Tarifas!$F20,Datos!I$13,Tarifas!$G20,Tarifas!$L20,Datos!I$16,Datos!I$17,Datos!I$19,Datos!I$20,Datos!I$22,Datos!I$23,Datos!I$25,Datos!I$28,Datos!I$31,Tarifas!$H20,Tarifas!$I20,Tarifas!$J20,Datos!I$15,Tarifas!$K20,Datos!$B$3,Datos!$B$1,Datos!$B$4,Tarifas!$M20,Tarifas!$N20,Tarifas!$O20,Tarifas!$P20,Tarifas!$Q20,Datos!$B$2) ->  | K18: =FACTURA(ROW(), COLUMN(),Datos!J$8,Datos!J$9,Tarifas!$C20,Datos!J$10,Tarifas!$D20,Datos!J$11,Tarifas!$E20,Datos!J$12,Tarifas!$F20,Datos!J$13,Tarifas!$G20,Tarifas!$L20,Datos!J$16,Datos!J$17,Datos!J$19,Datos!J$20,Datos!J$22,Datos!J$23,Datos!J$25,Datos!J$28,Datos!J$31,Tarifas!$H20,Tarifas!$I20,Tarifas!$J20,Datos!J$15,Tarifas!$K20,Datos!$B$3,Datos!$B$1,Datos!$B$4,Tarifas!$M20,Tarifas!$N20,Tarifas!$O20,Tarifas!$P20,Tarifas!$Q20,Datos!$B$2) ->  | L18: =FACTURA(ROW(), COLUMN(),Datos!K$8,Datos!K$9,Tarifas!$C20,Datos!K$10,Tarifas!$D20,Datos!K$11,Tarifas!$E20,Datos!K$12,Tarifas!$F20,Datos!K$13,Tarifas!$G20,Tarifas!$L20,Datos!K$16,Datos!K$17,Datos!K$19,Datos!K$20,Datos!K$22,Datos!K$23,Datos!K$25,Datos!K$28,Datos!K$31,Tarifas!$H20,Tarifas!$I20,Tarifas!$J20,Datos!K$15,Tarifas!$K20,Datos!$B$3,Datos!$B$1,Datos!$B$4,Tarifas!$M20,Tarifas!$N20,Tarifas!$O20,Tarifas!$P20,Tarifas!$Q20,Datos!$B$2) ->  | M18: =FACTURA(ROW(), COLUMN(),Datos!L$8,Datos!L$9,Tarifas!$C20,Datos!L$10,Tarifas!$D20,Datos!L$11,Tarifas!$E20,Datos!L$12,Tarifas!$F20,Datos!L$13,Tarifas!$G20,Tarifas!$L20,Datos!L$16,Datos!L$17,Datos!L$19,Datos!L$20,Datos!L$22,Datos!L$23,Datos!L$25,Datos!L$28,Datos!L$31,Tarifas!$H20,Tarifas!$I20,Tarifas!$J20,Datos!L$15,Tarifas!$K20,Datos!$B$3,Datos!$B$1,Datos!$B$4,Tarifas!$M20,Tarifas!$N20,Tarifas!$O20,Tarifas!$P20,Tarifas!$Q20,Datos!$B$2) ->  | N18: =FACTURA(ROW(), COLUMN(),Datos!M$8,Datos!M$9,Tarifas!$C20,Datos!M$10,Tarifas!$D20,Datos!M$11,Tarifas!$E20,Datos!M$12,Tarifas!$F20,Datos!M$13,Tarifas!$G20,Tarifas!$L20,Datos!M$16,Datos!M$17,Datos!M$19,Datos!M$20,Datos!M$22,Datos!M$23,Datos!M$25,Datos!M$28,Datos!M$31,Tarifas!$H20,Tarifas!$I20,Tarifas!$J20,Datos!M$15,Tarifas!$K20,Datos!$B$3,Datos!$B$1,Datos!$B$4,Tarifas!$M20,Tarifas!$N20,Tarifas!$O20,Tarifas!$P20,Tarifas!$Q20,Datos!$B$2) ->  | O18: =FACTURA(ROW(), COLUMN(),Datos!N$8,Datos!N$9,Tarifas!$C20,Datos!N$10,Tarifas!$D20,Datos!N$11,Tarifas!$E20,Datos!N$12,Tarifas!$F20,Datos!N$13,Tarifas!$G20,Tarifas!$L20,Datos!N$16,Datos!N$17,Datos!N$19,Datos!N$20,Datos!N$22,Datos!N$23,Datos!N$25,Datos!N$28,Datos!N$31,Tarifas!$H20,Tarifas!$I20,Tarifas!$J20,Datos!N$15,Tarifas!$K20,Datos!$B$3,Datos!$B$1,Datos!$B$4,Tarifas!$M20,Tarifas!$N20,Tarifas!$O20,Tarifas!$P20,Tarifas!$Q20,Datos!$B$2) ->  | P18: =FACTURA(ROW(), COLUMN(),Datos!O$8,Datos!O$9,Tarifas!$C20,Datos!O$10,Tarifas!$D20,Datos!O$11,Tarifas!$E20,Datos!O$12,Tarifas!$F20,Datos!O$13,Tarifas!$G20,Tarifas!$L20,Datos!O$16,Datos!O$17,Datos!O$19,Datos!O$20,Datos!O$22,Datos!O$23,Datos!O$25,Datos!O$28,Datos!O$31,Tarifas!$H20,Tarifas!$I20,Tarifas!$J20,Datos!O$15,Tarifas!$K20,Datos!$B$3,Datos!$B$1,Datos!$B$4,Tarifas!$M20,Tarifas!$N20,Tarifas!$O20,Tarifas!$P20,Tarifas!$Q20,Datos!$B$2) ->  | Q18: =IF(Tarifas!R20="Sí","Sí","") -> Sí
A19: =IF(Tarifas!A21="","",Tarifas!A21) -> Endesa | B19: =IF(Tarifas!B21="","",Tarifas!B21) -> Tempo Happy 2 horas (al día) | E19: =FACTURA(ROW(), COLUMN(),Datos!D$8,Datos!D$9,Tarifas!$C21,Datos!D$10,Tarifas!$D21,Datos!D$11,Tarifas!$E21,Datos!D$12,Tarifas!$F21,Datos!D$13,Tarifas!$G21,Tarifas!$L21,Datos!D$16,Datos!D$17,Datos!D$19,Datos!D$20,Datos!D$22,Datos!D$23,Datos!D$25,Datos!D$28,Datos!D$31,Tarifas!$H21,Tarifas!$I21,Tarifas!$J21,Datos!D$15,Tarifas!$K21,Datos!$B$3,Datos!$B$1,Datos!$B$4,Tarifas!$M21,Tarifas!$N21,Tarifas!$O21,Tarifas!$P21,Tarifas!$Q21,Datos!$B$2) ->  | F19: =FACTURA(ROW(), COLUMN(),Datos!E$8,Datos!E$9,Tarifas!$C21,Datos!E$10,Tarifas!$D21,Datos!E$11,Tarifas!$E21,Datos!E$12,Tarifas!$F21,Datos!E$13,Tarifas!$G21,Tarifas!$L21,Datos!E$16,Datos!E$17,Datos!E$19,Datos!E$20,Datos!E$22,Datos!E$23,Datos!E$25,Datos!E$28,Datos!E$31,Tarifas!$H21,Tarifas!$I21,Tarifas!$J21,Datos!E$15,Tarifas!$K21,Datos!$B$3,Datos!$B$1,Datos!$B$4,Tarifas!$M21,Tarifas!$N21,Tarifas!$O21,Tarifas!$P21,Tarifas!$Q21,Datos!$B$2) ->  | G19: =FACTURA(ROW(), COLUMN(),Datos!F$8,Datos!F$9,Tarifas!$C21,Datos!F$10,Tarifas!$D21,Datos!F$11,Tarifas!$E21,Datos!F$12,Tarifas!$F21,Datos!F$13,Tarifas!$G21,Tarifas!$L21,Datos!F$16,Datos!F$17,Datos!F$19,Datos!F$20,Datos!F$22,Datos!F$23,Datos!F$25,Datos!F$28,Datos!F$31,Tarifas!$H21,Tarifas!$I21,Tarifas!$J21,Datos!F$15,Tarifas!$K21,Datos!$B$3,Datos!$B$1,Datos!$B$4,Tarifas!$M21,Tarifas!$N21,Tarifas!$O21,Tarifas!$P21,Tarifas!$Q21,Datos!$B$2) ->  | H19: =FACTURA(ROW(), COLUMN(),Datos!G$8,Datos!G$9,Tarifas!$C21,Datos!G$10,Tarifas!$D21,Datos!G$11,Tarifas!$E21,Datos!G$12,Tarifas!$F21,Datos!G$13,Tarifas!$G21,Tarifas!$L21,Datos!G$16,Datos!G$17,Datos!G$19,Datos!G$20,Datos!G$22,Datos!G$23,Datos!G$25,Datos!G$28,Datos!G$31,Tarifas!$H21,Tarifas!$I21,Tarifas!$J21,Datos!G$15,Tarifas!$K21,Datos!$B$3,Datos!$B$1,Datos!$B$4,Tarifas!$M21,Tarifas!$N21,Tarifas!$O21,Tarifas!$P21,Tarifas!$Q21,Datos!$B$2) ->  | I19: =FACTURA(ROW(), COLUMN(),Datos!H$8,Datos!H$9,Tarifas!$C21,Datos!H$10,Tarifas!$D21,Datos!H$11,Tarifas!$E21,Datos!H$12,Tarifas!$F21,Datos!H$13,Tarifas!$G21,Tarifas!$L21,Datos!H$16,Datos!H$17,Datos!H$19,Datos!H$20,Datos!H$22,Datos!H$23,Datos!H$25,Datos!H$28,Datos!H$31,Tarifas!$H21,Tarifas!$I21,Tarifas!$J21,Datos!H$15,Tarifas!$K21,Datos!$B$3,Datos!$B$1,Datos!$B$4,Tarifas!$M21,Tarifas!$N21,Tarifas!$O21,Tarifas!$P21,Tarifas!$Q21,Datos!$B$2) ->  | J19: =FACTURA(ROW(), COLUMN(),Datos!I$8,Datos!I$9,Tarifas!$C21,Datos!I$10,Tarifas!$D21,Datos!I$11,Tarifas!$E21,Datos!I$12,Tarifas!$F21,Datos!I$13,Tarifas!$G21,Tarifas!$L21,Datos!I$16,Datos!I$17,Datos!I$19,Datos!I$20,Datos!I$22,Datos!I$23,Datos!I$25,Datos!I$28,Datos!I$31,Tarifas!$H21,Tarifas!$I21,Tarifas!$J21,Datos!I$15,Tarifas!$K21,Datos!$B$3,Datos!$B$1,Datos!$B$4,Tarifas!$M21,Tarifas!$N21,Tarifas!$O21,Tarifas!$P21,Tarifas!$Q21,Datos!$B$2) ->  | K19: =FACTURA(ROW(), COLUMN(),Datos!J$8,Datos!J$9,Tarifas!$C21,Datos!J$10,Tarifas!$D21,Datos!J$11,Tarifas!$E21,Datos!J$12,Tarifas!$F21,Datos!J$13,Tarifas!$G21,Tarifas!$L21,Datos!J$16,Datos!J$17,Datos!J$19,Datos!J$20,Datos!J$22,Datos!J$23,Datos!J$25,Datos!J$28,Datos!J$31,Tarifas!$H21,Tarifas!$I21,Tarifas!$J21,Datos!J$15,Tarifas!$K21,Datos!$B$3,Datos!$B$1,Datos!$B$4,Tarifas!$M21,Tarifas!$N21,Tarifas!$O21,Tarifas!$P21,Tarifas!$Q21,Datos!$B$2) ->  | L19: =FACTURA(ROW(), COLUMN(),Datos!K$8,Datos!K$9,Tarifas!$C21,Datos!K$10,Tarifas!$D21,Datos!K$11,Tarifas!$E21,Datos!K$12,Tarifas!$F21,Datos!K$13,Tarifas!$G21,Tarifas!$L21,Datos!K$16,Datos!K$17,Datos!K$19,Datos!K$20,Datos!K$22,Datos!K$23,Datos!K$25,Datos!K$28,Datos!K$31,Tarifas!$H21,Tarifas!$I21,Tarifas!$J21,Datos!K$15,Tarifas!$K21,Datos!$B$3,Datos!$B$1,Datos!$B$4,Tarifas!$M21,Tarifas!$N21,Tarifas!$O21,Tarifas!$P21,Tarifas!$Q21,Datos!$B$2) ->  | M19: =FACTURA(ROW(), COLUMN(),Datos!L$8,Datos!L$9,Tarifas!$C21,Datos!L$10,Tarifas!$D21,Datos!L$11,Tarifas!$E21,Datos!L$12,Tarifas!$F21,Datos!L$13,Tarifas!$G21,Tarifas!$L21,Datos!L$16,Datos!L$17,Datos!L$19,Datos!L$20,Datos!L$22,Datos!L$23,Datos!L$25,Datos!L$28,Datos!L$31,Tarifas!$H21,Tarifas!$I21,Tarifas!$J21,Datos!L$15,Tarifas!$K21,Datos!$B$3,Datos!$B$1,Datos!$B$4,Tarifas!$M21,Tarifas!$N21,Tarifas!$O21,Tarifas!$P21,Tarifas!$Q21,Datos!$B$2) ->  | N19: =FACTURA(ROW(), COLUMN(),Datos!M$8,Datos!M$9,Tarifas!$C21,Datos!M$10,Tarifas!$D21,Datos!M$11,Tarifas!$E21,Datos!M$12,Tarifas!$F21,Datos!M$13,Tarifas!$G21,Tarifas!$L21,Datos!M$16,Datos!M$17,Datos!M$19,Datos!M$20,Datos!M$22,Datos!M$23,Datos!M$25,Datos!M$28,Datos!M$31,Tarifas!$H21,Tarifas!$I21,Tarifas!$J21,Datos!M$15,Tarifas!$K21,Datos!$B$3,Datos!$B$1,Datos!$B$4,Tarifas!$M21,Tarifas!$N21,Tarifas!$O21,Tarifas!$P21,Tarifas!$Q21,Datos!$B$2) ->  | O19: =FACTURA(ROW(), COLUMN(),Datos!N$8,Datos!N$9,Tarifas!$C21,Datos!N$10,Tarifas!$D21,Datos!N$11,Tarifas!$E21,Datos!N$12,Tarifas!$F21,Datos!N$13,Tarifas!$G21,Tarifas!$L21,Datos!N$16,Datos!N$17,Datos!N$19,Datos!N$20,Datos!N$22,Datos!N$23,Datos!N$25,Datos!N$28,Datos!N$31,Tarifas!$H21,Tarifas!$I21,Tarifas!$J21,Datos!N$15,Tarifas!$K21,Datos!$B$3,Datos!$B$1,Datos!$B$4,Tarifas!$M21,Tarifas!$N21,Tarifas!$O21,Tarifas!$P21,Tarifas!$Q21,Datos!$B$2) ->  | P19: =FACTURA(ROW(), COLUMN(),Datos!O$8,Datos!O$9,Tarifas!$C21,Datos!O$10,Tarifas!$D21,Datos!O$11,Tarifas!$E21,Datos!O$12,Tarifas!$F21,Datos!O$13,Tarifas!$G21,Tarifas!$L21,Datos!O$16,Datos!O$17,Datos!O$19,Datos!O$20,Datos!O$22,Datos!O$23,Datos!O$25,Datos!O$28,Datos!O$31,Tarifas!$H21,Tarifas!$I21,Tarifas!$J21,Datos!O$15,Tarifas!$K21,Datos!$B$3,Datos!$B$1,Datos!$B$4,Tarifas!$M21,Tarifas!$N21,Tarifas!$O21,Tarifas!$P21,Tarifas!$Q21,Datos!$B$2) ->  | Q19: =IF(Tarifas!R21="Sí","Sí","") -> Sí
A20: =IF(Tarifas!A22="","",Tarifas!A22) -> EnergiaNufri | B20: =IF(Tarifas!B22="","",Tarifas!B22) -> Trio | C20: 324.313227 | E20: =FACTURA(ROW(), COLUMN(),Datos!D$8,Datos!D$9,Tarifas!$C22,Datos!D$10,Tarifas!$D22,Datos!D$11,Tarifas!$E22,Datos!D$12,Tarifas!$F22,Datos!D$13,Tarifas!$G22,Tarifas!$L22,Datos!D$16,Datos!D$17,Datos!D$19,Datos!D$20,Datos!D$22,Datos!D$23,Datos!D$25,Datos!D$28,Datos!D$31,Tarifas!$H22,Tarifas!$I22,Tarifas!$J22,Datos!D$15,Tarifas!$K22,Datos!$B$3,Datos!$B$1,Datos!$B$4,Tarifas!$M22,Tarifas!$N22,Tarifas!$O22,Tarifas!$P22,Tarifas!$Q22,Datos!$B$2) -> 11.1103335 | F20: =FACTURA(ROW(), COLUMN(),Datos!E$8,Datos!E$9,Tarifas!$C22,Datos!E$10,Tarifas!$D22,Datos!E$11,Tarifas!$E22,Datos!E$12,Tarifas!$F22,Datos!E$13,Tarifas!$G22,Tarifas!$L22,Datos!E$16,Datos!E$17,Datos!E$19,Datos!E$20,Datos!E$22,Datos!E$23,Datos!E$25,Datos!E$28,Datos!E$31,Tarifas!$H22,Tarifas!$I22,Tarifas!$J22,Datos!E$15,Tarifas!$K22,Datos!$B$3,Datos!$B$1,Datos!$B$4,Tarifas!$M22,Tarifas!$N22,Tarifas!$O22,Tarifas!$P22,Tarifas!$Q22,Datos!$B$2) -> 35.42677425 | G20: =FACTURA(ROW(), COLUMN(),Datos!F$8,Datos!F$9,Tarifas!$C22,Datos!F$10,Tarifas!$D22,Datos!F$11,Tarifas!$E22,Datos!F$12,Tarifas!$F22,Datos!F$13,Tarifas!$G22,Tarifas!$L22,Datos!F$16,Datos!F$17,Datos!F$19,Datos!F$20,Datos!F$22,Datos!F$23,Datos!F$25,Datos!F$28,Datos!F$31,Tarifas!$H22,Tarifas!$I22,Tarifas!$J22,Datos!F$15,Tarifas!$K22,Datos!$B$3,Datos!$B$1,Datos!$B$4,Tarifas!$M22,Tarifas!$N22,Tarifas!$O22,Tarifas!$P22,Tarifas!$Q22,Datos!$B$2) -> 11.1103335 | H20: =FACTURA(ROW(), COLUMN(),Datos!G$8,Datos!G$9,Tarifas!$C22,Datos!G$10,Tarifas!$D22,Datos!G$11,Tarifas!$E22,Datos!G$12,Tarifas!$F22,Datos!G$13,Tarifas!$G22,Tarifas!$L22,Datos!G$16,Datos!G$17,Datos!G$19,Datos!G$20,Datos!G$22,Datos!G$23,Datos!G$25,Datos!G$28,Datos!G$31,Tarifas!$H22,Tarifas!$I22,Tarifas!$J22,Datos!G$15,Tarifas!$K22,Datos!$B$3,Datos!$B$1,Datos!$B$4,Tarifas!$M22,Tarifas!$N22,Tarifas!$O22,Tarifas!$P22,Tarifas!$Q22,Datos!$B$2) -> 35.42677425 | I20: =FACTURA(ROW(), COLUMN(),Datos!H$8,Datos!H$9,Tarifas!$C22,Datos!H$10,Tarifas!$D22,Datos!H$11,Tarifas!$E22,Datos!H$12,Tarifas!$F22,Datos!H$13,Tarifas!$G22,Tarifas!$L22,Datos!H$16,Datos!H$17,Datos!H$19,Datos!H$20,Datos!H$22,Datos!H$23,Datos!H$25,Datos!H$28,Datos!H$31,Tarifas!$H22,Tarifas!$I22,Tarifas!$J22,Datos!H$15,Tarifas!$K22,Datos!$B$3,Datos!$B$1,Datos!$B$4,Tarifas!$M22,Tarifas!$N22,Tarifas!$O22,Tarifas!$P22,Tarifas!$Q22,Datos!$B$2) -> 11.1103335 | J20: =FACTURA(ROW(), COLUMN(),Datos!I$8,Datos!I$9,Tarifas!$C22,Datos!I$10,Tarifas!$D22,Datos!I$11,Tarifas!$E22,Datos!I$12,Tarifas!$F22,Datos!I$13,Tarifas!$G22,Tarifas!$L22,Datos!I$16,Datos!I$17,Datos!I$19,Datos!I$20,Datos!I$22,Datos!I$23,Datos!I$25,Datos!I$28,Datos!I$31,Tarifas!$H22,Tarifas!$I22,Tarifas!$J22,Datos!I$15,Tarifas!$K22,Datos!$B$3,Datos!$B$1,Datos!$B$4,Tarifas!$M22,Tarifas!$N22,Tarifas!$O22,Tarifas!$P22,Tarifas!$Q22,Datos!$B$2) -> 35.42677425 | K20: =FACTURA(ROW(), COLUMN(),Datos!J$8,Datos!J$9,Tarifas!$C22,Datos!J$10,Tarifas!$D22,Datos!J$11,Tarifas!$E22,Datos!J$12,Tarifas!$F22,Datos!J$13,Tarifas!$G22,Tarifas!$L22,Datos!J$16,Datos!J$17,Datos!J$19,Datos!J$20,Datos!J$22,Datos!J$23,Datos!J$25,Datos!J$28,Datos!J$31,Tarifas!$H22,Tarifas!$I22,Tarifas!$J22,Datos!J$15,Tarifas!$K22,Datos!$B$3,Datos!$B$1,Datos!$B$4,Tarifas!$M22,Tarifas!$N22,Tarifas!$O22,Tarifas!$P22,Tarifas!$Q22,Datos!$B$2) -> 13.540527 | L20: =FACTURA(ROW(), COLUMN(),Datos!K$8,Datos!K$9,Tarifas!$C22,Datos!K$10,Tarifas!$D22,Datos!K$11,Tarifas!$E22,Datos!K$12,Tarifas!$F22,Datos!K$13,Tarifas!$G22,Tarifas!$L22,Datos!K$16,Datos!K$17,Datos!K$19,Datos!K$20,Datos!K$22,Datos!K$23,Datos!K$25,Datos!K$28,Datos!K$31,Tarifas!$H22,Tarifas!$I22,Tarifas!$J22,Datos!K$15,Tarifas!$K22,Datos!$B$3,Datos!$B$1,Datos!$B$4,Tarifas!$M22,Tarifas!$N22,Tarifas!$O22,Tarifas!$P22,Tarifas!$Q22,Datos!$B$2) -> 35.42677425 | M20: =FACTURA(ROW(), COLUMN(),Datos!L$8,Datos!L$9,Tarifas!$C22,Datos!L$10,Tarifas!$D22,Datos!L$11,Tarifas!$E22,Datos!L$12,Tarifas!$F22,Datos!L$13,Tarifas!$G22,Tarifas!$L22,Datos!L$16,Datos!L$17,Datos!L$19,Datos!L$20,Datos!L$22,Datos!L$23,Datos!L$25,Datos!L$28,Datos!L$31,Tarifas!$H22,Tarifas!$I22,Tarifas!$J22,Datos!L$15,Tarifas!$K22,Datos!$B$3,Datos!$B$1,Datos!$B$4,Tarifas!$M22,Tarifas!$N22,Tarifas!$O22,Tarifas!$P22,Tarifas!$Q22,Datos!$B$2) -> 26.140527 | N20: =FACTURA(ROW(), COLUMN(),Datos!M$8,Datos!M$9,Tarifas!$C22,Datos!M$10,Tarifas!$D22,Datos!M$11,Tarifas!$E22,Datos!M$12,Tarifas!$F22,Datos!M$13,Tarifas!$G22,Tarifas!$L22,Datos!M$16,Datos!M$17,Datos!M$19,Datos!M$20,Datos!M$22,Datos!M$23,Datos!M$25,Datos!M$28,Datos!M$31,Tarifas!$H22,Tarifas!$I22,Tarifas!$J22,Datos!M$15,Tarifas!$K22,Datos!$B$3,Datos!$B$1,Datos!$B$4,Tarifas!$M22,Tarifas!$N22,Tarifas!$O22,Tarifas!$P22,Tarifas!$Q22,Datos!$B$2) -> 35.42677425 | O20: =FACTURA(ROW(), COLUMN(),Datos!N$8,Datos!N$9,Tarifas!$C22,Datos!N$10,Tarifas!$D22,Datos!N$11,Tarifas!$E22,Datos!N$12,Tarifas!$F22,Datos!N$13,Tarifas!$G22,Tarifas!$L22,Datos!N$16,Datos!N$17,Datos!N$19,Datos!N$20,Datos!N$22,Datos!N$23,Datos!N$25,Datos!N$28,Datos!N$31,Tarifas!$H22,Tarifas!$I22,Tarifas!$J22,Datos!N$15,Tarifas!$K22,Datos!$B$3,Datos!$B$1,Datos!$B$4,Tarifas!$M22,Tarifas!$N22,Tarifas!$O22,Tarifas!$P22,Tarifas!$Q22,Datos!$B$2) -> 38.740527 | P20: =FACTURA(ROW(), COLUMN(),Datos!O$8,Datos!O$9,Tarifas!$C22,Datos!O$10,Tarifas!$D22,Datos!O$11,Tarifas!$E22,Datos!O$12,Tarifas!$F22,Datos!O$13,Tarifas!$G22,Tarifas!$L22,Datos!O$16,Datos!O$17,Datos!O$19,Datos!O$20,Datos!O$22,Datos!O$23,Datos!O$25,Datos!O$28,Datos!O$31,Tarifas!$H22,Tarifas!$I22,Tarifas!$J22,Datos!O$15,Tarifas!$K22,Datos!$B$3,Datos!$B$1,Datos!$B$4,Tarifas!$M22,Tarifas!$N22,Tarifas!$O22,Tarifas!$P22,Tarifas!$Q22,Datos!$B$2) -> 35.42677425 | Q20: =IF(Tarifas!R22="Sí","Sí","") -> Sí
A21: =IF(Tarifas!A23="","",Tarifas!A23) -> EnergiaNufri | B21: =IF(Tarifas!B23="","",Tarifas!B23) -> Versión 24h | C21: 391.1649037 | E21: =FACTURA(ROW(), COLUMN(),Datos!D$8,Datos!D$9,Tarifas!$C23,Datos!D$10,Tarifas!$D23,Datos!D$11,Tarifas!$E23,Datos!D$12,Tarifas!$F23,Datos!D$13,Tarifas!$G23,Tarifas!$L23,Datos!D$16,Datos!D$17,Datos!D$19,Datos!D$20,Datos!D$22,Datos!D$23,Datos!D$25,Datos!D$28,Datos!D$31,Tarifas!$H23,Tarifas!$I23,Tarifas!$J23,Datos!D$15,Tarifas!$K23,Datos!$B$3,Datos!$B$1,Datos!$B$4,Tarifas!$M23,Tarifas!$N23,Tarifas!$O23,Tarifas!$P23,Tarifas!$Q23,Datos!$B$2) -> 15.2713575 | F21: =FACTURA(ROW(), COLUMN(),Datos!E$8,Datos!E$9,Tarifas!$C23,Datos!E$10,Tarifas!$D23,Datos!E$11,Tarifas!$E23,Datos!E$12,Tarifas!$F23,Datos!E$13,Tarifas!$G23,Tarifas!$L23,Datos!E$16,Datos!E$17,Datos!E$19,Datos!E$20,Datos!E$22,Datos!E$23,Datos!E$25,Datos!E$28,Datos!E$31,Tarifas!$H23,Tarifas!$I23,Tarifas!$J23,Datos!E$15,Tarifas!$K23,Datos!$B$3,Datos!$B$1,Datos!$B$4,Tarifas!$M23,Tarifas!$N23,Tarifas!$O23,Tarifas!$P23,Tarifas!$Q23,Datos!$B$2) -> 41.35353311 | G21: =FACTURA(ROW(), COLUMN(),Datos!F$8,Datos!F$9,Tarifas!$C23,Datos!F$10,Tarifas!$D23,Datos!F$11,Tarifas!$E23,Datos!F$12,Tarifas!$F23,Datos!F$13,Tarifas!$G23,Tarifas!$L23,Datos!F$16,Datos!F$17,Datos!F$19,Datos!F$20,Datos!F$22,Datos!F$23,Datos!F$25,Datos!F$28,Datos!F$31,Tarifas!$H23,Tarifas!$I23,Tarifas!$J23,Datos!F$15,Tarifas!$K23,Datos!$B$3,Datos!$B$1,Datos!$B$4,Tarifas!$M23,Tarifas!$N23,Tarifas!$O23,Tarifas!$P23,Tarifas!$Q23,Datos!$B$2) -> 15.2713575 | H21: =FACTURA(ROW(), COLUMN(),Datos!G$8,Datos!G$9,Tarifas!$C23,Datos!G$10,Tarifas!$D23,Datos!G$11,Tarifas!$E23,Datos!G$12,Tarifas!$F23,Datos!G$13,Tarifas!$G23,Tarifas!$L23,Datos!G$16,Datos!G$17,Datos!G$19,Datos!G$20,Datos!G$22,Datos!G$23,Datos!G$25,Datos!G$28,Datos!G$31,Tarifas!$H23,Tarifas!$I23,Tarifas!$J23,Datos!G$15,Tarifas!$K23,Datos!$B$3,Datos!$B$1,Datos!$B$4,Tarifas!$M23,Tarifas!$N23,Tarifas!$O23,Tarifas!$P23,Tarifas!$Q23,Datos!$B$2) -> 41.35353311 | I21: =FACTURA(ROW(), COLUMN(),Datos!H$8,Datos!H$9,Tarifas!$C23,Datos!H$10,Tarifas!$D23,Datos!H$11,Tarifas!$E23,Datos!H$12,Tarifas!$F23,Datos!H$13,Tarifas!$G23,Tarifas!$L23,Datos!H$16,Datos!H$17,Datos!H$19,Datos!H$20,Datos!H$22,Datos!H$23,Datos!H$25,Datos!H$28,Datos!H$31,Tarifas!$H23,Tarifas!$I23,Tarifas!$J23,Datos!H$15,Tarifas!$K23,Datos!$B$3,Datos!$B$1,Datos!$B$4,Tarifas!$M23,Tarifas!$N23,Tarifas!$O23,Tarifas!$P23,Tarifas!$Q23,Datos!$B$2) -> 15.2713575 | J21: =FACTURA(ROW(), COLUMN(),Datos!I$8,Datos!I$9,Tarifas!$C23,Datos!I$10,Tarifas!$D23,Datos!I$11,Tarifas!$E23,Datos!I$12,Tarifas!$F23,Datos!I$13,Tarifas!$G23,Tarifas!$L23,Datos!I$16,Datos!I$17,Datos!I$19,Datos!I$20,Datos!I$22,Datos!I$23,Datos!I$25,Datos!I$28,Datos!I$31,Tarifas!$H23,Tarifas!$I23,Tarifas!$J23,Datos!I$15,Tarifas!$K23,Datos!$B$3,Datos!$B$1,Datos!$B$4,Tarifas!$M23,Tarifas!$N23,Tarifas!$O23,Tarifas!$P23,Tarifas!$Q23,Datos!$B$2) -> 41.35353311 | K21: =FACTURA(ROW(), COLUMN(),Datos!J$8,Datos!J$9,Tarifas!$C23,Datos!J$10,Tarifas!$D23,Datos!J$11,Tarifas!$E23,Datos!J$12,Tarifas!$F23,Datos!J$13,Tarifas!$G23,Tarifas!$L23,Datos!J$16,Datos!J$17,Datos!J$19,Datos!J$20,Datos!J$22,Datos!J$23,Datos!J$25,Datos!J$28,Datos!J$31,Tarifas!$H23,Tarifas!$I23,Tarifas!$J23,Datos!J$15,Tarifas!$K23,Datos!$B$3,Datos!$B$1,Datos!$B$4,Tarifas!$M23,Tarifas!$N23,Tarifas!$O23,Tarifas!$P23,Tarifas!$Q23,Datos!$B$2) -> 19.8098775 | L21: =FACTURA(ROW(), COLUMN(),Datos!K$8,Datos!K$9,Tarifas!$C23,Datos!K$10,Tarifas!$D23,Datos!K$11,Tarifas!$E23,Datos!K$12,Tarifas!$F23,Datos!K$13,Tarifas!$G23,Tarifas!$L23,Datos!K$16,Datos!K$17,Datos!K$19,Datos!K$20,Datos!K$22,Datos!K$23,Datos!K$25,Datos!K$28,Datos!K$31,Tarifas!$H23,Tarifas!$I23,Tarifas!$J23,Datos!K$15,Tarifas!$K23,Datos!$B$3,Datos!$B$1,Datos!$B$4,Tarifas!$M23,Tarifas!$N23,Tarifas!$O23,Tarifas!$P23,Tarifas!$Q23,Datos!$B$2) -> 41.35353311 | M21: =FACTURA(ROW(), COLUMN(),Datos!L$8,Datos!L$9,Tarifas!$C23,Datos!L$10,Tarifas!$D23,Datos!L$11,Tarifas!$E23,Datos!L$12,Tarifas!$F23,Datos!L$13,Tarifas!$G23,Tarifas!$L23,Datos!L$16,Datos!L$17,Datos!L$19,Datos!L$20,Datos!L$22,Datos!L$23,Datos!L$25,Datos!L$28,Datos!L$31,Tarifas!$H23,Tarifas!$I23,Tarifas!$J23,Datos!L$15,Tarifas!$K23,Datos!$B$3,Datos!$B$1,Datos!$B$4,Tarifas!$M23,Tarifas!$N23,Tarifas!$O23,Tarifas!$P23,Tarifas!$Q23,Datos!$B$2) -> 32.4098775 | N21: =FACTURA(ROW(), COLUMN(),Datos!M$8,Datos!M$9,Tarifas!$C23,Datos!M$10,Tarifas!$D23,Datos!M$11,Tarifas!$E23,Datos!M$12,Tarifas!$F23,Datos!M$13,Tarifas!$G23,Tarifas!$L23,Datos!M$16,Datos!M$17,Datos!M$19,Datos!M$20,Datos!M$22,Datos!M$23,Datos!M$25,Datos!M$28,Datos!M$31,Tarifas!$H23,Tarifas!$I23,Tarifas!$J23,Datos!M$15,Tarifas!$K23,Datos!$B$3,Datos!$B$1,Datos!$B$4,Tarifas!$M23,Tarifas!$N23,Tarifas!$O23,Tarifas!$P23,Tarifas!$Q23,Datos!$B$2) -> 41.35353311 | O21: =FACTURA(ROW(), COLUMN(),Datos!N$8,Datos!N$9,Tarifas!$C23,Datos!N$10,Tarifas!$D23,Datos!N$11,Tarifas!$E23,Datos!N$12,Tarifas!$F23,Datos!N$13,Tarifas!$G23,Tarifas!$L23,Datos!N$16,Datos!N$17,Datos!N$19,Datos!N$20,Datos!N$22,Datos!N$23,Datos!N$25,Datos!N$28,Datos!N$31,Tarifas!$H23,Tarifas!$I23,Tarifas!$J23,Datos!N$15,Tarifas!$K23,Datos!$B$3,Datos!$B$1,Datos!$B$4,Tarifas!$M23,Tarifas!$N23,Tarifas!$O23,Tarifas!$P23,Tarifas!$Q23,Datos!$B$2) -> 45.0098775 | P21: =FACTURA(ROW(), COLUMN(),Datos!O$8,Datos!O$9,Tarifas!$C23,Datos!O$10,Tarifas!$D23,Datos!O$11,Tarifas!$E23,Datos!O$12,Tarifas!$F23,Datos!O$13,Tarifas!$G23,Tarifas!$L23,Datos!O$16,Datos!O$17,Datos!O$19,Datos!O$20,Datos!O$22,Datos!O$23,Datos!O$25,Datos!O$28,Datos!O$31,Tarifas!$H23,Tarifas!$I23,Tarifas!$J23,Datos!O$15,Tarifas!$K23,Datos!$B$3,Datos!$B$1,Datos!$B$4,Tarifas!$M23,Tarifas!$N23,Tarifas!$O23,Tarifas!$P23,Tarifas!$Q23,Datos!$B$2) -> 41.35353311 | Q21: =IF(Tarifas!R23="Sí","Sí","") -> Sí
A22: =IF(Tarifas!A24="","",Tarifas!A24) -> Estabanell Energía | B22: =IF(Tarifas!B24="","",Tarifas!B24) -> Plan Solar | E22: =FACTURA(ROW(), COLUMN(),Datos!D$8,Datos!D$9,Tarifas!$C24,Datos!D$10,Tarifas!$D24,Datos!D$11,Tarifas!$E24,Datos!D$12,Tarifas!$F24,Datos!D$13,Tarifas!$G24,Tarifas!$L24,Datos!D$16,Datos!D$17,Datos!D$19,Datos!D$20,Datos!D$22,Datos!D$23,Datos!D$25,Datos!D$28,Datos!D$31,Tarifas!$H24,Tarifas!$I24,Tarifas!$J24,Datos!D$15,Tarifas!$K24,Datos!$B$3,Datos!$B$1,Datos!$B$4,Tarifas!$M24,Tarifas!$N24,Tarifas!$O24,Tarifas!$P24,Tarifas!$Q24,Datos!$B$2) ->  | F22: =FACTURA(ROW(), COLUMN(),Datos!E$8,Datos!E$9,Tarifas!$C24,Datos!E$10,Tarifas!$D24,Datos!E$11,Tarifas!$E24,Datos!E$12,Tarifas!$F24,Datos!E$13,Tarifas!$G24,Tarifas!$L24,Datos!E$16,Datos!E$17,Datos!E$19,Datos!E$20,Datos!E$22,Datos!E$23,Datos!E$25,Datos!E$28,Datos!E$31,Tarifas!$H24,Tarifas!$I24,Tarifas!$J24,Datos!E$15,Tarifas!$K24,Datos!$B$3,Datos!$B$1,Datos!$B$4,Tarifas!$M24,Tarifas!$N24,Tarifas!$O24,Tarifas!$P24,Tarifas!$Q24,Datos!$B$2) ->  | G22: =FACTURA(ROW(), COLUMN(),Datos!F$8,Datos!F$9,Tarifas!$C24,Datos!F$10,Tarifas!$D24,Datos!F$11,Tarifas!$E24,Datos!F$12,Tarifas!$F24,Datos!F$13,Tarifas!$G24,Tarifas!$L24,Datos!F$16,Datos!F$17,Datos!F$19,Datos!F$20,Datos!F$22,Datos!F$23,Datos!F$25,Datos!F$28,Datos!F$31,Tarifas!$H24,Tarifas!$I24,Tarifas!$J24,Datos!F$15,Tarifas!$K24,Datos!$B$3,Datos!$B$1,Datos!$B$4,Tarifas!$M24,Tarifas!$N24,Tarifas!$O24,Tarifas!$P24,Tarifas!$Q24,Datos!$B$2) ->  | H22: =FACTURA(ROW(), COLUMN(),Datos!G$8,Datos!G$9,Tarifas!$C24,Datos!G$10,Tarifas!$D24,Datos!G$11,Tarifas!$E24,Datos!G$12,Tarifas!$F24,Datos!G$13,Tarifas!$G24,Tarifas!$L24,Datos!G$16,Datos!G$17,Datos!G$19,Datos!G$20,Datos!G$22,Datos!G$23,Datos!G$25,Datos!G$28,Datos!G$31,Tarifas!$H24,Tarifas!$I24,Tarifas!$J24,Datos!G$15,Tarifas!$K24,Datos!$B$3,Datos!$B$1,Datos!$B$4,Tarifas!$M24,Tarifas!$N24,Tarifas!$O24,Tarifas!$P24,Tarifas!$Q24,Datos!$B$2) ->  | I22: =FACTURA(ROW(), COLUMN(),Datos!H$8,Datos!H$9,Tarifas!$C24,Datos!H$10,Tarifas!$D24,Datos!H$11,Tarifas!$E24,Datos!H$12,Tarifas!$F24,Datos!H$13,Tarifas!$G24,Tarifas!$L24,Datos!H$16,Datos!H$17,Datos!H$19,Datos!H$20,Datos!H$22,Datos!H$23,Datos!H$25,Datos!H$28,Datos!H$31,Tarifas!$H24,Tarifas!$I24,Tarifas!$J24,Datos!H$15,Tarifas!$K24,Datos!$B$3,Datos!$B$1,Datos!$B$4,Tarifas!$M24,Tarifas!$N24,Tarifas!$O24,Tarifas!$P24,Tarifas!$Q24,Datos!$B$2) ->  | J22: =FACTURA(ROW(), COLUMN(),Datos!I$8,Datos!I$9,Tarifas!$C24,Datos!I$10,Tarifas!$D24,Datos!I$11,Tarifas!$E24,Datos!I$12,Tarifas!$F24,Datos!I$13,Tarifas!$G24,Tarifas!$L24,Datos!I$16,Datos!I$17,Datos!I$19,Datos!I$20,Datos!I$22,Datos!I$23,Datos!I$25,Datos!I$28,Datos!I$31,Tarifas!$H24,Tarifas!$I24,Tarifas!$J24,Datos!I$15,Tarifas!$K24,Datos!$B$3,Datos!$B$1,Datos!$B$4,Tarifas!$M24,Tarifas!$N24,Tarifas!$O24,Tarifas!$P24,Tarifas!$Q24,Datos!$B$2) ->  | K22: =FACTURA(ROW(), COLUMN(),Datos!J$8,Datos!J$9,Tarifas!$C24,Datos!J$10,Tarifas!$D24,Datos!J$11,Tarifas!$E24,Datos!J$12,Tarifas!$F24,Datos!J$13,Tarifas!$G24,Tarifas!$L24,Datos!J$16,Datos!J$17,Datos!J$19,Datos!J$20,Datos!J$22,Datos!J$23,Datos!J$25,Datos!J$28,Datos!J$31,Tarifas!$H24,Tarifas!$I24,Tarifas!$J24,Datos!J$15,Tarifas!$K24,Datos!$B$3,Datos!$B$1,Datos!$B$4,Tarifas!$M24,Tarifas!$N24,Tarifas!$O24,Tarifas!$P24,Tarifas!$Q24,Datos!$B$2) ->  | L22: =FACTURA(ROW(), COLUMN(),Datos!K$8,Datos!K$9,Tarifas!$C24,Datos!K$10,Tarifas!$D24,Datos!K$11,Tarifas!$E24,Datos!K$12,Tarifas!$F24,Datos!K$13,Tarifas!$G24,Tarifas!$L24,Datos!K$16,Datos!K$17,Datos!K$19,Datos!K$20,Datos!K$22,Datos!K$23,Datos!K$25,Datos!K$28,Datos!K$31,Tarifas!$H24,Tarifas!$I24,Tarifas!$J24,Datos!K$15,Tarifas!$K24,Datos!$B$3,Datos!$B$1,Datos!$B$4,Tarifas!$M24,Tarifas!$N24,Tarifas!$O24,Tarifas!$P24,Tarifas!$Q24,Datos!$B$2) ->  | M22: =FACTURA(ROW(), COLUMN(),Datos!L$8,Datos!L$9,Tarifas!$C24,Datos!L$10,Tarifas!$D24,Datos!L$11,Tarifas!$E24,Datos!L$12,Tarifas!$F24,Datos!L$13,Tarifas!$G24,Tarifas!$L24,Datos!L$16,Datos!L$17,Datos!L$19,Datos!L$20,Datos!L$22,Datos!L$23,Datos!L$25,Datos!L$28,Datos!L$31,Tarifas!$H24,Tarifas!$I24,Tarifas!$J24,Datos!L$15,Tarifas!$K24,Datos!$B$3,Datos!$B$1,Datos!$B$4,Tarifas!$M24,Tarifas!$N24,Tarifas!$O24,Tarifas!$P24,Tarifas!$Q24,Datos!$B$2) ->  | N22: =FACTURA(ROW(), COLUMN(),Datos!M$8,Datos!M$9,Tarifas!$C24,Datos!M$10,Tarifas!$D24,Datos!M$11,Tarifas!$E24,Datos!M$12,Tarifas!$F24,Datos!M$13,Tarifas!$G24,Tarifas!$L24,Datos!M$16,Datos!M$17,Datos!M$19,Datos!M$20,Datos!M$22,Datos!M$23,Datos!M$25,Datos!M$28,Datos!M$31,Tarifas!$H24,Tarifas!$I24,Tarifas!$J24,Datos!M$15,Tarifas!$K24,Datos!$B$3,Datos!$B$1,Datos!$B$4,Tarifas!$M24,Tarifas!$N24,Tarifas!$O24,Tarifas!$P24,Tarifas!$Q24,Datos!$B$2) ->  | O22: =FACTURA(ROW(), COLUMN(),Datos!N$8,Datos!N$9,Tarifas!$C24,Datos!N$10,Tarifas!$D24,Datos!N$11,Tarifas!$E24,Datos!N$12,Tarifas!$F24,Datos!N$13,Tarifas!$G24,Tarifas!$L24,Datos!N$16,Datos!N$17,Datos!N$19,Datos!N$20,Datos!N$22,Datos!N$23,Datos!N$25,Datos!N$28,Datos!N$31,Tarifas!$H24,Tarifas!$I24,Tarifas!$J24,Datos!N$15,Tarifas!$K24,Datos!$B$3,Datos!$B$1,Datos!$B$4,Tarifas!$M24,Tarifas!$N24,Tarifas!$O24,Tarifas!$P24,Tarifas!$Q24,Datos!$B$2) ->  | P22: =FACTURA(ROW(), COLUMN(),Datos!O$8,Datos!O$9,Tarifas!$C24,Datos!O$10,Tarifas!$D24,Datos!O$11,Tarifas!$E24,Datos!O$12,Tarifas!$F24,Datos!O$13,Tarifas!$G24,Tarifas!$L24,Datos!O$16,Datos!O$17,Datos!O$19,Datos!O$20,Datos!O$22,Datos!O$23,Datos!O$25,Datos!O$28,Datos!O$31,Tarifas!$H24,Tarifas!$I24,Tarifas!$J24,Datos!O$15,Tarifas!$K24,Datos!$B$3,Datos!$B$1,Datos!$B$4,Tarifas!$M24,Tarifas!$N24,Tarifas!$O24,Tarifas!$P24,Tarifas!$Q24,Datos!$B$2) ->  | Q22: =IF(Tarifas!R24="Sí","Sí","") -> Sí
A23: =IF(Tarifas!A25="","",Tarifas!A25) -> Estabanell Energía | B23: =IF(Tarifas!B25="","",Tarifas!B25) -> Plan Estable | C23: 613.1824798 | E23: =FACTURA(ROW(), COLUMN(),Datos!D$8,Datos!D$9,Tarifas!$C25,Datos!D$10,Tarifas!$D25,Datos!D$11,Tarifas!$E25,Datos!D$12,Tarifas!$F25,Datos!D$13,Tarifas!$G25,Tarifas!$L25,Datos!D$16,Datos!D$17,Datos!D$19,Datos!D$20,Datos!D$22,Datos!D$23,Datos!D$25,Datos!D$28,Datos!D$31,Tarifas!$H25,Tarifas!$I25,Tarifas!$J25,Datos!D$15,Tarifas!$K25,Datos!$B$3,Datos!$B$1,Datos!$B$4,Tarifas!$M25,Tarifas!$N25,Tarifas!$O25,Tarifas!$P25,Tarifas!$Q25,Datos!$B$2) -> 60.01247417 | F23: =FACTURA(ROW(), COLUMN(),Datos!E$8,Datos!E$9,Tarifas!$C25,Datos!E$10,Tarifas!$D25,Datos!E$11,Tarifas!$E25,Datos!E$12,Tarifas!$F25,Datos!E$13,Tarifas!$G25,Tarifas!$L25,Datos!E$16,Datos!E$17,Datos!E$19,Datos!E$20,Datos!E$22,Datos!E$23,Datos!E$25,Datos!E$28,Datos!E$31,Tarifas!$H25,Tarifas!$I25,Tarifas!$J25,Datos!E$15,Tarifas!$K25,Datos!$B$3,Datos!$B$1,Datos!$B$4,Tarifas!$M25,Tarifas!$N25,Tarifas!$O25,Tarifas!$P25,Tarifas!$Q25,Datos!$B$2) -> 42.1846058 | G23: =FACTURA(ROW(), COLUMN(),Datos!F$8,Datos!F$9,Tarifas!$C25,Datos!F$10,Tarifas!$D25,Datos!F$11,Tarifas!$E25,Datos!F$12,Tarifas!$F25,Datos!F$13,Tarifas!$G25,Tarifas!$L25,Datos!F$16,Datos!F$17,Datos!F$19,Datos!F$20,Datos!F$22,Datos!F$23,Datos!F$25,Datos!F$28,Datos!F$31,Tarifas!$H25,Tarifas!$I25,Tarifas!$J25,Datos!F$15,Tarifas!$K25,Datos!$B$3,Datos!$B$1,Datos!$B$4,Tarifas!$M25,Tarifas!$N25,Tarifas!$O25,Tarifas!$P25,Tarifas!$Q25,Datos!$B$2) -> 60.01247417 | H23: =FACTURA(ROW(), COLUMN(),Datos!G$8,Datos!G$9,Tarifas!$C25,Datos!G$10,Tarifas!$D25,Datos!G$11,Tarifas!$E25,Datos!G$12,Tarifas!$F25,Datos!G$13,Tarifas!$G25,Tarifas!$L25,Datos!G$16,Datos!G$17,Datos!G$19,Datos!G$20,Datos!G$22,Datos!G$23,Datos!G$25,Datos!G$28,Datos!G$31,Tarifas!$H25,Tarifas!$I25,Tarifas!$J25,Datos!G$15,Tarifas!$K25,Datos!$B$3,Datos!$B$1,Datos!$B$4,Tarifas!$M25,Tarifas!$N25,Tarifas!$O25,Tarifas!$P25,Tarifas!$Q25,Datos!$B$2) -> 42.1846058 | I23: =FACTURA(ROW(), COLUMN(),Datos!H$8,Datos!H$9,Tarifas!$C25,Datos!H$10,Tarifas!$D25,Datos!H$11,Tarifas!$E25,Datos!H$12,Tarifas!$F25,Datos!H$13,Tarifas!$G25,Tarifas!$L25,Datos!H$16,Datos!H$17,Datos!H$19,Datos!H$20,Datos!H$22,Datos!H$23,Datos!H$25,Datos!H$28,Datos!H$31,Tarifas!$H25,Tarifas!$I25,Tarifas!$J25,Datos!H$15,Tarifas!$K25,Datos!$B$3,Datos!$B$1,Datos!$B$4,Tarifas!$M25,Tarifas!$N25,Tarifas!$O25,Tarifas!$P25,Tarifas!$Q25,Datos!$B$2) -> 60.01247417 | J23: =FACTURA(ROW(), COLUMN(),Datos!I$8,Datos!I$9,Tarifas!$C25,Datos!I$10,Tarifas!$D25,Datos!I$11,Tarifas!$E25,Datos!I$12,Tarifas!$F25,Datos!I$13,Tarifas!$G25,Tarifas!$L25,Datos!I$16,Datos!I$17,Datos!I$19,Datos!I$20,Datos!I$22,Datos!I$23,Datos!I$25,Datos!I$28,Datos!I$31,Tarifas!$H25,Tarifas!$I25,Tarifas!$J25,Datos!I$15,Tarifas!$K25,Datos!$B$3,Datos!$B$1,Datos!$B$4,Tarifas!$M25,Tarifas!$N25,Tarifas!$O25,Tarifas!$P25,Tarifas!$Q25,Datos!$B$2) -> 42.1846058 | K23: =FACTURA(ROW(), COLUMN(),Datos!J$8,Datos!J$9,Tarifas!$C25,Datos!J$10,Tarifas!$D25,Datos!J$11,Tarifas!$E25,Datos!J$12,Tarifas!$F25,Datos!J$13,Tarifas!$G25,Tarifas!$L25,Datos!J$16,Datos!J$17,Datos!J$19,Datos!J$20,Datos!J$22,Datos!J$23,Datos!J$25,Datos!J$28,Datos!J$31,Tarifas!$H25,Tarifas!$I25,Tarifas!$J25,Datos!J$15,Tarifas!$K25,Datos!$B$3,Datos!$B$1,Datos!$B$4,Tarifas!$M25,Tarifas!$N25,Tarifas!$O25,Tarifas!$P25,Tarifas!$Q25,Datos!$B$2) -> 60.01247417 | L23: =FACTURA(ROW(), COLUMN(),Datos!K$8,Datos!K$9,Tarifas!$C25,Datos!K$10,Tarifas!$D25,Datos!K$11,Tarifas!$E25,Datos!K$12,Tarifas!$F25,Datos!K$13,Tarifas!$G25,Tarifas!$L25,Datos!K$16,Datos!K$17,Datos!K$19,Datos!K$20,Datos!K$22,Datos!K$23,Datos!K$25,Datos!K$28,Datos!K$31,Tarifas!$H25,Tarifas!$I25,Tarifas!$J25,Datos!K$15,Tarifas!$K25,Datos!$B$3,Datos!$B$1,Datos!$B$4,Tarifas!$M25,Tarifas!$N25,Tarifas!$O25,Tarifas!$P25,Tarifas!$Q25,Datos!$B$2) -> 42.1846058 | M23: =FACTURA(ROW(), COLUMN(),Datos!L$8,Datos!L$9,Tarifas!$C25,Datos!L$10,Tarifas!$D25,Datos!L$11,Tarifas!$E25,Datos!L$12,Tarifas!$F25,Datos!L$13,Tarifas!$G25,Tarifas!$L25,Datos!L$16,Datos!L$17,Datos!L$19,Datos!L$20,Datos!L$22,Datos!L$23,Datos!L$25,Datos!L$28,Datos!L$31,Tarifas!$H25,Tarifas!$I25,Tarifas!$J25,Datos!L$15,Tarifas!$K25,Datos!$B$3,Datos!$B$1,Datos!$B$4,Tarifas!$M25,Tarifas!$N25,Tarifas!$O25,Tarifas!$P25,Tarifas!$Q25,Datos!$B$2) -> 60.01247417 | N23: =FACTURA(ROW(), COLUMN(),Datos!M$8,Datos!M$9,Tarifas!$C25,Datos!M$10,Tarifas!$D25,Datos!M$11,Tarifas!$E25,Datos!M$12,Tarifas!$F25,Datos!M$13,Tarifas!$G25,Tarifas!$L25,Datos!M$16,Datos!M$17,Datos!M$19,Datos!M$20,Datos!M$22,Datos!M$23,Datos!M$25,Datos!M$28,Datos!M$31,Tarifas!$H25,Tarifas!$I25,Tarifas!$J25,Datos!M$15,Tarifas!$K25,Datos!$B$3,Datos!$B$1,Datos!$B$4,Tarifas!$M25,Tarifas!$N25,Tarifas!$O25,Tarifas!$P25,Tarifas!$Q25,Datos!$B$2) -> 42.1846058 | O23: =FACTURA(ROW(), COLUMN(),Datos!N$8,Datos!N$9,Tarifas!$C25,Datos!N$10,Tarifas!$D25,Datos!N$11,Tarifas!$E25,Datos!N$12,Tarifas!$F25,Datos!N$13,Tarifas!$G25,Tarifas!$L25,Datos!N$16,Datos!N$17,Datos!N$19,Datos!N$20,Datos!N$22,Datos!N$23,Datos!N$25,Datos!N$28,Datos!N$31,Tarifas!$H25,Tarifas!$I25,Tarifas!$J25,Datos!N$15,Tarifas!$K25,Datos!$B$3,Datos!$B$1,Datos!$B$4,Tarifas!$M25,Tarifas!$N25,Tarifas!$O25,Tarifas!$P25,Tarifas!$Q25,Datos!$B$2) -> 60.01247417 | P23: =FACTURA(ROW(), COLUMN(),Datos!O$8,Datos!O$9,Tarifas!$C25,Datos!O$10,Tarifas!$D25,Datos!O$11,Tarifas!$E25,Datos!O$12,Tarifas!$F25,Datos!O$13,Tarifas!$G25,Tarifas!$L25,Datos!O$16,Datos!O$17,Datos!O$19,Datos!O$20,Datos!O$22,Datos!O$23,Datos!O$25,Datos!O$28,Datos!O$31,Tarifas!$H25,Tarifas!$I25,Tarifas!$J25,Datos!O$15,Tarifas!$K25,Datos!$B$3,Datos!$B$1,Datos!$B$4,Tarifas!$M25,Tarifas!$N25,Tarifas!$O25,Tarifas!$P25,Tarifas!$Q25,Datos!$B$2) -> 42.1846058 | Q23: =IF(Tarifas!R25="Sí","Sí","") -> Sí
A24: =IF(Tarifas!A26="","",Tarifas!A26) -> Estabanell Energía | B24: =IF(Tarifas!B26="","",Tarifas!B26) -> Plan Eficiencia | C24: 602.4080396 | E24: =FACTURA(ROW(), COLUMN(),Datos!D$8,Datos!D$9,Tarifas!$C26,Datos!D$10,Tarifas!$D26,Datos!D$11,Tarifas!$E26,Datos!D$12,Tarifas!$F26,Datos!D$13,Tarifas!$G26,Tarifas!$L26,Datos!D$16,Datos!D$17,Datos!D$19,Datos!D$20,Datos!D$22,Datos!D$23,Datos!D$25,Datos!D$28,Datos!D$31,Tarifas!$H26,Tarifas!$I26,Tarifas!$J26,Datos!D$15,Tarifas!$K26,Datos!$B$3,Datos!$B$1,Datos!$B$4,Tarifas!$M26,Tarifas!$N26,Tarifas!$O26,Tarifas!$P26,Tarifas!$Q26,Datos!$B$2) -> 60.06244025 | F24: =FACTURA(ROW(), COLUMN(),Datos!E$8,Datos!E$9,Tarifas!$C26,Datos!E$10,Tarifas!$D26,Datos!E$11,Tarifas!$E26,Datos!E$12,Tarifas!$F26,Datos!E$13,Tarifas!$G26,Tarifas!$L26,Datos!E$16,Datos!E$17,Datos!E$19,Datos!E$20,Datos!E$22,Datos!E$23,Datos!E$25,Datos!E$28,Datos!E$31,Tarifas!$H26,Tarifas!$I26,Tarifas!$J26,Datos!E$15,Tarifas!$K26,Datos!$B$3,Datos!$B$1,Datos!$B$4,Tarifas!$M26,Tarifas!$N26,Tarifas!$O26,Tarifas!$P26,Tarifas!$Q26,Datos!$B$2) -> 40.33889969 | G24: =FACTURA(ROW(), COLUMN(),Datos!F$8,Datos!F$9,Tarifas!$C26,Datos!F$10,Tarifas!$D26,Datos!F$11,Tarifas!$E26,Datos!F$12,Tarifas!$F26,Datos!F$13,Tarifas!$G26,Tarifas!$L26,Datos!F$16,Datos!F$17,Datos!F$19,Datos!F$20,Datos!F$22,Datos!F$23,Datos!F$25,Datos!F$28,Datos!F$31,Tarifas!$H26,Tarifas!$I26,Tarifas!$J26,Datos!F$15,Tarifas!$K26,Datos!$B$3,Datos!$B$1,Datos!$B$4,Tarifas!$M26,Tarifas!$N26,Tarifas!$O26,Tarifas!$P26,Tarifas!$Q26,Datos!$B$2) -> 60.06244025 | H24: =FACTURA(ROW(), COLUMN(),Datos!G$8,Datos!G$9,Tarifas!$C26,Datos!G$10,Tarifas!$D26,Datos!G$11,Tarifas!$E26,Datos!G$12,Tarifas!$F26,Datos!G$13,Tarifas!$G26,Tarifas!$L26,Datos!G$16,Datos!G$17,Datos!G$19,Datos!G$20,Datos!G$22,Datos!G$23,Datos!G$25,Datos!G$28,Datos!G$31,Tarifas!$H26,Tarifas!$I26,Tarifas!$J26,Datos!G$15,Tarifas!$K26,Datos!$B$3,Datos!$B$1,Datos!$B$4,Tarifas!$M26,Tarifas!$N26,Tarifas!$O26,Tarifas!$P26,Tarifas!$Q26,Datos!$B$2) -> 40.33889969 | I24: =FACTURA(ROW(), COLUMN(),Datos!H$8,Datos!H$9,Tarifas!$C26,Datos!H$10,Tarifas!$D26,Datos!H$11,Tarifas!$E26,Datos!H$12,Tarifas!$F26,Datos!H$13,Tarifas!$G26,Tarifas!$L26,Datos!H$16,Datos!H$17,Datos!H$19,Datos!H$20,Datos!H$22,Datos!H$23,Datos!H$25,Datos!H$28,Datos!H$31,Tarifas!$H26,Tarifas!$I26,Tarifas!$J26,Datos!H$15,Tarifas!$K26,Datos!$B$3,Datos!$B$1,Datos!$B$4,Tarifas!$M26,Tarifas!$N26,Tarifas!$O26,Tarifas!$P26,Tarifas!$Q26,Datos!$B$2) -> 60.06244025 | J24: =FACTURA(ROW(), COLUMN(),Datos!I$8,Datos!I$9,Tarifas!$C26,Datos!I$10,Tarifas!$D26,Datos!I$11,Tarifas!$E26,Datos!I$12,Tarifas!$F26,Datos!I$13,Tarifas!$G26,Tarifas!$L26,Datos!I$16,Datos!I$17,Datos!I$19,Datos!I$20,Datos!I$22,Datos!I$23,Datos!I$25,Datos!I$28,Datos!I$31,Tarifas!$H26,Tarifas!$I26,Tarifas!$J26,Datos!I$15,Tarifas!$K26,Datos!$B$3,Datos!$B$1,Datos!$B$4,Tarifas!$M26,Tarifas!$N26,Tarifas!$O26,Tarifas!$P26,Tarifas!$Q26,Datos!$B$2) -> 40.33889969 | K24: =FACTURA(ROW(), COLUMN(),Datos!J$8,Datos!J$9,Tarifas!$C26,Datos!J$10,Tarifas!$D26,Datos!J$11,Tarifas!$E26,Datos!J$12,Tarifas!$F26,Datos!J$13,Tarifas!$G26,Tarifas!$L26,Datos!J$16,Datos!J$17,Datos!J$19,Datos!J$20,Datos!J$22,Datos!J$23,Datos!J$25,Datos!J$28,Datos!J$31,Tarifas!$H26,Tarifas!$I26,Tarifas!$J26,Datos!J$15,Tarifas!$K26,Datos!$B$3,Datos!$B$1,Datos!$B$4,Tarifas!$M26,Tarifas!$N26,Tarifas!$O26,Tarifas!$P26,Tarifas!$Q26,Datos!$B$2) -> 60.06244025 | L24: =FACTURA(ROW(), COLUMN(),Datos!K$8,Datos!K$9,Tarifas!$C26,Datos!K$10,Tarifas!$D26,Datos!K$11,Tarifas!$E26,Datos!K$12,Tarifas!$F26,Datos!K$13,Tarifas!$G26,Tarifas!$L26,Datos!K$16,Datos!K$17,Datos!K$19,Datos!K$20,Datos!K$22,Datos!K$23,Datos!K$25,Datos!K$28,Datos!K$31,Tarifas!$H26,Tarifas!$I26,Tarifas!$J26,Datos!K$15,Tarifas!$K26,Datos!$B$3,Datos!$B$1,Datos!$B$4,Tarifas!$M26,Tarifas!$N26,Tarifas!$O26,Tarifas!$P26,Tarifas!$Q26,Datos!$B$2) -> 40.33889969 | M24: =FACTURA(ROW(), COLUMN(),Datos!L$8,Datos!L$9,Tarifas!$C26,Datos!L$10,Tarifas!$D26,Datos!L$11,Tarifas!$E26,Datos!L$12,Tarifas!$F26,Datos!L$13,Tarifas!$G26,Tarifas!$L26,Datos!L$16,Datos!L$17,Datos!L$19,Datos!L$20,Datos!L$22,Datos!L$23,Datos!L$25,Datos!L$28,Datos!L$31,Tarifas!$H26,Tarifas!$I26,Tarifas!$J26,Datos!L$15,Tarifas!$K26,Datos!$B$3,Datos!$B$1,Datos!$B$4,Tarifas!$M26,Tarifas!$N26,Tarifas!$O26,Tarifas!$P26,Tarifas!$Q26,Datos!$B$2) -> 60.06244025 | N24: =FACTURA(ROW(), COLUMN(),Datos!M$8,Datos!M$9,Tarifas!$C26,Datos!M$10,Tarifas!$D26,Datos!M$11,Tarifas!$E26,Datos!M$12,Tarifas!$F26,Datos!M$13,Tarifas!$G26,Tarifas!$L26,Datos!M$16,Datos!M$17,Datos!M$19,Datos!M$20,Datos!M$22,Datos!M$23,Datos!M$25,Datos!M$28,Datos!M$31,Tarifas!$H26,Tarifas!$I26,Tarifas!$J26,Datos!M$15,Tarifas!$K26,Datos!$B$3,Datos!$B$1,Datos!$B$4,Tarifas!$M26,Tarifas!$N26,Tarifas!$O26,Tarifas!$P26,Tarifas!$Q26,Datos!$B$2) -> 40.33889969 | O24: =FACTURA(ROW(), COLUMN(),Datos!N$8,Datos!N$9,Tarifas!$C26,Datos!N$10,Tarifas!$D26,Datos!N$11,Tarifas!$E26,Datos!N$12,Tarifas!$F26,Datos!N$13,Tarifas!$G26,Tarifas!$L26,Datos!N$16,Datos!N$17,Datos!N$19,Datos!N$20,Datos!N$22,Datos!N$23,Datos!N$25,Datos!N$28,Datos!N$31,Tarifas!$H26,Tarifas!$I26,Tarifas!$J26,Datos!N$15,Tarifas!$K26,Datos!$B$3,Datos!$B$1,Datos!$B$4,Tarifas!$M26,Tarifas!$N26,Tarifas!$O26,Tarifas!$P26,Tarifas!$Q26,Datos!$B$2) -> 60.06244025 | P24: =FACTURA(ROW(), COLUMN(),Datos!O$8,Datos!O$9,Tarifas!$C26,Datos!O$10,Tarifas!$D26,Datos!O$11,Tarifas!$E26,Datos!O$12,Tarifas!$F26,Datos!O$13,Tarifas!$G26,Tarifas!$L26,Datos!O$16,Datos!O$17,Datos!O$19,Datos!O$20,Datos!O$22,Datos!O$23,Datos!O$25,Datos!O$28,Datos!O$31,Tarifas!$H26,Tarifas!$I26,Tarifas!$J26,Datos!O$15,Tarifas!$K26,Datos!$B$3,Datos!$B$1,Datos!$B$4,Tarifas!$M26,Tarifas!$N26,Tarifas!$O26,Tarifas!$P26,Tarifas!$Q26,Datos!$B$2) -> 40.33889969 | Q24: =IF(Tarifas!R26="Sí","Sí","") -> Sí
A25: =IF(Tarifas!A27="","",Tarifas!A27) -> Gana Energía | B25: =IF(Tarifas!B27="","",Tarifas!B27) -> 2.0TD Precio estable | C25: 473.40007 | E25: =FACTURA(ROW(), COLUMN(),Datos!D$8,Datos!D$9,Tarifas!$C27,Datos!D$10,Tarifas!$D27,Datos!D$11,Tarifas!$E27,Datos!D$12,Tarifas!$F27,Datos!D$13,Tarifas!$G27,Tarifas!$L27,Datos!D$16,Datos!D$17,Datos!D$19,Datos!D$20,Datos!D$22,Datos!D$23,Datos!D$25,Datos!D$28,Datos!D$31,Tarifas!$H27,Tarifas!$I27,Tarifas!$J27,Datos!D$15,Tarifas!$K27,Datos!$B$3,Datos!$B$1,Datos!$B$4,Tarifas!$M27,Tarifas!$N27,Tarifas!$O27,Tarifas!$P27,Tarifas!$Q27,Datos!$B$2) -> 21.8006775 | F25: =FACTURA(ROW(), COLUMN(),Datos!E$8,Datos!E$9,Tarifas!$C27,Datos!E$10,Tarifas!$D27,Datos!E$11,Tarifas!$E27,Datos!E$12,Tarifas!$F27,Datos!E$13,Tarifas!$G27,Tarifas!$L27,Datos!E$16,Datos!E$17,Datos!E$19,Datos!E$20,Datos!E$22,Datos!E$23,Datos!E$25,Datos!E$28,Datos!E$31,Tarifas!$H27,Tarifas!$I27,Tarifas!$J27,Datos!E$15,Tarifas!$K27,Datos!$B$3,Datos!$B$1,Datos!$B$4,Tarifas!$M27,Tarifas!$N27,Tarifas!$O27,Tarifas!$P27,Tarifas!$Q27,Datos!$B$2) -> 44.68833416 | G25: =FACTURA(ROW(), COLUMN(),Datos!F$8,Datos!F$9,Tarifas!$C27,Datos!F$10,Tarifas!$D27,Datos!F$11,Tarifas!$E27,Datos!F$12,Tarifas!$F27,Datos!F$13,Tarifas!$G27,Tarifas!$L27,Datos!F$16,Datos!F$17,Datos!F$19,Datos!F$20,Datos!F$22,Datos!F$23,Datos!F$25,Datos!F$28,Datos!F$31,Tarifas!$H27,Tarifas!$I27,Tarifas!$J27,Datos!F$15,Tarifas!$K27,Datos!$B$3,Datos!$B$1,Datos!$B$4,Tarifas!$M27,Tarifas!$N27,Tarifas!$O27,Tarifas!$P27,Tarifas!$Q27,Datos!$B$2) -> 21.8006775 | H25: =FACTURA(ROW(), COLUMN(),Datos!G$8,Datos!G$9,Tarifas!$C27,Datos!G$10,Tarifas!$D27,Datos!G$11,Tarifas!$E27,Datos!G$12,Tarifas!$F27,Datos!G$13,Tarifas!$G27,Tarifas!$L27,Datos!G$16,Datos!G$17,Datos!G$19,Datos!G$20,Datos!G$22,Datos!G$23,Datos!G$25,Datos!G$28,Datos!G$31,Tarifas!$H27,Tarifas!$I27,Tarifas!$J27,Datos!G$15,Tarifas!$K27,Datos!$B$3,Datos!$B$1,Datos!$B$4,Tarifas!$M27,Tarifas!$N27,Tarifas!$O27,Tarifas!$P27,Tarifas!$Q27,Datos!$B$2) -> 44.68833416 | I25: =FACTURA(ROW(), COLUMN(),Datos!H$8,Datos!H$9,Tarifas!$C27,Datos!H$10,Tarifas!$D27,Datos!H$11,Tarifas!$E27,Datos!H$12,Tarifas!$F27,Datos!H$13,Tarifas!$G27,Tarifas!$L27,Datos!H$16,Datos!H$17,Datos!H$19,Datos!H$20,Datos!H$22,Datos!H$23,Datos!H$25,Datos!H$28,Datos!H$31,Tarifas!$H27,Tarifas!$I27,Tarifas!$J27,Datos!H$15,Tarifas!$K27,Datos!$B$3,Datos!$B$1,Datos!$B$4,Tarifas!$M27,Tarifas!$N27,Tarifas!$O27,Tarifas!$P27,Tarifas!$Q27,Datos!$B$2) -> 29.3921775 | J25: =FACTURA(ROW(), COLUMN(),Datos!I$8,Datos!I$9,Tarifas!$C27,Datos!I$10,Tarifas!$D27,Datos!I$11,Tarifas!$E27,Datos!I$12,Tarifas!$F27,Datos!I$13,Tarifas!$G27,Tarifas!$L27,Datos!I$16,Datos!I$17,Datos!I$19,Datos!I$20,Datos!I$22,Datos!I$23,Datos!I$25,Datos!I$28,Datos!I$31,Tarifas!$H27,Tarifas!$I27,Tarifas!$J27,Datos!I$15,Tarifas!$K27,Datos!$B$3,Datos!$B$1,Datos!$B$4,Tarifas!$M27,Tarifas!$N27,Tarifas!$O27,Tarifas!$P27,Tarifas!$Q27,Datos!$B$2) -> 44.68833416 | K25: =FACTURA(ROW(), COLUMN(),Datos!J$8,Datos!J$9,Tarifas!$C27,Datos!J$10,Tarifas!$D27,Datos!J$11,Tarifas!$E27,Datos!J$12,Tarifas!$F27,Datos!J$13,Tarifas!$G27,Tarifas!$L27,Datos!J$16,Datos!J$17,Datos!J$19,Datos!J$20,Datos!J$22,Datos!J$23,Datos!J$25,Datos!J$28,Datos!J$31,Tarifas!$H27,Tarifas!$I27,Tarifas!$J27,Datos!J$15,Tarifas!$K27,Datos!$B$3,Datos!$B$1,Datos!$B$4,Tarifas!$M27,Tarifas!$N27,Tarifas!$O27,Tarifas!$P27,Tarifas!$Q27,Datos!$B$2) -> 36.7421775 | L25: =FACTURA(ROW(), COLUMN(),Datos!K$8,Datos!K$9,Tarifas!$C27,Datos!K$10,Tarifas!$D27,Datos!K$11,Tarifas!$E27,Datos!K$12,Tarifas!$F27,Datos!K$13,Tarifas!$G27,Tarifas!$L27,Datos!K$16,Datos!K$17,Datos!K$19,Datos!K$20,Datos!K$22,Datos!K$23,Datos!K$25,Datos!K$28,Datos!K$31,Tarifas!$H27,Tarifas!$I27,Tarifas!$J27,Datos!K$15,Tarifas!$K27,Datos!$B$3,Datos!$B$1,Datos!$B$4,Tarifas!$M27,Tarifas!$N27,Tarifas!$O27,Tarifas!$P27,Tarifas!$Q27,Datos!$B$2) -> 44.68833416 | M25: =FACTURA(ROW(), COLUMN(),Datos!L$8,Datos!L$9,Tarifas!$C27,Datos!L$10,Tarifas!$D27,Datos!L$11,Tarifas!$E27,Datos!L$12,Tarifas!$F27,Datos!L$13,Tarifas!$G27,Tarifas!$L27,Datos!L$16,Datos!L$17,Datos!L$19,Datos!L$20,Datos!L$22,Datos!L$23,Datos!L$25,Datos!L$28,Datos!L$31,Tarifas!$H27,Tarifas!$I27,Tarifas!$J27,Datos!L$15,Tarifas!$K27,Datos!$B$3,Datos!$B$1,Datos!$B$4,Tarifas!$M27,Tarifas!$N27,Tarifas!$O27,Tarifas!$P27,Tarifas!$Q27,Datos!$B$2) -> 44.0921775 | N25: =FACTURA(ROW(), COLUMN(),Datos!M$8,Datos!M$9,Tarifas!$C27,Datos!M$10,Tarifas!$D27,Datos!M$11,Tarifas!$E27,Datos!M$12,Tarifas!$F27,Datos!M$13,Tarifas!$G27,Tarifas!$L27,Datos!M$16,Datos!M$17,Datos!M$19,Datos!M$20,Datos!M$22,Datos!M$23,Datos!M$25,Datos!M$28,Datos!M$31,Tarifas!$H27,Tarifas!$I27,Tarifas!$J27,Datos!M$15,Tarifas!$K27,Datos!$B$3,Datos!$B$1,Datos!$B$4,Tarifas!$M27,Tarifas!$N27,Tarifas!$O27,Tarifas!$P27,Tarifas!$Q27,Datos!$B$2) -> 44.68833416 | O25: =FACTURA(ROW(), COLUMN(),Datos!N$8,Datos!N$9,Tarifas!$C27,Datos!N$10,Tarifas!$D27,Datos!N$11,Tarifas!$E27,Datos!N$12,Tarifas!$F27,Datos!N$13,Tarifas!$G27,Tarifas!$L27,Datos!N$16,Datos!N$17,Datos!N$19,Datos!N$20,Datos!N$22,Datos!N$23,Datos!N$25,Datos!N$28,Datos!N$31,Tarifas!$H27,Tarifas!$I27,Tarifas!$J27,Datos!N$15,Tarifas!$K27,Datos!$B$3,Datos!$B$1,Datos!$B$4,Tarifas!$M27,Tarifas!$N27,Tarifas!$O27,Tarifas!$P27,Tarifas!$Q27,Datos!$B$2) -> 51.4421775 | P25: =FACTURA(ROW(), COLUMN(),Datos!O$8,Datos!O$9,Tarifas!$C27,Datos!O$10,Tarifas!$D27,Datos!O$11,Tarifas!$E27,Datos!O$12,Tarifas!$F27,Datos!O$13,Tarifas!$G27,Tarifas!$L27,Datos!O$16,Datos!O$17,Datos!O$19,Datos!O$20,Datos!O$22,Datos!O$23,Datos!O$25,Datos!O$28,Datos!O$31,Tarifas!$H27,Tarifas!$I27,Tarifas!$J27,Datos!O$15,Tarifas!$K27,Datos!$B$3,Datos!$B$1,Datos!$B$4,Tarifas!$M27,Tarifas!$N27,Tarifas!$O27,Tarifas!$P27,Tarifas!$Q27,Datos!$B$2) -> 44.68833416 | Q25: =IF(Tarifas!R27="Sí","Sí","") -> Sí
A26: =IF(Tarifas!A28="","",Tarifas!A28) -> Gana Energía | B26: =IF(Tarifas!B28="","",Tarifas!B28) -> 2.0TD Online | C26: 502.3097391 | E26: =FACTURA(ROW(), COLUMN(),Datos!D$8,Datos!D$9,Tarifas!$C28,Datos!D$10,Tarifas!$D28,Datos!D$11,Tarifas!$E28,Datos!D$12,Tarifas!$F28,Datos!D$13,Tarifas!$G28,Tarifas!$L28,Datos!D$16,Datos!D$17,Datos!D$19,Datos!D$20,Datos!D$22,Datos!D$23,Datos!D$25,Datos!D$28,Datos!D$31,Tarifas!$H28,Tarifas!$I28,Tarifas!$J28,Datos!D$15,Tarifas!$K28,Datos!$B$3,Datos!$B$1,Datos!$B$4,Tarifas!$M28,Tarifas!$N28,Tarifas!$O28,Tarifas!$P28,Tarifas!$Q28,Datos!$B$2) -> 21.8006775 | F26: =FACTURA(ROW(), COLUMN(),Datos!E$8,Datos!E$9,Tarifas!$C28,Datos!E$10,Tarifas!$D28,Datos!E$11,Tarifas!$E28,Datos!E$12,Tarifas!$F28,Datos!E$13,Tarifas!$G28,Tarifas!$L28,Datos!E$16,Datos!E$17,Datos!E$19,Datos!E$20,Datos!E$22,Datos!E$23,Datos!E$25,Datos!E$28,Datos!E$31,Tarifas!$H28,Tarifas!$I28,Tarifas!$J28,Datos!E$15,Tarifas!$K28,Datos!$B$3,Datos!$B$1,Datos!$B$4,Tarifas!$M28,Tarifas!$N28,Tarifas!$O28,Tarifas!$P28,Tarifas!$Q28,Datos!$B$2) -> 47.45308916 | G26: =FACTURA(ROW(), COLUMN(),Datos!F$8,Datos!F$9,Tarifas!$C28,Datos!F$10,Tarifas!$D28,Datos!F$11,Tarifas!$E28,Datos!F$12,Tarifas!$F28,Datos!F$13,Tarifas!$G28,Tarifas!$L28,Datos!F$16,Datos!F$17,Datos!F$19,Datos!F$20,Datos!F$22,Datos!F$23,Datos!F$25,Datos!F$28,Datos!F$31,Tarifas!$H28,Tarifas!$I28,Tarifas!$J28,Datos!F$15,Tarifas!$K28,Datos!$B$3,Datos!$B$1,Datos!$B$4,Tarifas!$M28,Tarifas!$N28,Tarifas!$O28,Tarifas!$P28,Tarifas!$Q28,Datos!$B$2) -> 21.8006775 | H26: =FACTURA(ROW(), COLUMN(),Datos!G$8,Datos!G$9,Tarifas!$C28,Datos!G$10,Tarifas!$D28,Datos!G$11,Tarifas!$E28,Datos!G$12,Tarifas!$F28,Datos!G$13,Tarifas!$G28,Tarifas!$L28,Datos!G$16,Datos!G$17,Datos!G$19,Datos!G$20,Datos!G$22,Datos!G$23,Datos!G$25,Datos!G$28,Datos!G$31,Tarifas!$H28,Tarifas!$I28,Tarifas!$J28,Datos!G$15,Tarifas!$K28,Datos!$B$3,Datos!$B$1,Datos!$B$4,Tarifas!$M28,Tarifas!$N28,Tarifas!$O28,Tarifas!$P28,Tarifas!$Q28,Datos!$B$2) -> 47.45308916 | I26: =FACTURA(ROW(), COLUMN(),Datos!H$8,Datos!H$9,Tarifas!$C28,Datos!H$10,Tarifas!$D28,Datos!H$11,Tarifas!$E28,Datos!H$12,Tarifas!$F28,Datos!H$13,Tarifas!$G28,Tarifas!$L28,Datos!H$16,Datos!H$17,Datos!H$19,Datos!H$20,Datos!H$22,Datos!H$23,Datos!H$25,Datos!H$28,Datos!H$31,Tarifas!$H28,Tarifas!$I28,Tarifas!$J28,Datos!H$15,Tarifas!$K28,Datos!$B$3,Datos!$B$1,Datos!$B$4,Tarifas!$M28,Tarifas!$N28,Tarifas!$O28,Tarifas!$P28,Tarifas!$Q28,Datos!$B$2) -> 32.4686775 | J26: =FACTURA(ROW(), COLUMN(),Datos!I$8,Datos!I$9,Tarifas!$C28,Datos!I$10,Tarifas!$D28,Datos!I$11,Tarifas!$E28,Datos!I$12,Tarifas!$F28,Datos!I$13,Tarifas!$G28,Tarifas!$L28,Datos!I$16,Datos!I$17,Datos!I$19,Datos!I$20,Datos!I$22,Datos!I$23,Datos!I$25,Datos!I$28,Datos!I$31,Tarifas!$H28,Tarifas!$I28,Tarifas!$J28,Datos!I$15,Tarifas!$K28,Datos!$B$3,Datos!$B$1,Datos!$B$4,Tarifas!$M28,Tarifas!$N28,Tarifas!$O28,Tarifas!$P28,Tarifas!$Q28,Datos!$B$2) -> 47.45308916 | K26: =FACTURA(ROW(), COLUMN(),Datos!J$8,Datos!J$9,Tarifas!$C28,Datos!J$10,Tarifas!$D28,Datos!J$11,Tarifas!$E28,Datos!J$12,Tarifas!$F28,Datos!J$13,Tarifas!$G28,Tarifas!$L28,Datos!J$16,Datos!J$17,Datos!J$19,Datos!J$20,Datos!J$22,Datos!J$23,Datos!J$25,Datos!J$28,Datos!J$31,Tarifas!$H28,Tarifas!$I28,Tarifas!$J28,Datos!J$15,Tarifas!$K28,Datos!$B$3,Datos!$B$1,Datos!$B$4,Tarifas!$M28,Tarifas!$N28,Tarifas!$O28,Tarifas!$P28,Tarifas!$Q28,Datos!$B$2) -> 39.8186775 | L26: =FACTURA(ROW(), COLUMN(),Datos!K$8,Datos!K$9,Tarifas!$C28,Datos!K$10,Tarifas!$D28,Datos!K$11,Tarifas!$E28,Datos!K$12,Tarifas!$F28,Datos!K$13,Tarifas!$G28,Tarifas!$L28,Datos!K$16,Datos!K$17,Datos!K$19,Datos!K$20,Datos!K$22,Datos!K$23,Datos!K$25,Datos!K$28,Datos!K$31,Tarifas!$H28,Tarifas!$I28,Tarifas!$J28,Datos!K$15,Tarifas!$K28,Datos!$B$3,Datos!$B$1,Datos!$B$4,Tarifas!$M28,Tarifas!$N28,Tarifas!$O28,Tarifas!$P28,Tarifas!$Q28,Datos!$B$2) -> 47.45308916 | M26: =FACTURA(ROW(), COLUMN(),Datos!L$8,Datos!L$9,Tarifas!$C28,Datos!L$10,Tarifas!$D28,Datos!L$11,Tarifas!$E28,Datos!L$12,Tarifas!$F28,Datos!L$13,Tarifas!$G28,Tarifas!$L28,Datos!L$16,Datos!L$17,Datos!L$19,Datos!L$20,Datos!L$22,Datos!L$23,Datos!L$25,Datos!L$28,Datos!L$31,Tarifas!$H28,Tarifas!$I28,Tarifas!$J28,Datos!L$15,Tarifas!$K28,Datos!$B$3,Datos!$B$1,Datos!$B$4,Tarifas!$M28,Tarifas!$N28,Tarifas!$O28,Tarifas!$P28,Tarifas!$Q28,Datos!$B$2) -> 47.1686775 | N26: =FACTURA(ROW(), COLUMN(),Datos!M$8,Datos!M$9,Tarifas!$C28,Datos!M$10,Tarifas!$D28,Datos!M$11,Tarifas!$E28,Datos!M$12,Tarifas!$F28,Datos!M$13,Tarifas!$G28,Tarifas!$L28,Datos!M$16,Datos!M$17,Datos!M$19,Datos!M$20,Datos!M$22,Datos!M$23,Datos!M$25,Datos!M$28,Datos!M$31,Tarifas!$H28,Tarifas!$I28,Tarifas!$J28,Datos!M$15,Tarifas!$K28,Datos!$B$3,Datos!$B$1,Datos!$B$4,Tarifas!$M28,Tarifas!$N28,Tarifas!$O28,Tarifas!$P28,Tarifas!$Q28,Datos!$B$2) -> 47.45308916 | O26: =FACTURA(ROW(), COLUMN(),Datos!N$8,Datos!N$9,Tarifas!$C28,Datos!N$10,Tarifas!$D28,Datos!N$11,Tarifas!$E28,Datos!N$12,Tarifas!$F28,Datos!N$13,Tarifas!$G28,Tarifas!$L28,Datos!N$16,Datos!N$17,Datos!N$19,Datos!N$20,Datos!N$22,Datos!N$23,Datos!N$25,Datos!N$28,Datos!N$31,Tarifas!$H28,Tarifas!$I28,Tarifas!$J28,Datos!N$15,Tarifas!$K28,Datos!$B$3,Datos!$B$1,Datos!$B$4,Tarifas!$M28,Tarifas!$N28,Tarifas!$O28,Tarifas!$P28,Tarifas!$Q28,Datos!$B$2) -> 54.53381666 | P26: =FACTURA(ROW(), COLUMN(),Datos!O$8,Datos!O$9,Tarifas!$C28,Datos!O$10,Tarifas!$D28,Datos!O$11,Tarifas!$E28,Datos!O$12,Tarifas!$F28,Datos!O$13,Tarifas!$G28,Tarifas!$L28,Datos!O$16,Datos!O$17,Datos!O$19,Datos!O$20,Datos!O$22,Datos!O$23,Datos!O$25,Datos!O$28,Datos!O$31,Tarifas!$H28,Tarifas!$I28,Tarifas!$J28,Datos!O$15,Tarifas!$K28,Datos!$B$3,Datos!$B$1,Datos!$B$4,Tarifas!$M28,Tarifas!$N28,Tarifas!$O28,Tarifas!$P28,Tarifas!$Q28,Datos!$B$2) -> 47.45308916 | Q26: =IF(Tarifas!R28="Sí","Sí","") -> Sí
A27: =IF(Tarifas!A29="","",Tarifas!A29) -> Gana Energía | B27: =IF(Tarifas!B29="","",Tarifas!B29) -> Compra Colectiva Febrero 2023 | C27: 308.9455242 | E27: =FACTURA(ROW(), COLUMN(),Datos!D$8,Datos!D$9,Tarifas!$C29,Datos!D$10,Tarifas!$D29,Datos!D$11,Tarifas!$E29,Datos!D$12,Tarifas!$F29,Datos!D$13,Tarifas!$G29,Tarifas!$L29,Datos!D$16,Datos!D$17,Datos!D$19,Datos!D$20,Datos!D$22,Datos!D$23,Datos!D$25,Datos!D$28,Datos!D$31,Tarifas!$H29,Tarifas!$I29,Tarifas!$J29,Datos!D$15,Tarifas!$K29,Datos!$B$3,Datos!$B$1,Datos!$B$4,Tarifas!$M29,Tarifas!$N29,Tarifas!$O29,Tarifas!$P29,Tarifas!$Q29,Datos!$B$2) -> 9.4534335 | F27: =FACTURA(ROW(), COLUMN(),Datos!E$8,Datos!E$9,Tarifas!$C29,Datos!E$10,Tarifas!$D29,Datos!E$11,Tarifas!$E29,Datos!E$12,Tarifas!$F29,Datos!E$13,Tarifas!$G29,Tarifas!$L29,Datos!E$16,Datos!E$17,Datos!E$19,Datos!E$20,Datos!E$22,Datos!E$23,Datos!E$25,Datos!E$28,Datos!E$31,Tarifas!$H29,Tarifas!$I29,Tarifas!$J29,Datos!E$15,Tarifas!$K29,Datos!$B$3,Datos!$B$1,Datos!$B$4,Tarifas!$M29,Tarifas!$N29,Tarifas!$O29,Tarifas!$P29,Tarifas!$Q29,Datos!$B$2) -> 30.9645652 | G27: =FACTURA(ROW(), COLUMN(),Datos!F$8,Datos!F$9,Tarifas!$C29,Datos!F$10,Tarifas!$D29,Datos!F$11,Tarifas!$E29,Datos!F$12,Tarifas!$F29,Datos!F$13,Tarifas!$G29,Tarifas!$L29,Datos!F$16,Datos!F$17,Datos!F$19,Datos!F$20,Datos!F$22,Datos!F$23,Datos!F$25,Datos!F$28,Datos!F$31,Tarifas!$H29,Tarifas!$I29,Tarifas!$J29,Datos!F$15,Tarifas!$K29,Datos!$B$3,Datos!$B$1,Datos!$B$4,Tarifas!$M29,Tarifas!$N29,Tarifas!$O29,Tarifas!$P29,Tarifas!$Q29,Datos!$B$2) -> 9.4534335 | H27: =FACTURA(ROW(), COLUMN(),Datos!G$8,Datos!G$9,Tarifas!$C29,Datos!G$10,Tarifas!$D29,Datos!G$11,Tarifas!$E29,Datos!G$12,Tarifas!$F29,Datos!G$13,Tarifas!$G29,Tarifas!$L29,Datos!G$16,Datos!G$17,Datos!G$19,Datos!G$20,Datos!G$22,Datos!G$23,Datos!G$25,Datos!G$28,Datos!G$31,Tarifas!$H29,Tarifas!$I29,Tarifas!$J29,Datos!G$15,Tarifas!$K29,Datos!$B$3,Datos!$B$1,Datos!$B$4,Tarifas!$M29,Tarifas!$N29,Tarifas!$O29,Tarifas!$P29,Tarifas!$Q29,Datos!$B$2) -> 30.9645652 | I27: =FACTURA(ROW(), COLUMN(),Datos!H$8,Datos!H$9,Tarifas!$C29,Datos!H$10,Tarifas!$D29,Datos!H$11,Tarifas!$E29,Datos!H$12,Tarifas!$F29,Datos!H$13,Tarifas!$G29,Tarifas!$L29,Datos!H$16,Datos!H$17,Datos!H$19,Datos!H$20,Datos!H$22,Datos!H$23,Datos!H$25,Datos!H$28,Datos!H$31,Tarifas!$H29,Tarifas!$I29,Tarifas!$J29,Datos!H$15,Tarifas!$K29,Datos!$B$3,Datos!$B$1,Datos!$B$4,Tarifas!$M29,Tarifas!$N29,Tarifas!$O29,Tarifas!$P29,Tarifas!$Q29,Datos!$B$2) -> 15.0378165 | J27: =FACTURA(ROW(), COLUMN(),Datos!I$8,Datos!I$9,Tarifas!$C29,Datos!I$10,Tarifas!$D29,Datos!I$11,Tarifas!$E29,Datos!I$12,Tarifas!$F29,Datos!I$13,Tarifas!$G29,Tarifas!$L29,Datos!I$16,Datos!I$17,Datos!I$19,Datos!I$20,Datos!I$22,Datos!I$23,Datos!I$25,Datos!I$28,Datos!I$31,Tarifas!$H29,Tarifas!$I29,Tarifas!$J29,Datos!I$15,Tarifas!$K29,Datos!$B$3,Datos!$B$1,Datos!$B$4,Tarifas!$M29,Tarifas!$N29,Tarifas!$O29,Tarifas!$P29,Tarifas!$Q29,Datos!$B$2) -> 30.9645652 | K27: =FACTURA(ROW(), COLUMN(),Datos!J$8,Datos!J$9,Tarifas!$C29,Datos!J$10,Tarifas!$D29,Datos!J$11,Tarifas!$E29,Datos!J$12,Tarifas!$F29,Datos!J$13,Tarifas!$G29,Tarifas!$L29,Datos!J$16,Datos!J$17,Datos!J$19,Datos!J$20,Datos!J$22,Datos!J$23,Datos!J$25,Datos!J$28,Datos!J$31,Tarifas!$H29,Tarifas!$I29,Tarifas!$J29,Datos!J$15,Tarifas!$K29,Datos!$B$3,Datos!$B$1,Datos!$B$4,Tarifas!$M29,Tarifas!$N29,Tarifas!$O29,Tarifas!$P29,Tarifas!$Q29,Datos!$B$2) -> 22.3878165 | L27: =FACTURA(ROW(), COLUMN(),Datos!K$8,Datos!K$9,Tarifas!$C29,Datos!K$10,Tarifas!$D29,Datos!K$11,Tarifas!$E29,Datos!K$12,Tarifas!$F29,Datos!K$13,Tarifas!$G29,Tarifas!$L29,Datos!K$16,Datos!K$17,Datos!K$19,Datos!K$20,Datos!K$22,Datos!K$23,Datos!K$25,Datos!K$28,Datos!K$31,Tarifas!$H29,Tarifas!$I29,Tarifas!$J29,Datos!K$15,Tarifas!$K29,Datos!$B$3,Datos!$B$1,Datos!$B$4,Tarifas!$M29,Tarifas!$N29,Tarifas!$O29,Tarifas!$P29,Tarifas!$Q29,Datos!$B$2) -> 30.9645652 | M27: =FACTURA(ROW(), COLUMN(),Datos!L$8,Datos!L$9,Tarifas!$C29,Datos!L$10,Tarifas!$D29,Datos!L$11,Tarifas!$E29,Datos!L$12,Tarifas!$F29,Datos!L$13,Tarifas!$G29,Tarifas!$L29,Datos!L$16,Datos!L$17,Datos!L$19,Datos!L$20,Datos!L$22,Datos!L$23,Datos!L$25,Datos!L$28,Datos!L$31,Tarifas!$H29,Tarifas!$I29,Tarifas!$J29,Datos!L$15,Tarifas!$K29,Datos!$B$3,Datos!$B$1,Datos!$B$4,Tarifas!$M29,Tarifas!$N29,Tarifas!$O29,Tarifas!$P29,Tarifas!$Q29,Datos!$B$2) -> 29.7378165 | N27: =FACTURA(ROW(), COLUMN(),Datos!M$8,Datos!M$9,Tarifas!$C29,Datos!M$10,Tarifas!$D29,Datos!M$11,Tarifas!$E29,Datos!M$12,Tarifas!$F29,Datos!M$13,Tarifas!$G29,Tarifas!$L29,Datos!M$16,Datos!M$17,Datos!M$19,Datos!M$20,Datos!M$22,Datos!M$23,Datos!M$25,Datos!M$28,Datos!M$31,Tarifas!$H29,Tarifas!$I29,Tarifas!$J29,Datos!M$15,Tarifas!$K29,Datos!$B$3,Datos!$B$1,Datos!$B$4,Tarifas!$M29,Tarifas!$N29,Tarifas!$O29,Tarifas!$P29,Tarifas!$Q29,Datos!$B$2) -> 30.9645652 | O27: =FACTURA(ROW(), COLUMN(),Datos!N$8,Datos!N$9,Tarifas!$C29,Datos!N$10,Tarifas!$D29,Datos!N$11,Tarifas!$E29,Datos!N$12,Tarifas!$F29,Datos!N$13,Tarifas!$G29,Tarifas!$L29,Datos!N$16,Datos!N$17,Datos!N$19,Datos!N$20,Datos!N$22,Datos!N$23,Datos!N$25,Datos!N$28,Datos!N$31,Tarifas!$H29,Tarifas!$I29,Tarifas!$J29,Datos!N$15,Tarifas!$K29,Datos!$B$3,Datos!$B$1,Datos!$B$4,Tarifas!$M29,Tarifas!$N29,Tarifas!$O29,Tarifas!$P29,Tarifas!$Q29,Datos!$B$2) -> 37.0878165 | P27: =FACTURA(ROW(), COLUMN(),Datos!O$8,Datos!O$9,Tarifas!$C29,Datos!O$10,Tarifas!$D29,Datos!O$11,Tarifas!$E29,Datos!O$12,Tarifas!$F29,Datos!O$13,Tarifas!$G29,Tarifas!$L29,Datos!O$16,Datos!O$17,Datos!O$19,Datos!O$20,Datos!O$22,Datos!O$23,Datos!O$25,Datos!O$28,Datos!O$31,Tarifas!$H29,Tarifas!$I29,Tarifas!$J29,Datos!O$15,Tarifas!$K29,Datos!$B$3,Datos!$B$1,Datos!$B$4,Tarifas!$M29,Tarifas!$N29,Tarifas!$O29,Tarifas!$P29,Tarifas!$Q29,Datos!$B$2) -> 30.9645652 | Q27: =IF(Tarifas!R29="Sí","Sí","") -> 
A28: =IF(Tarifas!A30="","",Tarifas!A30) -> Iberdrola | B28: =IF(Tarifas!B30="","",Tarifas!B30) -> Plan VE | E28: =FACTURA(ROW(), COLUMN(),Datos!D$8,Datos!D$9,Tarifas!$C30,Datos!D$10,Tarifas!$D30,Datos!D$11,Tarifas!$E30,Datos!D$12,Tarifas!$F30,Datos!D$13,Tarifas!$G30,Tarifas!$L30,Datos!D$16,Datos!D$17,Datos!D$19,Datos!D$20,Datos!D$22,Datos!D$23,Datos!D$25,Datos!D$28,Datos!D$31,Tarifas!$H30,Tarifas!$I30,Tarifas!$J30,Datos!D$15,Tarifas!$K30,Datos!$B$3,Datos!$B$1,Datos!$B$4,Tarifas!$M30,Tarifas!$N30,Tarifas!$O30,Tarifas!$P30,Tarifas!$Q30,Datos!$B$2) ->  | F28: =FACTURA(ROW(), COLUMN(),Datos!E$8,Datos!E$9,Tarifas!$C30,Datos!E$10,Tarifas!$D30,Datos!E$11,Tarifas!$E30,Datos!E$12,Tarifas!$F30,Datos!E$13,Tarifas!$G30,Tarifas!$L30,Datos!E$16,Datos!E$17,Datos!E$19,Datos!E$20,Datos!E$22,Datos!E$23,Datos!E$25,Datos!E$28,Datos!E$31,Tarifas!$H30,Tarifas!$I30,Tarifas!$J30,Datos!E$15,Tarifas!$K30,Datos!$B$3,Datos!$B$1,Datos!$B$4,Tarifas!$M30,Tarifas!$N30,Tarifas!$O30,Tarifas!$P30,Tarifas!$Q30,Datos!$B$2) ->  | G28: =FACTURA(ROW(), COLUMN(),Datos!F$8,Datos!F$9,Tarifas!$C30,Datos!F$10,Tarifas!$D30,Datos!F$11,Tarifas!$E30,Datos!F$12,Tarifas!$F30,Datos!F$13,Tarifas!$G30,Tarifas!$L30,Datos!F$16,Datos!F$17,Datos!F$19,Datos!F$20,Datos!F$22,Datos!F$23,Datos!F$25,Datos!F$28,Datos!F$31,Tarifas!$H30,Tarifas!$I30,Tarifas!$J30,Datos!F$15,Tarifas!$K30,Datos!$B$3,Datos!$B$1,Datos!$B$4,Tarifas!$M30,Tarifas!$N30,Tarifas!$O30,Tarifas!$P30,Tarifas!$Q30,Datos!$B$2) ->  | H28: =FACTURA(ROW(), COLUMN(),Datos!G$8,Datos!G$9,Tarifas!$C30,Datos!G$10,Tarifas!$D30,Datos!G$11,Tarifas!$E30,Datos!G$12,Tarifas!$F30,Datos!G$13,Tarifas!$G30,Tarifas!$L30,Datos!G$16,Datos!G$17,Datos!G$19,Datos!G$20,Datos!G$22,Datos!G$23,Datos!G$25,Datos!G$28,Datos!G$31,Tarifas!$H30,Tarifas!$I30,Tarifas!$J30,Datos!G$15,Tarifas!$K30,Datos!$B$3,Datos!$B$1,Datos!$B$4,Tarifas!$M30,Tarifas!$N30,Tarifas!$O30,Tarifas!$P30,Tarifas!$Q30,Datos!$B$2) ->  | I28: =FACTURA(ROW(), COLUMN(),Datos!H$8,Datos!H$9,Tarifas!$C30,Datos!H$10,Tarifas!$D30,Datos!H$11,Tarifas!$E30,Datos!H$12,Tarifas!$F30,Datos!H$13,Tarifas!$G30,Tarifas!$L30,Datos!H$16,Datos!H$17,Datos!H$19,Datos!H$20,Datos!H$22,Datos!H$23,Datos!H$25,Datos!H$28,Datos!H$31,Tarifas!$H30,Tarifas!$I30,Tarifas!$J30,Datos!H$15,Tarifas!$K30,Datos!$B$3,Datos!$B$1,Datos!$B$4,Tarifas!$M30,Tarifas!$N30,Tarifas!$O30,Tarifas!$P30,Tarifas!$Q30,Datos!$B$2) ->  | J28: =FACTURA(ROW(), COLUMN(),Datos!I$8,Datos!I$9,Tarifas!$C30,Datos!I$10,Tarifas!$D30,Datos!I$11,Tarifas!$E30,Datos!I$12,Tarifas!$F30,Datos!I$13,Tarifas!$G30,Tarifas!$L30,Datos!I$16,Datos!I$17,Datos!I$19,Datos!I$20,Datos!I$22,Datos!I$23,Datos!I$25,Datos!I$28,Datos!I$31,Tarifas!$H30,Tarifas!$I30,Tarifas!$J30,Datos!I$15,Tarifas!$K30,Datos!$B$3,Datos!$B$1,Datos!$B$4,Tarifas!$M30,Tarifas!$N30,Tarifas!$O30,Tarifas!$P30,Tarifas!$Q30,Datos!$B$2) ->  | K28: =FACTURA(ROW(), COLUMN(),Datos!J$8,Datos!J$9,Tarifas!$C30,Datos!J$10,Tarifas!$D30,Datos!J$11,Tarifas!$E30,Datos!J$12,Tarifas!$F30,Datos!J$13,Tarifas!$G30,Tarifas!$L30,Datos!J$16,Datos!J$17,Datos!J$19,Datos!J$20,Datos!J$22,Datos!J$23,Datos!J$25,Datos!J$28,Datos!J$31,Tarifas!$H30,Tarifas!$I30,Tarifas!$J30,Datos!J$15,Tarifas!$K30,Datos!$B$3,Datos!$B$1,Datos!$B$4,Tarifas!$M30,Tarifas!$N30,Tarifas!$O30,Tarifas!$P30,Tarifas!$Q30,Datos!$B$2) ->  | L28: =FACTURA(ROW(), COLUMN(),Datos!K$8,Datos!K$9,Tarifas!$C30,Datos!K$10,Tarifas!$D30,Datos!K$11,Tarifas!$E30,Datos!K$12,Tarifas!$F30,Datos!K$13,Tarifas!$G30,Tarifas!$L30,Datos!K$16,Datos!K$17,Datos!K$19,Datos!K$20,Datos!K$22,Datos!K$23,Datos!K$25,Datos!K$28,Datos!K$31,Tarifas!$H30,Tarifas!$I30,Tarifas!$J30,Datos!K$15,Tarifas!$K30,Datos!$B$3,Datos!$B$1,Datos!$B$4,Tarifas!$M30,Tarifas!$N30,Tarifas!$O30,Tarifas!$P30,Tarifas!$Q30,Datos!$B$2) ->  | M28: =FACTURA(ROW(), COLUMN(),Datos!L$8,Datos!L$9,Tarifas!$C30,Datos!L$10,Tarifas!$D30,Datos!L$11,Tarifas!$E30,Datos!L$12,Tarifas!$F30,Datos!L$13,Tarifas!$G30,Tarifas!$L30,Datos!L$16,Datos!L$17,Datos!L$19,Datos!L$20,Datos!L$22,Datos!L$23,Datos!L$25,Datos!L$28,Datos!L$31,Tarifas!$H30,Tarifas!$I30,Tarifas!$J30,Datos!L$15,Tarifas!$K30,Datos!$B$3,Datos!$B$1,Datos!$B$4,Tarifas!$M30,Tarifas!$N30,Tarifas!$O30,Tarifas!$P30,Tarifas!$Q30,Datos!$B$2) ->  | N28: =FACTURA(ROW(), COLUMN(),Datos!M$8,Datos!M$9,Tarifas!$C30,Datos!M$10,Tarifas!$D30,Datos!M$11,Tarifas!$E30,Datos!M$12,Tarifas!$F30,Datos!M$13,Tarifas!$G30,Tarifas!$L30,Datos!M$16,Datos!M$17,Datos!M$19,Datos!M$20,Datos!M$22,Datos!M$23,Datos!M$25,Datos!M$28,Datos!M$31,Tarifas!$H30,Tarifas!$I30,Tarifas!$J30,Datos!M$15,Tarifas!$K30,Datos!$B$3,Datos!$B$1,Datos!$B$4,Tarifas!$M30,Tarifas!$N30,Tarifas!$O30,Tarifas!$P30,Tarifas!$Q30,Datos!$B$2) ->  | O28: =FACTURA(ROW(), COLUMN(),Datos!N$8,Datos!N$9,Tarifas!$C30,Datos!N$10,Tarifas!$D30,Datos!N$11,Tarifas!$E30,Datos!N$12,Tarifas!$F30,Datos!N$13,Tarifas!$G30,Tarifas!$L30,Datos!N$16,Datos!N$17,Datos!N$19,Datos!N$20,Datos!N$22,Datos!N$23,Datos!N$25,Datos!N$28,Datos!N$31,Tarifas!$H30,Tarifas!$I30,Tarifas!$J30,Datos!N$15,Tarifas!$K30,Datos!$B$3,Datos!$B$1,Datos!$B$4,Tarifas!$M30,Tarifas!$N30,Tarifas!$O30,Tarifas!$P30,Tarifas!$Q30,Datos!$B$2) ->  | P28: =FACTURA(ROW(), COLUMN(),Datos!O$8,Datos!O$9,Tarifas!$C30,Datos!O$10,Tarifas!$D30,Datos!O$11,Tarifas!$E30,Datos!O$12,Tarifas!$F30,Datos!O$13,Tarifas!$G30,Tarifas!$L30,Datos!O$16,Datos!O$17,Datos!O$19,Datos!O$20,Datos!O$22,Datos!O$23,Datos!O$25,Datos!O$28,Datos!O$31,Tarifas!$H30,Tarifas!$I30,Tarifas!$J30,Datos!O$15,Tarifas!$K30,Datos!$B$3,Datos!$B$1,Datos!$B$4,Tarifas!$M30,Tarifas!$N30,Tarifas!$O30,Tarifas!$P30,Tarifas!$Q30,Datos!$B$2) ->  | Q28: =IF(Tarifas!R30="Sí","Sí","") -> 
A29: =IF(Tarifas!A31="","",Tarifas!A31) -> Iberdrola | B29: =IF(Tarifas!B31="","",Tarifas!B31) -> Online | C29: 328.337768 | E29: =FACTURA(ROW(), COLUMN(),Datos!D$8,Datos!D$9,Tarifas!$C31,Datos!D$10,Tarifas!$D31,Datos!D$11,Tarifas!$E31,Datos!D$12,Tarifas!$F31,Datos!D$13,Tarifas!$G31,Tarifas!$L31,Datos!D$16,Datos!D$17,Datos!D$19,Datos!D$20,Datos!D$22,Datos!D$23,Datos!D$25,Datos!D$28,Datos!D$31,Tarifas!$H31,Tarifas!$I31,Tarifas!$J31,Datos!D$15,Tarifas!$K31,Datos!$B$3,Datos!$B$1,Datos!$B$4,Tarifas!$M31,Tarifas!$N31,Tarifas!$O31,Tarifas!$P31,Tarifas!$Q31,Datos!$B$2) -> 14.49693092 | F29: =FACTURA(ROW(), COLUMN(),Datos!E$8,Datos!E$9,Tarifas!$C31,Datos!E$10,Tarifas!$D31,Datos!E$11,Tarifas!$E31,Datos!E$12,Tarifas!$F31,Datos!E$13,Tarifas!$G31,Tarifas!$L31,Datos!E$16,Datos!E$17,Datos!E$19,Datos!E$20,Datos!E$22,Datos!E$23,Datos!E$25,Datos!E$28,Datos!E$31,Tarifas!$H31,Tarifas!$I31,Tarifas!$J31,Datos!E$15,Tarifas!$K31,Datos!$B$3,Datos!$B$1,Datos!$B$4,Tarifas!$M31,Tarifas!$N31,Tarifas!$O31,Tarifas!$P31,Tarifas!$Q31,Datos!$B$2) -> 6.976030413 | G29: =FACTURA(ROW(), COLUMN(),Datos!F$8,Datos!F$9,Tarifas!$C31,Datos!F$10,Tarifas!$D31,Datos!F$11,Tarifas!$E31,Datos!F$12,Tarifas!$F31,Datos!F$13,Tarifas!$G31,Tarifas!$L31,Datos!F$16,Datos!F$17,Datos!F$19,Datos!F$20,Datos!F$22,Datos!F$23,Datos!F$25,Datos!F$28,Datos!F$31,Tarifas!$H31,Tarifas!$I31,Tarifas!$J31,Datos!F$15,Tarifas!$K31,Datos!$B$3,Datos!$B$1,Datos!$B$4,Tarifas!$M31,Tarifas!$N31,Tarifas!$O31,Tarifas!$P31,Tarifas!$Q31,Datos!$B$2) -> 14.49693092 | H29: =FACTURA(ROW(), COLUMN(),Datos!G$8,Datos!G$9,Tarifas!$C31,Datos!G$10,Tarifas!$D31,Datos!G$11,Tarifas!$E31,Datos!G$12,Tarifas!$F31,Datos!G$13,Tarifas!$G31,Tarifas!$L31,Datos!G$16,Datos!G$17,Datos!G$19,Datos!G$20,Datos!G$22,Datos!G$23,Datos!G$25,Datos!G$28,Datos!G$31,Tarifas!$H31,Tarifas!$I31,Tarifas!$J31,Datos!G$15,Tarifas!$K31,Datos!$B$3,Datos!$B$1,Datos!$B$4,Tarifas!$M31,Tarifas!$N31,Tarifas!$O31,Tarifas!$P31,Tarifas!$Q31,Datos!$B$2) -> 17.47603041 | I29: =FACTURA(ROW(), COLUMN(),Datos!H$8,Datos!H$9,Tarifas!$C31,Datos!H$10,Tarifas!$D31,Datos!H$11,Tarifas!$E31,Datos!H$12,Tarifas!$F31,Datos!H$13,Tarifas!$G31,Tarifas!$L31,Datos!H$16,Datos!H$17,Datos!H$19,Datos!H$20,Datos!H$22,Datos!H$23,Datos!H$25,Datos!H$28,Datos!H$31,Tarifas!$H31,Tarifas!$I31,Tarifas!$J31,Datos!H$15,Tarifas!$K31,Datos!$B$3,Datos!$B$1,Datos!$B$4,Tarifas!$M31,Tarifas!$N31,Tarifas!$O31,Tarifas!$P31,Tarifas!$Q31,Datos!$B$2) -> 14.49693092 | J29: =FACTURA(ROW(), COLUMN(),Datos!I$8,Datos!I$9,Tarifas!$C31,Datos!I$10,Tarifas!$D31,Datos!I$11,Tarifas!$E31,Datos!I$12,Tarifas!$F31,Datos!I$13,Tarifas!$G31,Tarifas!$L31,Datos!I$16,Datos!I$17,Datos!I$19,Datos!I$20,Datos!I$22,Datos!I$23,Datos!I$25,Datos!I$28,Datos!I$31,Tarifas!$H31,Tarifas!$I31,Tarifas!$J31,Datos!I$15,Tarifas!$K31,Datos!$B$3,Datos!$B$1,Datos!$B$4,Tarifas!$M31,Tarifas!$N31,Tarifas!$O31,Tarifas!$P31,Tarifas!$Q31,Datos!$B$2) -> 38.47603041 | K29: =FACTURA(ROW(), COLUMN(),Datos!J$8,Datos!J$9,Tarifas!$C31,Datos!J$10,Tarifas!$D31,Datos!J$11,Tarifas!$E31,Datos!J$12,Tarifas!$F31,Datos!J$13,Tarifas!$G31,Tarifas!$L31,Datos!J$16,Datos!J$17,Datos!J$19,Datos!J$20,Datos!J$22,Datos!J$23,Datos!J$25,Datos!J$28,Datos!J$31,Tarifas!$H31,Tarifas!$I31,Tarifas!$J31,Datos!J$15,Tarifas!$K31,Datos!$B$3,Datos!$B$1,Datos!$B$4,Tarifas!$M31,Tarifas!$N31,Tarifas!$O31,Tarifas!$P31,Tarifas!$Q31,Datos!$B$2) -> 23.19622292 | L29: =FACTURA(ROW(), COLUMN(),Datos!K$8,Datos!K$9,Tarifas!$C31,Datos!K$10,Tarifas!$D31,Datos!K$11,Tarifas!$E31,Datos!K$12,Tarifas!$F31,Datos!K$13,Tarifas!$G31,Tarifas!$L31,Datos!K$16,Datos!K$17,Datos!K$19,Datos!K$20,Datos!K$22,Datos!K$23,Datos!K$25,Datos!K$28,Datos!K$31,Tarifas!$H31,Tarifas!$I31,Tarifas!$J31,Datos!K$15,Tarifas!$K31,Datos!$B$3,Datos!$B$1,Datos!$B$4,Tarifas!$M31,Tarifas!$N31,Tarifas!$O31,Tarifas!$P31,Tarifas!$Q31,Datos!$B$2) -> 40.27673841 | M29: =FACTURA(ROW(), COLUMN(),Datos!L$8,Datos!L$9,Tarifas!$C31,Datos!L$10,Tarifas!$D31,Datos!L$11,Tarifas!$E31,Datos!L$12,Tarifas!$F31,Datos!L$13,Tarifas!$G31,Tarifas!$L31,Datos!L$16,Datos!L$17,Datos!L$19,Datos!L$20,Datos!L$22,Datos!L$23,Datos!L$25,Datos!L$28,Datos!L$31,Tarifas!$H31,Tarifas!$I31,Tarifas!$J31,Datos!L$15,Tarifas!$K31,Datos!$B$3,Datos!$B$1,Datos!$B$4,Tarifas!$M31,Tarifas!$N31,Tarifas!$O31,Tarifas!$P31,Tarifas!$Q31,Datos!$B$2) -> 33.69622292 | N29: =FACTURA(ROW(), COLUMN(),Datos!M$8,Datos!M$9,Tarifas!$C31,Datos!M$10,Tarifas!$D31,Datos!M$11,Tarifas!$E31,Datos!M$12,Tarifas!$F31,Datos!M$13,Tarifas!$G31,Tarifas!$L31,Datos!M$16,Datos!M$17,Datos!M$19,Datos!M$20,Datos!M$22,Datos!M$23,Datos!M$25,Datos!M$28,Datos!M$31,Tarifas!$H31,Tarifas!$I31,Tarifas!$J31,Datos!M$15,Tarifas!$K31,Datos!$B$3,Datos!$B$1,Datos!$B$4,Tarifas!$M31,Tarifas!$N31,Tarifas!$O31,Tarifas!$P31,Tarifas!$Q31,Datos!$B$2) -> 40.27673841 | O29: =FACTURA(ROW(), COLUMN(),Datos!N$8,Datos!N$9,Tarifas!$C31,Datos!N$10,Tarifas!$D31,Datos!N$11,Tarifas!$E31,Datos!N$12,Tarifas!$F31,Datos!N$13,Tarifas!$G31,Tarifas!$L31,Datos!N$16,Datos!N$17,Datos!N$19,Datos!N$20,Datos!N$22,Datos!N$23,Datos!N$25,Datos!N$28,Datos!N$31,Tarifas!$H31,Tarifas!$I31,Tarifas!$J31,Datos!N$15,Tarifas!$K31,Datos!$B$3,Datos!$B$1,Datos!$B$4,Tarifas!$M31,Tarifas!$N31,Tarifas!$O31,Tarifas!$P31,Tarifas!$Q31,Datos!$B$2) -> 44.19622292 | P29: =FACTURA(ROW(), COLUMN(),Datos!O$8,Datos!O$9,Tarifas!$C31,Datos!O$10,Tarifas!$D31,Datos!O$11,Tarifas!$E31,Datos!O$12,Tarifas!$F31,Datos!O$13,Tarifas!$G31,Tarifas!$L31,Datos!O$16,Datos!O$17,Datos!O$19,Datos!O$20,Datos!O$22,Datos!O$23,Datos!O$25,Datos!O$28,Datos!O$31,Tarifas!$H31,Tarifas!$I31,Tarifas!$J31,Datos!O$15,Tarifas!$K31,Datos!$B$3,Datos!$B$1,Datos!$B$4,Tarifas!$M31,Tarifas!$N31,Tarifas!$O31,Tarifas!$P31,Tarifas!$Q31,Datos!$B$2) -> 40.27673841 | Q29: =IF(Tarifas!R31="Sí","Sí","") -> Sí
A30: =IF(Tarifas!A32="","",Tarifas!A32) -> Iberdrola | B30: =IF(Tarifas!B32="","",Tarifas!B32) -> Plan Solar | E30: =FACTURA(ROW(), COLUMN(),Datos!D$8,Datos!D$9,Tarifas!$C32,Datos!D$10,Tarifas!$D32,Datos!D$11,Tarifas!$E32,Datos!D$12,Tarifas!$F32,Datos!D$13,Tarifas!$G32,Tarifas!$L32,Datos!D$16,Datos!D$17,Datos!D$19,Datos!D$20,Datos!D$22,Datos!D$23,Datos!D$25,Datos!D$28,Datos!D$31,Tarifas!$H32,Tarifas!$I32,Tarifas!$J32,Datos!D$15,Tarifas!$K32,Datos!$B$3,Datos!$B$1,Datos!$B$4,Tarifas!$M32,Tarifas!$N32,Tarifas!$O32,Tarifas!$P32,Tarifas!$Q32,Datos!$B$2) ->  | F30: =FACTURA(ROW(), COLUMN(),Datos!E$8,Datos!E$9,Tarifas!$C32,Datos!E$10,Tarifas!$D32,Datos!E$11,Tarifas!$E32,Datos!E$12,Tarifas!$F32,Datos!E$13,Tarifas!$G32,Tarifas!$L32,Datos!E$16,Datos!E$17,Datos!E$19,Datos!E$20,Datos!E$22,Datos!E$23,Datos!E$25,Datos!E$28,Datos!E$31,Tarifas!$H32,Tarifas!$I32,Tarifas!$J32,Datos!E$15,Tarifas!$K32,Datos!$B$3,Datos!$B$1,Datos!$B$4,Tarifas!$M32,Tarifas!$N32,Tarifas!$O32,Tarifas!$P32,Tarifas!$Q32,Datos!$B$2) ->  | G30: =FACTURA(ROW(), COLUMN(),Datos!F$8,Datos!F$9,Tarifas!$C32,Datos!F$10,Tarifas!$D32,Datos!F$11,Tarifas!$E32,Datos!F$12,Tarifas!$F32,Datos!F$13,Tarifas!$G32,Tarifas!$L32,Datos!F$16,Datos!F$17,Datos!F$19,Datos!F$20,Datos!F$22,Datos!F$23,Datos!F$25,Datos!F$28,Datos!F$31,Tarifas!$H32,Tarifas!$I32,Tarifas!$J32,Datos!F$15,Tarifas!$K32,Datos!$B$3,Datos!$B$1,Datos!$B$4,Tarifas!$M32,Tarifas!$N32,Tarifas!$O32,Tarifas!$P32,Tarifas!$Q32,Datos!$B$2) ->  | H30: =FACTURA(ROW(), COLUMN(),Datos!G$8,Datos!G$9,Tarifas!$C32,Datos!G$10,Tarifas!$D32,Datos!G$11,Tarifas!$E32,Datos!G$12,Tarifas!$F32,Datos!G$13,Tarifas!$G32,Tarifas!$L32,Datos!G$16,Datos!G$17,Datos!G$19,Datos!G$20,Datos!G$22,Datos!G$23,Datos!G$25,Datos!G$28,Datos!G$31,Tarifas!$H32,Tarifas!$I32,Tarifas!$J32,Datos!G$15,Tarifas!$K32,Datos!$B$3,Datos!$B$1,Datos!$B$4,Tarifas!$M32,Tarifas!$N32,Tarifas!$O32,Tarifas!$P32,Tarifas!$Q32,Datos!$B$2) ->  | I30: =FACTURA(ROW(), COLUMN(),Datos!H$8,Datos!H$9,Tarifas!$C32,Datos!H$10,Tarifas!$D32,Datos!H$11,Tarifas!$E32,Datos!H$12,Tarifas!$F32,Datos!H$13,Tarifas!$G32,Tarifas!$L32,Datos!H$16,Datos!H$17,Datos!H$19,Datos!H$20,Datos!H$22,Datos!H$23,Datos!H$25,Datos!H$28,Datos!H$31,Tarifas!$H32,Tarifas!$I32,Tarifas!$J32,Datos!H$15,Tarifas!$K32,Datos!$B$3,Datos!$B$1,Datos!$B$4,Tarifas!$M32,Tarifas!$N32,Tarifas!$O32,Tarifas!$P32,Tarifas!$Q32,Datos!$B$2) ->  | J30: =FACTURA(ROW(), COLUMN(),Datos!I$8,Datos!I$9,Tarifas!$C32,Datos!I$10,Tarifas!$D32,Datos!I$11,Tarifas!$E32,Datos!I$12,Tarifas!$F32,Datos!I$13,Tarifas!$G32,Tarifas!$L32,Datos!I$16,Datos!I$17,Datos!I$19,Datos!I$20,Datos!I$22,Datos!I$23,Datos!I$25,Datos!I$28,Datos!I$31,Tarifas!$H32,Tarifas!$I32,Tarifas!$J32,Datos!I$15,Tarifas!$K32,Datos!$B$3,Datos!$B$1,Datos!$B$4,Tarifas!$M32,Tarifas!$N32,Tarifas!$O32,Tarifas!$P32,Tarifas!$Q32,Datos!$B$2) ->  | K30: =FACTURA(ROW(), COLUMN(),Datos!J$8,Datos!J$9,Tarifas!$C32,Datos!J$10,Tarifas!$D32,Datos!J$11,Tarifas!$E32,Datos!J$12,Tarifas!$F32,Datos!J$13,Tarifas!$G32,Tarifas!$L32,Datos!J$16,Datos!J$17,Datos!J$19,Datos!J$20,Datos!J$22,Datos!J$23,Datos!J$25,Datos!J$28,Datos!J$31,Tarifas!$H32,Tarifas!$I32,Tarifas!$J32,Datos!J$15,Tarifas!$K32,Datos!$B$3,Datos!$B$1,Datos!$B$4,Tarifas!$M32,Tarifas!$N32,Tarifas!$O32,Tarifas!$P32,Tarifas!$Q32,Datos!$B$2) ->  | L30: =FACTURA(ROW(), COLUMN(),Datos!K$8,Datos!K$9,Tarifas!$C32,Datos!K$10,Tarifas!$D32,Datos!K$11,Tarifas!$E32,Datos!K$12,Tarifas!$F32,Datos!K$13,Tarifas!$G32,Tarifas!$L32,Datos!K$16,Datos!K$17,Datos!K$19,Datos!K$20,Datos!K$22,Datos!K$23,Datos!K$25,Datos!K$28,Datos!K$31,Tarifas!$H32,Tarifas!$I32,Tarifas!$J32,Datos!K$15,Tarifas!$K32,Datos!$B$3,Datos!$B$1,Datos!$B$4,Tarifas!$M32,Tarifas!$N32,Tarifas!$O32,Tarifas!$P32,Tarifas!$Q32,Datos!$B$2) ->  | M30: =FACTURA(ROW(), COLUMN(),Datos!L$8,Datos!L$9,Tarifas!$C32,Datos!L$10,Tarifas!$D32,Datos!L$11,Tarifas!$E32,Datos!L$12,Tarifas!$F32,Datos!L$13,Tarifas!$G32,Tarifas!$L32,Datos!L$16,Datos!L$17,Datos!L$19,Datos!L$20,Datos!L$22,Datos!L$23,Datos!L$25,Datos!L$28,Datos!L$31,Tarifas!$H32,Tarifas!$I32,Tarifas!$J32,Datos!L$15,Tarifas!$K32,Datos!$B$3,Datos!$B$1,Datos!$B$4,Tarifas!$M32,Tarifas!$N32,Tarifas!$O32,Tarifas!$P32,Tarifas!$Q32,Datos!$B$2) ->  | N30: =FACTURA(ROW(), COLUMN(),Datos!M$8,Datos!M$9,Tarifas!$C32,Datos!M$10,Tarifas!$D32,Datos!M$11,Tarifas!$E32,Datos!M$12,Tarifas!$F32,Datos!M$13,Tarifas!$G32,Tarifas!$L32,Datos!M$16,Datos!M$17,Datos!M$19,Datos!M$20,Datos!M$22,Datos!M$23,Datos!M$25,Datos!M$28,Datos!M$31,Tarifas!$H32,Tarifas!$I32,Tarifas!$J32,Datos!M$15,Tarifas!$K32,Datos!$B$3,Datos!$B$1,Datos!$B$4,Tarifas!$M32,Tarifas!$N32,Tarifas!$O32,Tarifas!$P32,Tarifas!$Q32,Datos!$B$2) ->  | O30: =FACTURA(ROW(), COLUMN(),Datos!N$8,Datos!N$9,Tarifas!$C32,Datos!N$10,Tarifas!$D32,Datos!N$11,Tarifas!$E32,Datos!N$12,Tarifas!$F32,Datos!N$13,Tarifas!$G32,Tarifas!$L32,Datos!N$16,Datos!N$17,Datos!N$19,Datos!N$20,Datos!N$22,Datos!N$23,Datos!N$25,Datos!N$28,Datos!N$31,Tarifas!$H32,Tarifas!$I32,Tarifas!$J32,Datos!N$15,Tarifas!$K32,Datos!$B$3,Datos!$B$1,Datos!$B$4,Tarifas!$M32,Tarifas!$N32,Tarifas!$O32,Tarifas!$P32,Tarifas!$Q32,Datos!$B$2) ->  | P30: =FACTURA(ROW(), COLUMN(),Datos!O$8,Datos!O$9,Tarifas!$C32,Datos!O$10,Tarifas!$D32,Datos!O$11,Tarifas!$E32,Datos!O$12,Tarifas!$F32,Datos!O$13,Tarifas!$G32,Tarifas!$L32,Datos!O$16,Datos!O$17,Datos!O$19,Datos!O$20,Datos!O$22,Datos!O$23,Datos!O$25,Datos!O$28,Datos!O$31,Tarifas!$H32,Tarifas!$I32,Tarifas!$J32,Datos!O$15,Tarifas!$K32,Datos!$B$3,Datos!$B$1,Datos!$B$4,Tarifas!$M32,Tarifas!$N32,Tarifas!$O32,Tarifas!$P32,Tarifas!$Q32,Datos!$B$2) ->  | Q30: =IF(Tarifas!R32="Sí","Sí","") -> 
A31: =IF(Tarifas!A33="","",Tarifas!A33) -> Iberdrola | B31: =IF(Tarifas!B33="","",Tarifas!B33) -> Plan Estable | C31: 393.8503372 | E31: =FACTURA(ROW(), COLUMN(),Datos!D$8,Datos!D$9,Tarifas!$C33,Datos!D$10,Tarifas!$D33,Datos!D$11,Tarifas!$E33,Datos!D$12,Tarifas!$F33,Datos!D$13,Tarifas!$G33,Tarifas!$L33,Datos!D$16,Datos!D$17,Datos!D$19,Datos!D$20,Datos!D$22,Datos!D$23,Datos!D$25,Datos!D$28,Datos!D$31,Tarifas!$H33,Tarifas!$I33,Tarifas!$J33,Datos!D$15,Tarifas!$K33,Datos!$B$3,Datos!$B$1,Datos!$B$4,Tarifas!$M33,Tarifas!$N33,Tarifas!$O33,Tarifas!$P33,Tarifas!$Q33,Datos!$B$2) -> 14.49693092 | F31: =FACTURA(ROW(), COLUMN(),Datos!E$8,Datos!E$9,Tarifas!$C33,Datos!E$10,Tarifas!$D33,Datos!E$11,Tarifas!$E33,Datos!E$12,Tarifas!$F33,Datos!E$13,Tarifas!$G33,Tarifas!$L33,Datos!E$16,Datos!E$17,Datos!E$19,Datos!E$20,Datos!E$22,Datos!E$23,Datos!E$25,Datos!E$28,Datos!E$31,Tarifas!$H33,Tarifas!$I33,Tarifas!$J33,Datos!E$15,Tarifas!$K33,Datos!$B$3,Datos!$B$1,Datos!$B$4,Tarifas!$M33,Tarifas!$N33,Tarifas!$O33,Tarifas!$P33,Tarifas!$Q33,Datos!$B$2) -> 17.89479194 | G31: =FACTURA(ROW(), COLUMN(),Datos!F$8,Datos!F$9,Tarifas!$C33,Datos!F$10,Tarifas!$D33,Datos!F$11,Tarifas!$E33,Datos!F$12,Tarifas!$F33,Datos!F$13,Tarifas!$G33,Tarifas!$L33,Datos!F$16,Datos!F$17,Datos!F$19,Datos!F$20,Datos!F$22,Datos!F$23,Datos!F$25,Datos!F$28,Datos!F$31,Tarifas!$H33,Tarifas!$I33,Tarifas!$J33,Datos!F$15,Tarifas!$K33,Datos!$B$3,Datos!$B$1,Datos!$B$4,Tarifas!$M33,Tarifas!$N33,Tarifas!$O33,Tarifas!$P33,Tarifas!$Q33,Datos!$B$2) -> 14.49693092 | H31: =FACTURA(ROW(), COLUMN(),Datos!G$8,Datos!G$9,Tarifas!$C33,Datos!G$10,Tarifas!$D33,Datos!G$11,Tarifas!$E33,Datos!G$12,Tarifas!$F33,Datos!G$13,Tarifas!$G33,Tarifas!$L33,Datos!G$16,Datos!G$17,Datos!G$19,Datos!G$20,Datos!G$22,Datos!G$23,Datos!G$25,Datos!G$28,Datos!G$31,Tarifas!$H33,Tarifas!$I33,Tarifas!$J33,Datos!G$15,Tarifas!$K33,Datos!$B$3,Datos!$B$1,Datos!$B$4,Tarifas!$M33,Tarifas!$N33,Tarifas!$O33,Tarifas!$P33,Tarifas!$Q33,Datos!$B$2) -> 28.39479194 | I31: =FACTURA(ROW(), COLUMN(),Datos!H$8,Datos!H$9,Tarifas!$C33,Datos!H$10,Tarifas!$D33,Datos!H$11,Tarifas!$E33,Datos!H$12,Tarifas!$F33,Datos!H$13,Tarifas!$G33,Tarifas!$L33,Datos!H$16,Datos!H$17,Datos!H$19,Datos!H$20,Datos!H$22,Datos!H$23,Datos!H$25,Datos!H$28,Datos!H$31,Tarifas!$H33,Tarifas!$I33,Tarifas!$J33,Datos!H$15,Tarifas!$K33,Datos!$B$3,Datos!$B$1,Datos!$B$4,Tarifas!$M33,Tarifas!$N33,Tarifas!$O33,Tarifas!$P33,Tarifas!$Q33,Datos!$B$2) -> 19.57960292 | J31: =FACTURA(ROW(), COLUMN(),Datos!I$8,Datos!I$9,Tarifas!$C33,Datos!I$10,Tarifas!$D33,Datos!I$11,Tarifas!$E33,Datos!I$12,Tarifas!$F33,Datos!I$13,Tarifas!$G33,Tarifas!$L33,Datos!I$16,Datos!I$17,Datos!I$19,Datos!I$20,Datos!I$22,Datos!I$23,Datos!I$25,Datos!I$28,Datos!I$31,Tarifas!$H33,Tarifas!$I33,Tarifas!$J33,Datos!I$15,Tarifas!$K33,Datos!$B$3,Datos!$B$1,Datos!$B$4,Tarifas!$M33,Tarifas!$N33,Tarifas!$O33,Tarifas!$P33,Tarifas!$Q33,Datos!$B$2) -> 44.31211994 | K31: =FACTURA(ROW(), COLUMN(),Datos!J$8,Datos!J$9,Tarifas!$C33,Datos!J$10,Tarifas!$D33,Datos!J$11,Tarifas!$E33,Datos!J$12,Tarifas!$F33,Datos!J$13,Tarifas!$G33,Tarifas!$L33,Datos!J$16,Datos!J$17,Datos!J$19,Datos!J$20,Datos!J$22,Datos!J$23,Datos!J$25,Datos!J$28,Datos!J$31,Tarifas!$H33,Tarifas!$I33,Tarifas!$J33,Datos!J$15,Tarifas!$K33,Datos!$B$3,Datos!$B$1,Datos!$B$4,Tarifas!$M33,Tarifas!$N33,Tarifas!$O33,Tarifas!$P33,Tarifas!$Q33,Datos!$B$2) -> 30.07960292 | L31: =FACTURA(ROW(), COLUMN(),Datos!K$8,Datos!K$9,Tarifas!$C33,Datos!K$10,Tarifas!$D33,Datos!K$11,Tarifas!$E33,Datos!K$12,Tarifas!$F33,Datos!K$13,Tarifas!$G33,Tarifas!$L33,Datos!K$16,Datos!K$17,Datos!K$19,Datos!K$20,Datos!K$22,Datos!K$23,Datos!K$25,Datos!K$28,Datos!K$31,Tarifas!$H33,Tarifas!$I33,Tarifas!$J33,Datos!K$15,Tarifas!$K33,Datos!$B$3,Datos!$B$1,Datos!$B$4,Tarifas!$M33,Tarifas!$N33,Tarifas!$O33,Tarifas!$P33,Tarifas!$Q33,Datos!$B$2) -> 44.31211994 | M31: =FACTURA(ROW(), COLUMN(),Datos!L$8,Datos!L$9,Tarifas!$C33,Datos!L$10,Tarifas!$D33,Datos!L$11,Tarifas!$E33,Datos!L$12,Tarifas!$F33,Datos!L$13,Tarifas!$G33,Tarifas!$L33,Datos!L$16,Datos!L$17,Datos!L$19,Datos!L$20,Datos!L$22,Datos!L$23,Datos!L$25,Datos!L$28,Datos!L$31,Tarifas!$H33,Tarifas!$I33,Tarifas!$J33,Datos!L$15,Tarifas!$K33,Datos!$B$3,Datos!$B$1,Datos!$B$4,Tarifas!$M33,Tarifas!$N33,Tarifas!$O33,Tarifas!$P33,Tarifas!$Q33,Datos!$B$2) -> 40.57960292 | N31: =FACTURA(ROW(), COLUMN(),Datos!M$8,Datos!M$9,Tarifas!$C33,Datos!M$10,Tarifas!$D33,Datos!M$11,Tarifas!$E33,Datos!M$12,Tarifas!$F33,Datos!M$13,Tarifas!$G33,Tarifas!$L33,Datos!M$16,Datos!M$17,Datos!M$19,Datos!M$20,Datos!M$22,Datos!M$23,Datos!M$25,Datos!M$28,Datos!M$31,Tarifas!$H33,Tarifas!$I33,Tarifas!$J33,Datos!M$15,Tarifas!$K33,Datos!$B$3,Datos!$B$1,Datos!$B$4,Tarifas!$M33,Tarifas!$N33,Tarifas!$O33,Tarifas!$P33,Tarifas!$Q33,Datos!$B$2) -> 44.31211994 | O31: =FACTURA(ROW(), COLUMN(),Datos!N$8,Datos!N$9,Tarifas!$C33,Datos!N$10,Tarifas!$D33,Datos!N$11,Tarifas!$E33,Datos!N$12,Tarifas!$F33,Datos!N$13,Tarifas!$G33,Tarifas!$L33,Datos!N$16,Datos!N$17,Datos!N$19,Datos!N$20,Datos!N$22,Datos!N$23,Datos!N$25,Datos!N$28,Datos!N$31,Tarifas!$H33,Tarifas!$I33,Tarifas!$J33,Datos!N$15,Tarifas!$K33,Datos!$B$3,Datos!$B$1,Datos!$B$4,Tarifas!$M33,Tarifas!$N33,Tarifas!$O33,Tarifas!$P33,Tarifas!$Q33,Datos!$B$2) -> 51.07960292 | P31: =FACTURA(ROW(), COLUMN(),Datos!O$8,Datos!O$9,Tarifas!$C33,Datos!O$10,Tarifas!$D33,Datos!O$11,Tarifas!$E33,Datos!O$12,Tarifas!$F33,Datos!O$13,Tarifas!$G33,Tarifas!$L33,Datos!O$16,Datos!O$17,Datos!O$19,Datos!O$20,Datos!O$22,Datos!O$23,Datos!O$25,Datos!O$28,Datos!O$31,Tarifas!$H33,Tarifas!$I33,Tarifas!$J33,Datos!O$15,Tarifas!$K33,Datos!$B$3,Datos!$B$1,Datos!$B$4,Tarifas!$M33,Tarifas!$N33,Tarifas!$O33,Tarifas!$P33,Tarifas!$Q33,Datos!$B$2) -> 44.31211994 | Q31: =IF(Tarifas!R33="Sí","Sí","") -> 
A32: =IF(Tarifas!A34="","",Tarifas!A34) -> Iberdrola | B32: =IF(Tarifas!B34="","",Tarifas!B34) -> Plan Com. Prop. | C32: 682.2453239 | E32: =FACTURA(ROW(), COLUMN(),Datos!D$8,Datos!D$9,Tarifas!$C34,Datos!D$10,Tarifas!$D34,Datos!D$11,Tarifas!$E34,Datos!D$12,Tarifas!$F34,Datos!D$13,Tarifas!$G34,Tarifas!$L34,Datos!D$16,Datos!D$17,Datos!D$19,Datos!D$20,Datos!D$22,Datos!D$23,Datos!D$25,Datos!D$28,Datos!D$31,Tarifas!$H34,Tarifas!$I34,Tarifas!$J34,Datos!D$15,Tarifas!$K34,Datos!$B$3,Datos!$B$1,Datos!$B$4,Tarifas!$M34,Tarifas!$N34,Tarifas!$O34,Tarifas!$P34,Tarifas!$Q34,Datos!$B$2) -> 65.90431177 | F32: =FACTURA(ROW(), COLUMN(),Datos!E$8,Datos!E$9,Tarifas!$C34,Datos!E$10,Tarifas!$D34,Datos!E$11,Tarifas!$E34,Datos!E$12,Tarifas!$F34,Datos!E$13,Tarifas!$G34,Tarifas!$L34,Datos!E$16,Datos!E$17,Datos!E$19,Datos!E$20,Datos!E$22,Datos!E$23,Datos!E$25,Datos!E$28,Datos!E$31,Tarifas!$H34,Tarifas!$I34,Tarifas!$J34,Datos!E$15,Tarifas!$K34,Datos!$B$3,Datos!$B$1,Datos!$B$4,Tarifas!$M34,Tarifas!$N34,Tarifas!$O34,Tarifas!$P34,Tarifas!$Q34,Datos!$B$2) -> 47.80324222 | G32: =FACTURA(ROW(), COLUMN(),Datos!F$8,Datos!F$9,Tarifas!$C34,Datos!F$10,Tarifas!$D34,Datos!F$11,Tarifas!$E34,Datos!F$12,Tarifas!$F34,Datos!F$13,Tarifas!$G34,Tarifas!$L34,Datos!F$16,Datos!F$17,Datos!F$19,Datos!F$20,Datos!F$22,Datos!F$23,Datos!F$25,Datos!F$28,Datos!F$31,Tarifas!$H34,Tarifas!$I34,Tarifas!$J34,Datos!F$15,Tarifas!$K34,Datos!$B$3,Datos!$B$1,Datos!$B$4,Tarifas!$M34,Tarifas!$N34,Tarifas!$O34,Tarifas!$P34,Tarifas!$Q34,Datos!$B$2) -> 65.90431177 | H32: =FACTURA(ROW(), COLUMN(),Datos!G$8,Datos!G$9,Tarifas!$C34,Datos!G$10,Tarifas!$D34,Datos!G$11,Tarifas!$E34,Datos!G$12,Tarifas!$F34,Datos!G$13,Tarifas!$G34,Tarifas!$L34,Datos!G$16,Datos!G$17,Datos!G$19,Datos!G$20,Datos!G$22,Datos!G$23,Datos!G$25,Datos!G$28,Datos!G$31,Tarifas!$H34,Tarifas!$I34,Tarifas!$J34,Datos!G$15,Tarifas!$K34,Datos!$B$3,Datos!$B$1,Datos!$B$4,Tarifas!$M34,Tarifas!$N34,Tarifas!$O34,Tarifas!$P34,Tarifas!$Q34,Datos!$B$2) -> 47.80324222 | I32: =FACTURA(ROW(), COLUMN(),Datos!H$8,Datos!H$9,Tarifas!$C34,Datos!H$10,Tarifas!$D34,Datos!H$11,Tarifas!$E34,Datos!H$12,Tarifas!$F34,Datos!H$13,Tarifas!$G34,Tarifas!$L34,Datos!H$16,Datos!H$17,Datos!H$19,Datos!H$20,Datos!H$22,Datos!H$23,Datos!H$25,Datos!H$28,Datos!H$31,Tarifas!$H34,Tarifas!$I34,Tarifas!$J34,Datos!H$15,Tarifas!$K34,Datos!$B$3,Datos!$B$1,Datos!$B$4,Tarifas!$M34,Tarifas!$N34,Tarifas!$O34,Tarifas!$P34,Tarifas!$Q34,Datos!$B$2) -> 65.90431177 | J32: =FACTURA(ROW(), COLUMN(),Datos!I$8,Datos!I$9,Tarifas!$C34,Datos!I$10,Tarifas!$D34,Datos!I$11,Tarifas!$E34,Datos!I$12,Tarifas!$F34,Datos!I$13,Tarifas!$G34,Tarifas!$L34,Datos!I$16,Datos!I$17,Datos!I$19,Datos!I$20,Datos!I$22,Datos!I$23,Datos!I$25,Datos!I$28,Datos!I$31,Tarifas!$H34,Tarifas!$I34,Tarifas!$J34,Datos!I$15,Tarifas!$K34,Datos!$B$3,Datos!$B$1,Datos!$B$4,Tarifas!$M34,Tarifas!$N34,Tarifas!$O34,Tarifas!$P34,Tarifas!$Q34,Datos!$B$2) -> 47.80324222 | K32: =FACTURA(ROW(), COLUMN(),Datos!J$8,Datos!J$9,Tarifas!$C34,Datos!J$10,Tarifas!$D34,Datos!J$11,Tarifas!$E34,Datos!J$12,Tarifas!$F34,Datos!J$13,Tarifas!$G34,Tarifas!$L34,Datos!J$16,Datos!J$17,Datos!J$19,Datos!J$20,Datos!J$22,Datos!J$23,Datos!J$25,Datos!J$28,Datos!J$31,Tarifas!$H34,Tarifas!$I34,Tarifas!$J34,Datos!J$15,Tarifas!$K34,Datos!$B$3,Datos!$B$1,Datos!$B$4,Tarifas!$M34,Tarifas!$N34,Tarifas!$O34,Tarifas!$P34,Tarifas!$Q34,Datos!$B$2) -> 65.90431177 | L32: =FACTURA(ROW(), COLUMN(),Datos!K$8,Datos!K$9,Tarifas!$C34,Datos!K$10,Tarifas!$D34,Datos!K$11,Tarifas!$E34,Datos!K$12,Tarifas!$F34,Datos!K$13,Tarifas!$G34,Tarifas!$L34,Datos!K$16,Datos!K$17,Datos!K$19,Datos!K$20,Datos!K$22,Datos!K$23,Datos!K$25,Datos!K$28,Datos!K$31,Tarifas!$H34,Tarifas!$I34,Tarifas!$J34,Datos!K$15,Tarifas!$K34,Datos!$B$3,Datos!$B$1,Datos!$B$4,Tarifas!$M34,Tarifas!$N34,Tarifas!$O34,Tarifas!$P34,Tarifas!$Q34,Datos!$B$2) -> 47.80324222 | M32: =FACTURA(ROW(), COLUMN(),Datos!L$8,Datos!L$9,Tarifas!$C34,Datos!L$10,Tarifas!$D34,Datos!L$11,Tarifas!$E34,Datos!L$12,Tarifas!$F34,Datos!L$13,Tarifas!$G34,Tarifas!$L34,Datos!L$16,Datos!L$17,Datos!L$19,Datos!L$20,Datos!L$22,Datos!L$23,Datos!L$25,Datos!L$28,Datos!L$31,Tarifas!$H34,Tarifas!$I34,Tarifas!$J34,Datos!L$15,Tarifas!$K34,Datos!$B$3,Datos!$B$1,Datos!$B$4,Tarifas!$M34,Tarifas!$N34,Tarifas!$O34,Tarifas!$P34,Tarifas!$Q34,Datos!$B$2) -> 65.90431177 | N32: =FACTURA(ROW(), COLUMN(),Datos!M$8,Datos!M$9,Tarifas!$C34,Datos!M$10,Tarifas!$D34,Datos!M$11,Tarifas!$E34,Datos!M$12,Tarifas!$F34,Datos!M$13,Tarifas!$G34,Tarifas!$L34,Datos!M$16,Datos!M$17,Datos!M$19,Datos!M$20,Datos!M$22,Datos!M$23,Datos!M$25,Datos!M$28,Datos!M$31,Tarifas!$H34,Tarifas!$I34,Tarifas!$J34,Datos!M$15,Tarifas!$K34,Datos!$B$3,Datos!$B$1,Datos!$B$4,Tarifas!$M34,Tarifas!$N34,Tarifas!$O34,Tarifas!$P34,Tarifas!$Q34,Datos!$B$2) -> 47.80324222 | O32: =FACTURA(ROW(), COLUMN(),Datos!N$8,Datos!N$9,Tarifas!$C34,Datos!N$10,Tarifas!$D34,Datos!N$11,Tarifas!$E34,Datos!N$12,Tarifas!$F34,Datos!N$13,Tarifas!$G34,Tarifas!$L34,Datos!N$16,Datos!N$17,Datos!N$19,Datos!N$20,Datos!N$22,Datos!N$23,Datos!N$25,Datos!N$28,Datos!N$31,Tarifas!$H34,Tarifas!$I34,Tarifas!$J34,Datos!N$15,Tarifas!$K34,Datos!$B$3,Datos!$B$1,Datos!$B$4,Tarifas!$M34,Tarifas!$N34,Tarifas!$O34,Tarifas!$P34,Tarifas!$Q34,Datos!$B$2) -> 65.90431177 | P32: =FACTURA(ROW(), COLUMN(),Datos!O$8,Datos!O$9,Tarifas!$C34,Datos!O$10,Tarifas!$D34,Datos!O$11,Tarifas!$E34,Datos!O$12,Tarifas!$F34,Datos!O$13,Tarifas!$G34,Tarifas!$L34,Datos!O$16,Datos!O$17,Datos!O$19,Datos!O$20,Datos!O$22,Datos!O$23,Datos!O$25,Datos!O$28,Datos!O$31,Tarifas!$H34,Tarifas!$I34,Tarifas!$J34,Datos!O$15,Tarifas!$K34,Datos!$B$3,Datos!$B$1,Datos!$B$4,Tarifas!$M34,Tarifas!$N34,Tarifas!$O34,Tarifas!$P34,Tarifas!$Q34,Datos!$B$2) -> 47.80324222 | Q32: =IF(Tarifas!R34="Sí","Sí","") -> Sí
A33: =IF(Tarifas!A35="","",Tarifas!A35) -> Iberdrola | B33: =IF(Tarifas!B35="","",Tarifas!B35) -> Plan Estable Com. de Prop. | C33: 669.4998045 | E33: =FACTURA(ROW(), COLUMN(),Datos!D$8,Datos!D$9,Tarifas!$C35,Datos!D$10,Tarifas!$D35,Datos!D$11,Tarifas!$E35,Datos!D$12,Tarifas!$F35,Datos!D$13,Tarifas!$G35,Tarifas!$L35,Datos!D$16,Datos!D$17,Datos!D$19,Datos!D$20,Datos!D$22,Datos!D$23,Datos!D$25,Datos!D$28,Datos!D$31,Tarifas!$H35,Tarifas!$I35,Tarifas!$J35,Datos!D$15,Tarifas!$K35,Datos!$B$3,Datos!$B$1,Datos!$B$4,Tarifas!$M35,Tarifas!$N35,Tarifas!$O35,Tarifas!$P35,Tarifas!$Q35,Datos!$B$2) -> 65.61539762 | F33: =FACTURA(ROW(), COLUMN(),Datos!E$8,Datos!E$9,Tarifas!$C35,Datos!E$10,Tarifas!$D35,Datos!E$11,Tarifas!$E35,Datos!E$12,Tarifas!$F35,Datos!E$13,Tarifas!$G35,Tarifas!$L35,Datos!E$16,Datos!E$17,Datos!E$19,Datos!E$20,Datos!E$22,Datos!E$23,Datos!E$25,Datos!E$28,Datos!E$31,Tarifas!$H35,Tarifas!$I35,Tarifas!$J35,Datos!E$15,Tarifas!$K35,Datos!$B$3,Datos!$B$1,Datos!$B$4,Tarifas!$M35,Tarifas!$N35,Tarifas!$O35,Tarifas!$P35,Tarifas!$Q35,Datos!$B$2) -> 45.96790314 | G33: =FACTURA(ROW(), COLUMN(),Datos!F$8,Datos!F$9,Tarifas!$C35,Datos!F$10,Tarifas!$D35,Datos!F$11,Tarifas!$E35,Datos!F$12,Tarifas!$F35,Datos!F$13,Tarifas!$G35,Tarifas!$L35,Datos!F$16,Datos!F$17,Datos!F$19,Datos!F$20,Datos!F$22,Datos!F$23,Datos!F$25,Datos!F$28,Datos!F$31,Tarifas!$H35,Tarifas!$I35,Tarifas!$J35,Datos!F$15,Tarifas!$K35,Datos!$B$3,Datos!$B$1,Datos!$B$4,Tarifas!$M35,Tarifas!$N35,Tarifas!$O35,Tarifas!$P35,Tarifas!$Q35,Datos!$B$2) -> 65.61539762 | H33: =FACTURA(ROW(), COLUMN(),Datos!G$8,Datos!G$9,Tarifas!$C35,Datos!G$10,Tarifas!$D35,Datos!G$11,Tarifas!$E35,Datos!G$12,Tarifas!$F35,Datos!G$13,Tarifas!$G35,Tarifas!$L35,Datos!G$16,Datos!G$17,Datos!G$19,Datos!G$20,Datos!G$22,Datos!G$23,Datos!G$25,Datos!G$28,Datos!G$31,Tarifas!$H35,Tarifas!$I35,Tarifas!$J35,Datos!G$15,Tarifas!$K35,Datos!$B$3,Datos!$B$1,Datos!$B$4,Tarifas!$M35,Tarifas!$N35,Tarifas!$O35,Tarifas!$P35,Tarifas!$Q35,Datos!$B$2) -> 45.96790314 | I33: =FACTURA(ROW(), COLUMN(),Datos!H$8,Datos!H$9,Tarifas!$C35,Datos!H$10,Tarifas!$D35,Datos!H$11,Tarifas!$E35,Datos!H$12,Tarifas!$F35,Datos!H$13,Tarifas!$G35,Tarifas!$L35,Datos!H$16,Datos!H$17,Datos!H$19,Datos!H$20,Datos!H$22,Datos!H$23,Datos!H$25,Datos!H$28,Datos!H$31,Tarifas!$H35,Tarifas!$I35,Tarifas!$J35,Datos!H$15,Tarifas!$K35,Datos!$B$3,Datos!$B$1,Datos!$B$4,Tarifas!$M35,Tarifas!$N35,Tarifas!$O35,Tarifas!$P35,Tarifas!$Q35,Datos!$B$2) -> 65.61539762 | J33: =FACTURA(ROW(), COLUMN(),Datos!I$8,Datos!I$9,Tarifas!$C35,Datos!I$10,Tarifas!$D35,Datos!I$11,Tarifas!$E35,Datos!I$12,Tarifas!$F35,Datos!I$13,Tarifas!$G35,Tarifas!$L35,Datos!I$16,Datos!I$17,Datos!I$19,Datos!I$20,Datos!I$22,Datos!I$23,Datos!I$25,Datos!I$28,Datos!I$31,Tarifas!$H35,Tarifas!$I35,Tarifas!$J35,Datos!I$15,Tarifas!$K35,Datos!$B$3,Datos!$B$1,Datos!$B$4,Tarifas!$M35,Tarifas!$N35,Tarifas!$O35,Tarifas!$P35,Tarifas!$Q35,Datos!$B$2) -> 45.96790314 | K33: =FACTURA(ROW(), COLUMN(),Datos!J$8,Datos!J$9,Tarifas!$C35,Datos!J$10,Tarifas!$D35,Datos!J$11,Tarifas!$E35,Datos!J$12,Tarifas!$F35,Datos!J$13,Tarifas!$G35,Tarifas!$L35,Datos!J$16,Datos!J$17,Datos!J$19,Datos!J$20,Datos!J$22,Datos!J$23,Datos!J$25,Datos!J$28,Datos!J$31,Tarifas!$H35,Tarifas!$I35,Tarifas!$J35,Datos!J$15,Tarifas!$K35,Datos!$B$3,Datos!$B$1,Datos!$B$4,Tarifas!$M35,Tarifas!$N35,Tarifas!$O35,Tarifas!$P35,Tarifas!$Q35,Datos!$B$2) -> 65.61539762 | L33: =FACTURA(ROW(), COLUMN(),Datos!K$8,Datos!K$9,Tarifas!$C35,Datos!K$10,Tarifas!$D35,Datos!K$11,Tarifas!$E35,Datos!K$12,Tarifas!$F35,Datos!K$13,Tarifas!$G35,Tarifas!$L35,Datos!K$16,Datos!K$17,Datos!K$19,Datos!K$20,Datos!K$22,Datos!K$23,Datos!K$25,Datos!K$28,Datos!K$31,Tarifas!$H35,Tarifas!$I35,Tarifas!$J35,Datos!K$15,Tarifas!$K35,Datos!$B$3,Datos!$B$1,Datos!$B$4,Tarifas!$M35,Tarifas!$N35,Tarifas!$O35,Tarifas!$P35,Tarifas!$Q35,Datos!$B$2) -> 45.96790314 | M33: =FACTURA(ROW(), COLUMN(),Datos!L$8,Datos!L$9,Tarifas!$C35,Datos!L$10,Tarifas!$D35,Datos!L$11,Tarifas!$E35,Datos!L$12,Tarifas!$F35,Datos!L$13,Tarifas!$G35,Tarifas!$L35,Datos!L$16,Datos!L$17,Datos!L$19,Datos!L$20,Datos!L$22,Datos!L$23,Datos!L$25,Datos!L$28,Datos!L$31,Tarifas!$H35,Tarifas!$I35,Tarifas!$J35,Datos!L$15,Tarifas!$K35,Datos!$B$3,Datos!$B$1,Datos!$B$4,Tarifas!$M35,Tarifas!$N35,Tarifas!$O35,Tarifas!$P35,Tarifas!$Q35,Datos!$B$2) -> 65.61539762 | N33: =FACTURA(ROW(), COLUMN(),Datos!M$8,Datos!M$9,Tarifas!$C35,Datos!M$10,Tarifas!$D35,Datos!M$11,Tarifas!$E35,Datos!M$12,Tarifas!$F35,Datos!M$13,Tarifas!$G35,Tarifas!$L35,Datos!M$16,Datos!M$17,Datos!M$19,Datos!M$20,Datos!M$22,Datos!M$23,Datos!M$25,Datos!M$28,Datos!M$31,Tarifas!$H35,Tarifas!$I35,Tarifas!$J35,Datos!M$15,Tarifas!$K35,Datos!$B$3,Datos!$B$1,Datos!$B$4,Tarifas!$M35,Tarifas!$N35,Tarifas!$O35,Tarifas!$P35,Tarifas!$Q35,Datos!$B$2) -> 45.96790314 | O33: =FACTURA(ROW(), COLUMN(),Datos!N$8,Datos!N$9,Tarifas!$C35,Datos!N$10,Tarifas!$D35,Datos!N$11,Tarifas!$E35,Datos!N$12,Tarifas!$F35,Datos!N$13,Tarifas!$G35,Tarifas!$L35,Datos!N$16,Datos!N$17,Datos!N$19,Datos!N$20,Datos!N$22,Datos!N$23,Datos!N$25,Datos!N$28,Datos!N$31,Tarifas!$H35,Tarifas!$I35,Tarifas!$J35,Datos!N$15,Tarifas!$K35,Datos!$B$3,Datos!$B$1,Datos!$B$4,Tarifas!$M35,Tarifas!$N35,Tarifas!$O35,Tarifas!$P35,Tarifas!$Q35,Datos!$B$2) -> 65.61539762 | P33: =FACTURA(ROW(), COLUMN(),Datos!O$8,Datos!O$9,Tarifas!$C35,Datos!O$10,Tarifas!$D35,Datos!O$11,Tarifas!$E35,Datos!O$12,Tarifas!$F35,Datos!O$13,Tarifas!$G35,Tarifas!$L35,Datos!O$16,Datos!O$17,Datos!O$19,Datos!O$20,Datos!O$22,Datos!O$23,Datos!O$25,Datos!O$28,Datos!O$31,Tarifas!$H35,Tarifas!$I35,Tarifas!$J35,Datos!O$15,Tarifas!$K35,Datos!$B$3,Datos!$B$1,Datos!$B$4,Tarifas!$M35,Tarifas!$N35,Tarifas!$O35,Tarifas!$P35,Tarifas!$Q35,Datos!$B$2) -> 45.96790314 | Q33: =IF(Tarifas!R35="Sí","Sí","") -> Sí
A34: =IF(Tarifas!A36="","",Tarifas!A36) -> Imagina Energía | B34: =IF(Tarifas!B36="","",Tarifas!B36) -> Plan sin horas | C34: 634.9680949 | E34: =FACTURA(ROW(), COLUMN(),Datos!D$8,Datos!D$9,Tarifas!$C36,Datos!D$10,Tarifas!$D36,Datos!D$11,Tarifas!$E36,Datos!D$12,Tarifas!$F36,Datos!D$13,Tarifas!$G36,Tarifas!$L36,Datos!D$16,Datos!D$17,Datos!D$19,Datos!D$20,Datos!D$22,Datos!D$23,Datos!D$25,Datos!D$28,Datos!D$31,Tarifas!$H36,Tarifas!$I36,Tarifas!$J36,Datos!D$15,Tarifas!$K36,Datos!$B$3,Datos!$B$1,Datos!$B$4,Tarifas!$M36,Tarifas!$N36,Tarifas!$O36,Tarifas!$P36,Tarifas!$Q36,Datos!$B$2) -> 60.40100666 | F34: =FACTURA(ROW(), COLUMN(),Datos!E$8,Datos!E$9,Tarifas!$C36,Datos!E$10,Tarifas!$D36,Datos!E$11,Tarifas!$E36,Datos!E$12,Tarifas!$F36,Datos!E$13,Tarifas!$G36,Tarifas!$L36,Datos!E$16,Datos!E$17,Datos!E$19,Datos!E$20,Datos!E$22,Datos!E$23,Datos!E$25,Datos!E$28,Datos!E$31,Tarifas!$H36,Tarifas!$I36,Tarifas!$J36,Datos!E$15,Tarifas!$K36,Datos!$B$3,Datos!$B$1,Datos!$B$4,Tarifas!$M36,Tarifas!$N36,Tarifas!$O36,Tarifas!$P36,Tarifas!$Q36,Datos!$B$2) -> 45.42700916 | G34: =FACTURA(ROW(), COLUMN(),Datos!F$8,Datos!F$9,Tarifas!$C36,Datos!F$10,Tarifas!$D36,Datos!F$11,Tarifas!$E36,Datos!F$12,Tarifas!$F36,Datos!F$13,Tarifas!$G36,Tarifas!$L36,Datos!F$16,Datos!F$17,Datos!F$19,Datos!F$20,Datos!F$22,Datos!F$23,Datos!F$25,Datos!F$28,Datos!F$31,Tarifas!$H36,Tarifas!$I36,Tarifas!$J36,Datos!F$15,Tarifas!$K36,Datos!$B$3,Datos!$B$1,Datos!$B$4,Tarifas!$M36,Tarifas!$N36,Tarifas!$O36,Tarifas!$P36,Tarifas!$Q36,Datos!$B$2) -> 60.40100666 | H34: =FACTURA(ROW(), COLUMN(),Datos!G$8,Datos!G$9,Tarifas!$C36,Datos!G$10,Tarifas!$D36,Datos!G$11,Tarifas!$E36,Datos!G$12,Tarifas!$F36,Datos!G$13,Tarifas!$G36,Tarifas!$L36,Datos!G$16,Datos!G$17,Datos!G$19,Datos!G$20,Datos!G$22,Datos!G$23,Datos!G$25,Datos!G$28,Datos!G$31,Tarifas!$H36,Tarifas!$I36,Tarifas!$J36,Datos!G$15,Tarifas!$K36,Datos!$B$3,Datos!$B$1,Datos!$B$4,Tarifas!$M36,Tarifas!$N36,Tarifas!$O36,Tarifas!$P36,Tarifas!$Q36,Datos!$B$2) -> 45.42700916 | I34: =FACTURA(ROW(), COLUMN(),Datos!H$8,Datos!H$9,Tarifas!$C36,Datos!H$10,Tarifas!$D36,Datos!H$11,Tarifas!$E36,Datos!H$12,Tarifas!$F36,Datos!H$13,Tarifas!$G36,Tarifas!$L36,Datos!H$16,Datos!H$17,Datos!H$19,Datos!H$20,Datos!H$22,Datos!H$23,Datos!H$25,Datos!H$28,Datos!H$31,Tarifas!$H36,Tarifas!$I36,Tarifas!$J36,Datos!H$15,Tarifas!$K36,Datos!$B$3,Datos!$B$1,Datos!$B$4,Tarifas!$M36,Tarifas!$N36,Tarifas!$O36,Tarifas!$P36,Tarifas!$Q36,Datos!$B$2) -> 60.40100666 | J34: =FACTURA(ROW(), COLUMN(),Datos!I$8,Datos!I$9,Tarifas!$C36,Datos!I$10,Tarifas!$D36,Datos!I$11,Tarifas!$E36,Datos!I$12,Tarifas!$F36,Datos!I$13,Tarifas!$G36,Tarifas!$L36,Datos!I$16,Datos!I$17,Datos!I$19,Datos!I$20,Datos!I$22,Datos!I$23,Datos!I$25,Datos!I$28,Datos!I$31,Tarifas!$H36,Tarifas!$I36,Tarifas!$J36,Datos!I$15,Tarifas!$K36,Datos!$B$3,Datos!$B$1,Datos!$B$4,Tarifas!$M36,Tarifas!$N36,Tarifas!$O36,Tarifas!$P36,Tarifas!$Q36,Datos!$B$2) -> 45.42700916 | K34: =FACTURA(ROW(), COLUMN(),Datos!J$8,Datos!J$9,Tarifas!$C36,Datos!J$10,Tarifas!$D36,Datos!J$11,Tarifas!$E36,Datos!J$12,Tarifas!$F36,Datos!J$13,Tarifas!$G36,Tarifas!$L36,Datos!J$16,Datos!J$17,Datos!J$19,Datos!J$20,Datos!J$22,Datos!J$23,Datos!J$25,Datos!J$28,Datos!J$31,Tarifas!$H36,Tarifas!$I36,Tarifas!$J36,Datos!J$15,Tarifas!$K36,Datos!$B$3,Datos!$B$1,Datos!$B$4,Tarifas!$M36,Tarifas!$N36,Tarifas!$O36,Tarifas!$P36,Tarifas!$Q36,Datos!$B$2) -> 60.40100666 | L34: =FACTURA(ROW(), COLUMN(),Datos!K$8,Datos!K$9,Tarifas!$C36,Datos!K$10,Tarifas!$D36,Datos!K$11,Tarifas!$E36,Datos!K$12,Tarifas!$F36,Datos!K$13,Tarifas!$G36,Tarifas!$L36,Datos!K$16,Datos!K$17,Datos!K$19,Datos!K$20,Datos!K$22,Datos!K$23,Datos!K$25,Datos!K$28,Datos!K$31,Tarifas!$H36,Tarifas!$I36,Tarifas!$J36,Datos!K$15,Tarifas!$K36,Datos!$B$3,Datos!$B$1,Datos!$B$4,Tarifas!$M36,Tarifas!$N36,Tarifas!$O36,Tarifas!$P36,Tarifas!$Q36,Datos!$B$2) -> 45.42700916 | M34: =FACTURA(ROW(), COLUMN(),Datos!L$8,Datos!L$9,Tarifas!$C36,Datos!L$10,Tarifas!$D36,Datos!L$11,Tarifas!$E36,Datos!L$12,Tarifas!$F36,Datos!L$13,Tarifas!$G36,Tarifas!$L36,Datos!L$16,Datos!L$17,Datos!L$19,Datos!L$20,Datos!L$22,Datos!L$23,Datos!L$25,Datos!L$28,Datos!L$31,Tarifas!$H36,Tarifas!$I36,Tarifas!$J36,Datos!L$15,Tarifas!$K36,Datos!$B$3,Datos!$B$1,Datos!$B$4,Tarifas!$M36,Tarifas!$N36,Tarifas!$O36,Tarifas!$P36,Tarifas!$Q36,Datos!$B$2) -> 60.40100666 | N34: =FACTURA(ROW(), COLUMN(),Datos!M$8,Datos!M$9,Tarifas!$C36,Datos!M$10,Tarifas!$D36,Datos!M$11,Tarifas!$E36,Datos!M$12,Tarifas!$F36,Datos!M$13,Tarifas!$G36,Tarifas!$L36,Datos!M$16,Datos!M$17,Datos!M$19,Datos!M$20,Datos!M$22,Datos!M$23,Datos!M$25,Datos!M$28,Datos!M$31,Tarifas!$H36,Tarifas!$I36,Tarifas!$J36,Datos!M$15,Tarifas!$K36,Datos!$B$3,Datos!$B$1,Datos!$B$4,Tarifas!$M36,Tarifas!$N36,Tarifas!$O36,Tarifas!$P36,Tarifas!$Q36,Datos!$B$2) -> 45.42700916 | O34: =FACTURA(ROW(), COLUMN(),Datos!N$8,Datos!N$9,Tarifas!$C36,Datos!N$10,Tarifas!$D36,Datos!N$11,Tarifas!$E36,Datos!N$12,Tarifas!$F36,Datos!N$13,Tarifas!$G36,Tarifas!$L36,Datos!N$16,Datos!N$17,Datos!N$19,Datos!N$20,Datos!N$22,Datos!N$23,Datos!N$25,Datos!N$28,Datos!N$31,Tarifas!$H36,Tarifas!$I36,Tarifas!$J36,Datos!N$15,Tarifas!$K36,Datos!$B$3,Datos!$B$1,Datos!$B$4,Tarifas!$M36,Tarifas!$N36,Tarifas!$O36,Tarifas!$P36,Tarifas!$Q36,Datos!$B$2) -> 60.40100666 | P34: =FACTURA(ROW(), COLUMN(),Datos!O$8,Datos!O$9,Tarifas!$C36,Datos!O$10,Tarifas!$D36,Datos!O$11,Tarifas!$E36,Datos!O$12,Tarifas!$F36,Datos!O$13,Tarifas!$G36,Tarifas!$L36,Datos!O$16,Datos!O$17,Datos!O$19,Datos!O$20,Datos!O$22,Datos!O$23,Datos!O$25,Datos!O$28,Datos!O$31,Tarifas!$H36,Tarifas!$I36,Tarifas!$J36,Datos!O$15,Tarifas!$K36,Datos!$B$3,Datos!$B$1,Datos!$B$4,Tarifas!$M36,Tarifas!$N36,Tarifas!$O36,Tarifas!$P36,Tarifas!$Q36,Datos!$B$2) -> 45.42700916 | Q34: =IF(Tarifas!R36="Sí","Sí","") -> Sí
A35: =IF(Tarifas!A37="","",Tarifas!A37) -> Imagina Energía | B35: =IF(Tarifas!B37="","",Tarifas!B37) -> Noches y Findes | C35: 590.267705 | E35: =FACTURA(ROW(), COLUMN(),Datos!D$8,Datos!D$9,Tarifas!$C37,Datos!D$10,Tarifas!$D37,Datos!D$11,Tarifas!$E37,Datos!D$12,Tarifas!$F37,Datos!D$13,Tarifas!$G37,Tarifas!$L37,Datos!D$16,Datos!D$17,Datos!D$19,Datos!D$20,Datos!D$22,Datos!D$23,Datos!D$25,Datos!D$28,Datos!D$31,Tarifas!$H37,Tarifas!$I37,Tarifas!$J37,Datos!D$15,Tarifas!$K37,Datos!$B$3,Datos!$B$1,Datos!$B$4,Tarifas!$M37,Tarifas!$N37,Tarifas!$O37,Tarifas!$P37,Tarifas!$Q37,Datos!$B$2) -> 57.11917916 | F35: =FACTURA(ROW(), COLUMN(),Datos!E$8,Datos!E$9,Tarifas!$C37,Datos!E$10,Tarifas!$D37,Datos!E$11,Tarifas!$E37,Datos!E$12,Tarifas!$F37,Datos!E$13,Tarifas!$G37,Tarifas!$L37,Datos!E$16,Datos!E$17,Datos!E$19,Datos!E$20,Datos!E$22,Datos!E$23,Datos!E$25,Datos!E$28,Datos!E$31,Tarifas!$H37,Tarifas!$I37,Tarifas!$J37,Datos!E$15,Tarifas!$K37,Datos!$B$3,Datos!$B$1,Datos!$B$4,Tarifas!$M37,Tarifas!$N37,Tarifas!$O37,Tarifas!$P37,Tarifas!$Q37,Datos!$B$2) -> 41.25877166 | G35: =FACTURA(ROW(), COLUMN(),Datos!F$8,Datos!F$9,Tarifas!$C37,Datos!F$10,Tarifas!$D37,Datos!F$11,Tarifas!$E37,Datos!F$12,Tarifas!$F37,Datos!F$13,Tarifas!$G37,Tarifas!$L37,Datos!F$16,Datos!F$17,Datos!F$19,Datos!F$20,Datos!F$22,Datos!F$23,Datos!F$25,Datos!F$28,Datos!F$31,Tarifas!$H37,Tarifas!$I37,Tarifas!$J37,Datos!F$15,Tarifas!$K37,Datos!$B$3,Datos!$B$1,Datos!$B$4,Tarifas!$M37,Tarifas!$N37,Tarifas!$O37,Tarifas!$P37,Tarifas!$Q37,Datos!$B$2) -> 57.11917916 | H35: =FACTURA(ROW(), COLUMN(),Datos!G$8,Datos!G$9,Tarifas!$C37,Datos!G$10,Tarifas!$D37,Datos!G$11,Tarifas!$E37,Datos!G$12,Tarifas!$F37,Datos!G$13,Tarifas!$G37,Tarifas!$L37,Datos!G$16,Datos!G$17,Datos!G$19,Datos!G$20,Datos!G$22,Datos!G$23,Datos!G$25,Datos!G$28,Datos!G$31,Tarifas!$H37,Tarifas!$I37,Tarifas!$J37,Datos!G$15,Tarifas!$K37,Datos!$B$3,Datos!$B$1,Datos!$B$4,Tarifas!$M37,Tarifas!$N37,Tarifas!$O37,Tarifas!$P37,Tarifas!$Q37,Datos!$B$2) -> 41.25877166 | I35: =FACTURA(ROW(), COLUMN(),Datos!H$8,Datos!H$9,Tarifas!$C37,Datos!H$10,Tarifas!$D37,Datos!H$11,Tarifas!$E37,Datos!H$12,Tarifas!$F37,Datos!H$13,Tarifas!$G37,Tarifas!$L37,Datos!H$16,Datos!H$17,Datos!H$19,Datos!H$20,Datos!H$22,Datos!H$23,Datos!H$25,Datos!H$28,Datos!H$31,Tarifas!$H37,Tarifas!$I37,Tarifas!$J37,Datos!H$15,Tarifas!$K37,Datos!$B$3,Datos!$B$1,Datos!$B$4,Tarifas!$M37,Tarifas!$N37,Tarifas!$O37,Tarifas!$P37,Tarifas!$Q37,Datos!$B$2) -> 57.11917916 | J35: =FACTURA(ROW(), COLUMN(),Datos!I$8,Datos!I$9,Tarifas!$C37,Datos!I$10,Tarifas!$D37,Datos!I$11,Tarifas!$E37,Datos!I$12,Tarifas!$F37,Datos!I$13,Tarifas!$G37,Tarifas!$L37,Datos!I$16,Datos!I$17,Datos!I$19,Datos!I$20,Datos!I$22,Datos!I$23,Datos!I$25,Datos!I$28,Datos!I$31,Tarifas!$H37,Tarifas!$I37,Tarifas!$J37,Datos!I$15,Tarifas!$K37,Datos!$B$3,Datos!$B$1,Datos!$B$4,Tarifas!$M37,Tarifas!$N37,Tarifas!$O37,Tarifas!$P37,Tarifas!$Q37,Datos!$B$2) -> 41.25877166 | K35: =FACTURA(ROW(), COLUMN(),Datos!J$8,Datos!J$9,Tarifas!$C37,Datos!J$10,Tarifas!$D37,Datos!J$11,Tarifas!$E37,Datos!J$12,Tarifas!$F37,Datos!J$13,Tarifas!$G37,Tarifas!$L37,Datos!J$16,Datos!J$17,Datos!J$19,Datos!J$20,Datos!J$22,Datos!J$23,Datos!J$25,Datos!J$28,Datos!J$31,Tarifas!$H37,Tarifas!$I37,Tarifas!$J37,Datos!J$15,Tarifas!$K37,Datos!$B$3,Datos!$B$1,Datos!$B$4,Tarifas!$M37,Tarifas!$N37,Tarifas!$O37,Tarifas!$P37,Tarifas!$Q37,Datos!$B$2) -> 57.11917916 | L35: =FACTURA(ROW(), COLUMN(),Datos!K$8,Datos!K$9,Tarifas!$C37,Datos!K$10,Tarifas!$D37,Datos!K$11,Tarifas!$E37,Datos!K$12,Tarifas!$F37,Datos!K$13,Tarifas!$G37,Tarifas!$L37,Datos!K$16,Datos!K$17,Datos!K$19,Datos!K$20,Datos!K$22,Datos!K$23,Datos!K$25,Datos!K$28,Datos!K$31,Tarifas!$H37,Tarifas!$I37,Tarifas!$J37,Datos!K$15,Tarifas!$K37,Datos!$B$3,Datos!$B$1,Datos!$B$4,Tarifas!$M37,Tarifas!$N37,Tarifas!$O37,Tarifas!$P37,Tarifas!$Q37,Datos!$B$2) -> 41.25877166 | M35: =FACTURA(ROW(), COLUMN(),Datos!L$8,Datos!L$9,Tarifas!$C37,Datos!L$10,Tarifas!$D37,Datos!L$11,Tarifas!$E37,Datos!L$12,Tarifas!$F37,Datos!L$13,Tarifas!$G37,Tarifas!$L37,Datos!L$16,Datos!L$17,Datos!L$19,Datos!L$20,Datos!L$22,Datos!L$23,Datos!L$25,Datos!L$28,Datos!L$31,Tarifas!$H37,Tarifas!$I37,Tarifas!$J37,Datos!L$15,Tarifas!$K37,Datos!$B$3,Datos!$B$1,Datos!$B$4,Tarifas!$M37,Tarifas!$N37,Tarifas!$O37,Tarifas!$P37,Tarifas!$Q37,Datos!$B$2) -> 57.11917916 | N35: =FACTURA(ROW(), COLUMN(),Datos!M$8,Datos!M$9,Tarifas!$C37,Datos!M$10,Tarifas!$D37,Datos!M$11,Tarifas!$E37,Datos!M$12,Tarifas!$F37,Datos!M$13,Tarifas!$G37,Tarifas!$L37,Datos!M$16,Datos!M$17,Datos!M$19,Datos!M$20,Datos!M$22,Datos!M$23,Datos!M$25,Datos!M$28,Datos!M$31,Tarifas!$H37,Tarifas!$I37,Tarifas!$J37,Datos!M$15,Tarifas!$K37,Datos!$B$3,Datos!$B$1,Datos!$B$4,Tarifas!$M37,Tarifas!$N37,Tarifas!$O37,Tarifas!$P37,Tarifas!$Q37,Datos!$B$2) -> 41.25877166 | O35: =FACTURA(ROW(), COLUMN(),Datos!N$8,Datos!N$9,Tarifas!$C37,Datos!N$10,Tarifas!$D37,Datos!N$11,Tarifas!$E37,Datos!N$12,Tarifas!$F37,Datos!N$13,Tarifas!$G37,Tarifas!$L37,Datos!N$16,Datos!N$17,Datos!N$19,Datos!N$20,Datos!N$22,Datos!N$23,Datos!N$25,Datos!N$28,Datos!N$31,Tarifas!$H37,Tarifas!$I37,Tarifas!$J37,Datos!N$15,Tarifas!$K37,Datos!$B$3,Datos!$B$1,Datos!$B$4,Tarifas!$M37,Tarifas!$N37,Tarifas!$O37,Tarifas!$P37,Tarifas!$Q37,Datos!$B$2) -> 57.11917916 | P35: =FACTURA(ROW(), COLUMN(),Datos!O$8,Datos!O$9,Tarifas!$C37,Datos!O$10,Tarifas!$D37,Datos!O$11,Tarifas!$E37,Datos!O$12,Tarifas!$F37,Datos!O$13,Tarifas!$G37,Tarifas!$L37,Datos!O$16,Datos!O$17,Datos!O$19,Datos!O$20,Datos!O$22,Datos!O$23,Datos!O$25,Datos!O$28,Datos!O$31,Tarifas!$H37,Tarifas!$I37,Tarifas!$J37,Datos!O$15,Tarifas!$K37,Datos!$B$3,Datos!$B$1,Datos!$B$4,Tarifas!$M37,Tarifas!$N37,Tarifas!$O37,Tarifas!$P37,Tarifas!$Q37,Datos!$B$2) -> 41.25877166 | Q35: =IF(Tarifas!R37="Sí","Sí","") -> Sí
A36: =IF(Tarifas!A38="","",Tarifas!A38) -> Naturgy | B36: =IF(Tarifas!B38="","",Tarifas!B38) -> Por Uso | C36: 548.1757549 | E36: =FACTURA(ROW(), COLUMN(),Datos!D$8,Datos!D$9,Tarifas!$C38,Datos!D$10,Tarifas!$D38,Datos!D$11,Tarifas!$E38,Datos!D$12,Tarifas!$F38,Datos!D$13,Tarifas!$G38,Tarifas!$L38,Datos!D$16,Datos!D$17,Datos!D$19,Datos!D$20,Datos!D$22,Datos!D$23,Datos!D$25,Datos!D$28,Datos!D$31,Tarifas!$H38,Tarifas!$I38,Tarifas!$J38,Datos!D$15,Tarifas!$K38,Datos!$B$3,Datos!$B$1,Datos!$B$4,Tarifas!$M38,Tarifas!$N38,Tarifas!$O38,Tarifas!$P38,Tarifas!$Q38,Datos!$B$2) -> 53.04383454 | F36: =FACTURA(ROW(), COLUMN(),Datos!E$8,Datos!E$9,Tarifas!$C38,Datos!E$10,Tarifas!$D38,Datos!E$11,Tarifas!$E38,Datos!E$12,Tarifas!$F38,Datos!E$13,Tarifas!$G38,Tarifas!$L38,Datos!E$16,Datos!E$17,Datos!E$19,Datos!E$20,Datos!E$22,Datos!E$23,Datos!E$25,Datos!E$28,Datos!E$31,Tarifas!$H38,Tarifas!$I38,Tarifas!$J38,Datos!E$15,Tarifas!$K38,Datos!$B$3,Datos!$B$1,Datos!$B$4,Tarifas!$M38,Tarifas!$N38,Tarifas!$O38,Tarifas!$P38,Tarifas!$Q38,Datos!$B$2) -> 38.31879127 | G36: =FACTURA(ROW(), COLUMN(),Datos!F$8,Datos!F$9,Tarifas!$C38,Datos!F$10,Tarifas!$D38,Datos!F$11,Tarifas!$E38,Datos!F$12,Tarifas!$F38,Datos!F$13,Tarifas!$G38,Tarifas!$L38,Datos!F$16,Datos!F$17,Datos!F$19,Datos!F$20,Datos!F$22,Datos!F$23,Datos!F$25,Datos!F$28,Datos!F$31,Tarifas!$H38,Tarifas!$I38,Tarifas!$J38,Datos!F$15,Tarifas!$K38,Datos!$B$3,Datos!$B$1,Datos!$B$4,Tarifas!$M38,Tarifas!$N38,Tarifas!$O38,Tarifas!$P38,Tarifas!$Q38,Datos!$B$2) -> 53.04383454 | H36: =FACTURA(ROW(), COLUMN(),Datos!G$8,Datos!G$9,Tarifas!$C38,Datos!G$10,Tarifas!$D38,Datos!G$11,Tarifas!$E38,Datos!G$12,Tarifas!$F38,Datos!G$13,Tarifas!$G38,Tarifas!$L38,Datos!G$16,Datos!G$17,Datos!G$19,Datos!G$20,Datos!G$22,Datos!G$23,Datos!G$25,Datos!G$28,Datos!G$31,Tarifas!$H38,Tarifas!$I38,Tarifas!$J38,Datos!G$15,Tarifas!$K38,Datos!$B$3,Datos!$B$1,Datos!$B$4,Tarifas!$M38,Tarifas!$N38,Tarifas!$O38,Tarifas!$P38,Tarifas!$Q38,Datos!$B$2) -> 38.31879127 | I36: =FACTURA(ROW(), COLUMN(),Datos!H$8,Datos!H$9,Tarifas!$C38,Datos!H$10,Tarifas!$D38,Datos!H$11,Tarifas!$E38,Datos!H$12,Tarifas!$F38,Datos!H$13,Tarifas!$G38,Tarifas!$L38,Datos!H$16,Datos!H$17,Datos!H$19,Datos!H$20,Datos!H$22,Datos!H$23,Datos!H$25,Datos!H$28,Datos!H$31,Tarifas!$H38,Tarifas!$I38,Tarifas!$J38,Datos!H$15,Tarifas!$K38,Datos!$B$3,Datos!$B$1,Datos!$B$4,Tarifas!$M38,Tarifas!$N38,Tarifas!$O38,Tarifas!$P38,Tarifas!$Q38,Datos!$B$2) -> 53.04383454 | J36: =FACTURA(ROW(), COLUMN(),Datos!I$8,Datos!I$9,Tarifas!$C38,Datos!I$10,Tarifas!$D38,Datos!I$11,Tarifas!$E38,Datos!I$12,Tarifas!$F38,Datos!I$13,Tarifas!$G38,Tarifas!$L38,Datos!I$16,Datos!I$17,Datos!I$19,Datos!I$20,Datos!I$22,Datos!I$23,Datos!I$25,Datos!I$28,Datos!I$31,Tarifas!$H38,Tarifas!$I38,Tarifas!$J38,Datos!I$15,Tarifas!$K38,Datos!$B$3,Datos!$B$1,Datos!$B$4,Tarifas!$M38,Tarifas!$N38,Tarifas!$O38,Tarifas!$P38,Tarifas!$Q38,Datos!$B$2) -> 38.31879127 | K36: =FACTURA(ROW(), COLUMN(),Datos!J$8,Datos!J$9,Tarifas!$C38,Datos!J$10,Tarifas!$D38,Datos!J$11,Tarifas!$E38,Datos!J$12,Tarifas!$F38,Datos!J$13,Tarifas!$G38,Tarifas!$L38,Datos!J$16,Datos!J$17,Datos!J$19,Datos!J$20,Datos!J$22,Datos!J$23,Datos!J$25,Datos!J$28,Datos!J$31,Tarifas!$H38,Tarifas!$I38,Tarifas!$J38,Datos!J$15,Tarifas!$K38,Datos!$B$3,Datos!$B$1,Datos!$B$4,Tarifas!$M38,Tarifas!$N38,Tarifas!$O38,Tarifas!$P38,Tarifas!$Q38,Datos!$B$2) -> 53.04383454 | L36: =FACTURA(ROW(), COLUMN(),Datos!K$8,Datos!K$9,Tarifas!$C38,Datos!K$10,Tarifas!$D38,Datos!K$11,Tarifas!$E38,Datos!K$12,Tarifas!$F38,Datos!K$13,Tarifas!$G38,Tarifas!$L38,Datos!K$16,Datos!K$17,Datos!K$19,Datos!K$20,Datos!K$22,Datos!K$23,Datos!K$25,Datos!K$28,Datos!K$31,Tarifas!$H38,Tarifas!$I38,Tarifas!$J38,Datos!K$15,Tarifas!$K38,Datos!$B$3,Datos!$B$1,Datos!$B$4,Tarifas!$M38,Tarifas!$N38,Tarifas!$O38,Tarifas!$P38,Tarifas!$Q38,Datos!$B$2) -> 38.31879127 | M36: =FACTURA(ROW(), COLUMN(),Datos!L$8,Datos!L$9,Tarifas!$C38,Datos!L$10,Tarifas!$D38,Datos!L$11,Tarifas!$E38,Datos!L$12,Tarifas!$F38,Datos!L$13,Tarifas!$G38,Tarifas!$L38,Datos!L$16,Datos!L$17,Datos!L$19,Datos!L$20,Datos!L$22,Datos!L$23,Datos!L$25,Datos!L$28,Datos!L$31,Tarifas!$H38,Tarifas!$I38,Tarifas!$J38,Datos!L$15,Tarifas!$K38,Datos!$B$3,Datos!$B$1,Datos!$B$4,Tarifas!$M38,Tarifas!$N38,Tarifas!$O38,Tarifas!$P38,Tarifas!$Q38,Datos!$B$2) -> 53.04383454 | N36: =FACTURA(ROW(), COLUMN(),Datos!M$8,Datos!M$9,Tarifas!$C38,Datos!M$10,Tarifas!$D38,Datos!M$11,Tarifas!$E38,Datos!M$12,Tarifas!$F38,Datos!M$13,Tarifas!$G38,Tarifas!$L38,Datos!M$16,Datos!M$17,Datos!M$19,Datos!M$20,Datos!M$22,Datos!M$23,Datos!M$25,Datos!M$28,Datos!M$31,Tarifas!$H38,Tarifas!$I38,Tarifas!$J38,Datos!M$15,Tarifas!$K38,Datos!$B$3,Datos!$B$1,Datos!$B$4,Tarifas!$M38,Tarifas!$N38,Tarifas!$O38,Tarifas!$P38,Tarifas!$Q38,Datos!$B$2) -> 38.31879127 | O36: =FACTURA(ROW(), COLUMN(),Datos!N$8,Datos!N$9,Tarifas!$C38,Datos!N$10,Tarifas!$D38,Datos!N$11,Tarifas!$E38,Datos!N$12,Tarifas!$F38,Datos!N$13,Tarifas!$G38,Tarifas!$L38,Datos!N$16,Datos!N$17,Datos!N$19,Datos!N$20,Datos!N$22,Datos!N$23,Datos!N$25,Datos!N$28,Datos!N$31,Tarifas!$H38,Tarifas!$I38,Tarifas!$J38,Datos!N$15,Tarifas!$K38,Datos!$B$3,Datos!$B$1,Datos!$B$4,Tarifas!$M38,Tarifas!$N38,Tarifas!$O38,Tarifas!$P38,Tarifas!$Q38,Datos!$B$2) -> 53.04383454 | P36: =FACTURA(ROW(), COLUMN(),Datos!O$8,Datos!O$9,Tarifas!$C38,Datos!O$10,Tarifas!$D38,Datos!O$11,Tarifas!$E38,Datos!O$12,Tarifas!$F38,Datos!O$13,Tarifas!$G38,Tarifas!$L38,Datos!O$16,Datos!O$17,Datos!O$19,Datos!O$20,Datos!O$22,Datos!O$23,Datos!O$25,Datos!O$28,Datos!O$31,Tarifas!$H38,Tarifas!$I38,Tarifas!$J38,Datos!O$15,Tarifas!$K38,Datos!$B$3,Datos!$B$1,Datos!$B$4,Tarifas!$M38,Tarifas!$N38,Tarifas!$O38,Tarifas!$P38,Tarifas!$Q38,Datos!$B$2) -> 38.31879127 | Q36: =IF(Tarifas!R38="Sí","Sí","") -> 
A37: =IF(Tarifas!A39="","",Tarifas!A39) -> Naturgy | B37: =IF(Tarifas!B39="","",Tarifas!B39) -> Noche | C37: 527.3767774 | E37: =FACTURA(ROW(), COLUMN(),Datos!D$8,Datos!D$9,Tarifas!$C39,Datos!D$10,Tarifas!$D39,Datos!D$11,Tarifas!$E39,Datos!D$12,Tarifas!$F39,Datos!D$13,Tarifas!$G39,Tarifas!$L39,Datos!D$16,Datos!D$17,Datos!D$19,Datos!D$20,Datos!D$22,Datos!D$23,Datos!D$25,Datos!D$28,Datos!D$31,Tarifas!$H39,Tarifas!$I39,Tarifas!$J39,Datos!D$15,Tarifas!$K39,Datos!$B$3,Datos!$B$1,Datos!$B$4,Tarifas!$M39,Tarifas!$N39,Tarifas!$O39,Tarifas!$P39,Tarifas!$Q39,Datos!$B$2) -> 51.82153846 | F37: =FACTURA(ROW(), COLUMN(),Datos!E$8,Datos!E$9,Tarifas!$C39,Datos!E$10,Tarifas!$D39,Datos!E$11,Tarifas!$E39,Datos!E$12,Tarifas!$F39,Datos!E$13,Tarifas!$G39,Tarifas!$L39,Datos!E$16,Datos!E$17,Datos!E$19,Datos!E$20,Datos!E$22,Datos!E$23,Datos!E$25,Datos!E$28,Datos!E$31,Tarifas!$H39,Tarifas!$I39,Tarifas!$J39,Datos!E$15,Tarifas!$K39,Datos!$B$3,Datos!$B$1,Datos!$B$4,Tarifas!$M39,Tarifas!$N39,Tarifas!$O39,Tarifas!$P39,Tarifas!$Q39,Datos!$B$2) -> 36.0745911 | G37: =FACTURA(ROW(), COLUMN(),Datos!F$8,Datos!F$9,Tarifas!$C39,Datos!F$10,Tarifas!$D39,Datos!F$11,Tarifas!$E39,Datos!F$12,Tarifas!$F39,Datos!F$13,Tarifas!$G39,Tarifas!$L39,Datos!F$16,Datos!F$17,Datos!F$19,Datos!F$20,Datos!F$22,Datos!F$23,Datos!F$25,Datos!F$28,Datos!F$31,Tarifas!$H39,Tarifas!$I39,Tarifas!$J39,Datos!F$15,Tarifas!$K39,Datos!$B$3,Datos!$B$1,Datos!$B$4,Tarifas!$M39,Tarifas!$N39,Tarifas!$O39,Tarifas!$P39,Tarifas!$Q39,Datos!$B$2) -> 51.82153846 | H37: =FACTURA(ROW(), COLUMN(),Datos!G$8,Datos!G$9,Tarifas!$C39,Datos!G$10,Tarifas!$D39,Datos!G$11,Tarifas!$E39,Datos!G$12,Tarifas!$F39,Datos!G$13,Tarifas!$G39,Tarifas!$L39,Datos!G$16,Datos!G$17,Datos!G$19,Datos!G$20,Datos!G$22,Datos!G$23,Datos!G$25,Datos!G$28,Datos!G$31,Tarifas!$H39,Tarifas!$I39,Tarifas!$J39,Datos!G$15,Tarifas!$K39,Datos!$B$3,Datos!$B$1,Datos!$B$4,Tarifas!$M39,Tarifas!$N39,Tarifas!$O39,Tarifas!$P39,Tarifas!$Q39,Datos!$B$2) -> 36.0745911 | I37: =FACTURA(ROW(), COLUMN(),Datos!H$8,Datos!H$9,Tarifas!$C39,Datos!H$10,Tarifas!$D39,Datos!H$11,Tarifas!$E39,Datos!H$12,Tarifas!$F39,Datos!H$13,Tarifas!$G39,Tarifas!$L39,Datos!H$16,Datos!H$17,Datos!H$19,Datos!H$20,Datos!H$22,Datos!H$23,Datos!H$25,Datos!H$28,Datos!H$31,Tarifas!$H39,Tarifas!$I39,Tarifas!$J39,Datos!H$15,Tarifas!$K39,Datos!$B$3,Datos!$B$1,Datos!$B$4,Tarifas!$M39,Tarifas!$N39,Tarifas!$O39,Tarifas!$P39,Tarifas!$Q39,Datos!$B$2) -> 51.82153846 | J37: =FACTURA(ROW(), COLUMN(),Datos!I$8,Datos!I$9,Tarifas!$C39,Datos!I$10,Tarifas!$D39,Datos!I$11,Tarifas!$E39,Datos!I$12,Tarifas!$F39,Datos!I$13,Tarifas!$G39,Tarifas!$L39,Datos!I$16,Datos!I$17,Datos!I$19,Datos!I$20,Datos!I$22,Datos!I$23,Datos!I$25,Datos!I$28,Datos!I$31,Tarifas!$H39,Tarifas!$I39,Tarifas!$J39,Datos!I$15,Tarifas!$K39,Datos!$B$3,Datos!$B$1,Datos!$B$4,Tarifas!$M39,Tarifas!$N39,Tarifas!$O39,Tarifas!$P39,Tarifas!$Q39,Datos!$B$2) -> 36.0745911 | K37: =FACTURA(ROW(), COLUMN(),Datos!J$8,Datos!J$9,Tarifas!$C39,Datos!J$10,Tarifas!$D39,Datos!J$11,Tarifas!$E39,Datos!J$12,Tarifas!$F39,Datos!J$13,Tarifas!$G39,Tarifas!$L39,Datos!J$16,Datos!J$17,Datos!J$19,Datos!J$20,Datos!J$22,Datos!J$23,Datos!J$25,Datos!J$28,Datos!J$31,Tarifas!$H39,Tarifas!$I39,Tarifas!$J39,Datos!J$15,Tarifas!$K39,Datos!$B$3,Datos!$B$1,Datos!$B$4,Tarifas!$M39,Tarifas!$N39,Tarifas!$O39,Tarifas!$P39,Tarifas!$Q39,Datos!$B$2) -> 51.82153846 | L37: =FACTURA(ROW(), COLUMN(),Datos!K$8,Datos!K$9,Tarifas!$C39,Datos!K$10,Tarifas!$D39,Datos!K$11,Tarifas!$E39,Datos!K$12,Tarifas!$F39,Datos!K$13,Tarifas!$G39,Tarifas!$L39,Datos!K$16,Datos!K$17,Datos!K$19,Datos!K$20,Datos!K$22,Datos!K$23,Datos!K$25,Datos!K$28,Datos!K$31,Tarifas!$H39,Tarifas!$I39,Tarifas!$J39,Datos!K$15,Tarifas!$K39,Datos!$B$3,Datos!$B$1,Datos!$B$4,Tarifas!$M39,Tarifas!$N39,Tarifas!$O39,Tarifas!$P39,Tarifas!$Q39,Datos!$B$2) -> 36.0745911 | M37: =FACTURA(ROW(), COLUMN(),Datos!L$8,Datos!L$9,Tarifas!$C39,Datos!L$10,Tarifas!$D39,Datos!L$11,Tarifas!$E39,Datos!L$12,Tarifas!$F39,Datos!L$13,Tarifas!$G39,Tarifas!$L39,Datos!L$16,Datos!L$17,Datos!L$19,Datos!L$20,Datos!L$22,Datos!L$23,Datos!L$25,Datos!L$28,Datos!L$31,Tarifas!$H39,Tarifas!$I39,Tarifas!$J39,Datos!L$15,Tarifas!$K39,Datos!$B$3,Datos!$B$1,Datos!$B$4,Tarifas!$M39,Tarifas!$N39,Tarifas!$O39,Tarifas!$P39,Tarifas!$Q39,Datos!$B$2) -> 51.82153846 | N37: =FACTURA(ROW(), COLUMN(),Datos!M$8,Datos!M$9,Tarifas!$C39,Datos!M$10,Tarifas!$D39,Datos!M$11,Tarifas!$E39,Datos!M$12,Tarifas!$F39,Datos!M$13,Tarifas!$G39,Tarifas!$L39,Datos!M$16,Datos!M$17,Datos!M$19,Datos!M$20,Datos!M$22,Datos!M$23,Datos!M$25,Datos!M$28,Datos!M$31,Tarifas!$H39,Tarifas!$I39,Tarifas!$J39,Datos!M$15,Tarifas!$K39,Datos!$B$3,Datos!$B$1,Datos!$B$4,Tarifas!$M39,Tarifas!$N39,Tarifas!$O39,Tarifas!$P39,Tarifas!$Q39,Datos!$B$2) -> 36.0745911 | O37: =FACTURA(ROW(), COLUMN(),Datos!N$8,Datos!N$9,Tarifas!$C39,Datos!N$10,Tarifas!$D39,Datos!N$11,Tarifas!$E39,Datos!N$12,Tarifas!$F39,Datos!N$13,Tarifas!$G39,Tarifas!$L39,Datos!N$16,Datos!N$17,Datos!N$19,Datos!N$20,Datos!N$22,Datos!N$23,Datos!N$25,Datos!N$28,Datos!N$31,Tarifas!$H39,Tarifas!$I39,Tarifas!$J39,Datos!N$15,Tarifas!$K39,Datos!$B$3,Datos!$B$1,Datos!$B$4,Tarifas!$M39,Tarifas!$N39,Tarifas!$O39,Tarifas!$P39,Tarifas!$Q39,Datos!$B$2) -> 51.82153846 | P37: =FACTURA(ROW(), COLUMN(),Datos!O$8,Datos!O$9,Tarifas!$C39,Datos!O$10,Tarifas!$D39,Datos!O$11,Tarifas!$E39,Datos!O$12,Tarifas!$F39,Datos!O$13,Tarifas!$G39,Tarifas!$L39,Datos!O$16,Datos!O$17,Datos!O$19,Datos!O$20,Datos!O$22,Datos!O$23,Datos!O$25,Datos!O$28,Datos!O$31,Tarifas!$H39,Tarifas!$I39,Tarifas!$J39,Datos!O$15,Tarifas!$K39,Datos!$B$3,Datos!$B$1,Datos!$B$4,Tarifas!$M39,Tarifas!$N39,Tarifas!$O39,Tarifas!$P39,Tarifas!$Q39,Datos!$B$2) -> 36.0745911 | Q37: =IF(Tarifas!R39="Sí","Sí","") -> 
A38: =IF(Tarifas!A40="","",Tarifas!A40) -> Naturgy | B38: =IF(Tarifas!B40="","",Tarifas!B40) -> Solar | C38: 341.2847509 | E38: =FACTURA(ROW(), COLUMN(),Datos!D$8,Datos!D$9,Tarifas!$C40,Datos!D$10,Tarifas!$D40,Datos!D$11,Tarifas!$E40,Datos!D$12,Tarifas!$F40,Datos!D$13,Tarifas!$G40,Tarifas!$L40,Datos!D$16,Datos!D$17,Datos!D$19,Datos!D$20,Datos!D$22,Datos!D$23,Datos!D$25,Datos!D$28,Datos!D$31,Tarifas!$H40,Tarifas!$I40,Tarifas!$J40,Datos!D$15,Tarifas!$K40,Datos!$B$3,Datos!$B$1,Datos!$B$4,Tarifas!$M40,Tarifas!$N40,Tarifas!$O40,Tarifas!$P40,Tarifas!$Q40,Datos!$B$2) -> 12.89250822 | F38: =FACTURA(ROW(), COLUMN(),Datos!E$8,Datos!E$9,Tarifas!$C40,Datos!E$10,Tarifas!$D40,Datos!E$11,Tarifas!$E40,Datos!E$12,Tarifas!$F40,Datos!E$13,Tarifas!$G40,Tarifas!$L40,Datos!E$16,Datos!E$17,Datos!E$19,Datos!E$20,Datos!E$22,Datos!E$23,Datos!E$25,Datos!E$28,Datos!E$31,Tarifas!$H40,Tarifas!$I40,Tarifas!$J40,Datos!E$15,Tarifas!$K40,Datos!$B$3,Datos!$B$1,Datos!$B$4,Tarifas!$M40,Tarifas!$N40,Tarifas!$O40,Tarifas!$P40,Tarifas!$Q40,Datos!$B$2) -> 36.0745911 | G38: =FACTURA(ROW(), COLUMN(),Datos!F$8,Datos!F$9,Tarifas!$C40,Datos!F$10,Tarifas!$D40,Datos!F$11,Tarifas!$E40,Datos!F$12,Tarifas!$F40,Datos!F$13,Tarifas!$G40,Tarifas!$L40,Datos!F$16,Datos!F$17,Datos!F$19,Datos!F$20,Datos!F$22,Datos!F$23,Datos!F$25,Datos!F$28,Datos!F$31,Tarifas!$H40,Tarifas!$I40,Tarifas!$J40,Datos!F$15,Tarifas!$K40,Datos!$B$3,Datos!$B$1,Datos!$B$4,Tarifas!$M40,Tarifas!$N40,Tarifas!$O40,Tarifas!$P40,Tarifas!$Q40,Datos!$B$2) -> 12.89250822 | H38: =FACTURA(ROW(), COLUMN(),Datos!G$8,Datos!G$9,Tarifas!$C40,Datos!G$10,Tarifas!$D40,Datos!G$11,Tarifas!$E40,Datos!G$12,Tarifas!$F40,Datos!G$13,Tarifas!$G40,Tarifas!$L40,Datos!G$16,Datos!G$17,Datos!G$19,Datos!G$20,Datos!G$22,Datos!G$23,Datos!G$25,Datos!G$28,Datos!G$31,Tarifas!$H40,Tarifas!$I40,Tarifas!$J40,Datos!G$15,Tarifas!$K40,Datos!$B$3,Datos!$B$1,Datos!$B$4,Tarifas!$M40,Tarifas!$N40,Tarifas!$O40,Tarifas!$P40,Tarifas!$Q40,Datos!$B$2) -> 36.0745911 | I38: =FACTURA(ROW(), COLUMN(),Datos!H$8,Datos!H$9,Tarifas!$C40,Datos!H$10,Tarifas!$D40,Datos!H$11,Tarifas!$E40,Datos!H$12,Tarifas!$F40,Datos!H$13,Tarifas!$G40,Tarifas!$L40,Datos!H$16,Datos!H$17,Datos!H$19,Datos!H$20,Datos!H$22,Datos!H$23,Datos!H$25,Datos!H$28,Datos!H$31,Tarifas!$H40,Tarifas!$I40,Tarifas!$J40,Datos!H$15,Tarifas!$K40,Datos!$B$3,Datos!$B$1,Datos!$B$4,Tarifas!$M40,Tarifas!$N40,Tarifas!$O40,Tarifas!$P40,Tarifas!$Q40,Datos!$B$2) -> 12.89250822 | J38: =FACTURA(ROW(), COLUMN(),Datos!I$8,Datos!I$9,Tarifas!$C40,Datos!I$10,Tarifas!$D40,Datos!I$11,Tarifas!$E40,Datos!I$12,Tarifas!$F40,Datos!I$13,Tarifas!$G40,Tarifas!$L40,Datos!I$16,Datos!I$17,Datos!I$19,Datos!I$20,Datos!I$22,Datos!I$23,Datos!I$25,Datos!I$28,Datos!I$31,Tarifas!$H40,Tarifas!$I40,Tarifas!$J40,Datos!I$15,Tarifas!$K40,Datos!$B$3,Datos!$B$1,Datos!$B$4,Tarifas!$M40,Tarifas!$N40,Tarifas!$O40,Tarifas!$P40,Tarifas!$Q40,Datos!$B$2) -> 36.0745911 | K38: =FACTURA(ROW(), COLUMN(),Datos!J$8,Datos!J$9,Tarifas!$C40,Datos!J$10,Tarifas!$D40,Datos!J$11,Tarifas!$E40,Datos!J$12,Tarifas!$F40,Datos!J$13,Tarifas!$G40,Tarifas!$L40,Datos!J$16,Datos!J$17,Datos!J$19,Datos!J$20,Datos!J$22,Datos!J$23,Datos!J$25,Datos!J$28,Datos!J$31,Tarifas!$H40,Tarifas!$I40,Tarifas!$J40,Datos!J$15,Tarifas!$K40,Datos!$B$3,Datos!$B$1,Datos!$B$4,Tarifas!$M40,Tarifas!$N40,Tarifas!$O40,Tarifas!$P40,Tarifas!$Q40,Datos!$B$2) -> 17.16989322 | L38: =FACTURA(ROW(), COLUMN(),Datos!K$8,Datos!K$9,Tarifas!$C40,Datos!K$10,Tarifas!$D40,Datos!K$11,Tarifas!$E40,Datos!K$12,Tarifas!$F40,Datos!K$13,Tarifas!$G40,Tarifas!$L40,Datos!K$16,Datos!K$17,Datos!K$19,Datos!K$20,Datos!K$22,Datos!K$23,Datos!K$25,Datos!K$28,Datos!K$31,Tarifas!$H40,Tarifas!$I40,Tarifas!$J40,Datos!K$15,Tarifas!$K40,Datos!$B$3,Datos!$B$1,Datos!$B$4,Tarifas!$M40,Tarifas!$N40,Tarifas!$O40,Tarifas!$P40,Tarifas!$Q40,Datos!$B$2) -> 36.0745911 | M38: =FACTURA(ROW(), COLUMN(),Datos!L$8,Datos!L$9,Tarifas!$C40,Datos!L$10,Tarifas!$D40,Datos!L$11,Tarifas!$E40,Datos!L$12,Tarifas!$F40,Datos!L$13,Tarifas!$G40,Tarifas!$L40,Datos!L$16,Datos!L$17,Datos!L$19,Datos!L$20,Datos!L$22,Datos!L$23,Datos!L$25,Datos!L$28,Datos!L$31,Tarifas!$H40,Tarifas!$I40,Tarifas!$J40,Datos!L$15,Tarifas!$K40,Datos!$B$3,Datos!$B$1,Datos!$B$4,Tarifas!$M40,Tarifas!$N40,Tarifas!$O40,Tarifas!$P40,Tarifas!$Q40,Datos!$B$2) -> 28.71989322 | N38: =FACTURA(ROW(), COLUMN(),Datos!M$8,Datos!M$9,Tarifas!$C40,Datos!M$10,Tarifas!$D40,Datos!M$11,Tarifas!$E40,Datos!M$12,Tarifas!$F40,Datos!M$13,Tarifas!$G40,Tarifas!$L40,Datos!M$16,Datos!M$17,Datos!M$19,Datos!M$20,Datos!M$22,Datos!M$23,Datos!M$25,Datos!M$28,Datos!M$31,Tarifas!$H40,Tarifas!$I40,Tarifas!$J40,Datos!M$15,Tarifas!$K40,Datos!$B$3,Datos!$B$1,Datos!$B$4,Tarifas!$M40,Tarifas!$N40,Tarifas!$O40,Tarifas!$P40,Tarifas!$Q40,Datos!$B$2) -> 36.0745911 | O38: =FACTURA(ROW(), COLUMN(),Datos!N$8,Datos!N$9,Tarifas!$C40,Datos!N$10,Tarifas!$D40,Datos!N$11,Tarifas!$E40,Datos!N$12,Tarifas!$F40,Datos!N$13,Tarifas!$G40,Tarifas!$L40,Datos!N$16,Datos!N$17,Datos!N$19,Datos!N$20,Datos!N$22,Datos!N$23,Datos!N$25,Datos!N$28,Datos!N$31,Tarifas!$H40,Tarifas!$I40,Tarifas!$J40,Datos!N$15,Tarifas!$K40,Datos!$B$3,Datos!$B$1,Datos!$B$4,Tarifas!$M40,Tarifas!$N40,Tarifas!$O40,Tarifas!$P40,Tarifas!$Q40,Datos!$B$2) -> 40.26989322 | P38: =FACTURA(ROW(), COLUMN(),Datos!O$8,Datos!O$9,Tarifas!$C40,Datos!O$10,Tarifas!$D40,Datos!O$11,Tarifas!$E40,Datos!O$12,Tarifas!$F40,Datos!O$13,Tarifas!$G40,Tarifas!$L40,Datos!O$16,Datos!O$17,Datos!O$19,Datos!O$20,Datos!O$22,Datos!O$23,Datos!O$25,Datos!O$28,Datos!O$31,Tarifas!$H40,Tarifas!$I40,Tarifas!$J40,Datos!O$15,Tarifas!$K40,Datos!$B$3,Datos!$B$1,Datos!$B$4,Tarifas!$M40,Tarifas!$N40,Tarifas!$O40,Tarifas!$P40,Tarifas!$Q40,Datos!$B$2) -> 36.0745911 | Q38: =IF(Tarifas!R40="Sí","Sí","") -> 
A39: =IF(Tarifas!A41="","",Tarifas!A41) -> Naturgy | B39: =IF(Tarifas!B41="","",Tarifas!B41) -> Plan Fijo Luz Comunidad | C39: 623.2786871 | E39: =FACTURA(ROW(), COLUMN(),Datos!D$8,Datos!D$9,Tarifas!$C41,Datos!D$10,Tarifas!$D41,Datos!D$11,Tarifas!$E41,Datos!D$12,Tarifas!$F41,Datos!D$13,Tarifas!$G41,Tarifas!$L41,Datos!D$16,Datos!D$17,Datos!D$19,Datos!D$20,Datos!D$22,Datos!D$23,Datos!D$25,Datos!D$28,Datos!D$31,Tarifas!$H41,Tarifas!$I41,Tarifas!$J41,Datos!D$15,Tarifas!$K41,Datos!$B$3,Datos!$B$1,Datos!$B$4,Tarifas!$M41,Tarifas!$N41,Tarifas!$O41,Tarifas!$P41,Tarifas!$Q41,Datos!$B$2) -> 61.30205821 | F39: =FACTURA(ROW(), COLUMN(),Datos!E$8,Datos!E$9,Tarifas!$C41,Datos!E$10,Tarifas!$D41,Datos!E$11,Tarifas!$E41,Datos!E$12,Tarifas!$F41,Datos!E$13,Tarifas!$G41,Tarifas!$L41,Datos!E$16,Datos!E$17,Datos!E$19,Datos!E$20,Datos!E$22,Datos!E$23,Datos!E$25,Datos!E$28,Datos!E$31,Tarifas!$H41,Tarifas!$I41,Tarifas!$J41,Datos!E$15,Tarifas!$K41,Datos!$B$3,Datos!$B$1,Datos!$B$4,Tarifas!$M41,Tarifas!$N41,Tarifas!$O41,Tarifas!$P41,Tarifas!$Q41,Datos!$B$2) -> 42.57772297 | G39: =FACTURA(ROW(), COLUMN(),Datos!F$8,Datos!F$9,Tarifas!$C41,Datos!F$10,Tarifas!$D41,Datos!F$11,Tarifas!$E41,Datos!F$12,Tarifas!$F41,Datos!F$13,Tarifas!$G41,Tarifas!$L41,Datos!F$16,Datos!F$17,Datos!F$19,Datos!F$20,Datos!F$22,Datos!F$23,Datos!F$25,Datos!F$28,Datos!F$31,Tarifas!$H41,Tarifas!$I41,Tarifas!$J41,Datos!F$15,Tarifas!$K41,Datos!$B$3,Datos!$B$1,Datos!$B$4,Tarifas!$M41,Tarifas!$N41,Tarifas!$O41,Tarifas!$P41,Tarifas!$Q41,Datos!$B$2) -> 61.30205821 | H39: =FACTURA(ROW(), COLUMN(),Datos!G$8,Datos!G$9,Tarifas!$C41,Datos!G$10,Tarifas!$D41,Datos!G$11,Tarifas!$E41,Datos!G$12,Tarifas!$F41,Datos!G$13,Tarifas!$G41,Tarifas!$L41,Datos!G$16,Datos!G$17,Datos!G$19,Datos!G$20,Datos!G$22,Datos!G$23,Datos!G$25,Datos!G$28,Datos!G$31,Tarifas!$H41,Tarifas!$I41,Tarifas!$J41,Datos!G$15,Tarifas!$K41,Datos!$B$3,Datos!$B$1,Datos!$B$4,Tarifas!$M41,Tarifas!$N41,Tarifas!$O41,Tarifas!$P41,Tarifas!$Q41,Datos!$B$2) -> 42.57772297 | I39: =FACTURA(ROW(), COLUMN(),Datos!H$8,Datos!H$9,Tarifas!$C41,Datos!H$10,Tarifas!$D41,Datos!H$11,Tarifas!$E41,Datos!H$12,Tarifas!$F41,Datos!H$13,Tarifas!$G41,Tarifas!$L41,Datos!H$16,Datos!H$17,Datos!H$19,Datos!H$20,Datos!H$22,Datos!H$23,Datos!H$25,Datos!H$28,Datos!H$31,Tarifas!$H41,Tarifas!$I41,Tarifas!$J41,Datos!H$15,Tarifas!$K41,Datos!$B$3,Datos!$B$1,Datos!$B$4,Tarifas!$M41,Tarifas!$N41,Tarifas!$O41,Tarifas!$P41,Tarifas!$Q41,Datos!$B$2) -> 61.30205821 | J39: =FACTURA(ROW(), COLUMN(),Datos!I$8,Datos!I$9,Tarifas!$C41,Datos!I$10,Tarifas!$D41,Datos!I$11,Tarifas!$E41,Datos!I$12,Tarifas!$F41,Datos!I$13,Tarifas!$G41,Tarifas!$L41,Datos!I$16,Datos!I$17,Datos!I$19,Datos!I$20,Datos!I$22,Datos!I$23,Datos!I$25,Datos!I$28,Datos!I$31,Tarifas!$H41,Tarifas!$I41,Tarifas!$J41,Datos!I$15,Tarifas!$K41,Datos!$B$3,Datos!$B$1,Datos!$B$4,Tarifas!$M41,Tarifas!$N41,Tarifas!$O41,Tarifas!$P41,Tarifas!$Q41,Datos!$B$2) -> 42.57772297 | K39: =FACTURA(ROW(), COLUMN(),Datos!J$8,Datos!J$9,Tarifas!$C41,Datos!J$10,Tarifas!$D41,Datos!J$11,Tarifas!$E41,Datos!J$12,Tarifas!$F41,Datos!J$13,Tarifas!$G41,Tarifas!$L41,Datos!J$16,Datos!J$17,Datos!J$19,Datos!J$20,Datos!J$22,Datos!J$23,Datos!J$25,Datos!J$28,Datos!J$31,Tarifas!$H41,Tarifas!$I41,Tarifas!$J41,Datos!J$15,Tarifas!$K41,Datos!$B$3,Datos!$B$1,Datos!$B$4,Tarifas!$M41,Tarifas!$N41,Tarifas!$O41,Tarifas!$P41,Tarifas!$Q41,Datos!$B$2) -> 61.30205821 | L39: =FACTURA(ROW(), COLUMN(),Datos!K$8,Datos!K$9,Tarifas!$C41,Datos!K$10,Tarifas!$D41,Datos!K$11,Tarifas!$E41,Datos!K$12,Tarifas!$F41,Datos!K$13,Tarifas!$G41,Tarifas!$L41,Datos!K$16,Datos!K$17,Datos!K$19,Datos!K$20,Datos!K$22,Datos!K$23,Datos!K$25,Datos!K$28,Datos!K$31,Tarifas!$H41,Tarifas!$I41,Tarifas!$J41,Datos!K$15,Tarifas!$K41,Datos!$B$3,Datos!$B$1,Datos!$B$4,Tarifas!$M41,Tarifas!$N41,Tarifas!$O41,Tarifas!$P41,Tarifas!$Q41,Datos!$B$2) -> 42.57772297 | M39: =FACTURA(ROW(), COLUMN(),Datos!L$8,Datos!L$9,Tarifas!$C41,Datos!L$10,Tarifas!$D41,Datos!L$11,Tarifas!$E41,Datos!L$12,Tarifas!$F41,Datos!L$13,Tarifas!$G41,Tarifas!$L41,Datos!L$16,Datos!L$17,Datos!L$19,Datos!L$20,Datos!L$22,Datos!L$23,Datos!L$25,Datos!L$28,Datos!L$31,Tarifas!$H41,Tarifas!$I41,Tarifas!$J41,Datos!L$15,Tarifas!$K41,Datos!$B$3,Datos!$B$1,Datos!$B$4,Tarifas!$M41,Tarifas!$N41,Tarifas!$O41,Tarifas!$P41,Tarifas!$Q41,Datos!$B$2) -> 61.30205821 | N39: =FACTURA(ROW(), COLUMN(),Datos!M$8,Datos!M$9,Tarifas!$C41,Datos!M$10,Tarifas!$D41,Datos!M$11,Tarifas!$E41,Datos!M$12,Tarifas!$F41,Datos!M$13,Tarifas!$G41,Tarifas!$L41,Datos!M$16,Datos!M$17,Datos!M$19,Datos!M$20,Datos!M$22,Datos!M$23,Datos!M$25,Datos!M$28,Datos!M$31,Tarifas!$H41,Tarifas!$I41,Tarifas!$J41,Datos!M$15,Tarifas!$K41,Datos!$B$3,Datos!$B$1,Datos!$B$4,Tarifas!$M41,Tarifas!$N41,Tarifas!$O41,Tarifas!$P41,Tarifas!$Q41,Datos!$B$2) -> 42.57772297 | O39: =FACTURA(ROW(), COLUMN(),Datos!N$8,Datos!N$9,Tarifas!$C41,Datos!N$10,Tarifas!$D41,Datos!N$11,Tarifas!$E41,Datos!N$12,Tarifas!$F41,Datos!N$13,Tarifas!$G41,Tarifas!$L41,Datos!N$16,Datos!N$17,Datos!N$19,Datos!N$20,Datos!N$22,Datos!N$23,Datos!N$25,Datos!N$28,Datos!N$31,Tarifas!$H41,Tarifas!$I41,Tarifas!$J41,Datos!N$15,Tarifas!$K41,Datos!$B$3,Datos!$B$1,Datos!$B$4,Tarifas!$M41,Tarifas!$N41,Tarifas!$O41,Tarifas!$P41,Tarifas!$Q41,Datos!$B$2) -> 61.30205821 | P39: =FACTURA(ROW(), COLUMN(),Datos!O$8,Datos!O$9,Tarifas!$C41,Datos!O$10,Tarifas!$D41,Datos!O$11,Tarifas!$E41,Datos!O$12,Tarifas!$F41,Datos!O$13,Tarifas!$G41,Tarifas!$L41,Datos!O$16,Datos!O$17,Datos!O$19,Datos!O$20,Datos!O$22,Datos!O$23,Datos!O$25,Datos!O$28,Datos!O$31,Tarifas!$H41,Tarifas!$I41,Tarifas!$J41,Datos!O$15,Tarifas!$K41,Datos!$B$3,Datos!$B$1,Datos!$B$4,Tarifas!$M41,Tarifas!$N41,Tarifas!$O41,Tarifas!$P41,Tarifas!$Q41,Datos!$B$2) -> 42.57772297 | Q39: =IF(Tarifas!R41="Sí","Sí","") -> Sí
A40: =IF(Tarifas!A42="","",Tarifas!A42) -> Naturgy | B40: =IF(Tarifas!B42="","",Tarifas!B42) -> Plan Fijo Luz Comun. Trihoraria | C40: 594.8768444 | E40: =FACTURA(ROW(), COLUMN(),Datos!D$8,Datos!D$9,Tarifas!$C42,Datos!D$10,Tarifas!$D42,Datos!D$11,Tarifas!$E42,Datos!D$12,Tarifas!$F42,Datos!D$13,Tarifas!$G42,Tarifas!$L42,Datos!D$16,Datos!D$17,Datos!D$19,Datos!D$20,Datos!D$22,Datos!D$23,Datos!D$25,Datos!D$28,Datos!D$31,Tarifas!$H42,Tarifas!$I42,Tarifas!$J42,Datos!D$15,Tarifas!$K42,Datos!$B$3,Datos!$B$1,Datos!$B$4,Tarifas!$M42,Tarifas!$N42,Tarifas!$O42,Tarifas!$P42,Tarifas!$Q42,Datos!$B$2) -> 59.5511241 | F40: =FACTURA(ROW(), COLUMN(),Datos!E$8,Datos!E$9,Tarifas!$C42,Datos!E$10,Tarifas!$D42,Datos!E$11,Tarifas!$E42,Datos!E$12,Tarifas!$F42,Datos!E$13,Tarifas!$G42,Tarifas!$L42,Datos!E$16,Datos!E$17,Datos!E$19,Datos!E$20,Datos!E$22,Datos!E$23,Datos!E$25,Datos!E$28,Datos!E$31,Tarifas!$H42,Tarifas!$I42,Tarifas!$J42,Datos!E$15,Tarifas!$K42,Datos!$B$3,Datos!$B$1,Datos!$B$4,Tarifas!$M42,Tarifas!$N42,Tarifas!$O42,Tarifas!$P42,Tarifas!$Q42,Datos!$B$2) -> 39.59501664 | G40: =FACTURA(ROW(), COLUMN(),Datos!F$8,Datos!F$9,Tarifas!$C42,Datos!F$10,Tarifas!$D42,Datos!F$11,Tarifas!$E42,Datos!F$12,Tarifas!$F42,Datos!F$13,Tarifas!$G42,Tarifas!$L42,Datos!F$16,Datos!F$17,Datos!F$19,Datos!F$20,Datos!F$22,Datos!F$23,Datos!F$25,Datos!F$28,Datos!F$31,Tarifas!$H42,Tarifas!$I42,Tarifas!$J42,Datos!F$15,Tarifas!$K42,Datos!$B$3,Datos!$B$1,Datos!$B$4,Tarifas!$M42,Tarifas!$N42,Tarifas!$O42,Tarifas!$P42,Tarifas!$Q42,Datos!$B$2) -> 59.5511241 | H40: =FACTURA(ROW(), COLUMN(),Datos!G$8,Datos!G$9,Tarifas!$C42,Datos!G$10,Tarifas!$D42,Datos!G$11,Tarifas!$E42,Datos!G$12,Tarifas!$F42,Datos!G$13,Tarifas!$G42,Tarifas!$L42,Datos!G$16,Datos!G$17,Datos!G$19,Datos!G$20,Datos!G$22,Datos!G$23,Datos!G$25,Datos!G$28,Datos!G$31,Tarifas!$H42,Tarifas!$I42,Tarifas!$J42,Datos!G$15,Tarifas!$K42,Datos!$B$3,Datos!$B$1,Datos!$B$4,Tarifas!$M42,Tarifas!$N42,Tarifas!$O42,Tarifas!$P42,Tarifas!$Q42,Datos!$B$2) -> 39.59501664 | I40: =FACTURA(ROW(), COLUMN(),Datos!H$8,Datos!H$9,Tarifas!$C42,Datos!H$10,Tarifas!$D42,Datos!H$11,Tarifas!$E42,Datos!H$12,Tarifas!$F42,Datos!H$13,Tarifas!$G42,Tarifas!$L42,Datos!H$16,Datos!H$17,Datos!H$19,Datos!H$20,Datos!H$22,Datos!H$23,Datos!H$25,Datos!H$28,Datos!H$31,Tarifas!$H42,Tarifas!$I42,Tarifas!$J42,Datos!H$15,Tarifas!$K42,Datos!$B$3,Datos!$B$1,Datos!$B$4,Tarifas!$M42,Tarifas!$N42,Tarifas!$O42,Tarifas!$P42,Tarifas!$Q42,Datos!$B$2) -> 59.5511241 | J40: =FACTURA(ROW(), COLUMN(),Datos!I$8,Datos!I$9,Tarifas!$C42,Datos!I$10,Tarifas!$D42,Datos!I$11,Tarifas!$E42,Datos!I$12,Tarifas!$F42,Datos!I$13,Tarifas!$G42,Tarifas!$L42,Datos!I$16,Datos!I$17,Datos!I$19,Datos!I$20,Datos!I$22,Datos!I$23,Datos!I$25,Datos!I$28,Datos!I$31,Tarifas!$H42,Tarifas!$I42,Tarifas!$J42,Datos!I$15,Tarifas!$K42,Datos!$B$3,Datos!$B$1,Datos!$B$4,Tarifas!$M42,Tarifas!$N42,Tarifas!$O42,Tarifas!$P42,Tarifas!$Q42,Datos!$B$2) -> 39.59501664 | K40: =FACTURA(ROW(), COLUMN(),Datos!J$8,Datos!J$9,Tarifas!$C42,Datos!J$10,Tarifas!$D42,Datos!J$11,Tarifas!$E42,Datos!J$12,Tarifas!$F42,Datos!J$13,Tarifas!$G42,Tarifas!$L42,Datos!J$16,Datos!J$17,Datos!J$19,Datos!J$20,Datos!J$22,Datos!J$23,Datos!J$25,Datos!J$28,Datos!J$31,Tarifas!$H42,Tarifas!$I42,Tarifas!$J42,Datos!J$15,Tarifas!$K42,Datos!$B$3,Datos!$B$1,Datos!$B$4,Tarifas!$M42,Tarifas!$N42,Tarifas!$O42,Tarifas!$P42,Tarifas!$Q42,Datos!$B$2) -> 59.5511241 | L40: =FACTURA(ROW(), COLUMN(),Datos!K$8,Datos!K$9,Tarifas!$C42,Datos!K$10,Tarifas!$D42,Datos!K$11,Tarifas!$E42,Datos!K$12,Tarifas!$F42,Datos!K$13,Tarifas!$G42,Tarifas!$L42,Datos!K$16,Datos!K$17,Datos!K$19,Datos!K$20,Datos!K$22,Datos!K$23,Datos!K$25,Datos!K$28,Datos!K$31,Tarifas!$H42,Tarifas!$I42,Tarifas!$J42,Datos!K$15,Tarifas!$K42,Datos!$B$3,Datos!$B$1,Datos!$B$4,Tarifas!$M42,Tarifas!$N42,Tarifas!$O42,Tarifas!$P42,Tarifas!$Q42,Datos!$B$2) -> 39.59501664 | M40: =FACTURA(ROW(), COLUMN(),Datos!L$8,Datos!L$9,Tarifas!$C42,Datos!L$10,Tarifas!$D42,Datos!L$11,Tarifas!$E42,Datos!L$12,Tarifas!$F42,Datos!L$13,Tarifas!$G42,Tarifas!$L42,Datos!L$16,Datos!L$17,Datos!L$19,Datos!L$20,Datos!L$22,Datos!L$23,Datos!L$25,Datos!L$28,Datos!L$31,Tarifas!$H42,Tarifas!$I42,Tarifas!$J42,Datos!L$15,Tarifas!$K42,Datos!$B$3,Datos!$B$1,Datos!$B$4,Tarifas!$M42,Tarifas!$N42,Tarifas!$O42,Tarifas!$P42,Tarifas!$Q42,Datos!$B$2) -> 59.5511241 | N40: =FACTURA(ROW(), COLUMN(),Datos!M$8,Datos!M$9,Tarifas!$C42,Datos!M$10,Tarifas!$D42,Datos!M$11,Tarifas!$E42,Datos!M$12,Tarifas!$F42,Datos!M$13,Tarifas!$G42,Tarifas!$L42,Datos!M$16,Datos!M$17,Datos!M$19,Datos!M$20,Datos!M$22,Datos!M$23,Datos!M$25,Datos!M$28,Datos!M$31,Tarifas!$H42,Tarifas!$I42,Tarifas!$J42,Datos!M$15,Tarifas!$K42,Datos!$B$3,Datos!$B$1,Datos!$B$4,Tarifas!$M42,Tarifas!$N42,Tarifas!$O42,Tarifas!$P42,Tarifas!$Q42,Datos!$B$2) -> 39.59501664 | O40: =FACTURA(ROW(), COLUMN(),Datos!N$8,Datos!N$9,Tarifas!$C42,Datos!N$10,Tarifas!$D42,Datos!N$11,Tarifas!$E42,Datos!N$12,Tarifas!$F42,Datos!N$13,Tarifas!$G42,Tarifas!$L42,Datos!N$16,Datos!N$17,Datos!N$19,Datos!N$20,Datos!N$22,Datos!N$23,Datos!N$25,Datos!N$28,Datos!N$31,Tarifas!$H42,Tarifas!$I42,Tarifas!$J42,Datos!N$15,Tarifas!$K42,Datos!$B$3,Datos!$B$1,Datos!$B$4,Tarifas!$M42,Tarifas!$N42,Tarifas!$O42,Tarifas!$P42,Tarifas!$Q42,Datos!$B$2) -> 59.5511241 | P40: =FACTURA(ROW(), COLUMN(),Datos!O$8,Datos!O$9,Tarifas!$C42,Datos!O$10,Tarifas!$D42,Datos!O$11,Tarifas!$E42,Datos!O$12,Tarifas!$F42,Datos!O$13,Tarifas!$G42,Tarifas!$L42,Datos!O$16,Datos!O$17,Datos!O$19,Datos!O$20,Datos!O$22,Datos!O$23,Datos!O$25,Datos!O$28,Datos!O$31,Tarifas!$H42,Tarifas!$I42,Tarifas!$J42,Datos!O$15,Tarifas!$K42,Datos!$B$3,Datos!$B$1,Datos!$B$4,Tarifas!$M42,Tarifas!$N42,Tarifas!$O42,Tarifas!$P42,Tarifas!$Q42,Datos!$B$2) -> 39.59501664 | Q40: =IF(Tarifas!R42="Sí","Sí","") -> Sí
A41: =IF(Tarifas!A43="","",Tarifas!A43) -> Octopus Energy | B41: =IF(Tarifas!B43="","",Tarifas!B43) -> Octopus 3 | C41: 299.26995 | E41: =FACTURA(ROW(), COLUMN(),Datos!D$8,Datos!D$9,Tarifas!$C43,Datos!D$10,Tarifas!$D43,Datos!D$11,Tarifas!$E43,Datos!D$12,Tarifas!$F43,Datos!D$13,Tarifas!$G43,Tarifas!$L43,Datos!D$16,Datos!D$17,Datos!D$19,Datos!D$20,Datos!D$22,Datos!D$23,Datos!D$25,Datos!D$28,Datos!D$31,Tarifas!$H43,Tarifas!$I43,Tarifas!$J43,Datos!D$15,Tarifas!$K43,Datos!$B$3,Datos!$B$1,Datos!$B$4,Tarifas!$M43,Tarifas!$N43,Tarifas!$O43,Tarifas!$P43,Tarifas!$Q43,Datos!$B$2) -> 0 | F41: =FACTURA(ROW(), COLUMN(),Datos!E$8,Datos!E$9,Tarifas!$C43,Datos!E$10,Tarifas!$D43,Datos!E$11,Tarifas!$E43,Datos!E$12,Tarifas!$F43,Datos!E$13,Tarifas!$G43,Tarifas!$L43,Datos!E$16,Datos!E$17,Datos!E$19,Datos!E$20,Datos!E$22,Datos!E$23,Datos!E$25,Datos!E$28,Datos!E$31,Tarifas!$H43,Tarifas!$I43,Tarifas!$J43,Datos!E$15,Tarifas!$K43,Datos!$B$3,Datos!$B$1,Datos!$B$4,Tarifas!$M43,Tarifas!$N43,Tarifas!$O43,Tarifas!$P43,Tarifas!$Q43,Datos!$B$2) -> 14.63974166 | G41: =FACTURA(ROW(), COLUMN(),Datos!F$8,Datos!F$9,Tarifas!$C43,Datos!F$10,Tarifas!$D43,Datos!F$11,Tarifas!$E43,Datos!F$12,Tarifas!$F43,Datos!F$13,Tarifas!$G43,Tarifas!$L43,Datos!F$16,Datos!F$17,Datos!F$19,Datos!F$20,Datos!F$22,Datos!F$23,Datos!F$25,Datos!F$28,Datos!F$31,Tarifas!$H43,Tarifas!$I43,Tarifas!$J43,Datos!F$15,Tarifas!$K43,Datos!$B$3,Datos!$B$1,Datos!$B$4,Tarifas!$M43,Tarifas!$N43,Tarifas!$O43,Tarifas!$P43,Tarifas!$Q43,Datos!$B$2) -> 0 | H41: =FACTURA(ROW(), COLUMN(),Datos!G$8,Datos!G$9,Tarifas!$C43,Datos!G$10,Tarifas!$D43,Datos!G$11,Tarifas!$E43,Datos!G$12,Tarifas!$F43,Datos!G$13,Tarifas!$G43,Tarifas!$L43,Datos!G$16,Datos!G$17,Datos!G$19,Datos!G$20,Datos!G$22,Datos!G$23,Datos!G$25,Datos!G$28,Datos!G$31,Tarifas!$H43,Tarifas!$I43,Tarifas!$J43,Datos!G$15,Tarifas!$K43,Datos!$B$3,Datos!$B$1,Datos!$B$4,Tarifas!$M43,Tarifas!$N43,Tarifas!$O43,Tarifas!$P43,Tarifas!$Q43,Datos!$B$2) -> 25.63974166 | I41: =FACTURA(ROW(), COLUMN(),Datos!H$8,Datos!H$9,Tarifas!$C43,Datos!H$10,Tarifas!$D43,Datos!H$11,Tarifas!$E43,Datos!H$12,Tarifas!$F43,Datos!H$13,Tarifas!$G43,Tarifas!$L43,Datos!H$16,Datos!H$17,Datos!H$19,Datos!H$20,Datos!H$22,Datos!H$23,Datos!H$25,Datos!H$28,Datos!H$31,Tarifas!$H43,Tarifas!$I43,Tarifas!$J43,Datos!H$15,Tarifas!$K43,Datos!$B$3,Datos!$B$1,Datos!$B$4,Tarifas!$M43,Tarifas!$N43,Tarifas!$O43,Tarifas!$P43,Tarifas!$Q43,Datos!$B$2) -> 8.7341775 | J41: =FACTURA(ROW(), COLUMN(),Datos!I$8,Datos!I$9,Tarifas!$C43,Datos!I$10,Tarifas!$D43,Datos!I$11,Tarifas!$E43,Datos!I$12,Tarifas!$F43,Datos!I$13,Tarifas!$G43,Tarifas!$L43,Datos!I$16,Datos!I$17,Datos!I$19,Datos!I$20,Datos!I$22,Datos!I$23,Datos!I$25,Datos!I$28,Datos!I$31,Tarifas!$H43,Tarifas!$I43,Tarifas!$J43,Datos!I$15,Tarifas!$K43,Datos!$B$3,Datos!$B$1,Datos!$B$4,Tarifas!$M43,Tarifas!$N43,Tarifas!$O43,Tarifas!$P43,Tarifas!$Q43,Datos!$B$2) -> 38.90556416 | K41: =FACTURA(ROW(), COLUMN(),Datos!J$8,Datos!J$9,Tarifas!$C43,Datos!J$10,Tarifas!$D43,Datos!J$11,Tarifas!$E43,Datos!J$12,Tarifas!$F43,Datos!J$13,Tarifas!$G43,Tarifas!$L43,Datos!J$16,Datos!J$17,Datos!J$19,Datos!J$20,Datos!J$22,Datos!J$23,Datos!J$25,Datos!J$28,Datos!J$31,Tarifas!$H43,Tarifas!$I43,Tarifas!$J43,Datos!J$15,Tarifas!$K43,Datos!$B$3,Datos!$B$1,Datos!$B$4,Tarifas!$M43,Tarifas!$N43,Tarifas!$O43,Tarifas!$P43,Tarifas!$Q43,Datos!$B$2) -> 19.9946775 | L41: =FACTURA(ROW(), COLUMN(),Datos!K$8,Datos!K$9,Tarifas!$C43,Datos!K$10,Tarifas!$D43,Datos!K$11,Tarifas!$E43,Datos!K$12,Tarifas!$F43,Datos!K$13,Tarifas!$G43,Tarifas!$L43,Datos!K$16,Datos!K$17,Datos!K$19,Datos!K$20,Datos!K$22,Datos!K$23,Datos!K$25,Datos!K$28,Datos!K$31,Tarifas!$H43,Tarifas!$I43,Tarifas!$J43,Datos!K$15,Tarifas!$K43,Datos!$B$3,Datos!$B$1,Datos!$B$4,Tarifas!$M43,Tarifas!$N43,Tarifas!$O43,Tarifas!$P43,Tarifas!$Q43,Datos!$B$2) -> 38.90556416 | M41: =FACTURA(ROW(), COLUMN(),Datos!L$8,Datos!L$9,Tarifas!$C43,Datos!L$10,Tarifas!$D43,Datos!L$11,Tarifas!$E43,Datos!L$12,Tarifas!$F43,Datos!L$13,Tarifas!$G43,Tarifas!$L43,Datos!L$16,Datos!L$17,Datos!L$19,Datos!L$20,Datos!L$22,Datos!L$23,Datos!L$25,Datos!L$28,Datos!L$31,Tarifas!$H43,Tarifas!$I43,Tarifas!$J43,Datos!L$15,Tarifas!$K43,Datos!$B$3,Datos!$B$1,Datos!$B$4,Tarifas!$M43,Tarifas!$N43,Tarifas!$O43,Tarifas!$P43,Tarifas!$Q43,Datos!$B$2) -> 31.5446775 | N41: =FACTURA(ROW(), COLUMN(),Datos!M$8,Datos!M$9,Tarifas!$C43,Datos!M$10,Tarifas!$D43,Datos!M$11,Tarifas!$E43,Datos!M$12,Tarifas!$F43,Datos!M$13,Tarifas!$G43,Tarifas!$L43,Datos!M$16,Datos!M$17,Datos!M$19,Datos!M$20,Datos!M$22,Datos!M$23,Datos!M$25,Datos!M$28,Datos!M$31,Tarifas!$H43,Tarifas!$I43,Tarifas!$J43,Datos!M$15,Tarifas!$K43,Datos!$B$3,Datos!$B$1,Datos!$B$4,Tarifas!$M43,Tarifas!$N43,Tarifas!$O43,Tarifas!$P43,Tarifas!$Q43,Datos!$B$2) -> 38.90556416 | O41: =FACTURA(ROW(), COLUMN(),Datos!N$8,Datos!N$9,Tarifas!$C43,Datos!N$10,Tarifas!$D43,Datos!N$11,Tarifas!$E43,Datos!N$12,Tarifas!$F43,Datos!N$13,Tarifas!$G43,Tarifas!$L43,Datos!N$16,Datos!N$17,Datos!N$19,Datos!N$20,Datos!N$22,Datos!N$23,Datos!N$25,Datos!N$28,Datos!N$31,Tarifas!$H43,Tarifas!$I43,Tarifas!$J43,Datos!N$15,Tarifas!$K43,Datos!$B$3,Datos!$B$1,Datos!$B$4,Tarifas!$M43,Tarifas!$N43,Tarifas!$O43,Tarifas!$P43,Tarifas!$Q43,Datos!$B$2) -> 43.0946775 | P41: =FACTURA(ROW(), COLUMN(),Datos!O$8,Datos!O$9,Tarifas!$C43,Datos!O$10,Tarifas!$D43,Datos!O$11,Tarifas!$E43,Datos!O$12,Tarifas!$F43,Datos!O$13,Tarifas!$G43,Tarifas!$L43,Datos!O$16,Datos!O$17,Datos!O$19,Datos!O$20,Datos!O$22,Datos!O$23,Datos!O$25,Datos!O$28,Datos!O$31,Tarifas!$H43,Tarifas!$I43,Tarifas!$J43,Datos!O$15,Tarifas!$K43,Datos!$B$3,Datos!$B$1,Datos!$B$4,Tarifas!$M43,Tarifas!$N43,Tarifas!$O43,Tarifas!$P43,Tarifas!$Q43,Datos!$B$2) -> 38.90556416 | Q41: =IF(Tarifas!R43="Sí","Sí","") -> 
A42: =IF(Tarifas!A44="","",Tarifas!A44) -> Octopus Energy | B42: =IF(Tarifas!B44="","",Tarifas!B44) -> Relax | C42: 321.95745 | E42: =FACTURA(ROW(), COLUMN(),Datos!D$8,Datos!D$9,Tarifas!$C44,Datos!D$10,Tarifas!$D44,Datos!D$11,Tarifas!$E44,Datos!D$12,Tarifas!$F44,Datos!D$13,Tarifas!$G44,Tarifas!$L44,Datos!D$16,Datos!D$17,Datos!D$19,Datos!D$20,Datos!D$22,Datos!D$23,Datos!D$25,Datos!D$28,Datos!D$31,Tarifas!$H44,Tarifas!$I44,Tarifas!$J44,Datos!D$15,Tarifas!$K44,Datos!$B$3,Datos!$B$1,Datos!$B$4,Tarifas!$M44,Tarifas!$N44,Tarifas!$O44,Tarifas!$P44,Tarifas!$Q44,Datos!$B$2) -> 0 | F42: =FACTURA(ROW(), COLUMN(),Datos!E$8,Datos!E$9,Tarifas!$C44,Datos!E$10,Tarifas!$D44,Datos!E$11,Tarifas!$E44,Datos!E$12,Tarifas!$F44,Datos!E$13,Tarifas!$G44,Tarifas!$L44,Datos!E$16,Datos!E$17,Datos!E$19,Datos!E$20,Datos!E$22,Datos!E$23,Datos!E$25,Datos!E$28,Datos!E$31,Tarifas!$H44,Tarifas!$I44,Tarifas!$J44,Datos!E$15,Tarifas!$K44,Datos!$B$3,Datos!$B$1,Datos!$B$4,Tarifas!$M44,Tarifas!$N44,Tarifas!$O44,Tarifas!$P44,Tarifas!$Q44,Datos!$B$2) -> 18.38024166 | G42: =FACTURA(ROW(), COLUMN(),Datos!F$8,Datos!F$9,Tarifas!$C44,Datos!F$10,Tarifas!$D44,Datos!F$11,Tarifas!$E44,Datos!F$12,Tarifas!$F44,Datos!F$13,Tarifas!$G44,Tarifas!$L44,Datos!F$16,Datos!F$17,Datos!F$19,Datos!F$20,Datos!F$22,Datos!F$23,Datos!F$25,Datos!F$28,Datos!F$31,Tarifas!$H44,Tarifas!$I44,Tarifas!$J44,Datos!F$15,Tarifas!$K44,Datos!$B$3,Datos!$B$1,Datos!$B$4,Tarifas!$M44,Tarifas!$N44,Tarifas!$O44,Tarifas!$P44,Tarifas!$Q44,Datos!$B$2) -> 0 | H42: =FACTURA(ROW(), COLUMN(),Datos!G$8,Datos!G$9,Tarifas!$C44,Datos!G$10,Tarifas!$D44,Datos!G$11,Tarifas!$E44,Datos!G$12,Tarifas!$F44,Datos!G$13,Tarifas!$G44,Tarifas!$L44,Datos!G$16,Datos!G$17,Datos!G$19,Datos!G$20,Datos!G$22,Datos!G$23,Datos!G$25,Datos!G$28,Datos!G$31,Tarifas!$H44,Tarifas!$I44,Tarifas!$J44,Datos!G$15,Tarifas!$K44,Datos!$B$3,Datos!$B$1,Datos!$B$4,Tarifas!$M44,Tarifas!$N44,Tarifas!$O44,Tarifas!$P44,Tarifas!$Q44,Datos!$B$2) -> 29.38024166 | I42: =FACTURA(ROW(), COLUMN(),Datos!H$8,Datos!H$9,Tarifas!$C44,Datos!H$10,Tarifas!$D44,Datos!H$11,Tarifas!$E44,Datos!H$12,Tarifas!$F44,Datos!H$13,Tarifas!$G44,Tarifas!$L44,Datos!H$16,Datos!H$17,Datos!H$19,Datos!H$20,Datos!H$22,Datos!H$23,Datos!H$25,Datos!H$28,Datos!H$31,Tarifas!$H44,Tarifas!$I44,Tarifas!$J44,Datos!H$15,Tarifas!$K44,Datos!$B$3,Datos!$B$1,Datos!$B$4,Tarifas!$M44,Tarifas!$N44,Tarifas!$O44,Tarifas!$P44,Tarifas!$Q44,Datos!$B$2) -> 10.3641775 | J42: =FACTURA(ROW(), COLUMN(),Datos!I$8,Datos!I$9,Tarifas!$C44,Datos!I$10,Tarifas!$D44,Datos!I$11,Tarifas!$E44,Datos!I$12,Tarifas!$F44,Datos!I$13,Tarifas!$G44,Tarifas!$L44,Datos!I$16,Datos!I$17,Datos!I$19,Datos!I$20,Datos!I$22,Datos!I$23,Datos!I$25,Datos!I$28,Datos!I$31,Tarifas!$H44,Tarifas!$I44,Tarifas!$J44,Datos!I$15,Tarifas!$K44,Datos!$B$3,Datos!$B$1,Datos!$B$4,Tarifas!$M44,Tarifas!$N44,Tarifas!$O44,Tarifas!$P44,Tarifas!$Q44,Datos!$B$2) -> 41.01606416 | K42: =FACTURA(ROW(), COLUMN(),Datos!J$8,Datos!J$9,Tarifas!$C44,Datos!J$10,Tarifas!$D44,Datos!J$11,Tarifas!$E44,Datos!J$12,Tarifas!$F44,Datos!J$13,Tarifas!$G44,Tarifas!$L44,Datos!J$16,Datos!J$17,Datos!J$19,Datos!J$20,Datos!J$22,Datos!J$23,Datos!J$25,Datos!J$28,Datos!J$31,Tarifas!$H44,Tarifas!$I44,Tarifas!$J44,Datos!J$15,Tarifas!$K44,Datos!$B$3,Datos!$B$1,Datos!$B$4,Tarifas!$M44,Tarifas!$N44,Tarifas!$O44,Tarifas!$P44,Tarifas!$Q44,Datos!$B$2) -> 21.7061775 | L42: =FACTURA(ROW(), COLUMN(),Datos!K$8,Datos!K$9,Tarifas!$C44,Datos!K$10,Tarifas!$D44,Datos!K$11,Tarifas!$E44,Datos!K$12,Tarifas!$F44,Datos!K$13,Tarifas!$G44,Tarifas!$L44,Datos!K$16,Datos!K$17,Datos!K$19,Datos!K$20,Datos!K$22,Datos!K$23,Datos!K$25,Datos!K$28,Datos!K$31,Tarifas!$H44,Tarifas!$I44,Tarifas!$J44,Datos!K$15,Tarifas!$K44,Datos!$B$3,Datos!$B$1,Datos!$B$4,Tarifas!$M44,Tarifas!$N44,Tarifas!$O44,Tarifas!$P44,Tarifas!$Q44,Datos!$B$2) -> 41.01606416 | M42: =FACTURA(ROW(), COLUMN(),Datos!L$8,Datos!L$9,Tarifas!$C44,Datos!L$10,Tarifas!$D44,Datos!L$11,Tarifas!$E44,Datos!L$12,Tarifas!$F44,Datos!L$13,Tarifas!$G44,Tarifas!$L44,Datos!L$16,Datos!L$17,Datos!L$19,Datos!L$20,Datos!L$22,Datos!L$23,Datos!L$25,Datos!L$28,Datos!L$31,Tarifas!$H44,Tarifas!$I44,Tarifas!$J44,Datos!L$15,Tarifas!$K44,Datos!$B$3,Datos!$B$1,Datos!$B$4,Tarifas!$M44,Tarifas!$N44,Tarifas!$O44,Tarifas!$P44,Tarifas!$Q44,Datos!$B$2) -> 33.2561775 | N42: =FACTURA(ROW(), COLUMN(),Datos!M$8,Datos!M$9,Tarifas!$C44,Datos!M$10,Tarifas!$D44,Datos!M$11,Tarifas!$E44,Datos!M$12,Tarifas!$F44,Datos!M$13,Tarifas!$G44,Tarifas!$L44,Datos!M$16,Datos!M$17,Datos!M$19,Datos!M$20,Datos!M$22,Datos!M$23,Datos!M$25,Datos!M$28,Datos!M$31,Tarifas!$H44,Tarifas!$I44,Tarifas!$J44,Datos!M$15,Tarifas!$K44,Datos!$B$3,Datos!$B$1,Datos!$B$4,Tarifas!$M44,Tarifas!$N44,Tarifas!$O44,Tarifas!$P44,Tarifas!$Q44,Datos!$B$2) -> 41.01606416 | O42: =FACTURA(ROW(), COLUMN(),Datos!N$8,Datos!N$9,Tarifas!$C44,Datos!N$10,Tarifas!$D44,Datos!N$11,Tarifas!$E44,Datos!N$12,Tarifas!$F44,Datos!N$13,Tarifas!$G44,Tarifas!$L44,Datos!N$16,Datos!N$17,Datos!N$19,Datos!N$20,Datos!N$22,Datos!N$23,Datos!N$25,Datos!N$28,Datos!N$31,Tarifas!$H44,Tarifas!$I44,Tarifas!$J44,Datos!N$15,Tarifas!$K44,Datos!$B$3,Datos!$B$1,Datos!$B$4,Tarifas!$M44,Tarifas!$N44,Tarifas!$O44,Tarifas!$P44,Tarifas!$Q44,Datos!$B$2) -> 44.8061775 | P42: =FACTURA(ROW(), COLUMN(),Datos!O$8,Datos!O$9,Tarifas!$C44,Datos!O$10,Tarifas!$D44,Datos!O$11,Tarifas!$E44,Datos!O$12,Tarifas!$F44,Datos!O$13,Tarifas!$G44,Tarifas!$L44,Datos!O$16,Datos!O$17,Datos!O$19,Datos!O$20,Datos!O$22,Datos!O$23,Datos!O$25,Datos!O$28,Datos!O$31,Tarifas!$H44,Tarifas!$I44,Tarifas!$J44,Datos!O$15,Tarifas!$K44,Datos!$B$3,Datos!$B$1,Datos!$B$4,Tarifas!$M44,Tarifas!$N44,Tarifas!$O44,Tarifas!$P44,Tarifas!$Q44,Datos!$B$2) -> 41.01606416 | Q42: =IF(Tarifas!R44="Sí","Sí","") -> 
A43: =IF(Tarifas!A45="","",Tarifas!A45) -> Repsol | B43: =IF(Tarifas!B45="","",Tarifas!B45) -> Tarifa Solar Precio Fijo | C43: 436.6441241 | E43: =FACTURA(ROW(), COLUMN(),Datos!D$8,Datos!D$9,Tarifas!$C45,Datos!D$10,Tarifas!$D45,Datos!D$11,Tarifas!$E45,Datos!D$12,Tarifas!$F45,Datos!D$13,Tarifas!$G45,Tarifas!$L45,Datos!D$16,Datos!D$17,Datos!D$19,Datos!D$20,Datos!D$22,Datos!D$23,Datos!D$25,Datos!D$28,Datos!D$31,Tarifas!$H45,Tarifas!$I45,Tarifas!$J45,Datos!D$15,Tarifas!$K45,Datos!$B$3,Datos!$B$1,Datos!$B$4,Tarifas!$M45,Tarifas!$N45,Tarifas!$O45,Tarifas!$P45,Tarifas!$Q45,Datos!$B$2) -> 21.20919553 | F43: =FACTURA(ROW(), COLUMN(),Datos!E$8,Datos!E$9,Tarifas!$C45,Datos!E$10,Tarifas!$D45,Datos!E$11,Tarifas!$E45,Datos!E$12,Tarifas!$F45,Datos!E$13,Tarifas!$G45,Tarifas!$L45,Datos!E$16,Datos!E$17,Datos!E$19,Datos!E$20,Datos!E$22,Datos!E$23,Datos!E$25,Datos!E$28,Datos!E$31,Tarifas!$H45,Tarifas!$I45,Tarifas!$J45,Datos!E$15,Tarifas!$K45,Datos!$B$3,Datos!$B$1,Datos!$B$4,Tarifas!$M45,Tarifas!$N45,Tarifas!$O45,Tarifas!$P45,Tarifas!$Q45,Datos!$B$2) -> 43.17742515 | G43: =FACTURA(ROW(), COLUMN(),Datos!F$8,Datos!F$9,Tarifas!$C45,Datos!F$10,Tarifas!$D45,Datos!F$11,Tarifas!$E45,Datos!F$12,Tarifas!$F45,Datos!F$13,Tarifas!$G45,Tarifas!$L45,Datos!F$16,Datos!F$17,Datos!F$19,Datos!F$20,Datos!F$22,Datos!F$23,Datos!F$25,Datos!F$28,Datos!F$31,Tarifas!$H45,Tarifas!$I45,Tarifas!$J45,Datos!F$15,Tarifas!$K45,Datos!$B$3,Datos!$B$1,Datos!$B$4,Tarifas!$M45,Tarifas!$N45,Tarifas!$O45,Tarifas!$P45,Tarifas!$Q45,Datos!$B$2) -> 21.20919553 | H43: =FACTURA(ROW(), COLUMN(),Datos!G$8,Datos!G$9,Tarifas!$C45,Datos!G$10,Tarifas!$D45,Datos!G$11,Tarifas!$E45,Datos!G$12,Tarifas!$F45,Datos!G$13,Tarifas!$G45,Tarifas!$L45,Datos!G$16,Datos!G$17,Datos!G$19,Datos!G$20,Datos!G$22,Datos!G$23,Datos!G$25,Datos!G$28,Datos!G$31,Tarifas!$H45,Tarifas!$I45,Tarifas!$J45,Datos!G$15,Tarifas!$K45,Datos!$B$3,Datos!$B$1,Datos!$B$4,Tarifas!$M45,Tarifas!$N45,Tarifas!$O45,Tarifas!$P45,Tarifas!$Q45,Datos!$B$2) -> 43.17742515 | I43: =FACTURA(ROW(), COLUMN(),Datos!H$8,Datos!H$9,Tarifas!$C45,Datos!H$10,Tarifas!$D45,Datos!H$11,Tarifas!$E45,Datos!H$12,Tarifas!$F45,Datos!H$13,Tarifas!$G45,Tarifas!$L45,Datos!H$16,Datos!H$17,Datos!H$19,Datos!H$20,Datos!H$22,Datos!H$23,Datos!H$25,Datos!H$28,Datos!H$31,Tarifas!$H45,Tarifas!$I45,Tarifas!$J45,Datos!H$15,Tarifas!$K45,Datos!$B$3,Datos!$B$1,Datos!$B$4,Tarifas!$M45,Tarifas!$N45,Tarifas!$O45,Tarifas!$P45,Tarifas!$Q45,Datos!$B$2) -> 21.20919553 | J43: =FACTURA(ROW(), COLUMN(),Datos!I$8,Datos!I$9,Tarifas!$C45,Datos!I$10,Tarifas!$D45,Datos!I$11,Tarifas!$E45,Datos!I$12,Tarifas!$F45,Datos!I$13,Tarifas!$G45,Tarifas!$L45,Datos!I$16,Datos!I$17,Datos!I$19,Datos!I$20,Datos!I$22,Datos!I$23,Datos!I$25,Datos!I$28,Datos!I$31,Tarifas!$H45,Tarifas!$I45,Tarifas!$J45,Datos!I$15,Tarifas!$K45,Datos!$B$3,Datos!$B$1,Datos!$B$4,Tarifas!$M45,Tarifas!$N45,Tarifas!$O45,Tarifas!$P45,Tarifas!$Q45,Datos!$B$2) -> 43.17742515 | K43: =FACTURA(ROW(), COLUMN(),Datos!J$8,Datos!J$9,Tarifas!$C45,Datos!J$10,Tarifas!$D45,Datos!J$11,Tarifas!$E45,Datos!J$12,Tarifas!$F45,Datos!J$13,Tarifas!$G45,Tarifas!$L45,Datos!J$16,Datos!J$17,Datos!J$19,Datos!J$20,Datos!J$22,Datos!J$23,Datos!J$25,Datos!J$28,Datos!J$31,Tarifas!$H45,Tarifas!$I45,Tarifas!$J45,Datos!J$15,Tarifas!$K45,Datos!$B$3,Datos!$B$1,Datos!$B$4,Tarifas!$M45,Tarifas!$N45,Tarifas!$O45,Tarifas!$P45,Tarifas!$Q45,Datos!$B$2) -> 27.48399553 | L43: =FACTURA(ROW(), COLUMN(),Datos!K$8,Datos!K$9,Tarifas!$C45,Datos!K$10,Tarifas!$D45,Datos!K$11,Tarifas!$E45,Datos!K$12,Tarifas!$F45,Datos!K$13,Tarifas!$G45,Tarifas!$L45,Datos!K$16,Datos!K$17,Datos!K$19,Datos!K$20,Datos!K$22,Datos!K$23,Datos!K$25,Datos!K$28,Datos!K$31,Tarifas!$H45,Tarifas!$I45,Tarifas!$J45,Datos!K$15,Tarifas!$K45,Datos!$B$3,Datos!$B$1,Datos!$B$4,Tarifas!$M45,Tarifas!$N45,Tarifas!$O45,Tarifas!$P45,Tarifas!$Q45,Datos!$B$2) -> 43.17742515 | M43: =FACTURA(ROW(), COLUMN(),Datos!L$8,Datos!L$9,Tarifas!$C45,Datos!L$10,Tarifas!$D45,Datos!L$11,Tarifas!$E45,Datos!L$12,Tarifas!$F45,Datos!L$13,Tarifas!$G45,Tarifas!$L45,Datos!L$16,Datos!L$17,Datos!L$19,Datos!L$20,Datos!L$22,Datos!L$23,Datos!L$25,Datos!L$28,Datos!L$31,Tarifas!$H45,Tarifas!$I45,Tarifas!$J45,Datos!L$15,Tarifas!$K45,Datos!$B$3,Datos!$B$1,Datos!$B$4,Tarifas!$M45,Tarifas!$N45,Tarifas!$O45,Tarifas!$P45,Tarifas!$Q45,Datos!$B$2) -> 37.98399553 | N43: =FACTURA(ROW(), COLUMN(),Datos!M$8,Datos!M$9,Tarifas!$C45,Datos!M$10,Tarifas!$D45,Datos!M$11,Tarifas!$E45,Datos!M$12,Tarifas!$F45,Datos!M$13,Tarifas!$G45,Tarifas!$L45,Datos!M$16,Datos!M$17,Datos!M$19,Datos!M$20,Datos!M$22,Datos!M$23,Datos!M$25,Datos!M$28,Datos!M$31,Tarifas!$H45,Tarifas!$I45,Tarifas!$J45,Datos!M$15,Tarifas!$K45,Datos!$B$3,Datos!$B$1,Datos!$B$4,Tarifas!$M45,Tarifas!$N45,Tarifas!$O45,Tarifas!$P45,Tarifas!$Q45,Datos!$B$2) -> 43.17742515 | O43: =FACTURA(ROW(), COLUMN(),Datos!N$8,Datos!N$9,Tarifas!$C45,Datos!N$10,Tarifas!$D45,Datos!N$11,Tarifas!$E45,Datos!N$12,Tarifas!$F45,Datos!N$13,Tarifas!$G45,Tarifas!$L45,Datos!N$16,Datos!N$17,Datos!N$19,Datos!N$20,Datos!N$22,Datos!N$23,Datos!N$25,Datos!N$28,Datos!N$31,Tarifas!$H45,Tarifas!$I45,Tarifas!$J45,Datos!N$15,Tarifas!$K45,Datos!$B$3,Datos!$B$1,Datos!$B$4,Tarifas!$M45,Tarifas!$N45,Tarifas!$O45,Tarifas!$P45,Tarifas!$Q45,Datos!$B$2) -> 48.48399553 | P43: =FACTURA(ROW(), COLUMN(),Datos!O$8,Datos!O$9,Tarifas!$C45,Datos!O$10,Tarifas!$D45,Datos!O$11,Tarifas!$E45,Datos!O$12,Tarifas!$F45,Datos!O$13,Tarifas!$G45,Tarifas!$L45,Datos!O$16,Datos!O$17,Datos!O$19,Datos!O$20,Datos!O$22,Datos!O$23,Datos!O$25,Datos!O$28,Datos!O$31,Tarifas!$H45,Tarifas!$I45,Tarifas!$J45,Datos!O$15,Tarifas!$K45,Datos!$B$3,Datos!$B$1,Datos!$B$4,Tarifas!$M45,Tarifas!$N45,Tarifas!$O45,Tarifas!$P45,Tarifas!$Q45,Datos!$B$2) -> 43.17742515 | Q43: =IF(Tarifas!R45="Sí","Sí","") -> 
A44: =IF(Tarifas!A46="","",Tarifas!A46) -> Repsol | B44: =IF(Tarifas!B46="","",Tarifas!B46) -> Tarifa Precio Fijo Largo Plazo | C44: 726.2685065 | E44: =FACTURA(ROW(), COLUMN(),Datos!D$8,Datos!D$9,Tarifas!$C46,Datos!D$10,Tarifas!$D46,Datos!D$11,Tarifas!$E46,Datos!D$12,Tarifas!$F46,Datos!D$13,Tarifas!$G46,Tarifas!$L46,Datos!D$16,Datos!D$17,Datos!D$19,Datos!D$20,Datos!D$22,Datos!D$23,Datos!D$25,Datos!D$28,Datos!D$31,Tarifas!$H46,Tarifas!$I46,Tarifas!$J46,Datos!D$15,Tarifas!$K46,Datos!$B$3,Datos!$B$1,Datos!$B$4,Tarifas!$M46,Tarifas!$N46,Tarifas!$O46,Tarifas!$P46,Tarifas!$Q46,Datos!$B$2) -> 69.49200054 | F44: =FACTURA(ROW(), COLUMN(),Datos!E$8,Datos!E$9,Tarifas!$C46,Datos!E$10,Tarifas!$D46,Datos!E$11,Tarifas!$E46,Datos!E$12,Tarifas!$F46,Datos!E$13,Tarifas!$G46,Tarifas!$L46,Datos!E$16,Datos!E$17,Datos!E$19,Datos!E$20,Datos!E$22,Datos!E$23,Datos!E$25,Datos!E$28,Datos!E$31,Tarifas!$H46,Tarifas!$I46,Tarifas!$J46,Datos!E$15,Tarifas!$K46,Datos!$B$3,Datos!$B$1,Datos!$B$4,Tarifas!$M46,Tarifas!$N46,Tarifas!$O46,Tarifas!$P46,Tarifas!$Q46,Datos!$B$2) -> 51.55275054 | G44: =FACTURA(ROW(), COLUMN(),Datos!F$8,Datos!F$9,Tarifas!$C46,Datos!F$10,Tarifas!$D46,Datos!F$11,Tarifas!$E46,Datos!F$12,Tarifas!$F46,Datos!F$13,Tarifas!$G46,Tarifas!$L46,Datos!F$16,Datos!F$17,Datos!F$19,Datos!F$20,Datos!F$22,Datos!F$23,Datos!F$25,Datos!F$28,Datos!F$31,Tarifas!$H46,Tarifas!$I46,Tarifas!$J46,Datos!F$15,Tarifas!$K46,Datos!$B$3,Datos!$B$1,Datos!$B$4,Tarifas!$M46,Tarifas!$N46,Tarifas!$O46,Tarifas!$P46,Tarifas!$Q46,Datos!$B$2) -> 69.49200054 | H44: =FACTURA(ROW(), COLUMN(),Datos!G$8,Datos!G$9,Tarifas!$C46,Datos!G$10,Tarifas!$D46,Datos!G$11,Tarifas!$E46,Datos!G$12,Tarifas!$F46,Datos!G$13,Tarifas!$G46,Tarifas!$L46,Datos!G$16,Datos!G$17,Datos!G$19,Datos!G$20,Datos!G$22,Datos!G$23,Datos!G$25,Datos!G$28,Datos!G$31,Tarifas!$H46,Tarifas!$I46,Tarifas!$J46,Datos!G$15,Tarifas!$K46,Datos!$B$3,Datos!$B$1,Datos!$B$4,Tarifas!$M46,Tarifas!$N46,Tarifas!$O46,Tarifas!$P46,Tarifas!$Q46,Datos!$B$2) -> 51.55275054 | I44: =FACTURA(ROW(), COLUMN(),Datos!H$8,Datos!H$9,Tarifas!$C46,Datos!H$10,Tarifas!$D46,Datos!H$11,Tarifas!$E46,Datos!H$12,Tarifas!$F46,Datos!H$13,Tarifas!$G46,Tarifas!$L46,Datos!H$16,Datos!H$17,Datos!H$19,Datos!H$20,Datos!H$22,Datos!H$23,Datos!H$25,Datos!H$28,Datos!H$31,Tarifas!$H46,Tarifas!$I46,Tarifas!$J46,Datos!H$15,Tarifas!$K46,Datos!$B$3,Datos!$B$1,Datos!$B$4,Tarifas!$M46,Tarifas!$N46,Tarifas!$O46,Tarifas!$P46,Tarifas!$Q46,Datos!$B$2) -> 69.49200054 | J44: =FACTURA(ROW(), COLUMN(),Datos!I$8,Datos!I$9,Tarifas!$C46,Datos!I$10,Tarifas!$D46,Datos!I$11,Tarifas!$E46,Datos!I$12,Tarifas!$F46,Datos!I$13,Tarifas!$G46,Tarifas!$L46,Datos!I$16,Datos!I$17,Datos!I$19,Datos!I$20,Datos!I$22,Datos!I$23,Datos!I$25,Datos!I$28,Datos!I$31,Tarifas!$H46,Tarifas!$I46,Tarifas!$J46,Datos!I$15,Tarifas!$K46,Datos!$B$3,Datos!$B$1,Datos!$B$4,Tarifas!$M46,Tarifas!$N46,Tarifas!$O46,Tarifas!$P46,Tarifas!$Q46,Datos!$B$2) -> 51.55275054 | K44: =FACTURA(ROW(), COLUMN(),Datos!J$8,Datos!J$9,Tarifas!$C46,Datos!J$10,Tarifas!$D46,Datos!J$11,Tarifas!$E46,Datos!J$12,Tarifas!$F46,Datos!J$13,Tarifas!$G46,Tarifas!$L46,Datos!J$16,Datos!J$17,Datos!J$19,Datos!J$20,Datos!J$22,Datos!J$23,Datos!J$25,Datos!J$28,Datos!J$31,Tarifas!$H46,Tarifas!$I46,Tarifas!$J46,Datos!J$15,Tarifas!$K46,Datos!$B$3,Datos!$B$1,Datos!$B$4,Tarifas!$M46,Tarifas!$N46,Tarifas!$O46,Tarifas!$P46,Tarifas!$Q46,Datos!$B$2) -> 69.49200054 | L44: =FACTURA(ROW(), COLUMN(),Datos!K$8,Datos!K$9,Tarifas!$C46,Datos!K$10,Tarifas!$D46,Datos!K$11,Tarifas!$E46,Datos!K$12,Tarifas!$F46,Datos!K$13,Tarifas!$G46,Tarifas!$L46,Datos!K$16,Datos!K$17,Datos!K$19,Datos!K$20,Datos!K$22,Datos!K$23,Datos!K$25,Datos!K$28,Datos!K$31,Tarifas!$H46,Tarifas!$I46,Tarifas!$J46,Datos!K$15,Tarifas!$K46,Datos!$B$3,Datos!$B$1,Datos!$B$4,Tarifas!$M46,Tarifas!$N46,Tarifas!$O46,Tarifas!$P46,Tarifas!$Q46,Datos!$B$2) -> 51.55275054 | M44: =FACTURA(ROW(), COLUMN(),Datos!L$8,Datos!L$9,Tarifas!$C46,Datos!L$10,Tarifas!$D46,Datos!L$11,Tarifas!$E46,Datos!L$12,Tarifas!$F46,Datos!L$13,Tarifas!$G46,Tarifas!$L46,Datos!L$16,Datos!L$17,Datos!L$19,Datos!L$20,Datos!L$22,Datos!L$23,Datos!L$25,Datos!L$28,Datos!L$31,Tarifas!$H46,Tarifas!$I46,Tarifas!$J46,Datos!L$15,Tarifas!$K46,Datos!$B$3,Datos!$B$1,Datos!$B$4,Tarifas!$M46,Tarifas!$N46,Tarifas!$O46,Tarifas!$P46,Tarifas!$Q46,Datos!$B$2) -> 69.49200054 | N44: =FACTURA(ROW(), COLUMN(),Datos!M$8,Datos!M$9,Tarifas!$C46,Datos!M$10,Tarifas!$D46,Datos!M$11,Tarifas!$E46,Datos!M$12,Tarifas!$F46,Datos!M$13,Tarifas!$G46,Tarifas!$L46,Datos!M$16,Datos!M$17,Datos!M$19,Datos!M$20,Datos!M$22,Datos!M$23,Datos!M$25,Datos!M$28,Datos!M$31,Tarifas!$H46,Tarifas!$I46,Tarifas!$J46,Datos!M$15,Tarifas!$K46,Datos!$B$3,Datos!$B$1,Datos!$B$4,Tarifas!$M46,Tarifas!$N46,Tarifas!$O46,Tarifas!$P46,Tarifas!$Q46,Datos!$B$2) -> 51.55275054 | O44: =FACTURA(ROW(), COLUMN(),Datos!N$8,Datos!N$9,Tarifas!$C46,Datos!N$10,Tarifas!$D46,Datos!N$11,Tarifas!$E46,Datos!N$12,Tarifas!$F46,Datos!N$13,Tarifas!$G46,Tarifas!$L46,Datos!N$16,Datos!N$17,Datos!N$19,Datos!N$20,Datos!N$22,Datos!N$23,Datos!N$25,Datos!N$28,Datos!N$31,Tarifas!$H46,Tarifas!$I46,Tarifas!$J46,Datos!N$15,Tarifas!$K46,Datos!$B$3,Datos!$B$1,Datos!$B$4,Tarifas!$M46,Tarifas!$N46,Tarifas!$O46,Tarifas!$P46,Tarifas!$Q46,Datos!$B$2) -> 69.49200054 | P44: =FACTURA(ROW(), COLUMN(),Datos!O$8,Datos!O$9,Tarifas!$C46,Datos!O$10,Tarifas!$D46,Datos!O$11,Tarifas!$E46,Datos!O$12,Tarifas!$F46,Datos!O$13,Tarifas!$G46,Tarifas!$L46,Datos!O$16,Datos!O$17,Datos!O$19,Datos!O$20,Datos!O$22,Datos!O$23,Datos!O$25,Datos!O$28,Datos!O$31,Tarifas!$H46,Tarifas!$I46,Tarifas!$J46,Datos!O$15,Tarifas!$K46,Datos!$B$3,Datos!$B$1,Datos!$B$4,Tarifas!$M46,Tarifas!$N46,Tarifas!$O46,Tarifas!$P46,Tarifas!$Q46,Datos!$B$2) -> 51.55275054 | Q44: =IF(Tarifas!R46="Sí","Sí","") -> 
